Workbook

Sheet vstup
A1: TORANK | B1: Podnik, ktory sa hodnoti | T1: =_xlfn.UNIQUE(PEER!D:D)&" " -> naceruz1 | U1: =_xlfn.UNIQUE(PEER!E:E)&" " -> naceru2 | V1: =_xlfn.UNIQUE(PEER!F:F)&" " -> naceru3
B2: ICO | C2: por.cislo | D2: NACE | E2: buvery | F2: ziskplus | G2: katA | H2: katO | I2: AccountingUnitSize | J2: LegalformCodeResSK | K2: Kraj | L2: skóre | T2: 2 | U2: 29 | V2: 291
A3: podnik | B3: 47464194 | C3: =_xlfn.XMATCH(B3,vsetky!A:A) -> 72595 | D3: =VLOOKUP($B$3,vsetky!$A:$M,3,FALSE) -> 29100 | E3: =VLOOKUP($B$3,vsetky!$A:$M,7,FALSE) -> FALSE | F3: =VLOOKUP($B$3,vsetky!$A:$M,8,FALSE) -> TRUE | G3: =VLOOKUP($B$3,vsetky!$A:$M,9,FALSE) -> a1 | H3: =VLOOKUP($B$3,vsetky!$A:$M,10,FALSE) -> o1 | I3: =VLOOKUP($B$3,vsetky!$A:$M,11,FALSE) -> 1 | J3: =VLOOKUP($B$3,vsetky!$A:$M,12,FALSE) -> 112 | K3: =VLOOKUP($B$3,vsetky!$A:$M,13,FALSE) -> 2 | L3: =+vystup!F26 -> 14.5 | V3: 292
A4: PEER | B4: standard, podla ktoreho sa podnik hodnoti | L4: =+vystup!G26 -> 29.25 | V4: 293
C5: pocet | D5: NACE | E5: buvery | F5: ziskplus | G5: katA | H5: katO | I5: AccountingUnitSize | J5: LegalformCodeResSK | K5: Kraj | L5: =+vystup!H26 -> -29
A6: odvetvie | C6: =COUNTA(PEER!A:A)-1 -> 148 | D6: =SUBSTITUTE(_xlfn.CONCAT(T:T),"naceruz1 ","")&SUBSTITUTE(_xlfn.CONCAT(U:U),"naceru2 ","- ")&SUBSTITUTE(_xlfn.CONCAT(V:V),"naceru3 ","- ") -> 2 - 29 - 291 292 293 | E6: =+B20 -> (Všetko) | F6: =+B19 -> (Všetko) | G6: =+B14 -> (Všetko) | H6: =+B15 -> (Všetko) | I6: =+B16 -> (Všetko) | J6: =+B17 -> (Všetko) | K6: =+B18 -> (Všetko) | L6: kvartily
A9: Vyber ICO z PEER | F9: 10 | G9: =INDIRECT("PEER!A"&F9) -> 47464194
J10: =_xlfn.CONCAT(D10:H10) -> 
A14: katA | B14: (Všetko)
A15: katO | B15: (Všetko)
A16: AccountingUnitSize | B16: (Všetko)
A17: LegalformCodeResSK | B17: (Všetko)
A18: Kraj | B18: (Všetko)
A19: ziskplus | B19: (Všetko)
A20: buvery | B20: (Všetko)
A22: NACE | B22: Počet z CZA | C22: Počet z ROE | D22: Počet z UK
A23: 1 | B23: 2493 | C23: 2493 | D23: 2492
A24: 10 | B24: 574 | C24: 574 | D24: 573
A25: 11 | B25: 227 | C25: 227 | D25: 227
A26: 12 | B26: 2 | C26: 2 | D26: 2
A27: 13 | B27: 187 | C27: 187 | D27: 187
A28: 14 | B28: 255 | C28: 255 | D28: 255
A29: 15 | B29: 71 | C29: 71 | D29: 71
A30: 16 | B30: 666 | C30: 666 | D30: 666
A31: 17 | B31: 91 | C31: 91 | D31: 91
A32: 18 | B32: 417 | C32: 417 | D32: 417
A33: 19 | B33: 3 | C33: 3 | D33: 3
A34: 2 | B34: 3987 | C34: 3987 | D34: 3986
A35: 20 | B35: 141 | C35: 141 | D35: 141
A36: 21 | B36: 15 | C36: 15 | D36: 15
A37: 22 | B37: 392 | C37: 392 | D37: 392
A38: 23 | B38: 331 | C38: 331 | D38: 331
A39: 24 | B39: 67 | C39: 67 | D39: 67
A40: 25 | B40: 2024 | C40: 2024 | D40: 2023
A41: 26 | B41: 196 | C41: 196 | D41: 196
A42: 27 | B42: 273 | C42: 273 | D42: 273
A43: 28 | B43: 400 | C43: 400 | D43: 400
A44: 29 | B44: 148 | C44: 148 | D44: 148
A45: 3 | B45: 2486 | C45: 2486 | D45: 2484
A46: 30 | B46: 25 | C46: 25 | D46: 25
A47: 31 | B47: 261 | C47: 261 | D47: 261
A48: 32 | B48: 306 | C48: 306 | D48: 306
A49: 33 | B49: 890 | C49: 890 | D49: 889
A50: 35 | B50: 515 | C50: 515 | D50: 514
A51: 36 | B51: 27 | C51: 27 | D51: 27
A52: 37 | B52: 64 | C52: 64 | D52: 64
A53: 38 | B53: 375 | C53: 375 | D53: 375
A54: 39 | B54: 23 | C54: 23 | D54: 23
A55: 4 | B55: 37386 | C55: 37386 | D55: 37362
A56: 41 | B56: 2458 | C56: 2458 | D56: 2457
A57: 42 | B57: 540 | C57: 540 | D57: 540
A58: 43 | B58: 8288 | C58: 8288 | D58: 8283
A59: 45 | B59: 2070 | C59: 2070 | D59: 2069
A60: 46 | B60: 11024 | C60: 11024 | D60: 11018
A61: 47 | B61: 9520 | C61: 9520 | D61: 9509
A62: 49 | B62: 3486 | C62: 3486 | D62: 3486
A63: 5 | B63: 5882 | C63: 5882 | D63: 5879
A64: 50 | B64: 24 | C64: 24 | D64: 24
A65: 51 | B65: 39 | C65: 39 | D65: 39
A66: 52 | B66: 745 | C66: 745 | D66: 744
A67: 53 | B67: 169 | C67: 169 | D67: 169
A68: 55 | B68: 913 | C68: 913 | D68: 913
A69: 56 | B69: 2858 | C69: 2858 | D69: 2856
A70: 58 | B70: 421 | C70: 421 | D70: 421
A71: 59 | B71: 713 | C71: 713 | D71: 713
A72: 6 | B72: 20558 | C72: 20558 | D72: 20545
A73: 60 | B73: 74 | C73: 74 | D73: 74
A74: 61 | B74: 386 | C74: 386 | D74: 386
A75: 62 | B75: 4595 | C75: 4595 | D75: 4594
A76: 63 | B76: 1247 | C76: 1247 | D76: 1247
A77: 64 | B77: 562 | C77: 562 | D77: 561
A78: 65 | B78: 60 | C78: 60 | D78: 60
A79: 66 | B79: 850 | C79: 850 | D79: 850
A80: 68 | B80: 7461 | C80: 7461 | D80: 7456
A81: 69 | B81: 5323 | C81: 5323 | D81: 5317
A82: 7 | B82: 14531 | C82: 14531 | D82: 14520
A83: 70 | B83: 5161 | C83: 5161 | D83: 5155
A84: 71 | B84: 3749 | C84: 3749 | D84: 3747
A85: 72 | B85: 248 | C85: 248 | D85: 248
A86: 73 | B86: 1968 | C86: 1968 | D86: 1968
A87: 74 | B87: 1673 | C87: 1673 | D87: 1670
A88: 75 | B88: 74 | C88: 74 | D88: 74
A89: 77 | B89: 787 | C89: 787 | D89: 787
A90: 78 | B90: 319 | C90: 319 | D90: 319
A91: 79 | B91: 552 | C91: 552 | D91: 552
A92: 8 | B92: 11656 | C92: 11656 | D92: 11646
A93: 80 | B93: 428 | C93: 428 | D93: 428
A94: 81 | B94: 1092 | C94: 1092 | D94: 1091
A95: 82 | B95: 3287 | C95: 3287 | D95: 3281
A96: 84 | B96: 181 | C96: 181 | D96: 181
A97: 85 | B97: 1366 | C97: 1366 | D97: 1365
A98: 86 | B98: 5129 | C98: 5129 | D98: 5128
A99: 87 | B99: 8 | C99: 8 | D99: 8
A100: 88 | B100: 165 | C100: 165 | D100: 164
A101: 9 | B101: 3492 | C101: 3492 | D101: 3490
A102: 90 | B102: 457 | C102: 457 | D102: 457
A103: 91 | B103: 35 | C103: 35 | D103: 35
A104: 92 | B104: 161 | C104: 161 | D104: 161
A105: 93 | B105: 1036 | C105: 1036 | D105: 1036
A106: 94 | B106: 13 | C106: 13 | D106: 13
A107: 95 | B107: 207 | C107: 207 | D107: 207
A108: 96 | B108: 1570 | C108: 1570 | D108: 1568
A109: 97 | B109: 1 | C109: 1 | D109: 1
A110: 98 | B110: 2 | C110: 2 | D110: 2
A111: 99 | B111: 10 | C111: 10 | D111: 10
A112: 0 | B112: 2654 | C112: 2654 | D112: 2653
A113: 01 | B113: 1833 | C113: 1833 | D113: 1832
A114: 02 | B114: 714 | C114: 714 | D114: 714
A115: 03 | B115: 11 | C115: 11 | D115: 11
A116: 08 | B116: 89 | C116: 89 | D116: 89
A117: 09 | B117: 7 | C117: 7 | D117: 7
A118: Celkový súčet | B118: 105125 | C118: 105125 | D118: 105057

Sheet vystup
B1: =+vstup!B2:K3 -> ICO | C1: por.cislo | D1: NACE | E1: buvery | F1: ziskplus | G1: katA | H1: katO | I1: AccountingUnitSize | J1: LegalformCodeResSK | K1: Kraj
A2: =+vstup!B1 -> Podnik, ktory sa hodnoti | B2: 47464194 | C2: 72595 | D2: 29100 | E2: FALSE | F2: TRUE | G2: a1 | H2: o1 | I2: 1 | J2: 112 | K2: 2
A3: =+vstup!B4 -> standard, podla ktoreho sa podnik hodnoti | D3: =+vstup!D6:K6 -> 2 - 29 - 291 292 293 | E3: (Všetko) | F3: (Všetko) | G3: (Všetko) | H3: (Všetko) | I3: (Všetko) | J3: (Všetko) | K3: (Všetko)
A4: =+percentils!A2:E2 -> vzorec | B4: skratka | C4: Pocet 0 | D4: blanks (pocet vylucenych ukazovatelov) | E4: Pocet vchadzajucich do vypoctu | F4: =+percentils!X25 -> 47464194 | G4: HQ cPEER | H4: DQ cPEER | I4: MEDIAN cPEER | J4: BODY SMER
A5: =+percentils!A3:E23 -> zavazky/aktiva*100 | B5: CZA | C5: 1 | D5: 0 | E5: 148 | F5: =+percentils!X3:X23 -> 48.16 | G5: =+percentils!AD3:AD23 -> 46.6575 | H5: =+percentils!AF3:AF23 -> 88.5275 | I5: =+_xlfn.ANCHORARRAY(percentils!AJ3) -> 65.56 | J5: =+percentils!AB3:AB23 -> 25 | S5: zadlzenost
A6: zasoby/obrat*360 | B6: DOZ_1 | C6: 24 | D6: 0 | E6: 148 | F6: 21.096 | G6: 12.771 | H6: 54.225 | I6: 30.834 | J6: 20 | S6: aktivita
A7: KPzOS/obrat * 360 | B7: DSKPzOS | C7: 8 | D7: 0 | E7: 148 | F7: 143.568 | G7: 19.017 | H7: 67.572 | I7: 37.134 | J7: -60 | S7: aktivita
A8: KZzOS/obrat*360 | B8: DSKZzOS | C8: 2 | D8: 0 | E8: 148 | F8: 76.284 | G8: 18.576 | H8: 74.196 | I8: 42.84 | J8: -35 | S8: aktivita
A9: pohladavky/obrat*360 | B9: DSP1 | C9: 3 | D9: 0 | E9: 148 | F9: 143.568 | G9: 79.326 | H9: 26.595 | I9: 47.754 | J9: 50 | S9: aktivita
A10: zavazky/obrat*360 | B10: DSZ1 | C10: 1 | D10: 0 | E10: 148 | F10: 215.964 | G10: 55.125 | H10: 139.212 | I10: 90.144 | J10: -40 | S10: aktivita
A11: dlhodobeZavazky/aktiva*100 | B11: DZA | C11: 18 | D11: 0 | E11: 148 | F11: 0.09 | G11: 0.365 | H11: 15.485 | I11: 4.395 | J11: 40 | S11: zadlzenost
A12: EBITDA/trzby*100 | B12: EBITDA_T | C12: 0 | D12: 0 | E12: 148 | F12: 14.73 | G12: 11.18 | H12: 2.745 | I12: 6.11 | J12: 40 | S12: rentabilita a vykonnost
A13: hrubyZisk/aktiva*100 | B13: HROA | C13: 0 | D13: 0 | E13: 148 | F13: 11.83 | G13: 10.2225 | H13: 0.25 | I13: 4.045 | J13: 35 | S13: rentabilita a vykonnost
A14: obrat/aktiva | B14: OA | C14: 0 | D14: 0 | E14: 148 | F14: 0.8028 | G14: 2.2407 | H14: 1.23105 | I14: 1.63555 | J14: -40 | S14: aktivita
A15: P0_EBITDA/trzby*100 | B15: P0_EBITDA_T | C15: 0 | D15: 0 | E15: 148 | F15: 12.63 | G15: 11.845 | H15: 11.845 | I15: 5.96 | J15: 0 | S15: rentabilita a vykonnost
A16: NovoVytvorenaHodnota/Trzby*100 | B16: PNVHvT | C16: 0 | D16: 0 | E16: 148 | F16: 12.63 | G16: 7.1125 | H16: -0.72 | I16: 1.93 | J16: 40 | S16: rentabilita a vykonnost
A17: PridanaHodnota/Trzby*100 | B17: PPHvT | C17: 0 | D17: 0 | E17: 148 | F17: 20.3 | G17: 36.0475 | H17: 14.34 | I17: 24.015 | J17: -10 | S17: rentabilita a vykonnost
A18: PrevadzkovyHV/Trzby*100 | B18: PRT | C18: 0 | D18: 0 | E18: 148 | F18: 14.79 | G18: 6.955 | H18: 0.625 | I18: 2.775 | J18: 50 | S18: rentabilita a vykonnost
A19: BankoveUvery/Aktiva*100 | B19: UZA | C19: 79 | D19: 0 | E19: 148 | F19: 0 | G19: 0 | H19: 14.29 | I19: 0 | J19: -10 | S19: zadlzenost
A20: CistyZisk/VlastneImanie*100 | B20: ROE | C20: 0 | D20: 0 | E20: 148 | F20: 17.85 | G20: 24.345 | H20: -0.3275 | I20: 10.835 | J20: 20 | S20: rentabilita a vykonnost
A21: Zavazky/BilancnyCashFlow | B21: TZ | C21: 0 | D21: 1 | E21: 147 | F21: 5.204 | G21: 3.23165 | H21: 19.7694 | I21: 7.1208 | J21: 10 | S21: zadlzenost
A22: HrubyZiskANakladoveUroky/NakladoveUroky | B22: UK | C22: 0 | D22: 0 | E22: 148 | F22: 999999999 | G22: 153.285 | H22: 1.37265 | I22: 15.62575 | J22: 60 | S22: zadlzenost
A23: VlastneImanie/Zavazky | B23: VI_Z | C23: 0 | D23: 0 | E23: 148 | F23: 1.076 | G23: 1.1682 | H23: 0.129475 | I23: 0.5359 | J23: 30 | S23: zadlzenost
A24: KratkodobyMajetokBezZasob/KratkodobeCudzieZdroje | B24: L2 | C24: 0 | D24: 0 | E24: 148 | F24: 1.8945 | G24: 1.713225 | H24: 0.335875 | I24: 0.81435 | J24: 35 | S24: Likvidita
A25: KratkodobyMajetok/KratkodobeCudzieZdroje | B25: L3 | C25: 0 | D25: 0 | E25: 148 | F25: 1.9925 | G25: 2.149425 | H25: 0.8011 | I25: 1.1937 | J25: 30 | S25: Likvidita
A26: KOMPLEXNE HODNOTENIE | B26: SKÓRE | F26: =+percentils!AC1 -> 14.5 | G26: =+percentils!AE1 -> 29.25 | H26: =+percentils!AG1 -> -29 | I26: =+percentils!AK1 -> 2 | J26: =+F26 -> 14.5 | S26: komplexne hodnotenie

Sheet percentils (hidden)
A1: NACE | B1: PEER | I1: DQ | L1: MEDIAN | O1: HQ | X1: konkr podnik | Z1: =COUNT(Z3:Z23) -> 20 | AB1: =SUM(AB3:AB23) -> 290 | AC1: =SUM(AC3:AC23) -> 14.5 | AE1: =SUM(AE3:AE23*$Z$3:$Z$23*$AA$3:$AA$23) -> 29.25 | AG1: =SUM(AG3:AG23*$Z$3:$Z$23*$AA$3:$AA$23) -> -29 | AK1: =SUM(AK3:AK23*$Z$3:$Z$23*$AA$3:$AA$23) -> 2
A2: vzorec | B2: skratka | C2: Pocet 0 | D2: blanks (pocet vylucenych ukazovatelov) | E2: Pocet vchadzajucich do vypoctu | F2: 0.05 | G2: 0.1 | H2: 0.2 | I2: 0.25 | J2: 0.3 | K2: 0.4 | L2: 0.5 | M2: 0.6 | N2: 0.7 | O2: 0.75 | P2: 0.8 | Q2: 0.9 | R2: 0.95 | S2: stlpec v zdroji udajov | T2: average | U2: stdev | V2: Min | W2: Max | X2: =+vstup!C3 -> 72595 | Y2: body | Z2: smer | AA2: vahy | AB2: body smer | AC2: skore | AD2: teor. Max | AE2: HQ cPEER | AF2: teor. Min | AG2: DQ cPEER | AH2: 0.25 | AI2: =1-AH2 -> 0.75 | AJ2: median | AK2: median cPEER
A3: zavazky/aktiva*100 | B3: CZA | C3: =COUNTIF(PEER!N$2:N$105251,0) -> 1 | E3: =COUNT(PEER!N$2:N$105251) -> 148 | F3: =_xlfn.PERCENTILE.INC(PEER!N$2:N$105251,$F$2) -> 14.617 | G3: =_xlfn.PERCENTILE.INC(PEER!N$2:N$105251,$G$2) -> 20.111 | H3: =_xlfn.PERCENTILE.INC(PEER!N$2:N$105251,$H$2) -> 39.4 | I3: =_xlfn.PERCENTILE.INC(PEER!N$2:N$105251,$I$2) -> 46.6575 | J3: =_xlfn.PERCENTILE.INC(PEER!N$2:N$105251,$J$2) -> 48.69 | K3: =_xlfn.PERCENTILE.INC(PEER!N$2:N$105251,$K$2) -> 57.746 | L3: =MEDIAN(PEER!N$2:N$105251) -> 65.56 | M3: =_xlfn.PERCENTILE.INC(PEER!N$2:N$105251,$M$2) -> 73.228 | N3: =_xlfn.PERCENTILE.INC(PEER!N$2:N$105251,$N$2) -> 83.413 | O3: =_xlfn.PERCENTILE.INC(PEER!N$2:N$105251,$O$2) -> 88.5275 | P3: =_xlfn.PERCENTILE.INC(PEER!N$2:N$105251,$P$2) -> 91.15 | Q3: =_xlfn.PERCENTILE.INC(PEER!N$2:N$105251,$Q$2) -> 105.425 | R3: =_xlfn.PERCENTILE.INC(PEER!N$2:N$105251,$R$2) -> 271.7175 | S3: N | T3: =AVERAGE(PEER!N$2:N$105251) -> 86.22371622 | U3: =_xlfn.STDEV.P(PEER!N$2:N$105251) -> 107.6223881 | V3: =MIN(PEER!N$2:N$105251) -> 0 | W3: =MAX(PEER!N$2:N$105251) -> 775.48 | X3: =INDIRECT("vsetky!"&S3&$X$2) -> 48.16 | Y3: =_xlfn.IFNA(HLOOKUP(X3,F3:R24,COUNT(L3:$L$24)),-60) -> -25 | Z3: -1 | AA3: =100%/$Z$1 -> 0.05 | AB3: =+Z3*Y3 -> 25 | AC3: =+AB3*AA3 -> 1.25 | AD3: =IF(Z3=-1,AH3,AI3) -> 46.6575 | AE3: =_xlfn.IFNA(HLOOKUP(AD3,F3:R24,COUNT(L3:$L$24)),-60) -> -25 | AF3: =IF(Z3=1,AH3,AI3) -> 88.5275 | AG3: =_xlfn.IFNA(HLOOKUP(AF3,F3:R24,COUNT(L3:$L$24)),-60) -> 35 | AH3: =_xlfn.PERCENTILE.INC(PEER!N$2:N$105251,$AH$2) -> 46.6575 | AI3: =_xlfn.PERCENTILE.INC(PEER!N$2:N$105251,$AI$2) -> 88.5275 | AJ3: =+L3:L23 -> 65.56 | AK3: =_xlfn.IFNA(HLOOKUP(AJ3,F3:R24,COUNT(L3:$L$24)),-60) -> 10
A4: zasoby/obrat*360 | B4: DOZ_1 | C4: =COUNTIF(PEER!O$2:O$105251,0) -> 24 | E4: =COUNT(PEER!O$2:O$105251) -> 148 | F4: =_xlfn.PERCENTILE.INC(PEER!O$2:O$105251,$F$2) -> 0 | G4: =_xlfn.PERCENTILE.INC(PEER!O$2:O$105251,$G$2) -> 0 | H4: =_xlfn.PERCENTILE.INC(PEER!O$2:O$105251,$H$2) -> 4.0464 | I4: =_xlfn.PERCENTILE.INC(PEER!O$2:O$105251,$I$2) -> 12.771 | J4: =_xlfn.PERCENTILE.INC(PEER!O$2:O$105251,$J$2) -> 15.912 | K4: =_xlfn.PERCENTILE.INC(PEER!O$2:O$105251,$K$2) -> 23.2488 | L4: =MEDIAN(PEER!O$2:O$105251) -> 30.834 | M4: =_xlfn.PERCENTILE.INC(PEER!O$2:O$105251,$M$2) -> 37.9152 | N4: =_xlfn.PERCENTILE.INC(PEER!O$2:O$105251,$N$2) -> 46.6596 | O4: =_xlfn.PERCENTILE.INC(PEER!O$2:O$105251,$O$2) -> 54.225 | P4: =_xlfn.PERCENTILE.INC(PEER!O$2:O$105251,$P$2) -> 58.86 | Q4: =_xlfn.PERCENTILE.INC(PEER!O$2:O$105251,$Q$2) -> 94.6548 | R4: =_xlfn.PERCENTILE.INC(PEER!O$2:O$105251,$R$2) -> 125.604 | S4: O | T4: =AVERAGE(PEER!O$2:O$105251) -> 42.42721622 | U4: =_xlfn.STDEV.P(PEER!O$2:O$105251) -> 55.21939617 | V4: =MIN(PEER!O$2:O$105251) -> 0 | W4: =MAX(PEER!O$2:O$105251) -> 411.732 | X4: =INDIRECT("vsetky!"&S4&$X$2) -> 21.096 | Y4: =_xlfn.IFNA(HLOOKUP(X4,F4:R25,COUNT(L4:$L$24)),-60) -> -20 | Z4: -1 | AA4: =100%/$Z$1 -> 0.05 | AB4: 20 | AC4: 1 | AD4: 12.771 | AE4: =_xlfn.IFNA(HLOOKUP(AD4,F4:R25,COUNT(L4:$L$24)),-60) -> -25 | AF4: 54.225 | AG4: =_xlfn.IFNA(HLOOKUP(AF4,F4:R25,COUNT(L4:$L$24)),-60) -> 35 | AH4: =_xlfn.PERCENTILE.INC(PEER!O$2:O$105251,$AH$2) -> 12.771 | AI4: =_xlfn.PERCENTILE.INC(PEER!O$2:O$105251,$AI$2) -> 54.225 | AJ4: 30.834 | AK4: =_xlfn.IFNA(HLOOKUP(AJ4,F4:R25,COUNT(L4:$L$24)),-60) -> 10
A5: KPzOS/obrat * 360 | B5: DSKPzOS | C5: =COUNTIF(PEER!P$2:P$105251,0) -> 8 | E5: =COUNT(PEER!P$2:P$105251) -> 148 | F5: =_xlfn.PERCENTILE.INC(PEER!P$2:P$105251,$F$2) -> 0.2142 | G5: =_xlfn.PERCENTILE.INC(PEER!P$2:P$105251,$G$2) -> 4.59 | H5: =_xlfn.PERCENTILE.INC(PEER!P$2:P$105251,$H$2) -> 14.6808 | I5: =_xlfn.PERCENTILE.INC(PEER!P$2:P$105251,$I$2) -> 19.017 | J5: =_xlfn.PERCENTILE.INC(PEER!P$2:P$105251,$J$2) -> 23.8212 | K5: =_xlfn.PERCENTILE.INC(PEER!P$2:P$105251,$K$2) -> 29.6856 | L5: =MEDIAN(PEER!P$2:P$105251) -> 37.134 | M5: =_xlfn.PERCENTILE.INC(PEER!P$2:P$105251,$M$2) -> 45.4248 | N5: =_xlfn.PERCENTILE.INC(PEER!P$2:P$105251,$N$2) -> 59.13 | O5: =_xlfn.PERCENTILE.INC(PEER!P$2:P$105251,$O$2) -> 67.572 | P5: =_xlfn.PERCENTILE.INC(PEER!P$2:P$105251,$P$2) -> 73.6992 | Q5: =_xlfn.PERCENTILE.INC(PEER!P$2:P$105251,$Q$2) -> 92.6748 | R5: =_xlfn.PERCENTILE.INC(PEER!P$2:P$105251,$R$2) -> 122.0382 | S5: P | T5: =AVERAGE(PEER!P$2:P$105251) -> 46.9512973 | U5: =_xlfn.STDEV.P(PEER!P$2:P$105251) -> 39.65152828 | V5: =MIN(PEER!P$2:P$105251) -> 0 | W5: =MAX(PEER!P$2:P$105251) -> 218.052 | X5: =INDIRECT("vsetky!"&S5&$X$2) -> 143.568 | Y5: =_xlfn.IFNA(HLOOKUP(X5,F5:R27,COUNT(L5:$L$24)),-60) -> 60 | Z5: -1 | AA5: 0.05 | AB5: -60 | AC5: -3 | AD5: 19.017 | AE5: =_xlfn.IFNA(HLOOKUP(AD5,F5:R27,COUNT(L5:$L$24)),-60) -> -25 | AF5: 67.572 | AG5: =_xlfn.IFNA(HLOOKUP(AF5,F5:R27,COUNT(L5:$L$24)),-60) -> 35 | AH5: =_xlfn.PERCENTILE.INC(PEER!P$2:P$105251,$AH$2) -> 19.017 | AI5: =_xlfn.PERCENTILE.INC(PEER!P$2:P$105251,$AI$2) -> 67.572 | AJ5: 37.134 | AK5: =_xlfn.IFNA(HLOOKUP(AJ5,F5:R27,COUNT(L5:$L$24)),-60) -> 10
A6: KZzOS/obrat*360 | B6: DSKZzOS | C6: =COUNTIF(PEER!Q$2:Q$105251,0) -> 2 | E6: =COUNT(PEER!Q$2:Q$105251) -> 148 | F6: =_xlfn.PERCENTILE.INC(PEER!Q$2:Q$105251,$F$2) -> 2.5596 | G6: =_xlfn.PERCENTILE.INC(PEER!Q$2:Q$105251,$G$2) -> 6.3072 | H6: =_xlfn.PERCENTILE.INC(PEER!Q$2:Q$105251,$H$2) -> 12.996 | I6: =_xlfn.PERCENTILE.INC(PEER!Q$2:Q$105251,$I$2) -> 18.576 | J6: =_xlfn.PERCENTILE.INC(PEER!Q$2:Q$105251,$J$2) -> 23.3676 | K6: =_xlfn.PERCENTILE.INC(PEER!Q$2:Q$105251,$K$2) -> 30.8304 | L6: =MEDIAN(PEER!Q$2:Q$105251) -> 42.84 | M6: =_xlfn.PERCENTILE.INC(PEER!Q$2:Q$105251,$M$2) -> 56.0016 | N6: =_xlfn.PERCENTILE.INC(PEER!Q$2:Q$105251,$N$2) -> 68.2848 | O6: =_xlfn.PERCENTILE.INC(PEER!Q$2:Q$105251,$O$2) -> 74.196 | P6: =_xlfn.PERCENTILE.INC(PEER!Q$2:Q$105251,$P$2) -> 84.384 | Q6: =_xlfn.PERCENTILE.INC(PEER!Q$2:Q$105251,$Q$2) -> 116.7804 | R6: =_xlfn.PERCENTILE.INC(PEER!Q$2:Q$105251,$R$2) -> 175.4496 | S6: Q | T6: =AVERAGE(PEER!Q$2:Q$105251) -> 63.96421622 | U6: =_xlfn.STDEV.P(PEER!Q$2:Q$105251) -> 90.38478828 | V6: =MIN(PEER!Q$2:Q$105251) -> 0 | W6: =MAX(PEER!Q$2:Q$105251) -> 699.3 | X6: =INDIRECT("vsetky!"&S6&$X$2) -> 76.284 | Y6: =_xlfn.IFNA(HLOOKUP(X6,F6:R28,COUNT(L6:$L$24)),-60) -> 35 | Z6: -1 | AA6: 0.05 | AB6: -35 | AC6: -1.75 | AD6: 18.576 | AE6: =_xlfn.IFNA(HLOOKUP(AD6,F6:R28,COUNT(L6:$L$24)),-60) -> -25 | AF6: 74.196 | AG6: =_xlfn.IFNA(HLOOKUP(AF6,F6:R28,COUNT(L6:$L$24)),-60) -> 35 | AH6: =_xlfn.PERCENTILE.INC(PEER!Q$2:Q$105251,$AH$2) -> 18.576 | AI6: =_xlfn.PERCENTILE.INC(PEER!Q$2:Q$105251,$AI$2) -> 74.196 | AJ6: 42.84 | AK6: =_xlfn.IFNA(HLOOKUP(AJ6,F6:R28,COUNT(L6:$L$24)),-60) -> 10
A7: pohladavky/obrat*360 | B7: DSP1 | C7: =COUNTIF(PEER!R$2:R$105251,0) -> 3 | E7: =COUNT(PEER!R$2:R$105251) -> 148 | F7: =_xlfn.PERCENTILE.INC(PEER!R$2:R$105251,$F$2) -> 4.2192 | G7: =_xlfn.PERCENTILE.INC(PEER!R$2:R$105251,$G$2) -> 12.1248 | H7: =_xlfn.PERCENTILE.INC(PEER!R$2:R$105251,$H$2) -> 21.9456 | I7: =_xlfn.PERCENTILE.INC(PEER!R$2:R$105251,$I$2) -> 26.595 | J7: =_xlfn.PERCENTILE.INC(PEER!R$2:R$105251,$J$2) -> 29.5416 | K7: =_xlfn.PERCENTILE.INC(PEER!R$2:R$105251,$K$2) -> 38.6424 | L7: =MEDIAN(PEER!R$2:R$105251) -> 47.754 | M7: =_xlfn.PERCENTILE.INC(PEER!R$2:R$105251,$M$2) -> 58.8384 | N7: =_xlfn.PERCENTILE.INC(PEER!R$2:R$105251,$N$2) -> 72.8532 | O7: =_xlfn.PERCENTILE.INC(PEER!R$2:R$105251,$O$2) -> 79.326 | P7: =_xlfn.PERCENTILE.INC(PEER!R$2:R$105251,$P$2) -> 92.2968 | Q7: =_xlfn.PERCENTILE.INC(PEER!R$2:R$105251,$Q$2) -> 120.6612 | R7: =_xlfn.PERCENTILE.INC(PEER!R$2:R$105251,$R$2) -> 143.7786 | S7: R | T7: =AVERAGE(PEER!R$2:R$105251) -> 60.71594595 | U7: =_xlfn.STDEV.P(PEER!R$2:R$105251) -> 54.08118826 | V7: =MIN(PEER!R$2:R$105251) -> 0 | W7: =MAX(PEER!R$2:R$105251) -> 394.164 | X7: =INDIRECT("vsetky!"&S7&$X$2) -> 143.568 | Y7: =_xlfn.IFNA(HLOOKUP(X7,F7:R29,COUNT(L7:$L$24)),-60) -> 50 | Z7: 1 | AA7: 0.05 | AB7: 50 | AC7: 2.5 | AD7: 79.326 | AE7: =_xlfn.IFNA(HLOOKUP(AD7,F7:R29,COUNT(L7:$L$24)),-60) -> 35 | AF7: 26.595 | AG7: =_xlfn.IFNA(HLOOKUP(AF7,F7:R29,COUNT(L7:$L$24)),-60) -> -25 | AH7: =_xlfn.PERCENTILE.INC(PEER!R$2:R$105251,$AH$2) -> 26.595 | AI7: =_xlfn.PERCENTILE.INC(PEER!R$2:R$105251,$AI$2) -> 79.326 | AJ7: 47.754 | AK7: =_xlfn.IFNA(HLOOKUP(AJ7,F7:R29,COUNT(L7:$L$24)),-60) -> 10
A8: zavazky/obrat*360 | B8: DSZ1 | C8: =COUNTIF(PEER!S$2:S$105251,0) -> 1 | E8: =COUNT(PEER!S$2:S$105251) -> 148 | F8: =_xlfn.PERCENTILE.INC(PEER!S$2:S$105251,$F$2) -> 23.7978 | G8: =_xlfn.PERCENTILE.INC(PEER!S$2:S$105251,$G$2) -> 33.462 | H8: =_xlfn.PERCENTILE.INC(PEER!S$2:S$105251,$H$2) -> 44.9352 | I8: =_xlfn.PERCENTILE.INC(PEER!S$2:S$105251,$I$2) -> 55.125 | J8: =_xlfn.PERCENTILE.INC(PEER!S$2:S$105251,$J$2) -> 62.91 | K8: =_xlfn.PERCENTILE.INC(PEER!S$2:S$105251,$K$2) -> 75.9528 | L8: =MEDIAN(PEER!S$2:S$105251) -> 90.144 | M8: =_xlfn.PERCENTILE.INC(PEER!S$2:S$105251,$M$2) -> 107.6112 | N8: =_xlfn.PERCENTILE.INC(PEER!S$2:S$105251,$N$2) -> 129.6504 | O8: =_xlfn.PERCENTILE.INC(PEER!S$2:S$105251,$O$2) -> 139.212 | P8: =_xlfn.PERCENTILE.INC(PEER!S$2:S$105251,$P$2) -> 170.064 | Q8: =_xlfn.PERCENTILE.INC(PEER!S$2:S$105251,$Q$2) -> 311.1624 | R8: =_xlfn.PERCENTILE.INC(PEER!S$2:S$105251,$R$2) -> 600.4692 | S8: S | T8: =AVERAGE(PEER!S$2:S$105251) -> 151.9900541 | U8: =_xlfn.STDEV.P(PEER!S$2:S$105251) -> 201.8546742 | V8: =MIN(PEER!S$2:S$105251) -> 0 | W8: =MAX(PEER!S$2:S$105251) -> 1236.96 | X8: =INDIRECT("vsetky!"&S8&$X$2) -> 215.964 | Y8: =_xlfn.IFNA(HLOOKUP(X8,F8:R30,COUNT(L8:$L$24)),-60) -> 40 | Z8: -1 | AA8: 0.05 | AB8: -40 | AC8: -2 | AD8: 55.125 | AE8: =_xlfn.IFNA(HLOOKUP(AD8,F8:R30,COUNT(L8:$L$24)),-60) -> -25 | AF8: 139.212 | AG8: =_xlfn.IFNA(HLOOKUP(AF8,F8:R30,COUNT(L8:$L$24)),-60) -> 35 | AH8: =_xlfn.PERCENTILE.INC(PEER!S$2:S$105251,$AH$2) -> 55.125 | AI8: =_xlfn.PERCENTILE.INC(PEER!S$2:S$105251,$AI$2) -> 139.212 | AJ8: 90.144 | AK8: =_xlfn.IFNA(HLOOKUP(AJ8,F8:R30,COUNT(L8:$L$24)),-60) -> 10
A9: dlhodobeZavazky/aktiva*100 | B9: DZA | C9: =COUNTIF(PEER!T$2:T$105251,0) -> 18 | E9: =COUNT(PEER!T$2:T$105251) -> 148 | F9: =_xlfn.PERCENTILE.INC(PEER!T$2:T$105251,$F$2) -> 0 | G9: =_xlfn.PERCENTILE.INC(PEER!T$2:T$105251,$G$2) -> 0 | H9: =_xlfn.PERCENTILE.INC(PEER!T$2:T$105251,$H$2) -> 0.174 | I9: =_xlfn.PERCENTILE.INC(PEER!T$2:T$105251,$I$2) -> 0.365 | J9: =_xlfn.PERCENTILE.INC(PEER!T$2:T$105251,$J$2) -> 0.702 | K9: =_xlfn.PERCENTILE.INC(PEER!T$2:T$105251,$K$2) -> 1.59 | L9: =MEDIAN(PEER!T$2:T$105251) -> 4.395 | M9: =_xlfn.PERCENTILE.INC(PEER!T$2:T$105251,$M$2) -> 8.02 | N9: =_xlfn.PERCENTILE.INC(PEER!T$2:T$105251,$N$2) -> 13.47 | O9: =_xlfn.PERCENTILE.INC(PEER!T$2:T$105251,$O$2) -> 15.485 | P9: =_xlfn.PERCENTILE.INC(PEER!T$2:T$105251,$P$2) -> 20.888 | Q9: =_xlfn.PERCENTILE.INC(PEER!T$2:T$105251,$Q$2) -> 35.259 | R9: =_xlfn.PERCENTILE.INC(PEER!T$2:T$105251,$R$2) -> 48.582 | S9: T | T9: =AVERAGE(PEER!T$2:T$105251) -> 14.09709459 | U9: =_xlfn.STDEV.P(PEER!T$2:T$105251) -> 37.31190998 | V9: =MIN(PEER!T$2:T$105251) -> 0 | W9: =MAX(PEER!T$2:T$105251) -> 421.49 | X9: =INDIRECT("vsetky!"&S9&$X$2) -> 0.09 | Y9: =_xlfn.IFNA(HLOOKUP(X9,F9:R31,COUNT(L9:$L$24)),-60) -> -40 | Z9: -1 | AA9: 0.05 | AB9: 40 | AC9: 2 | AD9: 0.365 | AE9: =_xlfn.IFNA(HLOOKUP(AD9,F9:R31,COUNT(L9:$L$24)),-60) -> -25 | AF9: 15.485 | AG9: =_xlfn.IFNA(HLOOKUP(AF9,F9:R31,COUNT(L9:$L$24)),-60) -> 35 | AH9: =_xlfn.PERCENTILE.INC(PEER!T$2:T$105251,$AH$2) -> 0.365 | AI9: =_xlfn.PERCENTILE.INC(PEER!T$2:T$105251,$AI$2) -> 15.485 | AJ9: 4.395 | AK9: =_xlfn.IFNA(HLOOKUP(AJ9,F9:R31,COUNT(L9:$L$24)),-60) -> 10
A10: EBITDA/trzby*100 | B10: EBITDA_T | C10: =COUNTIF(PEER!U$2:U$105251,0) -> 0 | E10: =COUNT(PEER!U$2:U$105251) -> 148 | F10: =_xlfn.PERCENTILE.INC(PEER!U$2:U$105251,$F$2) -> -8.2925 | G10: =_xlfn.PERCENTILE.INC(PEER!U$2:U$105251,$G$2) -> -1.54 | H10: =_xlfn.PERCENTILE.INC(PEER!U$2:U$105251,$H$2) -> 2.37 | I10: =_xlfn.PERCENTILE.INC(PEER!U$2:U$105251,$I$2) -> 2.745 | J10: =_xlfn.PERCENTILE.INC(PEER!U$2:U$105251,$J$2) -> 3.768 | K10: =_xlfn.PERCENTILE.INC(PEER!U$2:U$105251,$K$2) -> 4.89 | L10: =MEDIAN(PEER!U$2:U$105251) -> 6.11 | M10: =_xlfn.PERCENTILE.INC(PEER!U$2:U$105251,$M$2) -> 7.936 | N10: =_xlfn.PERCENTILE.INC(PEER!U$2:U$105251,$N$2) -> 10.058 | O10: =_xlfn.PERCENTILE.INC(PEER!U$2:U$105251,$O$2) -> 11.18 | P10: =_xlfn.PERCENTILE.INC(PEER!U$2:U$105251,$P$2) -> 13.206 | Q10: =_xlfn.PERCENTILE.INC(PEER!U$2:U$105251,$Q$2) -> 20.851 | R10: =_xlfn.PERCENTILE.INC(PEER!U$2:U$105251,$R$2) -> 30.96 | S10: U | T10: =AVERAGE(PEER!U$2:U$105251) -> -5.228716216 | U10: =_xlfn.STDEV.P(PEER!U$2:U$105251) -> 161.8463751 | V10: =MIN(PEER!U$2:U$105251) -> -1959.3 | W10: =MAX(PEER!U$2:U$105251) -> 93.37 | X10: =INDIRECT("vsetky!"&S10&$X$2) -> 14.73 | Y10: =_xlfn.IFNA(HLOOKUP(X10,F10:R32,COUNT(L10:$L$24)),-60) -> 40 | Z10: 1 | AA10: 0.05 | AB10: 40 | AC10: 2 | AD10: 11.18 | AE10: =_xlfn.IFNA(HLOOKUP(AD10,F10:R32,COUNT(L10:$L$24)),-60) -> 35 | AF10: 2.745 | AG10: =_xlfn.IFNA(HLOOKUP(AF10,F10:R32,COUNT(L10:$L$24)),-60) -> -25 | AH10: =_xlfn.PERCENTILE.INC(PEER!U$2:U$105251,$AH$2) -> 2.745 | AI10: =_xlfn.PERCENTILE.INC(PEER!U$2:U$105251,$AI$2) -> 11.18 | AJ10: 6.11 | AK10: =_xlfn.IFNA(HLOOKUP(AJ10,F10:R32,COUNT(L10:$L$24)),-60) -> 10
A11: hrubyZisk/aktiva*100 | B11: HROA | C11: =COUNTIF(PEER!V$2:V$105251,0) -> 0 | E11: =COUNT(PEER!V$2:V$105251) -> 148 | F11: =_xlfn.PERCENTILE.INC(PEER!V$2:V$105251,$F$2) -> -28.2715 | G11: =_xlfn.PERCENTILE.INC(PEER!V$2:V$105251,$G$2) -> -11.853 | H11: =_xlfn.PERCENTILE.INC(PEER!V$2:V$105251,$H$2) -> -1.954 | I11: =_xlfn.PERCENTILE.INC(PEER!V$2:V$105251,$I$2) -> 0.25 | J11: =_xlfn.PERCENTILE.INC(PEER!V$2:V$105251,$J$2) -> 0.883 | K11: =_xlfn.PERCENTILE.INC(PEER!V$2:V$105251,$K$2) -> 2.726 | L11: =MEDIAN(PEER!V$2:V$105251) -> 4.045 | M11: =_xlfn.PERCENTILE.INC(PEER!V$2:V$105251,$M$2) -> 6.624 | N11: =_xlfn.PERCENTILE.INC(PEER!V$2:V$105251,$N$2) -> 8.685 | O11: =_xlfn.PERCENTILE.INC(PEER!V$2:V$105251,$O$2) -> 10.2225 | P11: =_xlfn.PERCENTILE.INC(PEER!V$2:V$105251,$P$2) -> 14.828 | Q11: =_xlfn.PERCENTILE.INC(PEER!V$2:V$105251,$Q$2) -> 24.213 | R11: =_xlfn.PERCENTILE.INC(PEER!V$2:V$105251,$R$2) -> 35.8875 | S11: V | T11: =AVERAGE(PEER!V$2:V$105251) -> 5.118986486 | U11: =_xlfn.STDEV.P(PEER!V$2:V$105251) -> 28.55181967 | V11: =MIN(PEER!V$2:V$105251) -> -173.37 | W11: =MAX(PEER!V$2:V$105251) -> 162.69 | X11: =INDIRECT("vsetky!"&S11&$X$2) -> 11.83 | Y11: =_xlfn.IFNA(HLOOKUP(X11,F11:R33,COUNT(L11:$L$24)),-60) -> 35 | Z11: 1 | AA11: 0.05 | AB11: 35 | AC11: 1.75 | AD11: 10.2225 | AE11: =_xlfn.IFNA(HLOOKUP(AD11,F11:R33,COUNT(L11:$L$24)),-60) -> 35 | AF11: 0.25 | AG11: =_xlfn.IFNA(HLOOKUP(AF11,F11:R33,COUNT(L11:$L$24)),-60) -> -25 | AH11: =_xlfn.PERCENTILE.INC(PEER!V$2:V$105251,$AH$2) -> 0.25 | AI11: =_xlfn.PERCENTILE.INC(PEER!V$2:V$105251,$AI$2) -> 10.2225 | AJ11: 4.045 | AK11: =_xlfn.IFNA(HLOOKUP(AJ11,F11:R33,COUNT(L11:$L$24)),-60) -> 10
A12: obrat/aktiva | B12: OA | C12: =COUNTIF(PEER!Y$2:Y$105251,0) -> 0 | E12: =COUNT(PEER!Y$2:Y$105251) -> 148 | F12: =_xlfn.PERCENTILE.INC(PEER!Y$2:Y$105251,$F$2) -> 0.502115 | G12: =_xlfn.PERCENTILE.INC(PEER!Y$2:Y$105251,$G$2) -> 0.77647 | H12: =_xlfn.PERCENTILE.INC(PEER!Y$2:Y$105251,$H$2) -> 1.10456 | I12: =_xlfn.PERCENTILE.INC(PEER!Y$2:Y$105251,$I$2) -> 1.23105 | J12: =_xlfn.PERCENTILE.INC(PEER!Y$2:Y$105251,$J$2) -> 1.33598 | K12: =_xlfn.PERCENTILE.INC(PEER!Y$2:Y$105251,$K$2) -> 1.451 | L12: =MEDIAN(PEER!Y$2:Y$105251) -> 1.63555 | M12: =_xlfn.PERCENTILE.INC(PEER!Y$2:Y$105251,$M$2) -> 1.81954 | N12: =_xlfn.PERCENTILE.INC(PEER!Y$2:Y$105251,$N$2) -> 2.13391 | O12: =_xlfn.PERCENTILE.INC(PEER!Y$2:Y$105251,$O$2) -> 2.2407 | P12: =_xlfn.PERCENTILE.INC(PEER!Y$2:Y$105251,$P$2) -> 2.45358 | Q12: =_xlfn.PERCENTILE.INC(PEER!Y$2:Y$105251,$Q$2) -> 3.45847 | R12: =_xlfn.PERCENTILE.INC(PEER!Y$2:Y$105251,$R$2) -> 4.68207 | S12: Y | T12: =AVERAGE(PEER!Y$2:Y$105251) -> 2.061237838 | U12: =_xlfn.STDEV.P(PEER!Y$2:Y$105251) -> 1.839558414 | V12: =MIN(PEER!Y$2:Y$105251) -> 0.0153 | W12: =MAX(PEER!Y$2:Y$105251) -> 16.0564 | X12: =INDIRECT("vsetky!"&S12&$X$2) -> 0.8028 | Y12: =_xlfn.IFNA(HLOOKUP(X12,F12:R34,COUNT(L12:$L$24)),-60) -> -40 | Z12: 1 | AA12: 0.05 | AB12: -40 | AC12: -2 | AD12: 2.2407 | AE12: =_xlfn.IFNA(HLOOKUP(AD12,F12:R34,COUNT(L12:$L$24)),-60) -> 35 | AF12: 1.23105 | AG12: =_xlfn.IFNA(HLOOKUP(AF12,F12:R34,COUNT(L12:$L$24)),-60) -> -25 | AH12: =_xlfn.PERCENTILE.INC(PEER!Y$2:Y$105251,$AH$2) -> 1.23105 | AI12: =_xlfn.PERCENTILE.INC(PEER!Y$2:Y$105251,$AI$2) -> 2.2407 | AJ12: 1.63555 | AK12: =_xlfn.IFNA(HLOOKUP(AJ12,F12:R34,COUNT(L12:$L$24)),-60) -> 10
A13: P0_EBITDA/trzby*100 | B13: P0_EBITDA_T | C13: =COUNTIF(PEER!Z$2:Z$105251,0) -> 0 | E13: =COUNT(PEER!Z$2:Z$105251) -> 148 | F13: =_xlfn.PERCENTILE.INC(PEER!Z$2:Z$105251,$F$2) -> -10.133 | G13: =_xlfn.PERCENTILE.INC(PEER!Z$2:Z$105251,$G$2) -> -2.458 | H13: =_xlfn.PERCENTILE.INC(PEER!Z$2:Z$105251,$H$2) -> 1.908 | I13: =_xlfn.PERCENTILE.INC(PEER!Z$2:Z$105251,$I$2) -> 2.25 | J13: =_xlfn.PERCENTILE.INC(PEER!Z$2:Z$105251,$J$2) -> 2.741 | K13: =_xlfn.PERCENTILE.INC(PEER!Z$2:Z$105251,$K$2) -> 4.63 | L13: =MEDIAN(PEER!Z$2:Z$105251) -> 5.96 | M13: =_xlfn.PERCENTILE.INC(PEER!Z$2:Z$105251,$M$2) -> 7.972 | N13: =_xlfn.PERCENTILE.INC(PEER!Z$2:Z$105251,$N$2) -> 10.353 | O13: =_xlfn.PERCENTILE.INC(PEER!Z$2:Z$105251,$O$2) -> 11.845 | P13: =_xlfn.PERCENTILE.INC(PEER!Z$2:Z$105251,$P$2) -> 12.69 | Q13: =_xlfn.PERCENTILE.INC(PEER!Z$2:Z$105251,$Q$2) -> 21.349 | R13: =_xlfn.PERCENTILE.INC(PEER!Z$2:Z$105251,$R$2) -> 28.493 | S13: Z | T13: =AVERAGE(PEER!Z$2:Z$105251) -> -5.233310811 | U13: =_xlfn.STDEV.P(PEER!Z$2:Z$105251) -> 155.8253631 | V13: =MIN(PEER!Z$2:Z$105251) -> -1884.88 | W13: =MAX(PEER!Z$2:Z$105251) -> 92.8 | X13: =INDIRECT("vsetky!"&S13&$X$2) -> 12.63 | Y13: =_xlfn.IFNA(HLOOKUP(X13,F13:R35,COUNT(L13:$L$24)),-60) -> 35 | AA13: 0.05 | AD13: 11.845 | AE13: =_xlfn.IFNA(HLOOKUP(AD13,F13:R35,COUNT(L13:$L$24)),-60) -> 35 | AF13: 11.845 | AG13: =_xlfn.IFNA(HLOOKUP(AF13,F13:R35,COUNT(L13:$L$24)),-60) -> 35 | AH13: =_xlfn.PERCENTILE.INC(PEER!Z$2:Z$105251,$AH$2) -> 2.25 | AI13: =_xlfn.PERCENTILE.INC(PEER!Z$2:Z$105251,$AI$2) -> 11.845 | AJ13: 5.96 | AK13: =_xlfn.IFNA(HLOOKUP(AJ13,F13:R35,COUNT(L13:$L$24)),-60) -> 10
A14: NovoVytvorenaHodnota/Trzby*100 | B14: PNVHvT | C14: =COUNTIF(PEER!AA$2:AA$105251,0) -> 0 | E14: =COUNT(PEER!AA$2:AA$105251) -> 148 | F14: =_xlfn.PERCENTILE.INC(PEER!AA$2:AA$105251,$F$2) -> -18.958 | G14: =_xlfn.PERCENTILE.INC(PEER!AA$2:AA$105251,$G$2) -> -9.269 | H14: =_xlfn.PERCENTILE.INC(PEER!AA$2:AA$105251,$H$2) -> -2.882 | I14: =_xlfn.PERCENTILE.INC(PEER!AA$2:AA$105251,$I$2) -> -0.72 | J14: =_xlfn.PERCENTILE.INC(PEER!AA$2:AA$105251,$J$2) -> 0.054 | K14: =_xlfn.PERCENTILE.INC(PEER!AA$2:AA$105251,$K$2) -> 1.174 | L14: =MEDIAN(PEER!AA$2:AA$105251) -> 1.93 | M14: =_xlfn.PERCENTILE.INC(PEER!AA$2:AA$105251,$M$2) -> 3.654 | N14: =_xlfn.PERCENTILE.INC(PEER!AA$2:AA$105251,$N$2) -> 5.648 | O14: =_xlfn.PERCENTILE.INC(PEER!AA$2:AA$105251,$O$2) -> 7.1125 | P14: =_xlfn.PERCENTILE.INC(PEER!AA$2:AA$105251,$P$2) -> 8.876 | Q14: =_xlfn.PERCENTILE.INC(PEER!AA$2:AA$105251,$Q$2) -> 14.795 | R14: =_xlfn.PERCENTILE.INC(PEER!AA$2:AA$105251,$R$2) -> 23.9445 | S14: AA | T14: =AVERAGE(PEER!AA$2:AA$105251) -> -10.00668919 | U14: =_xlfn.STDEV.P(PEER!AA$2:AA$105251) -> 155.4630495 | V14: =MIN(PEER!AA$2:AA$105251) -> -1884.88 | W14: =MAX(PEER!AA$2:AA$105251) -> 88.96 | X14: =INDIRECT("vsetky!"&S14&$X$2) -> 12.63 | Y14: =_xlfn.IFNA(HLOOKUP(X14,F14:R36,COUNT(L14:$L$24)),-60) -> 40 | Z14: 1 | AA14: 0.05 | AB14: =+Z14*Y14 -> 40 | AC14: =+AB14*AA14 -> 2 | AD14: 7.1125 | AE14: =_xlfn.IFNA(HLOOKUP(AD14,F14:R36,COUNT(L14:$L$24)),-60) -> 35 | AF14: -0.72 | AG14: =_xlfn.IFNA(HLOOKUP(AF14,F14:R36,COUNT(L14:$L$24)),-60) -> -25 | AH14: =_xlfn.PERCENTILE.INC(PEER!AA$2:AA$105251,$AH$2) -> -0.72 | AI14: =_xlfn.PERCENTILE.INC(PEER!AA$2:AA$105251,$AI$2) -> 7.1125 | AJ14: 1.93 | AK14: =_xlfn.IFNA(HLOOKUP(AJ14,F14:R36,COUNT(L14:$L$24)),-60) -> 10
A15: PridanaHodnota/Trzby*100 | B15: PPHvT | C15: =COUNTIF(PEER!AB$2:AB$105251,0) -> 0 | E15: =COUNT(PEER!AB$2:AB$105251) -> 148 | F15: =_xlfn.PERCENTILE.INC(PEER!AB$2:AB$105251,$F$2) -> 3.62 | G15: =_xlfn.PERCENTILE.INC(PEER!AB$2:AB$105251,$G$2) -> 6.12 | H15: =_xlfn.PERCENTILE.INC(PEER!AB$2:AB$105251,$H$2) -> 12.614 | I15: =_xlfn.PERCENTILE.INC(PEER!AB$2:AB$105251,$I$2) -> 14.34 | J15: =_xlfn.PERCENTILE.INC(PEER!AB$2:AB$105251,$J$2) -> 16.011 | K15: =_xlfn.PERCENTILE.INC(PEER!AB$2:AB$105251,$K$2) -> 19.19 | L15: =MEDIAN(PEER!AB$2:AB$105251) -> 24.015 | M15: =_xlfn.PERCENTILE.INC(PEER!AB$2:AB$105251,$M$2) -> 28.708 | N15: =_xlfn.PERCENTILE.INC(PEER!AB$2:AB$105251,$N$2) -> 33.225 | O15: =_xlfn.PERCENTILE.INC(PEER!AB$2:AB$105251,$O$2) -> 36.0475 | P15: =_xlfn.PERCENTILE.INC(PEER!AB$2:AB$105251,$P$2) -> 41.106 | Q15: =_xlfn.PERCENTILE.INC(PEER!AB$2:AB$105251,$Q$2) -> 57.144 | R15: =_xlfn.PERCENTILE.INC(PEER!AB$2:AB$105251,$R$2) -> 66.015 | S15: AB | T15: =AVERAGE(PEER!AB$2:AB$105251) -> 14.96905405 | U15: =_xlfn.STDEV.P(PEER!AB$2:AB$105251) -> 158.0981695 | V15: =MIN(PEER!AB$2:AB$105251) -> -1884.88 | W15: =MAX(PEER!AB$2:AB$105251) -> 94.4 | X15: =INDIRECT("vsetky!"&S15&$X$2) -> 20.3 | Y15: =_xlfn.IFNA(HLOOKUP(X15,F15:R37,COUNT(L15:$L$24)),-60) -> -10 | Z15: 1 | AA15: 0.05 | AB15: -10 | AC15: -0.5 | AD15: 36.0475 | AE15: =_xlfn.IFNA(HLOOKUP(AD15,F15:R37,COUNT(L15:$L$24)),-60) -> 35 | AF15: 14.34 | AG15: =_xlfn.IFNA(HLOOKUP(AF15,F15:R37,COUNT(L15:$L$24)),-60) -> -25 | AH15: =_xlfn.PERCENTILE.INC(PEER!AB$2:AB$105251,$AH$2) -> 14.34 | AI15: =_xlfn.PERCENTILE.INC(PEER!AB$2:AB$105251,$AI$2) -> 36.0475 | AJ15: 24.015 | AK15: =_xlfn.IFNA(HLOOKUP(AJ15,F15:R37,COUNT(L15:$L$24)),-60) -> 10
A16: PrevadzkovyHV/Trzby*100 | B16: PRT | C16: =COUNTIF(PEER!AC$2:AC$105251,0) -> 0 | E16: =COUNT(PEER!AC$2:AC$105251) -> 148 | F16: =_xlfn.PERCENTILE.INC(PEER!AC$2:AC$105251,$F$2) -> -19.704 | G16: =_xlfn.PERCENTILE.INC(PEER!AC$2:AC$105251,$G$2) -> -6.799 | H16: =_xlfn.PERCENTILE.INC(PEER!AC$2:AC$105251,$H$2) -> -0.246 | I16: =_xlfn.PERCENTILE.INC(PEER!AC$2:AC$105251,$I$2) -> 0.625 | J16: =_xlfn.PERCENTILE.INC(PEER!AC$2:AC$105251,$J$2) -> 0.858 | K16: =_xlfn.PERCENTILE.INC(PEER!AC$2:AC$105251,$K$2) -> 1.896 | L16: =MEDIAN(PEER!AC$2:AC$105251) -> 2.775 | M16: =_xlfn.PERCENTILE.INC(PEER!AC$2:AC$105251,$M$2) -> 4.582 | N16: =_xlfn.PERCENTILE.INC(PEER!AC$2:AC$105251,$N$2) -> 5.917 | O16: =_xlfn.PERCENTILE.INC(PEER!AC$2:AC$105251,$O$2) -> 6.955 | P16: =_xlfn.PERCENTILE.INC(PEER!AC$2:AC$105251,$P$2) -> 7.976 | Q16: =_xlfn.PERCENTILE.INC(PEER!AC$2:AC$105251,$Q$2) -> 14.398 | R16: =_xlfn.PERCENTILE.INC(PEER!AC$2:AC$105251,$R$2) -> 23.585 | S16: AC | T16: =AVERAGE(PEER!AC$2:AC$105251) -> -9.059932432 | U16: =_xlfn.STDEV.P(PEER!AC$2:AC$105251) -> 155.4627717 | V16: =MIN(PEER!AC$2:AC$105251) -> -1884.88 | W16: =MAX(PEER!AC$2:AC$105251) -> 89.23 | X16: =INDIRECT("vsetky!"&S16&$X$2) -> 14.79 | Y16: =_xlfn.IFNA(HLOOKUP(X16,F16:R38,COUNT(L16:$L$24)),-60) -> 50 | Z16: 1 | AA16: 0.05 | AB16: 50 | AC16: 2.5 | AD16: 6.955 | AE16: =_xlfn.IFNA(HLOOKUP(AD16,F16:R38,COUNT(L16:$L$24)),-60) -> 35 | AF16: 0.625 | AG16: =_xlfn.IFNA(HLOOKUP(AF16,F16:R38,COUNT(L16:$L$24)),-60) -> -25 | AH16: =_xlfn.PERCENTILE.INC(PEER!AC$2:AC$105251,$AH$2) -> 0.625 | AI16: =_xlfn.PERCENTILE.INC(PEER!AC$2:AC$105251,$AI$2) -> 6.955 | AJ16: 2.775 | AK16: =_xlfn.IFNA(HLOOKUP(AJ16,F16:R38,COUNT(L16:$L$24)),-60) -> 10
A17: BankoveUvery/Aktiva*100 | B17: UZA | C17: =COUNTIF(PEER!AG$2:AG$105251,0) -> 79 | E17: =COUNT(PEER!AG$2:AG$105251) -> 148 | F17: =_xlfn.PERCENTILE.INC(PEER!AG$2:AG$105251,$F$2) -> 0 | G17: =_xlfn.PERCENTILE.INC(PEER!AG$2:AG$105251,$G$2) -> 0 | H17: =_xlfn.PERCENTILE.INC(PEER!AG$2:AG$105251,$H$2) -> 0 | I17: =_xlfn.PERCENTILE.INC(PEER!AG$2:AG$105251,$I$2) -> 0 | J17: =_xlfn.PERCENTILE.INC(PEER!AG$2:AG$105251,$J$2) -> 0 | K17: =_xlfn.PERCENTILE.INC(PEER!AG$2:AG$105251,$K$2) -> 0 | L17: =MEDIAN(PEER!AG$2:AG$105251) -> 0 | M17: =_xlfn.PERCENTILE.INC(PEER!AG$2:AG$105251,$M$2) -> 5.28 | N17: =_xlfn.PERCENTILE.INC(PEER!AG$2:AG$105251,$N$2) -> 11.279 | O17: =_xlfn.PERCENTILE.INC(PEER!AG$2:AG$105251,$O$2) -> 14.29 | P17: =_xlfn.PERCENTILE.INC(PEER!AG$2:AG$105251,$P$2) -> 17.94 | Q17: =_xlfn.PERCENTILE.INC(PEER!AG$2:AG$105251,$Q$2) -> 31.05 | R17: =_xlfn.PERCENTILE.INC(PEER!AG$2:AG$105251,$R$2) -> 35.13 | S17: AG | T17: =AVERAGE(PEER!AG$2:AG$105251) -> 9.187567568 | U17: =_xlfn.STDEV.P(PEER!AG$2:AG$105251) -> 14.75357239 | V17: =MIN(PEER!AG$2:AG$105251) -> 0 | W17: =MAX(PEER!AG$2:AG$105251) -> 77.02 | X17: =INDIRECT("vsetky!"&S17&$X$2) -> 0 | Y17: =_xlfn.IFNA(HLOOKUP(X17,F17:R39,COUNT(L17:$L$24)),-60) -> 10 | Z17: -1 | AA17: 0.05 | AB17: -10 | AC17: -0.5 | AD17: 0 | AE17: =_xlfn.IFNA(HLOOKUP(AD17,F17:R39,COUNT(L17:$L$24)),-60) -> 10 | AF17: 14.29 | AG17: =_xlfn.IFNA(HLOOKUP(AF17,F17:R39,COUNT(L17:$L$24)),-60) -> 35 | AH17: =_xlfn.PERCENTILE.INC(PEER!AG$2:AG$105251,$AH$2) -> 0 | AI17: =_xlfn.PERCENTILE.INC(PEER!AG$2:AG$105251,$AI$2) -> 14.29 | AJ17: 0 | AK17: =_xlfn.IFNA(HLOOKUP(AJ17,F17:R39,COUNT(L17:$L$24)),-60) -> 10
A18: CistyZisk/VlastneImanie*100 | B18: ROE | C18: =COUNTIF(PEER!AD$2:AD$105251,0) -> 0 | D18: =+$E$17-E18 -> 0 | E18: =COUNT(PEER!AD$2:AD$105251) -> 148 | F18: =_xlfn.PERCENTILE.INC(PEER!AD$2:AD$105251,$F$2) -> -999999999 | G18: =_xlfn.PERCENTILE.INC(PEER!AD$2:AD$105251,$G$2) -> -101.282 | H18: =_xlfn.PERCENTILE.INC(PEER!AD$2:AD$105251,$H$2) -> -8.338 | I18: =_xlfn.PERCENTILE.INC(PEER!AD$2:AD$105251,$I$2) -> -0.3275 | J18: =_xlfn.PERCENTILE.INC(PEER!AD$2:AD$105251,$J$2) -> 1.462 | K18: =_xlfn.PERCENTILE.INC(PEER!AD$2:AD$105251,$K$2) -> 7.1 | L18: =MEDIAN(PEER!AD$2:AD$105251) -> 10.835 | M18: =_xlfn.PERCENTILE.INC(PEER!AD$2:AD$105251,$M$2) -> 14.724 | N18: =_xlfn.PERCENTILE.INC(PEER!AD$2:AD$105251,$N$2) -> 19.59 | O18: =_xlfn.PERCENTILE.INC(PEER!AD$2:AD$105251,$O$2) -> 24.345 | P18: =_xlfn.PERCENTILE.INC(PEER!AD$2:AD$105251,$P$2) -> 29.556 | Q18: =_xlfn.PERCENTILE.INC(PEER!AD$2:AD$105251,$Q$2) -> 58.466 | R18: =_xlfn.PERCENTILE.INC(PEER!AD$2:AD$105251,$R$2) -> 104.7735 | S18: AD | T18: =AVERAGE(PEER!AD$2:AD$105251) -> -27027025.18 | U18: =_xlfn.STDEV.P(PEER!AD$2:AD$105251) -> 347694062.8 | V18: =MIN(PEER!AD$2:AD$105251) -> -999999999 | W18: =MAX(PEER!AD$2:AD$105251) -> 999999999 | X18: =INDIRECT("vsetky!"&S18&$X$2) -> 17.85 | Y18: =_xlfn.IFNA(HLOOKUP(X18,F18:R40,COUNT(L18:$L$24)),-60) -> 20 | Z18: 1 | AA18: 0.05 | AB18: 20 | AC18: 1 | AD18: 24.345 | AE18: =_xlfn.IFNA(HLOOKUP(AD18,F18:R40,COUNT(L18:$L$24)),-60) -> 35 | AF18: -0.3275 | AG18: =_xlfn.IFNA(HLOOKUP(AF18,F18:R40,COUNT(L18:$L$24)),-60) -> -25 | AH18: =_xlfn.PERCENTILE.INC(PEER!AD$2:AD$105251,$AH$2) -> -0.3275 | AI18: =_xlfn.PERCENTILE.INC(PEER!AD$2:AD$105251,$AI$2) -> 24.345 | AJ18: 10.835 | AK18: =_xlfn.IFNA(HLOOKUP(AJ18,F18:R40,COUNT(L18:$L$24)),-60) -> 10
A19: Zavazky/BilancnyCashFlow | B19: TZ | C19: =COUNTIF(PEER!AE$2:AE$105251,0) -> 0 | D19: 1 | E19: =COUNT(PEER!AE$2:AE$105251) -> 147 | F19: =_xlfn.PERCENTILE.INC(PEER!AE$2:AE$105251,$F$2) -> 0.82233 | G19: =_xlfn.PERCENTILE.INC(PEER!AE$2:AE$105251,$G$2) -> 1.54642 | H19: =_xlfn.PERCENTILE.INC(PEER!AE$2:AE$105251,$H$2) -> 2.73872 | I19: =_xlfn.PERCENTILE.INC(PEER!AE$2:AE$105251,$I$2) -> 3.23165 | J19: =_xlfn.PERCENTILE.INC(PEER!AE$2:AE$105251,$J$2) -> 3.8405 | K19: =_xlfn.PERCENTILE.INC(PEER!AE$2:AE$105251,$K$2) -> 5.12464 | L19: =MEDIAN(PEER!AE$2:AE$105251) -> 7.1208 | M19: =_xlfn.PERCENTILE.INC(PEER!AE$2:AE$105251,$M$2) -> 9.88034 | N19: =_xlfn.PERCENTILE.INC(PEER!AE$2:AE$105251,$N$2) -> 14.53938 | O19: =_xlfn.PERCENTILE.INC(PEER!AE$2:AE$105251,$O$2) -> 19.7694 | P19: =_xlfn.PERCENTILE.INC(PEER!AE$2:AE$105251,$P$2) -> 24.91224 | Q19: =_xlfn.PERCENTILE.INC(PEER!AE$2:AE$105251,$Q$2) -> 999999999 | R19: =_xlfn.PERCENTILE.INC(PEER!AE$2:AE$105251,$R$2) -> 999999999 | S19: AE | T19: =AVERAGE(PEER!AE$2:AE$105251) -> 129251716.5 | U19: =_xlfn.STDEV.P(PEER!AE$2:AE$105251) -> 335478306.6 | V19: =MIN(PEER!AE$2:AE$105251) -> 0.2343 | W19: =MAX(PEER!AE$2:AE$105251) -> 999999999 | X19: =INDIRECT("vsetky!"&S19&$X$2) -> 5.204 | Y19: =_xlfn.IFNA(HLOOKUP(X19,F19:R41,COUNT(L19:$L$24)),-60) -> -10 | Z19: -1 | AA19: 0.05 | AB19: 10 | AC19: 0.5 | AD19: 3.23165 | AE19: =_xlfn.IFNA(HLOOKUP(AD19,F19:R41,COUNT(L19:$L$24)),-60) -> -25 | AF19: 19.7694 | AG19: =_xlfn.IFNA(HLOOKUP(AF19,F19:R41,COUNT(L19:$L$24)),-60) -> 35 | AH19: =_xlfn.PERCENTILE.INC(PEER!AE$2:AE$105251,$AH$2) -> 3.23165 | AI19: =_xlfn.PERCENTILE.INC(PEER!AE$2:AE$105251,$AI$2) -> 19.7694 | AJ19: 7.1208 | AK19: =_xlfn.IFNA(HLOOKUP(AJ19,F19:R41,COUNT(L19:$L$24)),-60) -> 10
A20: HrubyZiskANakladoveUroky/NakladoveUroky | B20: UK | C20: =COUNTIF(PEER!AF$2:AF$105251,0) -> 0 | D20: 0 | E20: =COUNT(PEER!AF$2:AF$105251) -> 148 | F20: =_xlfn.PERCENTILE.INC(PEER!AF$2:AF$105251,$F$2) -> -759.36911 | G20: =_xlfn.PERCENTILE.INC(PEER!AF$2:AF$105251,$G$2) -> -19.9475 | H20: =_xlfn.PERCENTILE.INC(PEER!AF$2:AF$105251,$H$2) -> -0.4396 | I20: =_xlfn.PERCENTILE.INC(PEER!AF$2:AF$105251,$I$2) -> 1.37265 | J20: =_xlfn.PERCENTILE.INC(PEER!AF$2:AF$105251,$J$2) -> 3.14544 | K20: =_xlfn.PERCENTILE.INC(PEER!AF$2:AF$105251,$K$2) -> 5.71242 | L20: =MEDIAN(PEER!AF$2:AF$105251) -> 15.62575 | M20: =_xlfn.PERCENTILE.INC(PEER!AF$2:AF$105251,$M$2) -> 23.2836 | N20: =_xlfn.PERCENTILE.INC(PEER!AF$2:AF$105251,$N$2) -> 57.63754 | O20: =_xlfn.PERCENTILE.INC(PEER!AF$2:AF$105251,$O$2) -> 153.285 | P20: =_xlfn.PERCENTILE.INC(PEER!AF$2:AF$105251,$P$2) -> 16146.15198 | Q20: =_xlfn.PERCENTILE.INC(PEER!AF$2:AF$105251,$Q$2) -> 999999999 | R20: =_xlfn.PERCENTILE.INC(PEER!AF$2:AF$105251,$R$2) -> 999999999 | S20: AF | T20: =AVERAGE(PEER!AF$2:AF$105251) -> 141894424.1 | U20: =_xlfn.STDEV.P(PEER!AF$2:AF$105251) -> 465137032.7 | V20: =MIN(PEER!AF$2:AF$105251) -> -999999999 | W20: =MAX(PEER!AF$2:AF$105251) -> 999999999 | X20: =INDIRECT("vsetky!"&S20&$X$2) -> 999999999 | Y20: =_xlfn.IFNA(HLOOKUP(X20,F20:R42,COUNT(L20:$L$24)),-60) -> 60 | Z20: 1 | AA20: 0.05 | AB20: 60 | AC20: 3 | AD20: 153.285 | AE20: =_xlfn.IFNA(HLOOKUP(AD20,F20:R42,COUNT(L20:$L$24)),-60) -> 35 | AF20: 1.37265 | AG20: =_xlfn.IFNA(HLOOKUP(AF20,F20:R42,COUNT(L20:$L$24)),-60) -> -25 | AH20: =_xlfn.PERCENTILE.INC(PEER!AF$2:AF$105251,$AH$2) -> 1.37265 | AI20: =_xlfn.PERCENTILE.INC(PEER!AF$2:AF$105251,$AI$2) -> 153.285 | AJ20: 15.62575 | AK20: =_xlfn.IFNA(HLOOKUP(AJ20,F20:R42,COUNT(L20:$L$24)),-60) -> 10
A21: VlastneImanie/Zavazky | B21: VI_Z | C21: =COUNTIF(PEER!AH$2:AH$105251,0) -> 0 | D21: 0 | E21: =COUNT(PEER!AH$2:AH$105251) -> 148 | F21: =_xlfn.PERCENTILE.INC(PEER!AH$2:AH$105251,$F$2) -> -0.631685 | G21: =_xlfn.PERCENTILE.INC(PEER!AH$2:AH$105251,$G$2) -> -0.05136 | H21: =_xlfn.PERCENTILE.INC(PEER!AH$2:AH$105251,$H$2) -> 0.1019 | I21: =_xlfn.PERCENTILE.INC(PEER!AH$2:AH$105251,$I$2) -> 0.129475 | J21: =_xlfn.PERCENTILE.INC(PEER!AH$2:AH$105251,$J$2) -> 0.22043 | K21: =_xlfn.PERCENTILE.INC(PEER!AH$2:AH$105251,$K$2) -> 0.3662 | L21: =MEDIAN(PEER!AH$2:AH$105251) -> 0.5359 | M21: =_xlfn.PERCENTILE.INC(PEER!AH$2:AH$105251,$M$2) -> 0.7578 | N21: =_xlfn.PERCENTILE.INC(PEER!AH$2:AH$105251,$N$2) -> 1.0755 | O21: =_xlfn.PERCENTILE.INC(PEER!AH$2:AH$105251,$O$2) -> 1.1682 | P21: =_xlfn.PERCENTILE.INC(PEER!AH$2:AH$105251,$P$2) -> 1.59844 | Q21: =_xlfn.PERCENTILE.INC(PEER!AH$2:AH$105251,$Q$2) -> 4.04373 | R21: =_xlfn.PERCENTILE.INC(PEER!AH$2:AH$105251,$R$2) -> 5.88578 | S21: AH | T21: =AVERAGE(PEER!AH$2:AH$105251) -> 6756758.351 | U21: =_xlfn.STDEV.P(PEER!AH$2:AH$105251) -> 81921321.77 | V21: =MIN(PEER!AH$2:AH$105251) -> -0.872 | W21: =MAX(PEER!AH$2:AH$105251) -> 999999999 | X21: =INDIRECT("vsetky!"&S21&$X$2) -> 1.076 | Y21: =_xlfn.IFNA(HLOOKUP(X21,F21:R43,COUNT(L21:$L$24)),-60) -> 30 | Z21: 1 | AA21: 0.05 | AB21: 30 | AC21: 1.5 | AD21: 1.1682 | AE21: =_xlfn.IFNA(HLOOKUP(AD21,F21:R43,COUNT(L21:$L$24)),-60) -> 35 | AF21: 0.129475 | AG21: =_xlfn.IFNA(HLOOKUP(AF21,F21:R43,COUNT(L21:$L$24)),-60) -> -25 | AH21: =_xlfn.PERCENTILE.INC(PEER!AH$2:AH$105251,$AH$2) -> 0.129475 | AI21: =_xlfn.PERCENTILE.INC(PEER!AH$2:AH$105251,$AI$2) -> 1.1682 | AJ21: 0.5359 | AK21: =_xlfn.IFNA(HLOOKUP(AJ21,F21:R43,COUNT(L21:$L$24)),-60) -> 10
A22: KratkodobyMajetokBezZasob/KratkodobeCudzieZdroje | B22: L2 | C22: =COUNTIF(PEER!W$2:W$105251,0) -> 0 | D22: 0 | E22: =COUNT(PEER!W$2:W$105251) -> 148 | F22: =_xlfn.PERCENTILE.INC(PEER!W$2:W$105251,$F$2) -> 0.0888 | G22: =_xlfn.PERCENTILE.INC(PEER!W$2:W$105251,$G$2) -> 0.1558 | H22: =_xlfn.PERCENTILE.INC(PEER!W$2:W$105251,$H$2) -> 0.2507 | I22: =_xlfn.PERCENTILE.INC(PEER!W$2:W$105251,$I$2) -> 0.335875 | J22: =_xlfn.PERCENTILE.INC(PEER!W$2:W$105251,$J$2) -> 0.38995 | K22: =_xlfn.PERCENTILE.INC(PEER!W$2:W$105251,$K$2) -> 0.62458 | L22: =MEDIAN(PEER!W$2:W$105251) -> 0.81435 | M22: =_xlfn.PERCENTILE.INC(PEER!W$2:W$105251,$M$2) -> 0.9536 | N22: =_xlfn.PERCENTILE.INC(PEER!W$2:W$105251,$N$2) -> 1.36898 | O22: =_xlfn.PERCENTILE.INC(PEER!W$2:W$105251,$O$2) -> 1.713225 | P22: =_xlfn.PERCENTILE.INC(PEER!W$2:W$105251,$P$2) -> 2.00818 | Q22: =_xlfn.PERCENTILE.INC(PEER!W$2:W$105251,$Q$2) -> 3.24538 | R22: =_xlfn.PERCENTILE.INC(PEER!W$2:W$105251,$R$2) -> 5.861175 | S22: W | T22: =AVERAGE(PEER!W$2:W$105251) -> 6756758.53 | U22: =_xlfn.STDEV.P(PEER!W$2:W$105251) -> 81921321.75 | V22: =MIN(PEER!W$2:W$105251) -> 0.011 | W22: =MAX(PEER!W$2:W$105251) -> 999999999 | X22: =INDIRECT("vsetky!"&S22&$X$2) -> 1.8945 | Y22: =_xlfn.IFNA(HLOOKUP(X22,F22:R44,COUNT(L22:$L$24)),-60) -> 35 | Z22: 1 | AA22: 0.05 | AB22: 35 | AC22: 1.75 | AD22: 1.713225 | AE22: =_xlfn.IFNA(HLOOKUP(AD22,F22:R44,COUNT(L22:$L$24)),-60) -> 35 | AF22: 0.335875 | AG22: =_xlfn.IFNA(HLOOKUP(AF22,F22:R44,COUNT(L22:$L$24)),-60) -> -25 | AH22: =_xlfn.PERCENTILE.INC(PEER!W$2:W$105251,$AH$2) -> 0.335875 | AI22: =_xlfn.PERCENTILE.INC(PEER!W$2:W$105251,$AI$2) -> 1.713225 | AJ22: 0.81435 | AK22: =_xlfn.IFNA(HLOOKUP(AJ22,F22:R44,COUNT(L22:$L$24)),-60) -> 10
A23: KratkodobyMajetok/KratkodobeCudzieZdroje | B23: L3 | C23: =COUNTIF(PEER!X$2:X$105251,0) -> 0 | D23: 0 | E23: =COUNT(PEER!X$2:X$105251) -> 148 | F23: =_xlfn.PERCENTILE.INC(PEER!X$2:X$105251,$F$2) -> 0.229945 | G23: =_xlfn.PERCENTILE.INC(PEER!X$2:X$105251,$G$2) -> 0.33415 | H23: =_xlfn.PERCENTILE.INC(PEER!X$2:X$105251,$H$2) -> 0.6126 | I23: =_xlfn.PERCENTILE.INC(PEER!X$2:X$105251,$I$2) -> 0.8011 | J23: =_xlfn.PERCENTILE.INC(PEER!X$2:X$105251,$J$2) -> 0.87958 | K23: =_xlfn.PERCENTILE.INC(PEER!X$2:X$105251,$K$2) -> 1.01686 | L23: =MEDIAN(PEER!X$2:X$105251) -> 1.1937 | M23: =_xlfn.PERCENTILE.INC(PEER!X$2:X$105251,$M$2) -> 1.37894 | N23: =_xlfn.PERCENTILE.INC(PEER!X$2:X$105251,$N$2) -> 1.77053 | O23: =_xlfn.PERCENTILE.INC(PEER!X$2:X$105251,$O$2) -> 2.149425 | P23: =_xlfn.PERCENTILE.INC(PEER!X$2:X$105251,$P$2) -> 2.53006 | Q23: =_xlfn.PERCENTILE.INC(PEER!X$2:X$105251,$Q$2) -> 3.53786 | R23: =_xlfn.PERCENTILE.INC(PEER!X$2:X$105251,$R$2) -> 5.86215 | S23: X | T23: =AVERAGE(PEER!X$2:X$105251) -> 6756758.945 | U23: =_xlfn.STDEV.P(PEER!X$2:X$105251) -> 81921321.72 | V23: =MIN(PEER!X$2:X$105251) -> 0.0697 | W23: =MAX(PEER!X$2:X$105251) -> 999999999 | X23: =INDIRECT("vsetky!"&S23&$X$2) -> 1.9925 | Y23: =_xlfn.IFNA(HLOOKUP(X23,F23:R45,COUNT(L23:$L$24)),-60) -> 30 | Z23: 1 | AA23: 0.05 | AB23: 30 | AC23: 1.5 | AD23: 2.149425 | AE23: =_xlfn.IFNA(HLOOKUP(AD23,F23:R45,COUNT(L23:$L$24)),-60) -> 35 | AF23: 0.8011 | AG23: =_xlfn.IFNA(HLOOKUP(AF23,F23:R45,COUNT(L23:$L$24)),-60) -> -25 | AH23: =_xlfn.PERCENTILE.INC(PEER!X$2:X$105251,$AH$2) -> 0.8011 | AI23: =_xlfn.PERCENTILE.INC(PEER!X$2:X$105251,$AI$2) -> 2.149425 | AJ23: 1.1937 | AK23: =_xlfn.IFNA(HLOOKUP(AJ23,F23:R45,COUNT(L23:$L$24)),-60) -> 10
D24: body pre hlookup | E24: =-10+F25 -> -60 | F24: =-10+G25 -> -50 | G24: -40 | H24: -30 | I24: -25 | J24: -20 | K24: -10 | L24: =10+L25 -> 10 | M24: =10+M25 -> 20 | N24: 30 | O24: 35 | P24: 40 | Q24: 50 | R24: 60 | X24: ico
E25: body | F25: -50 | G25: -40 | H25: -30 | I25: -25 | J25: -20 | K25: -10 | L25: 0 | M25: 10 | N25: 20 | O25: 25 | P25: 30 | Q25: 40 | R25: 50 | W25: A | X25: =INDIRECT("vsetky!"&W25&$X$2) -> 47464194

Sheet PEER
A1: ico | B1: naceres | C1: naceru | D1: naceruz1 | E1: naceru2 | F1: naceru3 | G1: buvery | H1: ziskplus | I1: katA | J1: katO | K1: AccountingUnitSize | L1: LegalformCodeResSK | M1: Kraj | N1: CZA | O1: DOZ_1 | P1: DSKPzOS | Q1: DSKZzOS | R1: DSP1 | S1: DSZ1 | T1: DZA | U1: EBITDA_T | V1: HROA | W1: L2 | X1: L3 | Y1: OA | Z1: P0_EBITDA_T | AA1: PNVHvT | AB1: PPHvT | AC1: PRT | AD1: ROE | AE1: TZ | AF1: UK | AG1: UZA | AH1: VI_Z | AI1: Zavazky | AJ1: Aktiva | AK1: Zasoby | AL1: Obrat | AM1: KPzOS | AN1: KZzOS | AO1: Pohladavky | AP1: Zavazky2 | AQ1: DlhodobeZavazky | AR1: EBITDA | AS1: HrubyZisk | AT1: KratkodobeCudzieZdroje | AU1: KratkodobyMajetokBezZasob | AV1: KratkodobyMajetok | AW1: P0_EBITDA | AX1: NovoVytvorenaHodnota | AY1: PridanaHodnota | AZ1: PrevadzkovyHV | BA1: VlastneImanie | BB1: CistyZisk | BC1: BilancnyCashFlow | BD1: NakladoveUroky | BE1: HrubyZiskANakladoveUroky | BF1: BankoveUvery
A2: 45378304 | B2: 29100 | C2: 29100 | D2: 2 | E2: 29 | F2: 291 | G2: FALSE | H2: FALSE | I2: a3 | J2: o2 | K2: 1 | L2: 112 | M2: 2 | N2: 5.06 | O2: 132.66 | P2: 218.052 | Q2: 23.724 | R2: 239.796 | S2: 25.128 | T2: 0 | U2: -11.48 | V2: -11.64 | W2: 9.1127 | X2: 14.368 | Y2: 0.7221 | Z2: -10.98 | AA2: 31.18 | AB2: 41.53 | AC2: -15.96 | AD2: -12.33 | AE2: 999999999 | AF2: -1071.2 | AG2: 0 | AH2: 18.7465 | AI2: 226063 | AJ2: 4463967 | AK2: 1188031 | AL2: 3223631 | AM2: 1952560 | AN2: 212551 | AO2: 2147414 | AP2: 225051 | AQ2: 0 | AR2: -370391 | AS2: -520017 | AT2: 226063 | AU2: 2060061 | AV2: 3248092 | AW2: -354081 | AX2: 1005307 | AY2: 1338782 | AZ2: -514552 | BA2: 4237904 | BB2: -522897 | BC2: -373756 | BD2: 485 | BE2: -519532 | BF2: 0
A3: 44810881 | B3: 46900 | C3: 29100 | D3: 2 | E3: 29 | F3: 291 | G3: TRUE | H3: TRUE | I3: a3 | J3: o3 | K3: 2 | L3: 112 | M3: 3 | N3: 88.91 | O3: 60.48 | P3: 95.148 | Q3: 88.74 | R3: 95.4 | S3: 95.148 | T3: 0 | U3: 3.93 | V3: 6.34 | W3: 0.626 | X3: 1.0051 | Y3: 2.0055 | Z3: 3.81 | AA3: 2.87 | AB3: 7.56 | AC3: 3.48 | AD3: 42.52 | AE3: 15.2533 | AF3: 15.5428 | AG3: 35.55 | AH3: 0.1246 | AI3: 7502989 | AJ3: 8438468 | AK3: 2844541 | AL3: 16924105 | AM3: 4474083 | AN3: 4173310 | AO3: 4486258 | AP3: 4473435 | AQ3: 0 | AR3: 666705 | AS3: 535788 | AT3: 7502989 | AU3: 4697158 | AV3: 7541699 | AW3: 645128 | AX3: 486363 | AY3: 1280287 | AZ3: 590076 | BA3: 935479 | BB3: 397816 | BC3: 491891 | BD3: 36842 | BE3: 572630 | BF3: 3000457
A4: 47174137 | B4: 82990 | C4: 29100 | D4: 2 | E4: 29 | F4: 291 | G4: FALSE | H4: FALSE | I4: a1 | J4: o1 | K4: 1 | L4: 112 | M4: 1 | N4: 77.82 | O4: 0 | P4: 92.556 | Q4: 2.844 | R4: 132.336 | S4: 362.772 | T4: 0.01 | U4: 1.47 | V4: -19.7 | W4: 1.2628 | X4: 1.2628 | Y4: 0.7722 | Z4: 2.1 | AA4: -19.14 | AB4: 31.87 | AC4: -24.88 | AD4: -88.85 | AE4: 68.2372 | AF4: -999999999 | AG4: 0 | AH4: 0.2849 | AI4: 44286 | AJ4: 56906 | AK4: 0 | AL4: 43944 | AM4: 11302 | AN4: 350 | AO4: 16154 | AP4: 44286 | AQ4: 6 | AR4: 649 | AS4: -11213 | AT4: 44280 | AU4: 55920 | AV4: 55920 | AW4: 927 | AX4: -8414 | AY4: 14006 | AZ4: -10935 | BA4: 12620 | BB4: -11213 | BC4: 649 | BD4: 0 | BE4: -11213 | BF4: 0
A5: 47574445 | B5: 25990 | C5: 29100 | D5: 2 | E5: 29 | F5: 291 | G5: FALSE | H5: TRUE | I5: a1 | J5: o1 | K5: 1 | L5: 112 | M5: 1 | N5: 261.87 | O5: 0 | P5: 16.2 | Q5: 38.916 | R5: 16.2 | S5: 117.468 | T5: 0.52 | U5: 10.33 | V5: 76.22 | W5: 0.2693 | X5: 0.2693 | Y5: 8.0246 | Z5: 10.47 | AA5: 9.64 | AB5: 17.02 | AC5: 9.64 | AD5: 999999999 | AE5: 3.3812 | AF5: 999999999 | AG5: 0 | AH5: -0.6181 | AI5: 20937 | AJ5: 7995 | AK5: 0 | AL5: 64157 | AM5: 2891 | AN5: 6940 | AO5: 2891 | AP5: 20937 | AQ5: 42 | AR5: 6631 | AS5: 6094 | AT5: 20895 | AU5: 5628 | AV5: 5628 | AW5: 6722 | AX5: 6185 | AY5: 10924 | AZ5: 6185 | BA5: -12942 | BB5: 5655 | BC5: 6192 | BD5: 0 | BE5: 6094 | BF5: 0
A6: 47513683 | B6: 29100 | C6: 29100 | D6: 2 | E6: 29 | F6: 291 | G6: FALSE | H6: TRUE | I6: a1 | J6: o1 | K6: 1 | L6: 112 | M6: 7 | N6: 30.46 | O6: 0 | P6: 76.428 | Q6: 18.864 | R6: 93.672 | S6: 44.748 | T6: 0.35 | U6: 35.14 | V6: 84.82 | W6: 3.1504 | X6: 3.1504 | Y6: 2.4249 | Z6: 35.18 | AA6: 35.23 | AB6: 36.43 | AC6: 35.02 | AD6: 96.21 | AE6: 0.4527 | AF6: 999999999 | AG6: 0 | AH6: 2.2823 | AI6: 50321 | AJ6: 165172 | AK6: 0 | AL6: 400529 | AM6: 85033 | AN6: 21023 | AO6: 104236 | AP6: 49821 | AQ6: 584 | AR6: 140751 | AS6: 140101 | AT6: 49737 | AU6: 156693 | AV6: 156693 | AW6: 140922 | AX6: 141140 | AY6: 145935 | AZ6: 140272 | BA6: 114851 | BB6: 110504 | BC6: 111154 | BD6: 0 | BE6: 140101 | BF6: 0
A7: 46838031 | B7: 82990 | C7: 29100 | D7: 2 | E7: 29 | F7: 291 | G7: TRUE | H7: TRUE | I7: a1 | J7: o1 | K7: 1 | L7: 112 | M7: 1 | N7: 101.45 | O7: 276.264 | P7: 213.732 | Q7: 173.952 | R7: 394.164 | S7: 671.508 | T7: 12.83 | U7: 6.16 | V7: 2.17 | W7: 0.422 | X7: 0.8493 | Y7: 0.4934 | Z7: 7.71 | AA7: 7.93 | AB7: 21.01 | AC7: 7.71 | AD7: 999999999 | AE7: 65.506 | AF7: 3.4941 | AG7: 8 | AH7: -0.0143 | AI7: 129309 | AJ7: 127451 | AK7: 48265 | AL7: 62890 | AM7: 37344 | AN7: 30392 | AO7: 68863 | AP7: 117311 | AQ7: 16362 | AR7: 3875 | AS7: 2766 | AT7: 112947 | AU7: 47667 | AV7: 95932 | AW7: 4850 | AX7: 4989 | AY7: 13214 | AZ7: 4850 | BA7: -1858 | BB7: 1974 | BC7: 1974 | BD7: 1109 | BE7: 3875 | BF7: 10198
A8: 36362719 | B8: 46900 | C8: 29100 | D8: 2 | E8: 29 | F8: 291 | G8: FALSE | H8: TRUE | I8: a3 | J8: o3 | K8: 2 | L8: 112 | M8: 5 | N8: 98.27 | O8: 47.412 | P8: 26.676 | Q8: 89.064 | R8: 36.756 | S8: 90.684 | T8: 14.26 | U8: 2.89 | V8: 1.76 | W8: 0.5699 | X8: 1.042 | Y8: 3.0108 | Z8: 2.96 | AA8: 1.05 | AB8: 8.83 | AC8: 0.67 | AD8: -76.15 | AE8: 17.3998 | AF8: 340760 | AG8: 0 | AH8: 0.0201 | AI8: 18977442 | AJ8: 19311097 | AK8: 7658804 | AL8: 58143063 | AM8: 4310563 | AN8: 14384921 | AO8: 5936930 | AP8: 14651616 | AQ8: 2755457 | AR8: 1685503 | AS8: 340759 | AT8: 16221985 | AU8: 9245480 | AV8: 16904284 | AW8: 1725154 | AX8: 612081 | AY8: 5137304 | AZ8: 391284 | BA8: 333655 | BB8: -254079 | BC8: 1090664 | BD8: 1 | BE8: 340760 | BF8: 0
A9: 45613133 | B9: 46180 | C9: 29100 | D9: 2 | E9: 29 | F9: 291 | G9: TRUE | H9: TRUE | I9: a2 | J9: o1 | K9: 1 | L9: 112 | M9: 3 | N9: 13.7 | O9: 0 | P9: 0 | Q9: 2.484 | R9: 5.976 | S9: 64.368 | T9: 0 | U9: 93.37 | V9: 58.06 | W9: 6.801 | X9: 6.801 | Y9: 0.6531 | Z9: 92.8 | AA9: 88.96 | AB9: 93.15 | AC9: 89.23 | AD9: 53.15 | AE9: 0.282 | AF9: 327.0854 | AG9: 2.03 | AH9: 6.2943 | AI9: 48657 | AJ9: 354919 | AK9: 0 | AL9: 231798 | AM9: 0 | AN9: 1600 | AO9: 3863 | AP9: 41450 | AQ9: 0 | AR9: 216436 | AS9: 206086 | AT9: 48657 | AU9: 330917 | AV9: 330917 | AW9: 215110 | AX9: 206217 | AY9: 215935 | AZ9: 206851 | BA9: 306262 | BB9: 162808 | BC9: 172526 | BD9: 632 | BE9: 206718 | BF9: 7207
A10: 47464194 | B10: 49410 | C10: 29100 | D10: 2 | E10: 29 | F10: 291 | G10: FALSE | H10: TRUE | I10: a1 | J10: o1 | K10: 1 | L10: 112 | M10: 2 | N10: 48.16 | O10: 21.096 | P10: 143.568 | Q10: 76.284 | R10: 143.568 | S10: 215.964 | T10: 0.09 | U10: 14.73 | V10: 11.83 | W10: 1.8945 | X10: 1.9925 | Y10: 0.8028 | Z10: 12.63 | AA10: 12.63 | AB10: 20.3 | AC10: 14.79 | AD10: 17.85 | AE10: 5.204 | AF10: 999999999 | AG10: 0 | AH10: 1.076 | AI10: 46415 | AJ10: 96358 | AK10: 4538 | AL10: 77363 | AM10: 30857 | AN10: 16394 | AO10: 30858 | AP10: 46415 | AQ10: 88 | AR10: 11403 | AS10: 11403 | AT10: 46327 | AU10: 87770 | AV10: 92308 | AW10: 9777 | AX10: 9772 | AY10: 15708 | AZ10: 11444 | BA10: 49943 | BB10: 8919 | BC10: 8919 | BD10: 0 | BE10: 11403 | BF10: 0
A11: 46071890 | B11: 29320 | C11: 29100 | D11: 2 | E11: 29 | F11: 291 | G11: FALSE | H11: TRUE | I11: a3 | J11: o3 | K11: 2 | L11: 112 | M11: 7 | N11: 90.28 | O11: 41.832 | P11: 58.752 | Q11: 126.072 | R11: 102.852 | S11: 760.932 | T11: 9.34 | U11: 29.53 | V11: 2.53 | W11: 0.1715 | X11: 0.2269 | Y11: 0.3856 | Z11: 29.34 | AA11: 2.54 | AB11: 61.17 | AC11: 6.97 | AD11: 19.62 | AE11: 8.4993 | AF11: 18.9363 | AG11: 0 | AH11: 0.1188 | AI11: 93950787 | AJ11: 104063045 | AK11: 4664156 | AL11: 40132038 | AM11: 6551459 | AN11: 14058156 | AO11: 11467209 | AP11: 84830764 | AQ11: 9720910 | AR11: 11851344 | AS11: 2635189 | AT11: 84229877 | AU11: 14452654 | AV11: 19116810 | AW11: 11778086 | AX11: 1022384 | AY11: 24550121 | AZ11: 2798236 | BA11: 10112258 | BB11: 1984649 | BC11: 11053885 | BD11: 146919 | BE11: 2782108 | BF11: 0
A12: 47426161 | B12: 81210 | C12: 29100 | D12: 2 | E12: 29 | F12: 291 | G12: FALSE | H12: TRUE | I12: a1 | J12: o1 | K12: 1 | L12: 112 | M12: 1 | N12: 18.28 | O12: 0 | P12: 114.228 | Q12: 34.992 | R12: 206.676 | S12: 45.216 | T12: 0 | U12: 20.77 | V12: 30.23 | W12: 5.4689 | X12: 5.4689 | Y12: 1.4556 | Z12: 21.28 | AA12: 20.38 | AB12: 20.38 | AC12: 21.28 | AD12: 31.95 | AE12: 0.7002 | AF12: 999999999 | AG12: 0 | AH12: 4.4689 | AI12: 2128 | AJ12: 11638 | AK12: 0 | AL12: 16941 | AM12: 5376 | AN12: 1648 | AO12: 9726 | AP12: 2128 | AQ12: 0 | AR12: 3519 | AS12: 3519 | AT12: 2128 | AU12: 11638 | AV12: 11638 | AW12: 3606 | AX12: 3453 | AY12: 3453 | AZ12: 3606 | BA12: 9510 | BB12: 3039 | BC12: 3039 | BD12: 0 | BE12: 3519 | BF12: 0
A13: 36684309 | B13: 85590 | C13: 29100 | D13: 2 | E13: 29 | F13: 291 | G13: FALSE | H13: TRUE | I13: a3 | J13: o2 | K13: 1 | L13: 112 | M13: 2 | N13: 86.43 | O13: 105.768 | P13: 2.052 | Q13: 80.712 | R13: 3.816 | S13: 208.872 | T13: 50.45 | U13: 3.08 | V13: 1.53 | W13: 0.1815 | X13: 1.3626 | Y13: 1.4461 | Z13: 2.32 | AA13: 1.44 | AB13: 12.79 | AC13: 1.4 | AD13: 7.06 | AE13: 25.3127 | AF13: 4.2996 | AG13: 0 | AH13: 0.1569 | AI13: 4384353 | AJ13: 5072692 | AK13: 2155657 | AL13: 7335729 | AM13: 41912 | AN13: 1645160 | AO13: 78009 | AP13: 4256878 | AQ13: 2559335 | AR13: 226073 | AS13: 77865 | AT13: 1825018 | AU13: 331249 | AV13: 2486906 | AW13: 170323 | AX13: 105704 | AY13: 938350 | AZ13: 103171 | BA13: 688339 | BB13: 48597 | BC13: 173207 | BD13: 23598 | BE13: 101463 | BF13: 0
A14: 47344547 | B14: 18130 | C14: 29100 | D14: 2 | E14: 29 | F14: 291 | G14: FALSE | H14: FALSE | I14: a1 | J14: o1 | K14: 0 | L14: 112 | M14: 8 | N14: 191.16 | O14: 0 | P14: 122.58 | Q14: 176.256 | R14: 143.892 | S14: 713.988 | T14: 13.38 | U14: -9.01 | V14: -49.78 | W14: 0.245 | X14: 0.245 | Y14: 0.9638 | Z14: -8.56 | AA14: -51.26 | AB14: -11.67 | AC14: -48.1 | AD14: -999999999 | AE14: 999999999 | AF14: -15.7187 | AG14: 0 | AH14: -0.4768 | AI14: 44748 | AJ14: 23408 | AK14: 0 | AL14: 22562 | AM14: 7683 | AN14: 11047 | AO14: 9019 | AP14: 44748 | AQ14: 3133 | AR14: -2034 | AS14: -11653 | AT14: 41615 | AU14: 10199 | AV14: 10199 | AW14: -1932 | AX14: -11566 | AY14: -2633 | AZ14: -10854 | BA14: -21340 | BB14: -11653 | BC14: -2731 | BD14: 697 | BE14: -10956 | BF14: 0
A15: 50681249 | B15: 29100 | C15: 29100 | D15: 2 | E15: 29 | F15: 291 | G15: FALSE | H15: FALSE | I15: a1 | J15: o1 | K15: 0 | L15: 112 | M15: 8 | N15: 65.57 | O15: 0 | P15: 0 | Q15: 0 | R15: 0 | S15: 58.428 | T15: 23.44 | U15: 21.61 | V15: -1.42 | W15: 0.8774 | X15: 0.8774 | Y15: 1.4945 | Z15: 21.91 | AA15: 8.39 | AB15: 28.63 | AC15: 1.66 | AD15: -6.49 | AE15: 2.3399 | AF15: 0.5899 | AG15: 0 | AH15: 0.525 | AI15: 16190 | AJ15: 24690 | AK15: 0 | AL15: 36900 | AM15: 0 | AN15: 0 | AO15: 0 | AP15: 5990 | AQ15: 5789 | AR15: 7976 | AS15: -351 | AT15: 10401 | AU15: 9126 | AV15: 9126 | AW15: 8087 | AX15: 3096 | AY15: 10567 | AZ15: 616 | BA15: 8500 | BB15: -552 | BC15: 6919 | BD15: 856 | BE15: 505 | BF15: 0
A16: 50630024 | B16: 29100 | C16: 29100 | D16: 2 | E16: 29 | F16: 291 | G16: FALSE | H16: TRUE | I16: a1 | J16: o1 | K16: 0 | L16: 112 | M16: 2 | N16: 28.84 | O16: 0 | P16: 35.424 | Q16: 42.048 | R16: 74.844 | S16: 48.636 | T16: 0 | U16: 8.71 | V16: 18.59 | W16: 3.467 | X16: 3.467 | Y16: 2.1348 | Z16: 11.04 | AA16: 13.37 | AB16: 13.37 | AC16: 11.04 | AD16: 20.64 | AE16: 1.963 | AF16: 999999999 | AG16: 0 | AH16: 2.467 | AI16: 5783 | AJ16: 20050 | AK16: 0 | AL16: 42804 | AM16: 4213 | AN16: 5000 | AO16: 8899 | AP16: 5783 | AQ16: 0 | AR16: 3729 | AS16: 3729 | AT16: 5783 | AU16: 20050 | AV16: 20050 | AW16: 4727 | AX16: 5727 | AY16: 5727 | AZ16: 4727 | BA16: 14267 | BB16: 2946 | BC16: 2946 | BD16: 0 | BE16: 3729 | BF16: 0
A17: 46095365 | B17: 43120 | C17: 29100 | D17: 2 | E17: 29 | F17: 291 | G17: TRUE | H17: TRUE | I17: a1 | J17: o1 | K17: 0 | L17: 112 | M17: 8 | N17: 60 | O17: 41.652 | P17: 0 | Q17: 173.016 | R17: 0.288 | S17: 614.052 | T17: 0 | U17: 35.67 | V17: 11.99 | W17: 1.6016 | X17: 1.6664 | Y17: 0.3362 | Z17: 22.89 | AA17: 23.47 | AB17: 28.39 | AC17: 36.25 | AD17: 21.86 | AE17: 6.8626 | AF17: 999999999 | AG17: 2.64 | AH17: 0.6664 | AI17: 105925 | AJ17: 176522 | AK17: 6871 | AL17: 59359 | AM17: 0 | AN17: 28533 | AO17: 49 | AP17: 101253 | AQ17: 0 | AR17: 21178 | AS17: 21178 | AT17: 105925 | AU17: 169651 | AV17: 176522 | AW17: 13592 | AX17: 13932 | AY17: 16853 | AZ17: 21522 | BA17: 70597 | BB17: 15435 | BC17: 15435 | BD17: 0 | BE17: 21178 | BF17: 4672
A18: 47967226 | B18: 29100 | C18: 29100 | D18: 2 | E18: 29 | F18: 291 | G18: FALSE | H18: TRUE | I18: a1 | J18: o1 | K18: 0 | L18: 112 | M18: 3 | N18: 55.62 | O18: 0 | P18: 86.328 | Q18: 57.816 | R18: 87.084 | S18: 60.552 | T18: 0 | U18: 5.12 | V18: 16.95 | W18: 1.7978 | X18: 1.7978 | Y18: 3.3056 | Z18: 5.19 | AA18: 5.19 | AB18: 5.19 | AC18: 5.19 | AD18: 30.18 | AE18: 4.1518 | AF18: 999999999 | AG18: 0 | AH18: 0.7978 | AI18: 101194 | AJ18: 181931 | AK18: 0 | AL18: 601395 | AM18: 144266 | AN18: 96636 | AO18: 145537 | AP18: 101194 | AQ18: 0 | AR18: 30840 | AS18: 30840 | AT18: 101194 | AU18: 181931 | AV18: 181931 | AW18: 31236 | AX18: 31236 | AY18: 31236 | AZ18: 31236 | BA18: 80737 | BB18: 24373 | BC18: 24373 | BD18: 0 | BE18: 30840 | BF18: 0
A19: 31392482 | B19: 46900 | C19: 29200 | D19: 2 | E19: 29 | F19: 292 | G19: TRUE | H19: FALSE | I19: a3 | J19: o3 | K19: 2 | L19: 112 | M19: 1 | N19: 86.58 | O19: 57.888 | P19: 23.148 | Q19: 73.908 | R19: 28.872 | S19: 104.04 | T19: 14.57 | U19: -0.39 | V19: -8.07 | W19: 0.3265 | X19: 0.9499 | Y19: 2.7908 | Z19: -0.67 | AA19: -2.54 | AB19: 14.92 | AC19: -2.65 | AD19: -60.21 | AE19: 999999999 | AF19: -12.5419 | AG19: 4.94 | AH19: 0.1549 | AI19: 5216170 | AJ19: 6024267 | AK19: 2704037 | AL19: 16812846 | AM19: 1081850 | AN19: 3452097 | AO19: 1349461 | AP19: 4858978 | AQ19: 878053 | AR19: -66493 | AS19: -486603 | AT19: 4338117 | AU19: 1416806 | AV19: 4120843 | AW19: -114078 | AX19: -428379 | AY19: 2509149 | AZ19: -446324 | BA19: 808097 | BB19: -486603 | BC19: -102426 | BD19: 35933 | BE19: -450670 | BF19: 298192
A20: 36595942 | B20: 47190 | C20: 29200 | D20: 2 | E20: 29 | F20: 292 | G20: TRUE | H20: TRUE | I20: a2 | J20: o2 | K20: 1 | L20: 112 | M20: 8 | N20: 64.69 | O20: 0 | P20: 84.996 | Q20: 137.556 | R20: 275.4 | S20: 204.732 | T20: 0 | U20: 5.95 | V20: 1.09 | W20: 1.0811 | X20: 1.0811 | Y20: 0.8932 | Z20: 3.29 | AA20: 0.97 | AB20: 4.01 | AC20: 3.13 | AD20: 2.44 | AE20: 18.0714 | AF20: 1.7226 | AG20: 13.88 | AH20: 0.5458 | AI20: 541258 | AJ20: 836683 | AK20: 3 | AL20: 747350 | AM20: 176470 | AN20: 285629 | AO20: 571776 | AP20: 425073 | AQ20: 0 | AR20: 44505 | AS20: 9132 | AT20: 541258 | AU20: 585187 | AV20: 585190 | AW20: 24622 | AX20: 7303 | AY20: 30040 | AZ20: 23424 | BA20: 295425 | BB20: 7214 | BC20: 29951 | BD20: 12636 | BE20: 21768 | BF20: 116185
A21: 36194514 | B21: 47300 | C21: 29200 | D21: 2 | E21: 29 | F21: 292 | G21: FALSE | H21: TRUE | I21: a3 | J21: o3 | K21: 2 | L21: 112 | M21: 8 | N21: 43.51 | O21: 93.672 | P21: 59.148 | Q21: 60.516 | R21: 60.048 | S21: 92.556 | T21: 0.14 | U21: 1.74 | V21: 0.41 | W21: 0.7882 | X21: 1.7638 | Y21: 1.6256 | Z21: 0.83 | AA21: -1.04 | AB21: 10.14 | AC21: 0.74 | AD21: 0.46 | AE21: 20.6566 | AF21: 1.7228 | AG21: 0 | AH21: 1.332 | AI21: 3593927 | AJ21: 8258168 | AK21: 3494213 | AL21: 13424892 | AM21: 2207024 | AN21: 2257406 | AO21: 2240391 | AP21: 3452215 | AQ21: 12225 | AR21: 233821 | AS21: 34248 | AT21: 3581702 | AU21: 2823244 | AV21: 6317457 | AW21: 112110 | AX21: -140321 | AY21: 1362472 | AZ21: 100120 | BA21: 4664241 | BB21: 21787 | BC21: 173984 | BD21: 47376 | BE21: 81624 | BF21: 0
A22: 36503045 | B22: 46900 | C22: 29200 | D22: 2 | E22: 29 | F22: 292 | G22: FALSE | H22: TRUE | I22: a1 | J22: o1 | K22: 1 | L22: 112 | M22: 7 | N22: 79.28 | O22: 41.004 | P22: 126.828 | Q22: 99.9 | R22: 129.816 | S22: 137.376 | T22: 0.44 | U22: 0.82 | V22: 1.62 | W22: 0.9693 | X22: 1.2683 | Y22: 2.0685 | Z22: 1.76 | AA22: 3.65 | AB22: 15.72 | AC22: 1.76 | AD22: 0.44 | AE22: 857.0884 | AF22: 19.6698 | AG22: 0 | AH22: 0.2612 | AI22: 96851 | AJ22: 122157 | AK22: 28797 | AL22: 252685 | AM22: 89028 | AN22: 70128 | AO22: 91135 | AP22: 96433 | AQ22: 539 | AR22: 2085 | AS22: 1979 | AT22: 96312 | AU22: 93360 | AV22: 122157 | AW22: 4460 | AX22: 9242 | AY22: 39725 | AZ22: 4460 | BA22: 25306 | BB22: 113 | BC22: 113 | BD22: 106 | BE22: 2085 | BF22: 0
A23: 31660525 | B23: 47210 | C23: 29200 | D23: 2 | E23: 29 | F23: 292 | G23: TRUE | H23: TRUE | I23: a2 | J23: o2 | K23: 1 | L23: 112 | M23: 7 | N23: 66.76 | O23: 13.356 | P23: 29.16 | Q23: 28.764 | R23: 39.78 | S23: 56.808 | T23: 0.7 | U23: 4.09 | V23: 2.58 | W23: 0.4607 | X23: 0.5944 | Y23: 2.3768 | Z23: 4.15 | AA23: 1.88 | AB23: 24.86 | AC23: 1.74 | AD23: 6.02 | AE23: 8.4406 | AF23: 3.1067 | AG23: 27.34 | AH23: 0.4978 | AI23: 251665 | AJ23: 376945 | AK23: 33270 | AL23: 895927 | AM23: 72631 | AN23: 71625 | AO23: 99058 | AP23: 141390 | AQ23: 2675 | AR23: 36644 | AS23: 9752 | AT23: 248990 | AU23: 114734 | AV23: 148004 | AW23: 37230 | AX23: 16892 | AY23: 222764 | AZ23: 15619 | BA23: 125280 | BB23: 7553 | BC23: 29816 | BD23: 4629 | BE23: 14381 | BF23: 103072
A24: 31712428 | B24: 47520 | C24: 29200 | D24: 2 | E24: 29 | F24: 292 | G24: TRUE | H24: TRUE | I24: a3 | J24: o3 | K24: 2 | L24: 112 | M24: 7 | N24: 71.04 | O24: 76.86 | P24: 10.188 | Q24: 66.744 | R24: 46.296 | S24: 136.944 | T24: 29.1 | U24: 12.35 | V24: 8.46 | W24: 0.3892 | X24: 1.0283 | Y24: 1.2548 | Z24: 12.73 | AA24: -6.03 | AB24: 15.98 | AC24: 6.99 | AD24: 24.27 | AE24: 5.2392 | AF24: 17.8075 | AG24: 10.07 | AH24: 0.4716 | AI24: 14116203 | AJ24: 19870052 | AK24: 5325607 | AL24: 24934132 | AM24: 707118 | AN24: 4622804 | AO24: 3208140 | AP24: 9487181 | AQ24: 5783153 | AR24: 3079612 | AS24: 1681877 | AT24: 8333050 | AU24: 3244044 | AV24: 8569651 | AW24: 3174897 | AX24: -1504235 | AY24: 3986754 | AZ24: 1745126 | BA24: 5753849 | BB24: 1396671 | BC24: 2694339 | BD24: 100067 | BE24: 1781944 | BF24: 2001211
A25: 35928867 | B25: 46900 | C25: 29200 | D25: 2 | E25: 29 | F25: 292 | G25: FALSE | H25: TRUE | I25: a3 | J25: o2 | K25: 1 | L25: 112 | M25: 1 | N25: 73.39 | O25: 19.404 | P25: 120.708 | Q25: 28.944 | R25: 145.512 | S25: 135.216 | T25: 45.86 | U25: 12.05 | V25: 8.44 | W25: 2.5597 | X25: 2.9002 | Y25: 1.7361 | Z25: 12.07 | AA25: -4.66 | AB25: 26.62 | AC25: 4.98 | AD25: 47.79 | AE25: 2.9322 | AF25: 50.2448 | AG25: 0 | AH25: 0.3679 | AI25: 3096130 | AJ25: 4218294 | AK25: 395441 | AL25: 7323487 | AM25: 2456159 | AN25: 588950 | AO25: 2960263 | AP25: 2750836 | AQ25: 1934612 | AR25: 882969 | AS25: 356139 | AT25: 1161518 | AU25: 2973196 | AV25: 3368637 | AW25: 884516 | AX25: -341284 | AY25: 1949945 | AZ25: 364918 | BA25: 1122164 | BB25: 536290 | BC25: 1055888 | BD25: 7232 | BE25: 363371 | BF25: 0
A26: 36377406 | B26: 45200 | C26: 29200 | D26: 2 | E26: 29 | F26: 292 | G26: TRUE | H26: FALSE | I26: a2 | J26: o2 | K26: 1 | L26: 121 | M26: 5 | N26: 41.22 | O26: 15.696 | P26: 23.112 | Q26: 13.32 | R26: 23.112 | S26: 56.592 | T26: 10.5 | U26: 1.95 | V26: -12.35 | W26: 0.6871 | X26: 0.9658 | Y26: 1.9591 | Z26: 2.04 | AA26: -6.2 | AB26: 16.92 | AC26: -5.64 | AD26: -20.77 | AE26: 11.118 | AF26: -45.1975 | AG26: 9.58 | AH26: 1.4368 | AI26: 213021 | AJ26: 516783 | AK26: 44232 | AL26: 1012460 | AM26: 65079 | AN26: 37502 | AO26: 65079 | AP26: 159211 | AQ26: 54284 | AR26: 19792 | AS26: -63845 | AT26: 158737 | AU26: 109083 | AV26: 153315 | AW26: 20708 | AX26: -62806 | AY26: 171339 | AZ26: -57146 | BA26: 303762 | BB26: -63095 | BC26: 19160 | BD26: 1382 | BE26: -62463 | BF26: 49528
A27: 45323259 | B27: 29200 | C27: 29200 | D27: 2 | E27: 29 | F27: 292 | G27: TRUE | H27: TRUE | I27: a2 | J27: o2 | K27: 1 | L27: 112 | M27: 6 | N27: 50.95 | O27: 35.208 | P27: 38.16 | Q27: 29.124 | R27: 83.52 | S27: 33.732 | T27: 0.18 | U27: 7.67 | V27: 7 | W27: 0.8633 | X27: 1.2053 | Y27: 1.7747 | Z27: 7.94 | AA27: 3.68 | AB27: 18.32 | AC27: 4.63 | AD27: 10.73 | AE27: 4.6762 | AF27: 8.1185 | AG27: 33.84 | AH27: 0.9662 | AI27: 505174 | AJ27: 991494 | AK27: 172146 | AL27: 1759650 | AM27: 186589 | AN27: 142448 | AO27: 408339 | AP27: 165048 | AQ27: 1821 | AR27: 134990 | AS27: 69420 | AT27: 503353 | AU27: 434571 | AV27: 606717 | AW27: 139733 | AX27: 64879 | AY27: 322501 | AZ27: 81498 | BA27: 486320 | BB27: 52212 | BC27: 108030 | BD27: 9752 | BE27: 79172 | BF27: 335615
A28: 31670873 | B28: 46180 | C28: 29200 | D28: 2 | E28: 29 | F28: 292 | G28: TRUE | H28: TRUE | I28: a2 | J28: o2 | K28: 1 | L28: 112 | M28: 7 | N28: 29.41 | O28: 65.412 | P28: 8.784 | Q28: 22.896 | R28: 8.82 | S28: 39.564 | T28: 16.28 | U28: 13.62 | V28: 16.51 | W28: 1.1239 | X28: 3.3365 | Y28: 1.5977 | Z28: 13.78 | AA28: 11.41 | AB28: 27.4 | AC28: 10.68 | AD28: 18.19 | AE28: 1.6706 | AF28: 34.8496 | AG28: 11.58 | AH28: 2.3999 | AI28: 190417 | AJ28: 647410 | AK28: 188053 | AL28: 1034416 | AM28: 25240 | AN28: 65881 | AO28: 25399 | AP28: 113713 | AQ28: 105426 | AR28: 140936 | AS28: 106931 | AT28: 84991 | AU28: 95524 | AV28: 283577 | AW28: 142551 | AX28: 118065 | AY28: 283441 | AZ28: 110567 | BA28: 456993 | BB28: 83129 | BC28: 113975 | BD28: 3159 | BE28: 110090 | BF28: 74995
A29: 34151125 | B29: 29320 | C29: 29200 | D29: 2 | E29: 29 | F29: 292 | G29: FALSE | H29: FALSE | I29: a2 | J29: o1 | K29: 1 | L29: 112 | M29: 3 | N29: 107.7 | O29: 14.76 | P29: 105.696 | Q29: 30.564 | R29: 105.696 | S29: 67.464 | T29: 1.6 | U29: 9.1 | V29: -3.75 | W29: 0.0825 | X29: 0.0928 | Y29: 0.2651 | Z29: 9.13 | AA29: 0.05 | AB29: 51.85 | AC29: -2.45 | AD29: -999999999 | AE29: 999999999 | AF29: -0.2146 | AG29: 0 | AH29: -0.0718 | AI29: 2150096 | AJ29: 1996199 | AK29: 21737 | AL29: 529363 | AM29: 155446 | AN29: 44990 | AO29: 155446 | AP29: 99208 | AQ29: 32115 | AR29: 48195 | AS29: -75043 | AT29: 2117981 | AU29: 174902 | AV29: 196639 | AW29: 48349 | AX29: 315 | AY29: 274486 | AZ29: -12995 | BA29: -153897 | BB29: -75043 | BC29: -13589 | BD29: 61784 | BE29: -13259 | BF29: 0
A30: 36024805 | B30: 25620 | C30: 29200 | D30: 2 | E30: 29 | F30: 292 | G30: TRUE | H30: TRUE | I30: a3 | J30: o2 | K30: 1 | L30: 121 | M30: 7 | N30: 40.65 | O30: 100.908 | P30: 16.524 | Q30: 31.86 | R30: 26.46 | S30: 42.66 | T30: 13.48 | U30: 14.22 | V30: 6.78 | W30: 0.3002 | X30: 1.3939 | Y30: 1.0599 | Z30: 13.45 | AA30: 3.67 | AB30: 36.01 | AC30: 6.59 | AD30: 8.93 | AE30: 3.0315 | AF30: 39.1312 | AG30: 7.14 | AH30: 2.1885 | AI30: 1808704 | AJ30: 4449152 | AK30: 1322093 | AL30: 4715894 | AM30: 216909 | AN30: 417645 | AO30: 346754 | AP30: 559071 | AQ30: 599915 | AR30: 670657 | AS30: 301961 | AT30: 1208789 | AU30: 362893 | AV30: 1684986 | AW30: 634532 | AX30: 173411 | AY30: 1698324 | AZ30: 310974 | BA30: 2640448 | BB30: 235857 | BC30: 596634 | BD30: 7919 | BE30: 309880 | BF30: 317757
A31: 36272990 | B31: 70220 | C31: 29200 | D31: 2 | E31: 29 | F31: 292 | G31: FALSE | H31: TRUE | I31: a2 | J31: o2 | K31: 2 | L31: 112 | M31: 2 | N31: 8.26 | O31: 15.912 | P31: 29.952 | Q31: 6.372 | R31: 32.472 | S31: 19.872 | T31: 0.2 | U31: 24.12 | V31: 32.04 | W31: 11.351 | X31: 12.1128 | Y31: 1.3861 | Z31: 23.85 | AA31: 23.11 | AB31: 36.16 | AC31: 23.14 | AD31: 27.26 | AE31: 0.3128 | AF31: 999999999 | AG31: 0 | AH31: 11.1033 | AI31: 84097 | AJ31: 1017855 | AK31: 62469 | AL31: 1410902 | AM31: 117413 | AN31: 25045 | AO31: 127313 | AP31: 77989 | AQ31: 2090 | AR31: 340402 | AS31: 326158 | AT31: 82007 | AU31: 930867 | AV31: 993336 | AW31: 336555 | AX31: 326187 | AY31: 510196 | AZ31: 326539 | BA31: 933758 | BB31: 254553 | BC31: 268797 | BD31: 0 | BE31: 326158 | BF31: 0
A32: 31654151 | B32: 77390 | C32: 29200 | D32: 2 | E32: 29 | F32: 292 | G32: TRUE | H32: FALSE | I32: a2 | J32: o2 | K32: 1 | L32: 112 | M32: 8 | N32: 46.79 | O32: 54.36 | P32: 17.064 | Q32: 68.4 | R32: 17.208 | S32: 76.104 | T32: 0.37 | U32: 2.66 | V32: -2.31 | W32: 0.3967 | X32: 1.0198 | Y32: 1.9148 | Z32: 1.47 | AA32: -0.69 | AB32: 22.33 | AC32: -0.91 | AD32: -4.52 | AE32: 9.9914 | AF32: -5.9508 | AG32: 5.94 | AH32: 1.137 | AI32: 197302 | AJ32: 421642 | AK32: 121946 | AL32: 807381 | AM32: 38336 | AN32: 153413 | AO32: 38656 | AP32: 170699 | AQ32: 1596 | AR32: 21549 | AS32: -9752 | AT32: 195706 | AU32: 77643 | AV32: 199589 | AW32: 11870 | AX32: -5649 | AY32: 180353 | AZ32: -7401 | BA32: 224340 | BB32: -10151 | BC32: 19747 | BD32: 1403 | BE32: -8349 | BF32: 25050
A33: 36309834 | B33: 47190 | C33: 29200 | D33: 2 | E33: 29 | F33: 292 | G33: FALSE | H33: TRUE | I33: a2 | J33: o1 | K33: 1 | L33: 112 | M33: 3 | N33: 87.82 | O33: 0 | P33: 0 | Q33: 1.944 | R33: 0.756 | S33: 1236.96 | T33: 83.95 | U33: 38.95 | V33: 1.59 | W33: 2.8298 | X33: 2.8298 | Y33: 0.2535 | Z33: 38.9 | AA33: 15.97 | AB33: 91.8 | AC33: 13.57 | AD33: 7.11 | AE33: 12.0493 | AF33: 1.8596 | AG33: 0 | AH33: 0.1386 | AI33: 1417582 | AJ33: 1614101 | AK33: 0 | AL33: 409295 | AM33: 8 | AN33: 2247 | AO33: 891 | AP33: 1406369 | AQ33: 1355118 | AR33: 159453 | AS33: 25790 | AT33: 62464 | AU33: 176761 | AV33: 176761 | AW33: 159245 | AX33: 65371 | AY33: 375756 | AZ33: 55582 | BA33: 196519 | BB33: 13985 | BC33: 117648 | BD33: 30000 | BE33: 55790 | BF33: 0
A34: 35789557 | B34: 68310 | C34: 29200 | D34: 2 | E34: 29 | F34: 292 | G34: TRUE | H34: TRUE | I34: a2 | J34: o2 | K34: 1 | L34: 112 | M34: 1 | N34: 30.77 | O34: 57.204 | P34: 21.204 | Q34: 45.036 | R34: 23.472 | S34: 53.748 | T34: 1.55 | U34: 2.04 | V34: 0.53 | W34: 1.3885 | X34: 2.4767 | Y34: 2.0006 | Z34: 2.06 | AA34: 0.94 | AB34: 20.91 | AC34: 0.43 | AD34: 0.53 | AE34: 8.0567 | AF34: 6.2468 | AG34: 0.17 | AH34: 2.2493 | AI34: 314843 | AJ34: 1023027 | AK34: 325319 | AL34: 2046715 | AM34: 120712 | AN34: 256083 | AO34: 133533 | AP34: 305660 | AQ34: 15874 | AR34: 41818 | AS34: 5462 | AT34: 298969 | AU34: 415147 | AV34: 740466 | AW34: 42352 | AX34: 19338 | AY34: 428103 | AZ34: 8920 | BA34: 708184 | BB34: 3763 | BC34: 39078 | BD34: 1041 | BE34: 6503 | BF34: 1832
A35: 31699855 | B35: 43990 | C35: 29200 | D35: 2 | E35: 29 | F35: 292 | G35: TRUE | H35: TRUE | I35: a3 | J35: o3 | K35: 2 | L35: 121 | M35: 7 | N35: 82.07 | O35: 61.488 | P35: 17.532 | Q35: 63.18 | R35: 20.736 | S35: 80.136 | T35: 6.76 | U35: 6.46 | V35: 2.28 | W35: 0.1803 | X35: 0.6616 | Y35: 2.1219 | Z35: 5.42 | AA35: -0.29 | AB35: 23.97 | AC35: 1.55 | AD35: 8.8 | AE35: 6.7053 | AF35: 3.9636 | AG35: 28.49 | AH35: 0.2318 | AI35: 6640461 | AJ35: 8090544 | AK35: 2933031 | AL35: 17168062 | AM35: 836642 | AN35: 3014571 | AO35: 989577 | AP35: 3821797 | AQ35: 547086 | AR35: 1109577 | AS35: 184666 | AT35: 6093375 | AU35: 1098679 | AV35: 4031710 | AW35: 930547 | AX35: -50251 | AY35: 4116347 | AZ35: 266289 | BA35: 1450083 | BB35: 127725 | BC35: 990326 | BD35: 62310 | BE35: 246976 | BF35: 2305131
A36: 48069264 | B36: 24100 | C36: 29200 | D36: 2 | E36: 29 | F36: 292 | G36: FALSE | H36: TRUE | I36: a2 | J36: o1 | K36: 1 | L36: 112 | M36: 3 | N36: 16.32 | O36: 0.036 | P36: 29.232 | Q36: 11.448 | R36: 29.736 | S36: 36.936 | T36: 1.73 | U36: 26.33 | V36: 36.5 | W36: 6.0724 | X36: 6.0739 | Y36: 1.5478 | Z36: 26.56 | AA36: 24.41 | AB36: 33.26 | AC36: 23.62 | AD36: 34.18 | AE36: 0.4965 | AF36: 999999999 | AG36: 0 | AH36: 5.1271 | AI36: 70659 | AJ36: 432938 | AK36: 92 | AL36: 670119 | AM36: 54453 | AN36: 21372 | AO36: 55364 | AP36: 68773 | AQ36: 7499 | AR36: 176501 | AS36: 158042 | AT36: 63160 | AU36: 383536 | AV36: 383628 | AW36: 177987 | AX36: 163609 | AY36: 222892 | AZ36: 158288 | BA36: 362279 | BB36: 123852 | BC36: 142311 | BD36: 0 | BE36: 158042 | BF36: 0
A37: 47514728 | B37: 73110 | C37: 29200 | D37: 2 | E37: 29 | F37: 292 | G37: FALSE | H37: FALSE | I37: a1 | J37: o1 | K37: 0 | L37: 112 | M37: 1 | N37: 2.3 | O37: 0 | P37: 0 | Q37: 1.584 | R37: 28.188 | S37: 4.428 | T37: 0 | U37: -21.72 | V37: -40.42 | W37: 37.1166 | X37: 37.1166 | Y37: 1.8609 | Z37: -21.72 | AA37: -13.38 | AB37: -13.38 | AC37: -21.72 | AD37: -42.89 | AE37: 999999999 | AF37: -999999999 | AG37: 0 | AH37: 42.45 | AI37: 120 | AJ37: 5214 | AK37: 0 | AL37: 9703 | AM37: 0 | AN37: 43 | AO37: 760 | AP37: 120 | AQ37: 0 | AR37: -2108 | AS37: -2108 | AT37: 120 | AU37: 4454 | AV37: 4454 | AW37: -2108 | AX37: -1299 | AY37: -1299 | AZ37: -2108 | BA37: 5094 | BB37: -2185 | BC37: -2185 | BD37: 0 | BE37: -2108 | BF37: 0
A38: 34151265 | B38: 45200 | C38: 29200 | D38: 2 | E38: 29 | F38: 292 | G38: TRUE | H38: TRUE | I38: a1 | J38: o2 | K38: 0 | L38: 112 | M38: 4 | N38: 46.26 | O38: 0 | P38: 55.908 | Q38: 18.684 | R38: 56.844 | S38: 33.804 | T38: 14.63 | U38: 4.35 | V38: 9.24 | W38: 2.6428 | X38: 2.6428 | Y38: 3.4549 | Z38: 4.97 | AA38: 3.81 | AB38: 22.42 | AC38: 3.47 | AD38: 13.27 | AE38: 3.7549 | AF38: 15.7483 | AG38: 12.11 | AH38: 1.1613 | AI38: 109096 | AJ38: 235797 | AK38: 0 | AL38: 814666 | AM38: 126585 | AN38: 42319 | AO38: 128669 | AP38: 76516 | AQ38: 34501 | AR38: 35511 | AS38: 21798 | AT38: 74595 | AU38: 197141 | AV38: 197141 | AW38: 40509 | AX38: 31044 | AY38: 182653 | AZ38: 28274 | BA38: 126701 | BB38: 16819 | BC38: 29054 | BD38: 1478 | BE38: 23276 | BF38: 28563
A39: 35919868 | B39: 45320 | C39: 29320 | D39: 2 | E39: 29 | F39: 293 | G39: TRUE | H39: TRUE | I39: a3 | J39: o3 | K39: 2 | L39: 112 | M39: 5 | N39: 73.19 | O39: 125.604 | P39: 13.464 | Q39: 84.384 | R39: 13.536 | S39: 85.284 | T39: 30.23 | U39: 2.73 | V39: 4.02 | W39: 0.1558 | X39: 1.5936 | Y39: 1.7702 | Z39: 2.33 | AA39: 1.93 | AB39: 3.62 | AC39: 1.97 | AD39: 11.67 | AE39: 19.7694 | AF39: 16.8993 | AG39: 31.05 | AH39: 0.3662 | AI39: 65378980 | AJ39: 89322246 | AK39: 55173481 | AL39: 158124306 | AM39: 5917664 | AN39: 37075169 | AO39: 5959241 | AP39: 37471493 | AQ39: 27004504 | AR39: 4328672 | AS39: 3590921 | AT39: 38374476 | AU39: 5982234 | AV39: 61155715 | AW39: 3692013 | AX39: 3055477 | AY39: 5736739 | AZ39: 3127365 | BA39: 23943266 | BB39: 2795173 | BC39: 3307070 | BD39: 225854 | BE39: 3816775 | BF39: 27738600
A40: 44939426 | B40: 46190 | C40: 29320 | D40: 2 | E40: 29 | F40: 293 | G40: FALSE | H40: TRUE | I40: a3 | J40: o3 | K40: 2 | L40: 112 | M40: 2 | N40: 77.74 | O40: 39.816 | P40: 27.648 | Q40: 48.024 | R40: 34.056 | S40: 119.844 | T40: 4.71 | U40: 7.49 | V40: 9.92 | W40: 0.2215 | X40: 0.5328 | Y40: 2.0541 | Z40: 8.18 | AA40: 5.83 | AB40: 19.07 | AC40: 5.01 | AD40: 33.27 | AE40: 6.2164 | AF40: 28.3201 | AG40: 0 | AH40: 0.2954 | AI40: 28851032 | AJ40: 37110600 | AK40: 8437784 | AL40: 76232159 | AM40: 5860470 | AN40: 10171349 | AO40: 7218345 | AP40: 25381257 | AQ40: 1751252 | AR40: 5711747 | AS40: 3684183 | AT40: 27099780 | AU40: 6003214 | AV40: 14440998 | AW40: 6237994 | AX40: 4445054 | AY40: 14542334 | AZ40: 3824097 | BA40: 8259568 | BB40: 2748379 | BC40: 4641091 | BD40: 134852 | BE40: 3819035 | BF40: 0
A41: 35940280 | B41: 47190 | C41: 29320 | D41: 2 | E41: 29 | F41: 293 | G41: FALSE | H41: TRUE | I41: a3 | J41: o3 | K41: 2 | L41: 112 | M41: 7 | N41: 95.21 | O41: 16.524 | P41: 38.988 | Q41: 105.084 | R41: 42.264 | S41: 146.232 | T41: 2.29 | U41: 6.87 | V41: 3.31 | W41: 0.3701 | X41: 0.4772 | Y41: 2.1646 | Z41: 6.82 | AA41: -8.43 | AB41: 15.73 | AC41: 1.95 | AD41: 69.41 | AE41: 6.7628 | AF41: 5.104 | AG41: 0 | AH41: 0.0535 | AI41: 13250303 | AJ41: 13915548 | AK41: 1384747 | AL41: 30122050 | AM41: 3262768 | AN41: 8794970 | AO41: 3538931 | AP41: 12237575 | AQ41: 318754 | AR41: 2071779 | AS41: 461754 | AT41: 12931549 | AU41: 4786673 | AV41: 6171420 | AW41: 2057317 | AX41: -2539448 | AY41: 4740986 | AZ41: 589495 | BA41: 665245 | BB41: 461754 | BC41: 1959266 | BD41: 112513 | BE41: 574267 | BF41: 0
A42: 36347884 | B42: 22290 | C42: 29320 | D42: 2 | E42: 29 | F42: 293 | G42: TRUE | H42: TRUE | I42: a3 | J42: o3 | K42: 2 | L42: 112 | M42: 3 | N42: 48.69 | O42: 36.036 | P42: 33.192 | Q42: 74.196 | R42: 35.172 | S42: 78.516 | T42: 15.56 | U42: 4.85 | V42: 3.78 | W42: 0.9507 | X42: 1.3665 | Y42: 1.3762 | Z42: 1.98 | AA42: -0.72 | AB42: 7.27 | AC42: 0.84 | AD42: 5.87 | AE42: 8.3558 | AF42: 47.2856 | AG42: 17.94 | AH42: 1.0534 | AI42: 54328469 | AJ42: 111562804 | AK42: 15371697 | AL42: 153536178 | AM42: 14162945 | AN42: 31652018 | AO42: 15015771 | AP42: 33490121 | AQ42: 17363997 | AR42: 7453300 | AS42: 4223614 | AT42: 36964472 | AU42: 35142838 | AV42: 50514535 | AW42: 3054988 | AX42: -1114718 | AY42: 11170856 | AZ42: 1296084 | BA42: 57234335 | BB42: 3363404 | BC42: 6501839 | BD42: 91251 | BE42: 4314865 | BF42: 20019936
A43: 36347884 | B43: 22290 | C43: 29320 | D43: 2 | E43: 29 | F43: 293 | G43: TRUE | H43: TRUE | I43: a3 | J43: o3 | K43: 2 | L43: 112 | M43: 3 | N43: 48.69 | O43: 36.036 | P43: 33.192 | Q43: 74.196 | R43: 35.172 | S43: 78.516 | T43: 15.56 | U43: 4.85 | V43: 3.78 | W43: 0.9507 | X43: 1.3665 | Y43: 1.3762 | Z43: 1.98 | AA43: -0.72 | AB43: 7.27 | AC43: 0.84 | AD43: 5.87 | AE43: 8.3558 | AF43: 47.2856 | AG43: 17.94 | AH43: 1.0534 | AI43: 54328469 | AJ43: 111562804 | AK43: 15371697 | AL43: 153536178 | AM43: 14162945 | AN43: 31652018 | AO43: 15015771 | AP43: 33490121 | AQ43: 17363997 | AR43: 7453300 | AS43: 4223614 | AT43: 36964472 | AU43: 35142838 | AV43: 50514535 | AW43: 3054988 | AX43: -1114718 | AY43: 11170856 | AZ43: 1296084 | BA43: 57234335 | BB43: 3363404 | BC43: 6501839 | BD43: 91251 | BE43: 4314865 | BF43: 20019936
A44: 35881704 | B44: 46900 | C44: 29320 | D44: 2 | E44: 29 | F44: 293 | G44: FALSE | H44: TRUE | I44: a3 | J44: o3 | K44: 2 | L44: 112 | M44: 1 | N44: 63.91 | O44: 12.42 | P44: 24.372 | Q44: 17.244 | R44: 29.52 | S44: 129.456 | T44: 8.26 | U44: 12.28 | V44: 7.51 | W44: 0.2546 | X44: 0.3525 | Y44: 1.5782 | Z44: 12.23 | AA44: 5.68 | AB44: 60.87 | AC44: 5.76 | AD44: 15.54 | AE44: 4.0236 | AF44: 5.7139 | AG44: 0 | AH44: 0.5646 | AI44: 4337045 | AJ44: 6786103 | AK44: 369662 | AL44: 10710221 | AM44: 725723 | AN44: 513715 | AO44: 878438 | AP44: 3851841 | AQ44: 560788 | AR44: 1315281 | AS44: 509890 | AT44: 3776257 | AU44: 961671 | AV44: 1331333 | AW44: 1310141 | AX44: 608648 | AY44: 6519699 | AZ44: 617617 | BA44: 2449058 | BB44: 380660 | BC44: 1077884 | BD44: 108167 | BE44: 618057 | BF44: 0
A45: 48166006 | B45: 73110 | C45: 29320 | D45: 2 | E45: 29 | F45: 293 | G45: FALSE | H45: FALSE | I45: a3 | J45: o3 | K45: 2 | L45: 112 | M45: 2 | N45: 66.28 | O45: 36.504 | P45: 45.828 | Q45: 89.712 | R45: 52.956 | S45: 95.076 | T45: 6.96 | U45: -1.96 | V45: -9.13 | W45: 0.7623 | X45: 1.1278 | Y45: 2.1364 | Z45: -2.71 | AA45: -3.71 | AB45: 5.8 | AC45: -3.84 | AD45: -25.71 | AE45: 999999999 | AF45: -10.0521 | AG45: 0 | AH45: 0.5591 | AI45: 33028482 | AJ45: 49824365 | AK45: 10803046 | AL45: 106446196 | AM45: 13555512 | AN45: 26527636 | AO45: 15664636 | AP45: 28115966 | AQ45: 3470748 | AR45: -2086836 | AS45: -4551796 | AT45: 29557734 | AU45: 22533234 | AV45: 33336280 | AW45: -2893674 | AX45: -3953180 | AY45: 6183232 | AZ45: -4094187 | BA45: 16795883 | BB45: -4318410 | BC45: -2265298 | BD45: 411848 | BE45: -4139948 | BF45: 0
A46: 36237035 | B46: 71200 | C46: 29320 | D46: 2 | E46: 29 | F46: 293 | G46: TRUE | H46: FALSE | I46: a3 | J46: o3 | K46: 2 | L46: 112 | M46: 2 | N46: 91.61 | O46: 30.06 | P46: 68.328 | Q46: 80.388 | R46: 69.804 | S46: 198.504 | T46: 45.06 | U46: 2.69 | V46: -4.14 | W46: 0.6739 | X46: 0.9292 | Y46: 1.4231 | Z46: 6.13 | AA46: 1.9 | AB46: 30.31 | AC46: -1.32 | AD46: -55.52 | AE46: 84.1706 | AF46: -0.8571 | AG46: 8.87 | AH46: 0.0917 | AI46: 30128034 | AJ46: 32885728 | AK46: 3908746 | AL46: 46801439 | AM46: 8884765 | AN46: 10454551 | AO46: 9078727 | AP46: 25806474 | AQ46: 14820268 | AR46: 1259400 | AS46: -1364502 | AT46: 15307766 | AU46: 10316575 | AV46: 14225321 | AW46: 2870848 | AX46: 892769 | AY46: 14189852 | AZ46: -618506 | BA46: 2757694 | BB46: -1531238 | BC46: 357940 | BD46: 734724 | BE46: -629778 | BF46: 2919946
A47: 36476714 | B47: 47190 | C47: 29320 | D47: 2 | E47: 29 | F47: 293 | G47: TRUE | H47: TRUE | I47: a3 | J47: o2 | K47: 2 | L47: 205 | M47: 7 | N47: 29.95 | O47: 67.176 | P47: 54.18 | Q47: 59.292 | R47: 56.016 | S47: 79.308 | T47: 6.85 | U47: 6.84 | V47: 0.03 | W47: 1.5879 | X47: 2.2979 | Y47: 0.8787 | Z47: 6.17 | AA47: -0.64 | AB47: 49.83 | AC47: 0.12 | AD47: -0.14 | AE47: 5.1751 | AF47: 1.3203 | AG47: 9.18 | AH47: 2.3383 | AI47: 2288054 | AJ47: 7638228 | AK47: 1252694 | AL47: 6712032 | AM47: 1010227 | AN47: 1105677 | AO47: 1044628 | AP47: 1479068 | AQ47: 523833 | AR47: 459452 | AS47: 2305 | AT47: 1764221 | AU47: 2801433 | AV47: 4054127 | AW47: 414381 | AX47: -43204 | AY47: 3345140 | AZ47: 8527 | BA47: 5350174 | BB47: -7830 | BC47: 442121 | BD47: 7196 | BE47: 9501 | BF47: 701952
A48: 44680449 | B48: 70220 | C48: 29320 | D48: 2 | E48: 29 | F48: 293 | G48: FALSE | H48: TRUE | I48: a3 | J48: o3 | K48: 2 | L48: 112 | M48: 5 | N48: 51.33 | O48: 28.764 | P48: 49.32 | Q48: 35.964 | R48: 56.916 | S48: 75.348 | T48: 4.54 | U48: 4.49 | V48: 4.36 | W48: 0.7206 | X48: 1.0671 | Y48: 2.0282 | Z48: 4.44 | AA48: 2.48 | AB48: 7.72 | AC48: 2.26 | AD48: 7.32 | AE48: 6.3419 | AF48: 20.7738 | AG48: 0 | AH48: 1.0142 | AI48: 33264184 | AJ48: 64796997 | AK48: 10505618 | AL48: 131421504 | AM48: 18006931 | AN48: 13140535 | AO48: 20780804 | AP48: 27519401 | AQ48: 2947928 | AR48: 5909442 | AS48: 2831435 | AT48: 30316256 | AU48: 21846550 | AV48: 32352168 | AW48: 5838158 | AX48: 3261653 | AY48: 10155527 | AZ48: 2975808 | BA48: 31532813 | BB48: 2310284 | BC48: 5245100 | BD48: 143191 | BE48: 2974626 | BF48: 0
A49: 35976209 | B49: 45310 | C49: 29320 | D49: 2 | E49: 29 | F49: 293 | G49: FALSE | H49: TRUE | I49: a3 | J49: o3 | K49: 2 | L49: 112 | M49: 5 | N49: 68.7 | O49: 22.788 | P49: 29.484 | Q49: 23.904 | R49: 33.336 | S49: 66.852 | T49: 0.18 | U49: 13.95 | V49: 39.68 | W49: 0.8249 | X49: 1.153 | Y49: 3.5488 | Z49: 13.89 | AA49: 11.32 | AB49: 34.5 | AC49: 11.37 | AD49: 99.71 | AE49: 1.7003 | AF49: 63.7434 | AG49: 0 | AH49: 0.4555 | AI49: 6495696 | AJ49: 9454562 | AK49: 2126096 | AL49: 33552949 | AM49: 2748528 | AN49: 2228538 | AO49: 3107941 | AP49: 6233758 | AQ49: 17057 | AR49: 4681290 | AS49: 3751745 | AT49: 6478639 | AU49: 5344396 | AV49: 7470492 | AW49: 4660942 | AX49: 3798210 | AY49: 11578146 | AZ49: 3815809 | BA49: 2958866 | BB49: 2950514 | BC49: 3820264 | BD49: 59795 | BE49: 3811540 | BF49: 0
A50: 46900969 | B50: 43120 | C50: 29320 | D50: 2 | E50: 29 | F50: 293 | G50: FALSE | H50: TRUE | I50: a1 | J50: o1 | K50: 1 | L50: 112 | M50: 7 | N50: 39.55 | O50: 0 | P50: 92.952 | Q50: 2.7 | R50: 94.104 | S50: 111.852 | T50: 1.65 | U50: 11.91 | V50: 15.16 | W50: 2.6362 | X50: 2.6362 | Y50: 1.2728 | Z50: 11.96 | AA50: 11.88 | AB50: 63.03 | AC50: 11.96 | AD50: 19.75 | AE50: 3.3112 | AF50: 999999999 | AG50: 0 | AH50: 1.5283 | AI50: 105006 | AJ50: 265496 | AK50: 0 | AL50: 337945 | AM50: 87279 | AN50: 2542 | AO50: 88368 | AP50: 105006 | AQ50: 4385 | AR50: 40267 | AS50: 40267 | AT50: 100621 | AU50: 265266 | AV50: 265266 | AW50: 40439 | AX50: 40149 | AY50: 213034 | AZ50: 40439 | BA50: 160490 | BB50: 31712 | BC50: 31712 | BD50: 0 | BE50: 40267 | BF50: 0
A51: 31364217 | B51: 73200 | C51: 29320 | D51: 2 | E51: 29 | F51: 293 | G51: FALSE | H51: TRUE | I51: a3 | J51: o3 | K51: 2 | L51: 112 | M51: 1 | N51: 36.36 | O51: 28.332 | P51: 23.76 | Q51: 24.48 | R51: 113.58 | S51: 34.092 | T51: 0 | U51: 6.06 | V51: 14.33 | W51: 2.0329 | X51: 2.5557 | Y51: 2.4145 | Z51: 5.93 | AA51: 5.78 | AB51: 7.92 | AC51: 5.93 | AD51: 17.57 | AE51: 3.1614 | AF51: 999999999 | AG51: 0 | AH51: 1.7569 | AI51: 16976193 | AJ51: 46678877 | AK51: 8874557 | AL51: 112706332 | AM51: 7446303 | AN51: 7674051 | AO51: 35562049 | AP51: 10676444 | AQ51: 1929 | AR51: 6840744 | AS51: 6691999 | AT51: 16974264 | AU51: 34507238 | AV51: 43381795 | AW51: 6693620 | AX51: 6522924 | AY51: 8934300 | AZ51: 6688377 | BA51: 29702684 | BB51: 5221069 | BC51: 5369814 | BD51: 0 | BE51: 6691999 | BF51: 0
A52: 36570133 | B52: 47190 | C52: 29320 | D52: 2 | E52: 29 | F52: 293 | G52: TRUE | H52: FALSE | I52: a3 | J52: o3 | K52: 2 | L52: 112 | M52: 8 | N52: 62.12 | O52: 46.368 | P52: 73.548 | Q52: 58.824 | R52: 78.336 | S52: 74.592 | T52: 23.89 | U52: 1.11 | V52: -4.35 | W52: 0.8638 | X52: 1.3132 | Y52: 1.3333 | Z52: 1.35 | AA52: -2.78 | AB52: 19.22 | AC52: -2.69 | AD52: -9.57 | AE52: 41.091 | AF52: -5.1702 | AG52: 34.35 | AH52: 0.6095 | AI52: 26057004 | AJ52: 41940729 | AK52: 7206675 | AL52: 55922882 | AM52: 11429944 | AN52: 9139381 | AO52: 12170081 | AP52: 11591332 | AQ52: 10020706 | AR52: 625751 | AS52: -1825106 | AT52: 16036298 | AU52: 13852704 | AV52: 21059379 | AW52: 758920 | AX52: -1556557 | AY52: 10752406 | AZ52: -1508501 | BA52: 15883725 | BB52: -1520935 | BC52: 634129 | BD52: 295793 | BE52: -1529313 | BF52: 14406866
A53: 46081283 | B53: 29320 | C53: 29320 | D53: 2 | E53: 29 | F53: 293 | G53: FALSE | H53: TRUE | I53: a1 | J53: o1 | K53: 1 | L53: 112 | M53: 7 | N53: 18.42 | O53: 2.124 | P53: 81.216 | Q53: 10.08 | R53: 98.604 | S53: 42.444 | T53: 1.47 | U53: 7.19 | V53: 7.07 | W53: 4.9525 | X53: 5.0074 | Y53: 1.5616 | Z53: 7.23 | AA53: 5.05 | AB53: 43.43 | AC53: 4.57 | AD53: 6.35 | AE53: 1.9725 | AF53: 999999999 | AG53: 0 | AH53: 4.428 | AI53: 53912 | AJ53: 292636 | AK53: 2718 | AL53: 457002 | AM53: 103113 | AN53: 12840 | AO53: 125217 | AP53: 53912 | AQ53: 4325 | AR53: 32860 | AS53: 20700 | AT53: 49587 | AU53: 245584 | AV53: 248302 | AW53: 33046 | AX53: 23086 | AY53: 198482 | AZ53: 20886 | BA53: 238724 | BB53: 15171 | BC53: 27331 | BD53: 0 | BE53: 20700 | BF53: 0
A54: 35884789 | B54: 13929 | C54: 29320 | D54: 2 | E54: 29 | F54: 293 | G54: TRUE | H54: TRUE | I54: a2 | J54: o2 | K54: 2 | L54: 112 | M54: 2 | N54: 63.39 | O54: 49.644 | P54: 128.664 | Q54: 90.504 | R54: 169.848 | S54: 111.096 | T54: 13.61 | U54: 5.2 | V54: 0.65 | W54: 1.0944 | X54: 1.4005 | Y54: 1.1042 | Z54: 4.72 | AA54: -0.05 | AB54: 40.47 | AC54: 1.02 | AD54: 0.07 | AE54: 14.3609 | AF54: 1.9208 | AG54: 27.14 | AH54: 0.5876 | AI54: 1722296 | AJ54: 2716612 | AK54: 413876 | AL54: 2999816 | AM54: 1072324 | AN54: 754160 | AO54: 1415412 | AP54: 925874 | AQ54: 369972 | AR54: 156160 | AS54: 17750 | AT54: 1352324 | AU54: 1480070 | AV54: 1893946 | AW54: 141866 | AX54: -1561 | AY54: 1214280 | AZ54: 30640 | BA54: 994316 | BB54: 794 | BC54: 119929 | BD54: 19275 | BE54: 37025 | BF54: 737437
A55: 35893427 | B55: 46900 | C55: 29320 | D55: 2 | E55: 29 | F55: 293 | G55: FALSE | H55: FALSE | I55: a3 | J55: o3 | K55: 2 | L55: 112 | M55: 8 | N55: 101.61 | O55: 24.912 | P55: 29.736 | Q55: 76.14 | R55: 33.48 | S55: 89.82 | T55: 2.71 | U55: 2.82 | V55: -4.97 | W55: 0.3973 | X55: 0.6399 | Y55: 3.4668 | Z55: 2.93 | AA55: -0.65 | AB55: 16.35 | AC55: -1.36 | AD55: -999999999 | AE55: 10.8178 | AF55: -20.1267 | AG55: 0 | AH55: -0.016 | AI55: 51313585 | AJ55: 50498723 | AK55: 12118972 | AL55: 175069994 | AM55: 14467652 | AN55: 37029548 | AO55: 16288738 | AP55: 43690513 | AQ55: 1372201 | AR55: 4947157 | AS55: -2510449 | AT55: 49941384 | AU55: 19842827 | AV55: 31961799 | AW55: 5144286 | AX55: -1148565 | AY55: 28626587 | AZ55: -2392936 | BA55: -814862 | BB55: -2595357 | BC55: 4743421 | BD55: 118828 | BE55: -2391621 | BF55: 0
A56: 36667242 | B56: 46900 | C56: 29320 | D56: 2 | E56: 29 | F56: 293 | G56: TRUE | H56: TRUE | I56: a3 | J56: o3 | K56: 2 | L56: 113 | M56: 4 | N56: 88.4 | O56: 56.844 | P56: 38.196 | Q56: 85.788 | R56: 46.296 | S56: 114.516 | T56: 26.12 | U56: 10.2 | V56: 6.76 | W56: 0.2985 | X56: 0.6654 | Y56: 1.4466 | Z56: 10.29 | AA56: 5.22 | AB56: 26.04 | AC56: 5.67 | AD56: 45.43 | AE56: 7.3901 | AF56: 6.1957 | AG56: 41.23 | AH56: 0.1311 | AI56: 19681402 | AJ56: 22263047 | AK56: 5087086 | AL56: 32205976 | AM56: 3420068 | AN56: 7675487 | AO56: 4144648 | AP56: 10247545 | AQ56: 5816562 | AR56: 3286669 | AS56: 1506549 | AT56: 13864840 | AU56: 4139022 | AV56: 9226108 | AW56: 3314080 | AX56: 1682741 | AY56: 8388218 | AZ56: 1826583 | BA56: 2581645 | BB56: 1173023 | BC56: 2663187 | BD56: 289956 | BE56: 1796505 | BF56: 9179180
A57: 36714640 | B57: 46180 | C57: 29320 | D57: 2 | E57: 29 | F57: 293 | G57: FALSE | H57: TRUE | I57: a3 | J57: o3 | K57: 2 | L57: 112 | M57: 5 | N57: 20.21 | O57: 38.556 | P57: 85.464 | Q57: 44.532 | R57: 110.016 | S57: 49.896 | T57: 0.72 | U57: 20.65 | V57: 19.52 | W57: 2.818 | X57: 3.6066 | Y57: 1.4339 | Z57: 20.18 | AA57: 11.33 | AB57: 28.7 | AC57: 13.59 | AD57: 19.32 | AE57: 0.792 | AF57: 999999999 | AG57: 0 | AH57: 3.9468 | AI57: 19814715 | AJ57: 98021314 | AK57: 15067312 | AL57: 140558000 | AM57: 33376906 | AN57: 17387481 | AO57: 42964331 | AP57: 19491959 | AQ57: 710177 | AR57: 29037937 | AS57: 19134428 | AT57: 19104538 | AU57: 53836761 | AV57: 68904073 | AW57: 28369437 | AX57: 15937616 | AY57: 40352580 | AZ57: 19107115 | BA57: 78206599 | BB57: 15113082 | BC57: 25016591 | BD57: 0 | BE57: 19134428 | BF57: 0
A58: 31418082 | B58: 47750 | C58: 29320 | D58: 2 | E58: 29 | F58: 293 | G58: FALSE | H58: TRUE | I58: a2 | J58: o2 | K58: 1 | L58: 112 | M58: 2 | N58: 19.19 | O58: 19.44 | P58: 67.32 | Q58: 1.584 | R58: 72.756 | S58: 28.944 | T58: 1.62 | U58: 5.21 | V58: 5.86 | W58: 4.4331 | X58: 5.0756 | Y58: 2.0897 | Z58: 4.32 | AA58: 2.56 | AB58: 85.26 | AC58: 3.2 | AD58: 5.15 | AE58: 2.0872 | AF58: 999999999 | AG58: 0 | AH58: 4.2096 | AI58: 98299 | AJ58: 512099 | AK58: 57795 | AL58: 1070179 | AM58: 200158 | AN58: 4772 | AO58: 216305 | AP58: 86067 | AQ58: 8339 | AR58: 55826 | AS58: 30054 | AT58: 89960 | AU58: 398808 | AV58: 456603 | AW58: 46285 | AX58: 27459 | AY58: 912489 | AZ58: 34328 | BA58: 413800 | BB58: 21323 | BC58: 47095 | BD58: 0 | BE58: 30054 | BF58: 0
A59: 31398693 | B59: 46900 | C59: 29310 | D59: 2 | E59: 29 | F59: 293 | G59: FALSE | H59: TRUE | I59: a3 | J59: o3 | K59: 2 | L59: 112 | M59: 4 | N59: 47.77 | O59: 17.244 | P59: 45.36 | Q59: 16.164 | R59: 51.984 | S59: 37.548 | T59: 10.58 | U59: 5.47 | V59: 7.12 | W59: 1.3229 | X59: 1.7755 | Y59: 3.5105 | Z59: 4.64 | AA59: 1.45 | AB59: 34.03 | AC59: 2.23 | AD59: 10.49 | AE59: 2.7793 | AF59: 19.6681 | AG59: 0 | AH59: 1.0951 | AI59: 10673485 | AJ59: 22339137 | AK59: 3760221 | AL59: 78422320 | AM59: 9882878 | AN59: 3527369 | AO59: 11327875 | AP59: 8180307 | AQ59: 2363943 | AR59: 4293734 | AS59: 1592763 | AT59: 8309542 | AU59: 10993441 | AV59: 14753662 | AW59: 3640550 | AX59: 1143039 | AY59: 26692998 | AZ59: 1749348 | BA59: 11665652 | BB59: 1224698 | BC59: 3840349 | BD59: 85320 | BE59: 1678083 | BF59: 0
A60: 35947144 | B60: 46900 | C60: 29320 | D60: 2 | E60: 29 | F60: 293 | G60: TRUE | H60: FALSE | I60: a3 | J60: o3 | K60: 2 | L60: 112 | M60: 5 | N60: 74.55 | O60: 72.648 | P60: 81.036 | Q60: 79.596 | R60: 93.564 | S60: 164.736 | T60: 1.44 | U60: -3.7 | V60: -21.72 | W60: 0.4543 | X60: 0.8063 | Y60: 1.2748 | Z60: -2.35 | AA60: -15.51 | AB60: 30.91 | AC60: -15.32 | AD60: -89.51 | AE60: 999999999 | AF60: -49.1079 | AG60: 12.73 | AH60: 0.3425 | AI60: 4897077 | AJ60: 6568079 | AK60: 1690439 | AL60: 8372990 | AM60: 1885512 | AN60: 1851382 | AO60: 2176337 | AP60: 3831943 | AQ60: 94609 | AR60: -310117 | AS60: -1426673 | AT60: 4802468 | AU60: 2181875 | AV60: 3872314 | AW60: -197404 | AX60: -1298939 | AY60: 2588543 | AZ60: -1283203 | BA60: 1671002 | BB60: -1495867 | BC60: -407783 | BD60: 28472 | BE60: -1398201 | BF60: 836666
A61: 35919868 | B61: 45320 | C61: 29320 | D61: 2 | E61: 29 | F61: 293 | G61: TRUE | H61: TRUE | I61: a3 | J61: o3 | K61: 2 | L61: 112 | M61: 5 | N61: 73.19 | O61: 125.604 | P61: 13.464 | Q61: 84.384 | R61: 13.536 | S61: 85.284 | T61: 30.23 | U61: 2.73 | V61: 4.02 | W61: 0.1558 | X61: 1.5936 | Y61: 1.7702 | Z61: 2.33 | AA61: 1.93 | AB61: 3.62 | AC61: 1.97 | AD61: 11.67 | AE61: 19.7694 | AF61: 16.8993 | AG61: 31.05 | AH61: 0.3662 | AI61: 65378980 | AJ61: 89322246 | AK61: 55173481 | AL61: 158124306 | AM61: 5917664 | AN61: 37075169 | AO61: 5959241 | AP61: 37471493 | AQ61: 27004504 | AR61: 4328672 | AS61: 3590921 | AT61: 38374476 | AU61: 5982234 | AV61: 61155715 | AW61: 3692013 | AX61: 3055477 | AY61: 5736739 | AZ61: 3127365 | BA61: 23943266 | BB61: 2795173 | BC61: 3307070 | BD61: 225854 | BE61: 3816775 | BF61: 27738600
A62: 36303089 | B62: 46900 | C62: 29320 | D62: 2 | E62: 29 | F62: 293 | G62: TRUE | H62: TRUE | I62: a3 | J62: o3 | K62: 2 | L62: 112 | M62: 3 | N62: 47.87 | O62: 34.416 | P62: 88.92 | Q62: 22.608 | R62: 135.72 | S62: 32.832 | T62: 22.52 | U62: 19.27 | V62: 16.4 | W62: 2.2581 | X62: 2.6734 | Y62: 1.1012 | Z62: 19.18 | AA62: 14.33 | AB62: 35.95 | AC62: 15.23 | AD62: 24.79 | AE62: 2.7444 | AF62: 54.9946 | AG62: 32.87 | AH62: 1.0887 | AI62: 11337981 | AJ62: 23682058 | AK62: 2493409 | AL62: 26080965 | AM62: 6443602 | AN62: 1639932 | AO62: 9833692 | AP62: 2380176 | AQ62: 5335028 | AR62: 5028387 | AS62: 3886103 | AT62: 6002953 | AU62: 13555294 | AV62: 16048703 | AW62: 5003565 | AX62: 3739506 | AY62: 9377505 | AZ62: 3972611 | BA62: 12344077 | BB62: 3060889 | BC62: 4131201 | BD62: 71972 | BE62: 3958075 | BF62: 7785844
A63: 36808822 | B63: 46900 | C63: 29320 | D63: 2 | E63: 29 | F63: 293 | G63: TRUE | H63: FALSE | I63: a3 | J63: o3 | K63: 2 | L63: 112 | M63: 5 | N63: 81.96 | O63: 57.168 | P63: 11.484 | Q63: 71.064 | R63: 23.112 | S63: 184.788 | T63: 41.4 | U63: 8.47 | V63: -0.16 | W63: 0.23 | X63: 0.7855 | Y63: 1.4184 | Z63: 8.57 | AA63: 0.13 | AB63: 20.39 | AC63: 1.43 | AD63: -2.46 | AE63: 8.4535 | AF63: 0.9187 | AG63: 7.86 | AH63: 0.2201 | AI63: 18078956 | AJ63: 22058153 | AK63: 4968675 | AL63: 31288241 | AM63: 999812 | AN63: 6178334 | AO63: 2009819 | AP63: 16060357 | AQ63: 9133154 | AR63: 2651487 | AS63: -36689 | AT63: 8945802 | AU63: 2058390 | AV63: 7027065 | AW63: 2684346 | AX63: 42248 | AY63: 6380204 | AZ63: 449538 | BA63: 3979197 | BB63: -97938 | BC63: 2138615 | BD63: 451623 | BE63: 414934 | BF63: 1735165
A64: 35907746 | B64: 46190 | C64: 29320 | D64: 2 | E64: 29 | F64: 293 | G64: TRUE | H64: TRUE | I64: a2 | J64: o2 | K64: 1 | L64: 112 | M64: 4 | N64: 91.04 | O64: 62.784 | P64: 26.964 | Q64: 101.124 | R64: 29.988 | S64: 133.848 | T64: 7.25 | U64: 4.28 | V64: 3.03 | W64: 0.1914 | X64: 0.5873 | Y64: 1.9014 | Z64: 4.67 | AA64: 2.66 | AB64: 26.7 | AC64: 2.1 | AD64: 25.68 | AE64: 13.8312 | AF64: 4.7078 | AG64: 18.3 | AH64: 0.0983 | AI64: 2917816 | AJ64: 3204904 | AK64: 1063284 | AL64: 6094071 | AM64: 456474 | AN64: 1711841 | AO64: 507657 | AP64: 2266297 | AQ64: 232522 | AR64: 260845 | AS64: 97369 | AT64: 2685294 | AU64: 514006 | AV64: 1577290 | AW64: 284867 | AX64: 162530 | AY64: 1627494 | AZ64: 128015 | BA64: 287088 | BB64: 73742 | BC64: 210958 | BD64: 26260 | BE64: 123629 | BF64: 586501
A65: 35940565 | B65: 46900 | C65: 29320 | D65: 2 | E65: 29 | F65: 293 | G65: TRUE | H65: TRUE | I65: a3 | J65: o3 | K65: 2 | L65: 112 | M65: 2 | N65: 57.88 | O65: 62.964 | P65: 46.404 | Q65: 52.848 | R65: 66.888 | S65: 71.1 | T65: 0.16 | U65: 3.2 | V65: 4.61 | W65: 0.882 | X65: 1.5363 | Y65: 2.158 | Z65: 3.22 | AA65: 2.31 | AB65: 17.65 | AC65: 2.29 | AD65: 8.34 | AE65: 10.2452 | AF65: 29.4346 | AG65: 0.04 | AH65: 0.8203 | AI65: 6905416 | AJ65: 11929931 | AK65: 4504939 | AL65: 25745562 | AM65: 3319524 | AN65: 3779719 | AO65: 4784776 | AP65: 5085906 | AQ65: 19931 | AR65: 824845 | AS65: 550892 | AT65: 6885485 | AU65: 6073579 | AV65: 10578518 | AW65: 829693 | AX65: 594885 | AY65: 4546198 | AZ65: 591374 | BA65: 5024515 | BB65: 419432 | BC65: 674011 | BD65: 19374 | BE65: 570266 | BF65: 5025
A66: 36859893 | B66: 25990 | C66: 29320 | D66: 2 | E66: 29 | F66: 293 | G66: FALSE | H66: TRUE | I66: a3 | J66: o3 | K66: 2 | L66: 112 | M66: 1 | N66: 104.45 | O66: 51.264 | P66: 89.028 | Q66: 32.04 | R66: 97.272 | S66: 285.948 | T66: 84.26 | U66: 10.02 | V66: 5.9 | W66: 2.3143 | X66: 3.1791 | Y66: 1.2263 | Z66: 10.36 | AA66: 4.87 | AB66: 29.5 | AC66: 5.51 | AD66: 999999999 | AE66: 9.8189 | AF66: 999999999 | AG66: 0 | AH66: -0.0426 | AI66: 33048250 | AJ66: 31637707 | AK66: 5525753 | AL66: 38798646 | AM66: 9598354 | AN66: 3454769 | AO66: 10483620 | AP66: 30818643 | AQ66: 26658161 | AR66: 3888861 | AS66: 1867988 | AT66: 6390089 | AU66: 14789121 | AV66: 20314874 | AW66: 4023075 | AX66: 1891569 | AY66: 11446611 | AZ66: 2140675 | BA66: -1410543 | BB66: 1344905 | BC66: 3365778 | BD66: 0 | BE66: 1867988 | BF66: 0
A67: 35825251 | B67: 46900 | C67: 29320 | D67: 2 | E67: 29 | F67: 293 | G67: FALSE | H67: TRUE | I67: a3 | J67: o3 | K67: 2 | L67: 112 | M67: 1 | N67: 83.55 | O67: 4.284 | P67: 3.492 | Q67: 27.9 | R67: 48.456 | S67: 34.884 | T67: 6.34 | U67: 4.31 | V67: 15.77 | W67: 0.8861 | X67: 0.9704 | Y67: 5.4259 | Z67: 4.3 | AA67: 2.21 | AB67: 6.15 | AC67: 2.9 | AD67: 75.3 | AE67: 4.1731 | AF67: 19852.2849 | AG67: 0 | AH67: 0.2234 | AI67: 37636951 | AJ67: 45043836 | AK67: 2930698 | AL67: 244407663 | AM67: 2394546 | AN67: 18964793 | AO67: 32903984 | AP67: 23687681 | AQ67: 2858379 | AR67: 10548199 | AS67: 7106760 | AT67: 34778572 | AU67: 30819166 | AV67: 33749864 | AW67: 10529201 | AX67: 5420514 | AY67: 15044545 | AZ67: 7095037 | BA67: 7406885 | BB67: 5577705 | BC67: 9018786 | BD67: 358 | BE67: 7107118 | BF67: 0
A68: 36438057 | B68: 25620 | C68: 29320 | D68: 2 | E68: 29 | F68: 293 | G68: TRUE | H68: TRUE | I68: a2 | J68: o2 | K68: 1 | L68: 112 | M68: 5 | N68: 58.94 | O68: 3.888 | P68: 80.892 | Q68: 10.332 | R68: 82.188 | S68: 37.404 | T68: 4.13 | U68: 5.49 | V68: 9.17 | W68: 1.2766 | X68: 1.3257 | Y68: 2.4727 | Z68: 5.66 | AA68: 3.12 | AB68: 46.8 | AC68: 4.36 | AD68: 15.88 | AE68: 6.0494 | AF68: 8.7363 | AG68: 30.66 | AH68: 0.6965 | AI68: 517847 | AJ68: 878579 | AK68: 23661 | AL68: 2172550 | AM68: 488186 | AN68: 62387 | AO68: 496161 | AP68: 225919 | AQ68: 36292 | AR68: 119345 | AS68: 80613 | AT68: 481555 | AU68: 614777 | AV68: 638438 | AW68: 123148 | AX68: 67784 | AY68: 1016796 | AZ68: 94836 | BA68: 360732 | BB68: 57291 | BC68: 85603 | BD68: 10420 | BE68: 91033 | BF68: 269413
A69: 36842931 | B69: 73110 | C69: 29310 | D69: 2 | E69: 29 | F69: 293 | G69: FALSE | H69: FALSE | I69: a3 | J69: o3 | K69: 2 | L69: 112 | M69: 8 | N69: 99.48 | O69: 33.66 | P69: 62.676 | Q69: 127.476 | R69: 78.372 | S69: 287.1 | T69: 6.98 | U69: 4.9 | V69: -4.84 | W69: 0.2857 | X69: 0.3996 | Y69: 1.1263 | Z69: 4.96 | AA69: -3.26 | AB69: 12.65 | AC69: -2.89 | AD69: -898.81 | AE69: 23.3104 | AF69: -2.3752 | AG69: 0 | AH69: 0.0055 | AI69: 70304533 | AJ69: 70671120 | AK69: 7447280 | AL69: 79602387 | AM69: 13866619 | AN69: 28192974 | AO69: 17333551 | AP69: 63483450 | AQ69: 4933756 | AR69: 3902854 | AS69: -3421908 | AT69: 65370777 | AU69: 18679243 | AV69: 26126523 | AW69: 3954634 | AX69: -2595832 | AY69: 10073807 | AZ69: -2301312 | BA69: 366587 | BB69: -3294948 | BC69: 3016004 | BD69: 1013810 | BE69: -2408098 | BF69: 0
A70: 44752351 | B70: 43320 | C70: 29320 | D70: 2 | E70: 29 | F70: 293 | G70: FALSE | H70: TRUE | I70: a2 | J70: o2 | K70: 1 | L70: 113 | M70: 1 | N70: 37.95 | O70: 0.828 | P70: 83.448 | Q70: 13.212 | R70: 90.396 | S70: 37.836 | T70: 0.06 | U70: 8.08 | V70: 22.75 | W70: 2.3677 | X70: 2.3874 | Y70: 3.1597 | Z70: 8.1 | AA70: 7.83 | AB70: 60.87 | AC70: 7.21 | AD70: 17.93 | AE70: 2.7237 | AF70: 999999999 | AG70: 0 | AH70: 1.6348 | AI70: 189800 | AJ70: 500091 | AK70: 3727 | AL70: 1580144 | AM70: 366385 | AN70: 58062 | AO70: 396804 | AP70: 166174 | AQ70: 345 | AR70: 127826 | AS70: 113806 | AT70: 189455 | AU70: 448588 | AV70: 452315 | AW70: 128058 | AX70: 123793 | AY70: 961931 | AZ70: 114038 | BA70: 310291 | BB70: 55664 | BC70: 69684 | BD70: 0 | BE70: 113806 | BF70: 0
A71: 35846283 | B71: 29320 | C71: 29320 | D71: 2 | E71: 29 | F71: 293 | G71: TRUE | H71: TRUE | I71: a2 | J71: o2 | K71: 1 | L71: 112 | M71: 1 | N71: 62.67 | O71: 22.14 | P71: 176.292 | Q71: 43.632 | R71: 180.288 | S71: 116.568 | T71: 9.09 | U71: 6.63 | V71: 2.6 | W71: 1.3741 | X71: 1.541 | Y71: 1.4521 | Z71: 6.84 | AA71: 2.3 | AB71: 36.82 | AC71: 2.71 | AD71: -3.03 | AE71: 12.4087 | AF71: 4.067 | AG71: 14.77 | AH71: 0.5955 | AI71: 1932289 | AJ71: 3083008 | AK71: 275560 | AL71: 4476903 | AM71: 2192701 | AN71: 542914 | AO71: 2242131 | AP71: 1449690 | AQ71: 280540 | AR71: 297250 | AS71: 80406 | AT71: 1651749 | AU71: 2269818 | AV71: 2545378 | AW71: 306346 | AX71: 103360 | AY71: 1648804 | AZ71: 121359 | BA71: 1150719 | BB71: -34908 | BC71: 155720 | BD71: 26216 | BE71: 106622 | BF71: 455521
A72: 34122583 | B72: 29320 | C72: 29320 | D72: 2 | E72: 29 | F72: 293 | G72: TRUE | H72: FALSE | I72: a3 | J72: o3 | K72: 2 | L72: 112 | M72: 4 | N72: 67.92 | O72: 36.612 | P72: 57.24 | Q72: 53.82 | R72: 62.1 | S72: 101.808 | T72: 19.46 | U72: -0.67 | V72: -5.81 | W72: 0.6189 | X72: 0.9727 | Y72: 1.6852 | Z72: -1.03 | AA72: -6.54 | AB72: 14.64 | AC72: -2.74 | AD72: -19.35 | AE72: 999999999 | AF72: -3.277 | AG72: 18.85 | AH72: 0.4721 | AI72: 35129702 | AJ72: 51716361 | AK72: 8866612 | AL72: 87157287 | AM72: 13862380 | AN72: 13035354 | AO72: 15042269 | AP72: 24651043 | AQ72: 10068619 | AR72: -588570 | AS72: -3008500 | AT72: 25061083 | AU72: 15512064 | AV72: 24378676 | AW72: -901487 | AX72: -5707249 | AY72: 12768090 | AZ72: -2394178 | BA72: 16586659 | BB72: -3210683 | BC72: -1494164 | BD72: 703411 | BE72: -2305089 | BF72: 9750129
A73: 50077627 | B73: 29320 | C73: 29320 | D73: 2 | E73: 29 | F73: 293 | G73: FALSE | H73: TRUE | I73: a2 | J73: o2 | K73: 1 | L73: 112 | M73: 4 | N73: 91.21 | O73: 116.676 | P73: 14.94 | Q73: 68.94 | R73: 16.992 | S73: 144.72 | T73: 1.09 | U73: 3.5 | V73: 2.69 | W73: 0.151 | X73: 0.9503 | Y73: 2.2225 | Z73: 3.45 | AA73: 1.6 | AB73: 29.85 | AC73: 1.68 | AD73: 14.56 | AE73: 16.9394 | AF73: 3.7058 | AG73: 0 | AH73: 0.0963 | AI73: 1799209 | AJ73: 1972556 | AK73: 1420972 | AL73: 4384113 | AM73: 182370 | AN73: 839829 | AO73: 207333 | AP73: 1762755 | AQ73: 21521 | AR73: 153732 | AS73: 53127 | AT73: 1777688 | AU73: 268484 | AV73: 1689456 | AW73: 151663 | AX73: 70187 | AY73: 1308970 | AZ73: 73692 | BA73: 173347 | BB73: 25243 | BC73: 106214 | BD73: 19634 | BE73: 72761 | BF73: 0
A74: 36435767 | B74: 46900 | C74: 29320 | D74: 2 | E74: 29 | F74: 293 | G74: TRUE | H74: FALSE | I74: a3 | J74: o2 | K74: 2 | L74: 112 | M74: 5 | N74: 91.73 | O74: 46.692 | P74: 29.124 | Q74: 86.976 | R74: 49.536 | S74: 135.648 | T74: 4.73 | U74: -1.36 | V74: -18.21 | W74: 0.2104 | X74: 0.4799 | Y74: 1.8071 | Z74: -1.37 | AA74: -18.62 | AB74: 8.92 | AC74: -9.62 | AD74: -195.33 | AE74: 999999999 | AF74: -22.5683 | AG74: 12.11 | AH74: 0.1015 | AI74: 3847722 | AJ74: 4194186 | AK74: 983594 | AL74: 7579347 | AM74: 613856 | AN74: 1831370 | AO74: 1043242 | AP74: 2856191 | AQ74: 198539 | AR74: -103311 | AS74: -763874 | AT74: 3649183 | AU74: 767988 | AV74: 1751582 | AW74: -103894 | AX74: -1411792 | AY74: 676748 | AZ74: -729534 | BA74: 346464 | BB74: -676771 | BC74: -48619 | BD74: 32411 | BE74: -731463 | BF74: 508112
A75: 36285757 | B75: 77390 | C75: 29320 | D75: 2 | E75: 29 | F75: 293 | G75: FALSE | H75: TRUE | I75: a3 | J75: o3 | K75: 2 | L75: 112 | M75: 2 | N75: 95.04 | O75: 47.7 | P75: 32.544 | Q75: 8.424 | R75: 32.652 | S75: 319.932 | T75: 0.65 | U75: 8.85 | V75: 1.61 | W75: 0.1028 | X75: 0.2523 | Y75: 1.0644 | Z75: 8.82 | AA75: 1.39 | AB75: 16.29 | AC75: 2 | AD75: 25.21 | AE75: 11.1129 | AF75: 4.1498 | AG75: 0 | AH75: 0.0521 | AI75: 25958118 | AJ75: 27311224 | AK75: 3854682 | AL75: 29070572 | AM75: 2628968 | AN75: 680394 | AO75: 2636780 | AP75: 25837477 | AQ75: 178365 | AR75: 2575615 | AS75: 440913 | AT75: 25779753 | AU75: 2650483 | AV75: 6505165 | AW75: 2564857 | AX75: 404890 | AY75: 4738145 | AZ75: 583604 | BA75: 1353106 | BB75: 341122 | BC75: 2335843 | BD75: 139981 | BE75: 580894 | BF75: 0
A76: 44996365 | B76: 46190 | C76: 29320 | D76: 2 | E76: 29 | F76: 293 | G76: FALSE | H76: TRUE | I76: a3 | J76: o3 | K76: 2 | L76: 112 | M76: 1 | N76: 32.05 | O76: 28.836 | P76: 21.24 | Q76: 26.208 | R76: 26.064 | S76: 32.688 | T76: 0.07 | U76: 9.68 | V76: 27.59 | W76: 1.6011 | X76: 2.4177 | Y76: 3.2579 | Z76: 9.63 | AA76: 9.47 | AB76: 19.02 | AC76: 8.47 | AD76: 31.84 | AE76: 1.2524 | AF76: 10586.9526 | AG76: 0 | AH76: 2.213 | AI76: 7267826 | AJ76: 22674673 | AK76: 5921206 | AL76: 73873659 | AM76: 4365298 | AN76: 5380811 | AO76: 5353616 | AP76: 6714051 | AQ76: 16699 | AR76: 7153995 | AS76: 6256298 | AT76: 7251127 | AU76: 11610205 | AV76: 17531411 | AW76: 7116546 | AX76: 6996011 | AY76: 14055114 | AZ76: 6260680 | BA76: 15406847 | BB76: 4905762 | BC76: 5802868 | BD76: 591 | BE76: 6256889 | BF76: 0
A77: 31401546 | B77: 47789 | C77: 29320 | D77: 2 | E77: 29 | F77: 293 | G77: TRUE | H77: FALSE | I77: a1 | J77: o1 | K77: 1 | L77: 112 | M77: 3 | N77: 73.38 | O77: 24.516 | P77: 14.508 | Q77: 45.576 | R77: 16.056 | S77: 68.4 | T77: 10.78 | U77: -2.36 | V77: -9.5 | W77: 0.3734 | X77: 0.6883 | Y77: 2.8946 | Z77: -2.29 | AA77: -5.79 | AB77: 40.17 | AC77: -3.18 | AD77: -35.69 | AE77: 999999999 | AF77: -113.5837 | AG77: 10.73 | AH77: 0.3627 | AI77: 163721 | AJ77: 223111 | AK77: 43984 | AL77: 645829 | AM77: 26037 | AN77: 81821 | AO77: 28831 | AP77: 122733 | AQ77: 24072 | AR77: -15285 | AS77: -21198 | AT77: 139649 | AU77: 52148 | AV77: 96132 | AW77: -14828 | AX77: -37403 | AY77: 259465 | AZ77: -20556 | BA77: 59390 | BB77: -21198 | BC77: -15470 | BD77: 185 | BE77: -21013 | BF77: 23958
A78: 45942528 | B78: 29100 | C78: 29320 | D78: 2 | E78: 29 | F78: 293 | G78: FALSE | H78: TRUE | I78: a2 | J78: o2 | K78: 1 | L78: 112 | M78: 5 | N78: 301.02 | O78: 28.188 | P78: 72.576 | Q78: 429.876 | R78: 73.368 | S78: 475.488 | T78: 0.14 | U78: 5.09 | V78: 7.12 | W78: 0.1765 | X78: 0.2356 | Y78: 2.2689 | Z78: 5.14 | AA78: 3.76 | AB78: 25.66 | AC78: 3.18 | AD78: 999999999 | AE78: 29.043 | AF78: 572.8489 | AG78: 0 | AH78: -0.6678 | AI78: 4640446 | AJ78: 1541556 | AK78: 274071 | AL78: 3497645 | AM78: 705377 | AN78: 4176571 | AO78: 713006 | AP78: 4619824 | AQ78: 2311 | AR78: 178336 | AS78: 109795 | AT78: 4638135 | AU78: 818844 | AV78: 1092915 | AW78: 179831 | AX78: 131689 | AY78: 897658 | AZ78: 111482 | BA78: -3098890 | BB78: 91429 | BC78: 159778 | BD78: 192 | BE78: 109987 | BF78: 0
A79: 35949007 | B79: 64910 | C79: 29320 | D79: 2 | E79: 29 | F79: 293 | G79: TRUE | H79: TRUE | I79: a2 | J79: o2 | K79: 1 | L79: 112 | M79: 8 | N79: 91.06 | O79: 59.436 | P79: 63.648 | Q79: 118.872 | R79: 74.376 | S79: 230.112 | T79: 7.96 | U79: 5.24 | V79: 0.2 | W79: 0.2615 | X79: 0.4604 | Y79: 1.001 | Z79: 5.14 | AA79: -1.23 | AB79: 30.16 | AC79: 1.14 | AD79: 2.28 | AE79: 20.2993 | AF79: 1.2666 | AG79: 8.4 | AH79: 0.1216 | AI79: 2790371 | AJ79: 3064155 | AK79: 506524 | AL79: 3067452 | AM79: 542395 | AN79: 1013111 | AO79: 633833 | AP79: 1960766 | AQ79: 243947 | AR79: 160921 | AS79: 6256 | AT79: 2546424 | AU79: 665992 | AV79: 1172516 | AW79: 157901 | AX79: -37811 | AY79: 925250 | AZ79: 35275 | BA79: 273784 | BB79: 6256 | BC79: 137461 | BD79: 23460 | BE79: 29716 | BF79: 257660
A80: 36428094 | B80: 46900 | C80: 29320 | D80: 2 | E80: 29 | F80: 293 | G80: TRUE | H80: TRUE | I80: a3 | J80: o3 | K80: 2 | L80: 112 | M80: 5 | N80: 23.86 | O80: 47.268 | P80: 21.276 | Q80: 53.964 | R80: 102.888 | S80: 58.392 | T80: 1.66 | U80: 11.89 | V80: 9.19 | W80: 1.7123 | X80: 2.4916 | Y80: 1.3167 | Z80: 11.84 | AA80: 5.35 | AB80: 19 | AC80: 6.95 | AD80: 10.4 | AE80: 1.6591 | AF80: 1808.7466 | AG80: 0 | AH80: 3.1909 | AI80: 11271827 | AJ80: 47239754 | AK80: 8170654 | AL80: 62204022 | AM80: 3681248 | AN80: 9325749 | AO80: 17780587 | AP80: 10090054 | AQ80: 787842 | AR80: 7401142 | AS80: 4345823 | AT80: 10483985 | AU80: 17951779 | AV80: 26122433 | AW80: 7370434 | AX80: 3331350 | AY80: 11821541 | AZ80: 4323242 | BA80: 35967927 | BB80: 3740971 | BC80: 6793886 | BD80: 2404 | BE80: 4348227 | BF80: 604
A81: 35915820 | B81: 46190 | C81: 29320 | D81: 2 | E81: 29 | F81: 293 | G81: FALSE | H81: TRUE | I81: a3 | J81: o3 | K81: 1 | L81: 112 | M81: 4 | N81: 17.21 | O81: 40.428 | P81: 86.94 | Q81: 115.884 | R81: 87.012 | S81: 129.96 | T81: 1.14 | U81: 31.73 | V81: 11.54 | W81: 2.913 | X81: 3.2436 | Y81: 0.4728 | Z81: 30.93 | AA81: 24.2 | AB81: 39.1 | AC81: 23.72 | AD81: 10.94 | AE81: 1.3774 | AF81: 377.8292 | AG81: 0 | AH81: 4.8087 | AI81: 3535168 | AJ81: 20535041 | AK81: 1090907 | AL81: 9710217 | AM81: 2345732 | AN81: 3126622 | AO81: 2347474 | AP81: 3505778 | AQ81: 235077 | AR81: 3081769 | AS81: 2369879 | AT81: 3300091 | AU81: 9613295 | AV81: 10704202 | AW81: 3003828 | AX81: 2350620 | AY81: 3797078 | AZ81: 2303939 | BA81: 16999873 | BB81: 1860849 | BC81: 2566450 | BD81: 6289 | BE81: 2376168 | BF81: 0
A82: 35798513 | B82: 46180 | C82: 29320 | D82: 2 | E82: 29 | F82: 293 | G82: TRUE | H82: TRUE | I82: a3 | J82: o3 | K82: 2 | L82: 112 | M82: 1 | N82: 44.52 | O82: 22.104 | P82: 38.772 | Q82: 39.276 | R82: 117.864 | S82: 54.072 | T82: 4.43 | U82: 4.42 | V82: 3.54 | W82: 1.3879 | X82: 1.6561 | Y82: 1.7489 | Z82: 4.25 | AA82: -7.22 | AB82: 11.33 | AC82: 1.93 | AD82: 4.21 | AE82: 7.0774 | AF82: 15.7087 | AG82: 5.81 | AH82: 1.3333 | AI82: 30243219 | AJ82: 67917755 | AK82: 7303322 | AL82: 118785976 | AM82: 12803966 | AN82: 12969287 | AO82: 38897732 | AP82: 17842325 | AQ82: 3012218 | AR82: 5255749 | AS82: 2407276 | AT82: 27231001 | AU82: 37795128 | AV82: 45098450 | AW82: 5059229 | AX82: -8587707 | AY82: 13462769 | AZ82: 2295091 | BA82: 37674536 | BB82: 1588398 | BC82: 4273208 | BD82: 163663 | BE82: 2570939 | BF82: 3947424
A83: 31604307 | B83: 45200 | C83: 29320 | D83: 2 | E83: 29 | F83: 293 | G83: FALSE | H83: TRUE | I83: a1 | J83: o2 | K83: 1 | L83: 112 | M83: 3 | N83: 197.1 | O83: 31.68 | P83: 18.504 | Q83: 87.768 | R83: 21.888 | S83: 129.384 | T83: 24.66 | U83: 7.9 | V83: 34.75 | W83: 0.201 | X83: 0.4696 | Y83: 5.2594 | Z83: 7.82 | AA83: 8.08 | AB83: 31.44 | AC83: 6.94 | AD83: 999999999 | AE83: 5.9131 | AF83: 20.8875 | AG83: 0 | AH83: -0.4926 | AI83: 414255 | AJ83: 210175 | AK83: 97337 | AL83: 1105395 | AM83: 56865 | AN83: 269500 | AO83: 67219 | AP83: 397378 | AQ83: 51849 | AR83: 87420 | AS83: 73047 | AT83: 362406 | AU83: 72865 | AV83: 170202 | AW83: 86470 | AX83: 89424 | AY83: 347580 | AZ83: 76758 | BA83: -204080 | BB83: 59356 | BC83: 70056 | BD83: 3673 | BE83: 76720 | BF83: 0
A84: 35872209 | B84: 46190 | C84: 29320 | D84: 2 | E84: 29 | F84: 293 | G84: TRUE | H84: TRUE | I84: a3 | J84: o3 | K84: 2 | L84: 112 | M84: 4 | N84: 76.78 | O84: 92.124 | P84: 35.784 | Q84: 37.692 | R84: 62.46 | S84: 196.2 | T84: 51.09 | U84: 10.27 | V84: 4.07 | W84: 0.6452 | X84: 1.8691 | Y84: 1.2282 | Z84: 9.9 | AA84: -0.49 | AB84: 24.24 | AC84: 4.15 | AD84: 32.42 | AE84: 5.091 | AF84: 5.0935 | AG84: 8.45 | AH84: 0.3024 | AI84: 27312426 | AJ84: 35571904 | AK84: 11183351 | AL84: 43689968 | AM84: 4345498 | AN84: 4575426 | AO84: 7581743 | AP84: 23814960 | AQ84: 18174913 | AR84: 4488533 | AS84: 1448120 | AT84: 9137513 | AU84: 5895829 | AV84: 17079180 | AW84: 4326836 | AX84: -215536 | AY84: 10590709 | AZ84: 1815235 | BA84: 8259478 | BB84: 2678092 | BC84: 5364745 | BD84: 353760 | BE84: 1801880 | BF84: 3007592
A85: 36038644 | B85: 46900 | C85: 29320 | D85: 2 | E85: 29 | F85: 293 | G85: FALSE | H85: TRUE | I85: a1 | J85: o1 | K85: 1 | L85: 112 | M85: 6 | N85: 98.82 | O85: 411.732 | P85: 11.268 | Q85: 194.328 | R85: 11.268 | S85: 548.388 | T85: 8.4 | U85: 4.46 | V85: 0.86 | W85: 0.0241 | X85: 0.8404 | Y85: 0.6453 | Z85: -47.74 | AA85: -54.45 | AB85: 28.74 | AC85: 1.48 | AD85: 39.54 | AE85: 39.7729 | AF85: 999999999 | AG85: 0 | AH85: 0.0119 | AI85: 142228 | AJ85: 143925 | AK85: 106223 | AL85: 92875 | AM85: 2910 | AN85: 50136 | AO85: 2910 | AP85: 141482 | AQ85: 12093 | AR85: 4148 | AS85: 1243 | AT85: 130135 | AU85: 3146 | AV85: 109369 | AW85: -44340 | AX85: -50577 | AY85: 26696 | AZ85: 1377 | BA85: 1697 | BB85: 671 | BC85: 3576 | BD85: 0 | BE85: 1243 | BF85: 0
A86: 43881548 | B86: 29320 | C86: 29320 | D86: 2 | E86: 29 | F86: 293 | G86: TRUE | H86: FALSE | I86: a3 | J86: o3 | K86: 2 | L86: 121 | M86: 5 | N86: 71.34 | O86: 54.18 | P86: 26.532 | Q86: 60.516 | R86: 28.8 | S86: 184.788 | T86: 46.97 | U86: 3.39 | V86: -5.95 | W86: 0.3452 | X86: 0.8261 | Y86: 0.7783 | Z86: 0.84 | AA86: -13.92 | AB86: 22.66 | AC86: -5.83 | AD86: -20.79 | AE86: 56.947 | AF86: -3.2803 | AG86: 22.94 | AH86: 0.4415 | AI86: 7405913 | AJ86: 10381135 | AK86: 1216193 | AL86: 8079699 | AM86: 596176 | AN86: 1358722 | AO86: 647133 | AP86: 4147778 | AQ86: 4876831 | AR86: 274571 | AS86: -618608 | AT86: 2529082 | AU86: 873179 | AV86: 2089372 | AW86: 68248 | AX86: -1125058 | AY86: 1831567 | AZ86: -471748 | BA86: 2975222 | BB86: -618608 | BC86: 130049 | BD86: 144522 | BE86: -474086 | BF86: 2382119
A87: 43838651 | B87: 29320 | C87: 29320 | D87: 2 | E87: 29 | F87: 293 | G87: TRUE | H87: TRUE | I87: a2 | J87: o2 | K87: 1 | L87: 112 | M87: 8 | N87: 93.87 | O87: 0 | P87: 13.248 | Q87: 254.772 | R87: 61.956 | S87: 307.404 | T87: 49.45 | U87: 58.55 | V87: 4 | W87: 0.1395 | X87: 0.1395 | Y87: 0.3573 | Z87: 60.4 | AA87: -2.95 | AB87: 85.12 | AC87: 14.2 | AD87: 49.49 | AE87: 4.9601 | AF87: 4.903 | AG87: 27.95 | AH87: 0.1025 | AI87: 3206353 | AJ87: 3415498 | AK87: 0 | AL87: 1220413 | AM87: 44970 | AN87: 863777 | AO87: 210116 | AP87: 1042146 | AQ87: 1688994 | AR87: 714625 | AS87: 136688 | AT87: 1517359 | AU87: 211729 | AV87: 211729 | AW87: 737161 | AX87: -36040 | AY87: 1038836 | AZ87: 173365 | BA87: 209145 | BB87: 103506 | BC87: 646422 | BD87: 35021 | BE87: 171709 | BF87: 954856
A88: 36330507 | B88: 46900 | C88: 29320 | D88: 2 | E88: 29 | F88: 293 | G88: TRUE | H88: FALSE | I88: a2 | J88: o2 | K88: 1 | L88: 112 | M88: 3 | N88: 432.61 | O88: 111.6 | P88: 69.084 | Q88: 375.228 | R88: 136.476 | S88: 1058.364 | T88: 0.73 | U88: -28.38 | V88: -47.42 | W88: 0.1169 | X88: 0.2072 | Y88: 1.2575 | Z88: -31.28 | AA88: -34.45 | AB88: 13.51 | AC88: -31.43 | AD88: -999999999 | AE88: 999999999 | AF88: -4.8221 | AG88: 56.79 | AH88: -0.7688 | AI88: 9134811 | AJ88: 2111551 | AK88: 823223 | AL88: 2655302 | AM88: 509753 | AN88: 2767679 | AO88: 1006743 | AP88: 7806586 | AQ88: 15461 | AR88: -753817 | AS88: -1001475 | AT88: 9119350 | AU88: 1066725 | AV88: 1889948 | AW88: -830765 | AX88: -914953 | AY88: 358780 | AZ88: -834814 | BA88: -7023260 | BB88: -1001475 | BC88: -925828 | BD88: 172011 | BE88: -829464 | BF88: 1199188
A89: 44847386 | B89: 14110 | C89: 29320 | D89: 2 | E89: 29 | F89: 293 | G89: FALSE | H89: FALSE | I89: a1 | J89: o2 | K89: 1 | L89: 112 | M89: 5 | N89: 775.48 | O89: 4.896 | P89: 0.72 | Q89: 66.24 | R89: 8.244 | S89: 171.792 | T89: 421.49 | U89: 0.71 | V89: -6.87 | W89: 0.1154 | X89: 0.1773 | Y89: 16.0564 | Z89: 0.73 | AA89: 0.09 | AB89: 50.4 | AC89: 0.41 | AD89: -999999999 | AE89: 999999999 | AF89: 0.4771 | AG89: 0 | AH89: -0.872 | AI89: 1234300 | AJ89: 159164 | AK89: 34838 | AL89: 2555604 | AM89: 5124 | AN89: 470484 | AO89: 58532 | AP89: 1219701 | AQ89: 670861 | AR89: 18235 | AS89: -10945 | AT89: 563439 | AU89: 65075 | AV89: 99913 | AW89: 18864 | AX89: 2482 | AY89: 1288196 | AZ89: 10618 | BA89: -1075136 | BB89: -10880 | BC89: -2634 | BD89: 20934 | BE89: 9989 | BF89: 0
A90: 43883419 | B90: 28290 | C90: 29320 | D90: 2 | E90: 29 | F90: 293 | G90: FALSE | H90: TRUE | I90: a2 | J90: o3 | K90: 2 | L90: 112 | M90: 3 | N90: 48.51 | O90: 14.796 | P90: 58.968 | Q90: 11.124 | R90: 69.228 | S90: 32.292 | T90: 7.7 | U90: 5.32 | V90: 17.53 | W90: 1.7814 | X90: 2.1335 | Y90: 3.4962 | Z90: 5.35 | AA90: 0.19 | AB90: 66.4 | AC90: 5.03 | AD90: 24.29 | AE90: 3.5655 | AF90: 999999999 | AG90: 0 | AH90: 1.071 | AI90: 1560916 | AJ90: 3217676 | AK90: 462411 | AL90: 11249804 | AM90: 1843171 | AN90: 348249 | AO90: 2163856 | AP90: 1010038 | AQ90: 247777 | AR90: 599403 | AS90: 564106 | AT90: 1313139 | AU90: 2339255 | AV90: 2801666 | AW90: 601865 | AX90: 21825 | AY90: 7470160 | AZ90: 566568 | BA90: 1656760 | BB90: 402481 | BC90: 437778 | BD90: 0 | BE90: 564106 | BF90: 0
A91: 48207284 | B91: 29320 | C91: 29320 | D91: 2 | E91: 29 | F91: 293 | G91: FALSE | H91: TRUE | I91: a3 | J91: o3 | K91: 2 | L91: 112 | M91: 2 | N91: 74.04 | O91: 30.528 | P91: 75.024 | Q91: 87.696 | R91: 83.304 | S91: 157.536 | T91: 15.46 | U91: 5.33 | V91: 5.01 | W91: 0.6596 | X91: 0.8961 | Y91: 1.6313 | Z91: 4.97 | AA91: 3.18 | AB91: 13.01 | AC91: 3.94 | AD91: 13.71 | AE91: 11.9759 | AF91: 5.7259 | AG91: 0 | AH91: 0.3506 | AI91: 23908168 | AJ91: 32290622 | AK91: 4471880 | AL91: 52676989 | AM91: 10978176 | AN91: 12836363 | AO91: 12191433 | AP91: 23056128 | AQ91: 4993396 | AR91: 2810320 | AS91: 1620845 | AT91: 18914772 | AU91: 12477817 | AV91: 16949697 | AW91: 2620652 | AX91: 1678567 | AY91: 6853457 | AZ91: 2080160 | BA91: 8382454 | BB91: 1149841 | BC91: 1996349 | BD91: 342967 | BE91: 1963812 | BF91: 0
A92: 35779594 | B92: 46180 | C92: 29310 | D92: 2 | E92: 29 | F92: 293 | G92: TRUE | H92: FALSE | I92: a3 | J92: o3 | K92: 2 | L92: 112 | M92: 1 | N92: 68.85 | O92: 57.996 | P92: 42.3 | Q92: 52.2 | R92: 47.232 | S92: 128.556 | T92: 3.06 | U92: 2.06 | V92: -0.86 | W92: 0.339 | X92: 0.7531 | Y92: 1.6904 | Z92: 1.86 | AA92: -4.16 | AB92: 28.78 | AC92: -0.37 | AD92: -6.15 | AE92: 30.4264 | AF92: -3.9677 | AG92: 0 | AH92: 0.4522 | AI92: 5007701 | AJ92: 7272383 | AK92: 1981406 | AL92: 12293312 | AM92: 1444555 | AN92: 1783177 | AO92: 1613682 | AP92: 4390126 | AQ92: 222836 | AR92: 253527 | AS92: -63051 | AT92: 4784865 | AU92: 1622167 | AV92: 3603573 | AW92: 229622 | AX92: -512400 | AY92: 3538171 | AZ92: -46655 | BA92: 2264682 | BB92: -139302 | BC92: 164584 | BD92: 12692 | BE92: -50359 | BF92: 218
A93: 00167819 | B93: 69200 | C93: 29310 | D93: 2 | E93: 29 | F93: 293 | G93: TRUE | H93: TRUE | I93: a3 | J93: o3 | K93: 2 | L93: 112 | M93: 4 | N93: 48.73 | O93: 37.944 | P93: 62.316 | Q93: 50.256 | R93: 65.34 | S93: 60.516 | T93: 5.43 | U93: 10.04 | V93: 7.2 | W93: 0.7612 | X93: 1.1895 | Y93: 1.7593 | Z93: 7.75 | AA93: 0.29 | AB93: 24.06 | AC93: 4.22 | AD93: 10.63 | AE93: 3.0887 | AF93: 51.9001 | AG93: 11.34 | AH93: 1.1357 | AI93: 6651308 | AJ93: 13648287 | AK93: 2531093 | AL93: 24012782 | AM93: 4157555 | AN93: 3352578 | AO93: 4360258 | AP93: 4038850 | AQ93: 741427 | AR93: 2412633 | AS93: 983799 | AT93: 5909881 | AU93: 4498888 | AV93: 7029981 | AW93: 1861173 | AX93: 70464 | AY93: 5777943 | AZ93: 1014622 | BA93: 6996979 | BB93: 743890 | BC93: 2153396 | BD93: 19328 | BE93: 1003127 | BF93: 1548321
A94: 47687461 | B94: 26510 | C94: 29320 | D94: 2 | E94: 29 | F94: 293 | G94: TRUE | H94: TRUE | I94: a3 | J94: o3 | K94: 2 | L94: 112 | M94: 5 | N94: 77.92 | O94: 18.828 | P94: 26.64 | Q94: 28.764 | R94: 27.612 | S94: 40.536 | T94: 40.02 | U94: 7.06 | V94: 3.65 | W94: 0.348 | X94: 0.5747 | Y94: 1.6398 | Z94: 7.1 | AA94: 2.88 | AB94: 22 | AC94: 2.74 | AD94: 11.15 | AE94: 8.1101 | AF94: 5.7065 | AG94: 58.88 | AH94: 0.2832 | AI94: 16158816 | AJ94: 20736357 | AK94: 1781622 | AL94: 34005094 | AM94: 2518829 | AN94: 2719249 | AO94: 2610259 | AP94: 3831431 | AQ94: 8299738 | AR94: 2401054 | AS94: 758207 | AT94: 7859078 | AU94: 2735170 | AV94: 4516792 | AW94: 2415414 | AX94: 981597 | AY94: 7481658 | AZ94: 933986 | BA94: 4577541 | BB94: 510675 | BC94: 1992425 | BD94: 161097 | BE94: 919304 | BF94: 12209623
A95: 36347850 | B95: 46900 | C95: 29320 | D95: 2 | E95: 29 | F95: 293 | G95: TRUE | H95: TRUE | I95: a3 | J95: o3 | K95: 2 | L95: 112 | M95: 3 | N95: 48.75 | O95: 16.92 | P95: 31.716 | Q95: 6.12 | R95: 72.864 | S95: 11.34 | T95: 11.49 | U95: 9.22 | V95: 5.01 | W95: 0.8758 | X95: 1.081 | Y95: 1.6263 | Z95: 7.72 | AA95: 3.16 | AB95: 27.64 | AC95: 2.81 | AD95: 8.02 | AE95: 3.5853 | AF95: 11.1615 | AG95: 31.33 | AH95: 1.1889 | AI95: 8149050 | AJ95: 16712925 | AK95: 1278141 | AL95: 27180718 | AM95: 2395417 | AN95: 463503 | AO95: 5502576 | AP95: 856578 | AQ95: 1920954 | AR95: 2506988 | AS95: 838406 | AT95: 6228096 | AU95: 5454756 | AV95: 6732897 | AW95: 2098658 | AX95: 861592 | AY95: 7513807 | AZ95: 765283 | BA95: 8563875 | BB95: 686828 | BC95: 2272902 | BD95: 82508 | BE95: 920914 | BF95: 5236477
A96: 36553387 | B96: 77390 | C96: 29320 | D96: 2 | E96: 29 | F96: 293 | G96: FALSE | H96: TRUE | I96: a2 | J96: o2 | K96: 1 | L96: 112 | M96: 4 | N96: 78.05 | O96: 20.124 | P96: 35.928 | Q96: 25.632 | R96: 41.58 | S96: 49.104 | T96: 6.6 | U96: 5.23 | V96: 23.58 | W96: 0.8891 | X96: 1.2869 | Y96: 5.0761 | Z96: 5.29 | AA96: 5.18 | AB96: 65.3 | AC96: 4.7 | AD96: 107.5 | AE96: 2.954 | AF96: 143.2532 | AG96: 0 | AH96: 0.281 | AI96: 431224 | AJ96: 552433 | AK96: 157022 | AL96: 2804244 | AM96: 280033 | AN96: 199742 | AO96: 323981 | AP96: 382535 | AQ96: 36507 | AR96: 146894 | AS96: 130304 | AT96: 394717 | AU96: 350976 | AV96: 507998 | AW96: 148580 | AX96: 145493 | AY96: 1831381 | AZ96: 131806 | BA96: 121209 | BB96: 130304 | BC96: 145978 | BD96: 916 | BE96: 131220 | BF96: 0
A97: 36340251 | B97: 47190 | C97: 29320 | D97: 2 | E97: 29 | F97: 293 | G97: TRUE | H97: TRUE | I97: a3 | J97: o3 | K97: 2 | L97: 112 | M97: 3 | N97: 39.3 | O97: 36.18 | P97: 121.032 | Q97: 64.764 | R97: 127.188 | S97: 85.788 | T97: 13.94 | U97: 19.16 | V97: 14.3 | W97: 1.7591 | X97: 2.1972 | Y97: 1.1051 | Z97: 19 | AA97: 13.82 | AB97: 35.6 | AC97: 13.13 | AD97: 18.03 | AE97: 2.228 | AF97: 79.8957 | AG97: 12.59 | AH97: 1.5439 | AI97: 15634684 | AJ97: 39774248 | AK97: 4419336 | AL97: 43954772 | AM97: 14780709 | AN97: 7908725 | AO97: 15531309 | AP97: 10475428 | AQ97: 5546766 | AR97: 8424641 | AS97: 5690200 | AT97: 10087918 | AU97: 17746204 | AV97: 22165540 | AW97: 8352433 | AX97: 6078199 | AY97: 15649453 | AZ97: 5772377 | BA97: 24139564 | BB97: 4354734 | BC97: 7017052 | BD97: 72123 | BE97: 5762323 | BF97: 5011200
A98: 36614939 | B98: 45200 | C98: 29320 | D98: 2 | E98: 29 | F98: 293 | G98: TRUE | H98: TRUE | I98: a3 | J98: o3 | K98: 2 | L98: 112 | M98: 3 | N98: 51.4 | O98: 32.94 | P98: 60.696 | Q98: 47.844 | R98: 60.984 | S98: 66.348 | T98: 16.39 | U98: 10.06 | V98: 10.68 | W98: 0.9324 | X98: 1.3722 | Y98: 1.6828 | Z98: 10.77 | AA98: 11.19 | AB98: 31.59 | AC98: 6.98 | AD98: 14.08 | AE98: 4.0689 | AF98: 23.7608 | AG98: 15.24 | AH98: 0.9912 | AI98: 4688793 | AJ98: 9121102 | AK98: 1404645 | AL98: 15349296 | AM98: 2589356 | AN98: 2040679 | AO98: 2601163 | AP98: 2828948 | AQ98: 1495615 | AR98: 1545343 | AS98: 974619 | AT98: 3193178 | AU98: 2977352 | AV98: 4381997 | AW98: 1653464 | AX98: 1717847 | AY98: 4849905 | AZ98: 1071466 | BA98: 4432309 | BB98: 624433 | BC98: 1152337 | BD98: 42820 | BE98: 1017439 | BF98: 1390514
A99: 45400326 | B99: 77340 | C99: 29320 | D99: 2 | E99: 29 | F99: 293 | G99: FALSE | H99: TRUE | I99: a2 | J99: o1 | K99: 1 | L99: 112 | M99: 4 | N99: 93.05 | O99: 199.8 | P99: 9.612 | Q99: 19.872 | R99: 9.612 | S99: 627.876 | T99: 0.04 | U99: 0.86 | V99: 0.22 | W99: 0.0292 | X99: 0.3385 | Y99: 0.5183 | Z99: 1.19 | AA99: 0.73 | AB99: 7.46 | AC99: 0.76 | AD99: 2.2 | AE99: 245.6637 | AF99: 999999999 | AG99: 0 | AH99: 0.076 | AI99: 456689 | AJ99: 490763 | AK99: 141178 | AL99: 254371 | AM99: 6802 | AN99: 14046 | AO99: 6802 | AP99: 443672 | AQ99: 227 | AR99: 2195 | AS99: 1088 | AT99: 456462 | AU99: 13337 | AV99: 154515 | AW99: 3041 | AX99: 1864 | AY99: 18984 | AZ99: 1934 | BA99: 34074 | BB99: 752 | BC99: 1859 | BD99: 0 | BE99: 1088 | BF99: 0
A100: 35919868 | B100: 45320 | C100: 29320 | D100: 2 | E100: 29 | F100: 293 | G100: TRUE | H100: TRUE | I100: a3 | J100: o3 | K100: 2 | L100: 112 | M100: 5 | N100: 73.19 | O100: 125.604 | P100: 13.464 | Q100: 84.384 | R100: 13.536 | S100: 85.284 | T100: 30.23 | U100: 2.73 | V100: 4.02 | W100: 0.1558 | X100: 1.5936 | Y100: 1.7702 | Z100: 2.33 | AA100: 1.93 | AB100: 3.62 | AC100: 1.97 | AD100: 11.67 | AE100: 19.7694 | AF100: 16.8993 | AG100: 31.05 | AH100: 0.3662 | AI100: 65378980 | AJ100: 89322246 | AK100: 55173481 | AL100: 158124306 | AM100: 5917664 | AN100: 37075169 | AO100: 5959241 | AP100: 37471493 | AQ100: 27004504 | AR100: 4328672 | AS100: 3590921 | AT100: 38374476 | AU100: 5982234 | AV100: 61155715 | AW100: 3692013 | AX100: 3055477 | AY100: 5736739 | AZ100: 3127365 | BA100: 23943266 | BB100: 2795173 | BC100: 3307070 | BD100: 225854 | BE100: 3816775 | BF100: 27738600
A101: 36513555 | B101: 46900 | C101: 29310 | D101: 2 | E101: 29 | F101: 293 | G101: FALSE | H101: TRUE | I101: a3 | J101: o3 | K101: 2 | L101: 112 | M101: 7 | N101: 85.01 | O101: 19.908 | P101: 72.756 | Q101: 23.94 | R101: 77.004 | S101: 106.992 | T101: 0.26 | U101: 8.73 | V101: 18.27 | W101: 0.8017 | X101: 0.9864 | Y101: 2.8275 | Z101: 8.63 | AA101: 6.53 | AB101: 18.26 | AC101: 6.5 | AD101: 99.51 | AE101: 4.0008 | AF101: 205.2408 | AG101: 0 | AH101: 0.1762 | AI101: 24586064 | AJ101: 28918606 | AK101: 4527067 | AL101: 81768600 | AM101: 16533372 | AN101: 5440246 | AO101: 17498260 | AP101: 24303420 | AQ101: 75641 | AR101: 7144060 | AS101: 5284529 | AT101: 24510423 | AU101: 19651974 | AV101: 24179041 | AW101: 7063587 | AX101: 5343606 | AY101: 14932213 | AZ101: 5316914 | BA101: 4332542 | BB101: 4311493 | BC101: 6145150 | BD101: 25874 | BE101: 5310403 | BF101: 0
A102: 47698497 | B102: 46190 | C102: 29320 | D102: 2 | E102: 29 | F102: 293 | G102: FALSE | H102: TRUE | I102: a3 | J102: o3 | K102: 2 | L102: 112 | M102: 8 | N102: 47.76 | O102: 38.808 | P102: 60.12 | Q102: 21.492 | R102: 71.82 | S102: 90.468 | T102: 0 | U102: 6.79 | V102: 2.73 | W102: 0.9526 | X102: 1.3752 | Y102: 1.872 | Z102: 6.39 | AA102: 1.39 | AB102: 18.78 | AC102: 1.63 | AD102: 4.16 | AE102: 3.9257 | AF102: 999999999 | AG102: 0 | AH102: 1.0937 | AI102: 2961783 | AJ102: 6201269 | AK102: 1251686 | AL102: 11609275 | AM102: 1938772 | AN102: 693982 | AO102: 2316513 | AP102: 2918204 | AQ102: 0 | AR102: 789000 | AS102: 169513 | AT102: 2961783 | AU102: 2821507 | AV102: 4073193 | AW102: 742026 | AX102: 162330 | AY102: 2180573 | AZ102: 190374 | BA102: 3239486 | BB102: 134969 | BC102: 754456 | BD102: 0 | BE102: 169513 | BF102: 0
A103: 31714358 | B103: 77310 | C103: 29320 | D103: 2 | E103: 29 | F103: 293 | G103: FALSE | H103: TRUE | I103: a3 | J103: o3 | K103: 2 | L103: 112 | M103: 7 | N103: 90.08 | O103: 96.948 | P103: 2.916 | Q103: 30.888 | R103: 12.492 | S103: 132.192 | T103: 0.73 | U103: 3.75 | V103: 0.26 | W103: 0.1005 | X103: 0.8183 | Y103: 2.3805 | Z103: 3.69 | AA103: 0.3 | AB103: 28.96 | AC103: 0.49 | AD103: 0.04 | AE103: 11.4162 | AF103: 1.3368 | AG103: 0 | AH103: 0.1102 | AI103: 4902138 | AJ103: 5441963 | AK103: 3490022 | AL103: 12955132 | AM103: 104954 | AN103: 1111770 | AO103: 449800 | AP103: 4757532 | AQ103: 40055 | AR103: 486800 | AS103: 14529 | AT103: 4862083 | AU103: 488846 | AV103: 3978868 | AW103: 478641 | AX103: 39455 | AY103: 3752645 | AZ103: 63658 | BA103: 539825 | BB103: 259 | BC103: 429400 | BD103: 43130 | BE103: 57659 | BF103: 0
A104: 31411801 | B104: 68200 | C104: 29320 | D104: 2 | E104: 29 | F104: 293 | G104: TRUE | H104: TRUE | I104: a3 | J104: o3 | K104: 2 | L104: 121 | M104: 4 | N104: 62.76 | O104: 41.652 | P104: 50.364 | Q104: 65.088 | R104: 51.372 | S104: 102.852 | T104: 23.61 | U104: 7.27 | V104: 3.95 | W104: 0.7149 | X104: 1.1286 | Y104: 1.399 | Z104: 5.89 | AA104: 1.68 | AB104: 21.62 | AC104: 3.17 | AD104: 8.06 | AE104: 7.1208 | AF104: 10.7432 | AG104: 18.42 | AH104: 0.6154 | AI104: 79283135 | AJ104: 126324650 | AK104: 20456784 | AL104: 176733563 | AM104: 24726318 | AN104: 31958716 | AO104: 25234790 | AP104: 50501303 | AQ104: 29833858 | AR104: 12850424 | AS104: 4997866 | AT104: 49449277 | AU104: 35355417 | AV104: 55812201 | AW104: 10412638 | AX104: 2975003 | AY104: 38223234 | AZ104: 5616642 | BA104: 47041515 | BB104: 3794269 | BC104: 11133871 | BD104: 512956 | BE104: 5510822 | BF104: 23273650
A105: 35811650 | B105: 46900 | C105: 29320 | D105: 2 | E105: 29 | F105: 293 | G105: TRUE | H105: FALSE | I105: a3 | J105: o3 | K105: 2 | L105: 112 | M105: 1 | N105: 82.18 | O105: 60.264 | P105: 41.364 | Q105: 71.64 | R105: 47.916 | S105: 98.244 | T105: 0.01 | U105: -5.54 | V105: -24.5 | W105: 0.4246 | X105: 0.9414 | Y105: 2.5366 | Z105: -4.89 | AA105: -7.99 | AB105: 3.87 | AC105: -9.06 | AD105: -128.75 | AE105: 999999999 | AF105: -15.4065 | AG105: 0.01 | AH105: 0.2409 | AI105: 35046751 | AJ105: 42642947 | AK105: 18108971 | AL105: 108168466 | AM105: 12431177 | AN105: 21528481 | AO105: 14405418 | AP105: 29529944 | AQ105: 7156 | AR105: -5998019 | AS105: -10451268 | AT105: 35039595 | AU105: 14880625 | AV105: 32989596 | AW105: -5295706 | AX105: -8645912 | AY105: 4191695 | AZ105: -9802812 | BA105: 7596196 | BB105: -9780780 | BC105: -5964549 | BD105: 637018 | BE105: -9814250 | BF105: 8129
A106: 48169668 | B106: 45110 | C106: 29320 | D106: 2 | E106: 29 | F106: 293 | G106: FALSE | H106: FALSE | I106: a3 | J106: o3 | K106: 2 | L106: 112 | M106: 2 | N106: 85.37 | O106: 37.908 | P106: 39.06 | Q106: 38.556 | R106: 48.132 | S106: 95.652 | T106: 43.65 | U106: -6.02 | V106: -27.81 | W106: 0.9359 | X106: 1.5986 | Y106: 2.6257 | Z106: -6.01 | AA106: -9.02 | AB106: 16.31 | AC106: -10.06 | AD106: -194.21 | AE106: 999999999 | AF106: -19.8707 | AG106: 0 | AH106: 0.1733 | AI106: 17102756 | AJ106: 20032958 | AK106: 5538918 | AL106: 52601142 | AM106: 5708396 | AN106: 5635540 | AO106: 7037666 | AP106: 13976889 | AQ106: 8745841 | AR106: -3168249 | AS106: -5571303 | AT106: 8356915 | AU106: 7821269 | AV106: 13360187 | AW106: -3166250 | AX106: -4745092 | AY106: 8580260 | AZ106: -5296224 | BA106: 2930202 | BB106: -5690877 | BC106: -3554766 | BD106: 266943 | BE106: -5304360 | BF106: 0
A107: 34120556 | B107: 49410 | C107: 29320 | D107: 2 | E107: 29 | F107: 293 | G107: TRUE | H107: TRUE | I107: a3 | J107: o3 | K107: 2 | L107: 112 | M107: 2 | N107: 90.69 | O107: 23.364 | P107: 37.332 | Q107: 33.984 | R107: 40.788 | S107: 68.724 | T107: 12.63 | U107: 2.75 | V107: 2.71 | W107: 0.481 | X107: 0.7545 | Y107: 3.2854 | Z107: 2.7 | AA107: 1.18 | AB107: 14.51 | AC107: 1.07 | AD107: 19.71 | AE107: 12.1739 | AF107: 4.7872 | AG107: 27.12 | AH107: 0.1026 | AI107: 5683210 | AJ107: 6266416 | AK107: 1337945 | AL107: 20588073 | AM107: 2135203 | AN107: 1944019 | AO107: 2333752 | AP107: 3932140 | AQ107: 791535 | AR107: 566888 | AS107: 170113 | AT107: 4891675 | AU107: 2353302 | AV107: 3691247 | AW107: 556082 | AX107: 244357 | AY107: 2987812 | AZ107: 221514 | BA107: 583206 | BB107: 114975 | BC107: 466833 | BD107: 44917 | BE107: 215030 | BF107: 1700069
A108: 45683417 | B108: 47990 | C108: 29320 | D108: 2 | E108: 29 | F108: 293 | G108: FALSE | H108: TRUE | I108: a1 | J108: o1 | K108: 1 | L108: 112 | M108: 6 | N108: 722.67 | O108: 12.888 | P108: 1.656 | Q108: 55.548 | R108: 18.864 | S108: 236.34 | T108: 6.92 | U108: 15.5 | V108: 162.69 | W108: 0.0816 | X108: 0.1367 | Y108: 11.007 | Z108: 16.02 | AA108: 15.88 | AB108: 24.24 | AC108: 15.65 | AD108: 999999999 | AE108: 4.3306 | AF108: 43.5413 | AG108: 0 | AH108: -0.8616 | AI108: 75397 | AJ108: 10433 | AK108: 4113 | AL108: 114837 | AM108: 534 | AN108: 17729 | AO108: 6023 | AP108: 75397 | AQ108: 723 | AR108: 17809 | AS108: 16974 | AT108: 74674 | AU108: 6097 | AV108: 10210 | AW108: 18408 | AX108: 18245 | AY108: 27843 | AZ108: 17972 | BA108: -64964 | BB108: 16974 | BC108: 17410 | BD108: 399 | BE108: 17373 | BF108: 0
A109: 35910186 | B109: 25620 | C109: 29320 | D109: 2 | E109: 29 | F109: 293 | G109: FALSE | H109: TRUE | I109: a2 | J109: o2 | K109: 2 | L109: 112 | M109: 4 | N109: 7.02 | O109: 21.636 | P109: 10.296 | Q109: 8.136 | R109: 16.92 | S109: 15.84 | T109: 0.23 | U109: 19.01 | V109: 22.62 | W109: 8.8858 | X109: 10.0901 | Y109: 1.3601 | Z109: 19.09 | AA109: 17.04 | AB109: 44.96 | AC109: 16.81 | AD109: 19.15 | AE109: 0.3338 | AF109: 999999999 | AG109: 0 | AH109: 13.6442 | AI109: 42701 | AJ109: 607901 | AK109: 49703 | AL109: 826850 | AM109: 23663 | AN109: 18759 | AO109: 38911 | AP109: 36425 | AQ109: 1431 | AR109: 157200 | AS109: 137537 | AT109: 41270 | AU109: 366719 | AV109: 416422 | AW109: 157848 | AX109: 140930 | AY109: 371768 | AZ109: 139013 | BA109: 565200 | BB109: 108253 | BC109: 127916 | BD109: 0 | BE109: 137537 | BF109: 0
A110: 47254556 | B110: 47990 | C110: 29320 | D110: 2 | E110: 29 | F110: 293 | G110: TRUE | H110: TRUE | I110: a3 | J110: o3 | K110: 2 | L110: 112 | M110: 5 | N110: 68.96 | O110: 102.06 | P110: 60.588 | Q110: 48.384 | R110: 64.944 | S110: 189 | T110: 2.94 | U110: 7.86 | V110: 5.72 | W110: 0.3732 | X110: 0.8884 | Y110: 1.1993 | Z110: 8.2 | AA110: 3.91 | AB110: 23.3 | AC110: 6.16 | AD110: 14.27 | AE110: 9.9213 | AF110: 5.8132 | AG110: 5.24 | AH110: 0.45 | AI110: 13522166 | AJ110: 19608032 | AK110: 6669164 | AL110: 23516572 | AM110: 3958289 | AN110: 3161698 | AO110: 4242618 | AP110: 12347571 | AQ110: 576506 | AR110: 1849861 | AS110: 1122533 | AT110: 12945660 | AU110: 4831979 | AV110: 11501143 | AW110: 1930175 | AX110: 920721 | AY110: 5480451 | AZ110: 1450412 | BA110: 6085866 | BB110: 868825 | BC110: 1362938 | BD110: 233215 | BE110: 1355748 | BF110: 1028532
A111: 35785136 | B111: 46150 | C111: 29320 | D111: 2 | E111: 29 | F111: 293 | G111: FALSE | H111: TRUE | I111: a3 | J111: o3 | K111: 2 | L111: 112 | M111: 1 | N111: 63.81 | O111: 27.324 | P111: 56.448 | Q111: 41.256 | R111: 56.448 | S111: 90.864 | T111: 0.78 | U111: 4.33 | V111: 0.42 | W111: 0.6128 | X111: 0.9025 | Y111: 2.4042 | Z111: 4.25 | AA111: 0.47 | AB111: 12.59 | AC111: 0.43 | AD111: 0.44 | AE111: 6.6881 | AF111: 1.696 | AG111: 0 | AH111: 0.5922 | AI111: 10693480 | AJ111: 16757158 | AK111: 3060164 | AL111: 40288533 | AM111: 6319802 | AN111: 4620327 | AO111: 6319997 | AP111: 10171643 | AQ111: 132016 | AR111: 1745841 | AS111: 71373 | AT111: 10561464 | AU111: 6472221 | AV111: 9532385 | AW111: 1713462 | AX111: 191146 | AY111: 5075030 | AZ111: 175309 | BA111: 6063678 | BB111: 26953 | BC111: 1598875 | BD111: 102546 | BE111: 173919 | BF111: 0
A112: 44010541 | B112: 25110 | C112: 29310 | D112: 2 | E112: 29 | F112: 293 | G112: FALSE | H112: TRUE | I112: a3 | J112: o3 | K112: 2 | L112: 112 | M112: 6 | N112: 24.32 | O112: 0 | P112: 131.076 | Q112: 8.1 | R112: 131.868 | S112: 45.72 | T112: 0.21 | U112: 7.17 | V112: 7.86 | W112: 2.9416 | X112: 2.9416 | Y112: 1.5334 | Z112: 7.15 | AA112: 5.36 | AB112: 94.4 | AC112: 5.16 | AD112: 7.59 | AE112: 2.7373 | AF112: 999999999 | AG112: 0 | AH112: 3.1113 | AI112: 2436607 | AJ112: 10017787 | AK112: 0 | AL112: 15361874 | AM112: 5593293 | AN112: 346105 | AO112: 5627310 | AP112: 1951892 | AQ112: 21110 | AR112: 1102562 | AS112: 788089 | AT112: 2415497 | AU112: 7105448 | AV112: 7105448 | AW112: 1099792 | AX112: 824687 | AY112: 14502912 | AZ112: 792979 | BA112: 7581180 | BB112: 575652 | BC112: 890125 | BD112: 0 | BE112: 788089 | BF112: 0
A113: 31446884 | B113: 25610 | C113: 29320 | D113: 2 | E113: 29 | F113: 293 | G113: TRUE | H113: TRUE | I113: a2 | J113: o2 | K113: 2 | L113: 112 | M113: 4 | N113: 40.18 | O113: 41.184 | P113: 51.228 | Q113: 19.116 | R113: 58.536 | S113: 92.448 | T113: 22.02 | U113: 16.15 | V113: 17.12 | W113: 4.1888 | X113: 4.9649 | Y113: 1.232 | Z113: 16.25 | AA113: -9.85 | AB113: 24.88 | AC113: 14.23 | AD113: 28.62 | AE113: 2.0501 | AF113: 57.9312 | AG113: 6.63 | AH113: 1.4882 | AI113: 1450048 | AJ113: 3608037 | AK113: 508706 | AL113: 4445460 | AM113: 632993 | AN113: 236064 | AO113: 722916 | AP113: 1141994 | AQ113: 794587 | AR113: 718138 | AS113: 617704 | AT113: 655461 | AU113: 2745621 | AV113: 3254327 | AW113: 722566 | AX113: -438283 | AY113: 1106118 | AZ113: 632978 | BA113: 2157989 | BB113: 617704 | BC113: 707288 | BD113: 10850 | BE113: 628554 | BF113: 239304
A114: 46840893 | B114: 46190 | C114: 29320 | D114: 2 | E114: 29 | F114: 293 | G114: FALSE | H114: FALSE | I114: a1 | J114: o1 | K114: 1 | L114: 121 | M114: 1 | N114: 126.24 | O114: 1.656 | P114: 39.78 | Q114: 18.252 | R114: 41.184 | S114: 110.088 | T114: 1.53 | U114: 7.25 | V114: -4.01 | W114: 0.5065 | X114: 0.5213 | Y114: 3.9503 | Z114: 7.56 | AA114: 0.47 | AB114: 47.25 | AC114: -0.06 | AD114: -999999999 | AE114: 4.8332 | AF114: -0.5896 | AG114: 0 | AH114: -0.2078 | AI114: 217831 | AJ114: 172546 | AK114: 3186 | AL114: 681617 | AM114: 75374 | AN114: 34622 | AO114: 78023 | AP114: 208481 | AQ114: 2652 | AR114: 49426 | AS114: -6926 | AT114: 215179 | AU114: 109008 | AV114: 112194 | AW114: 51574 | AX114: 3270 | AY114: 322111 | AZ114: -421 | BA114: -45285 | BB114: -6926 | BC114: 45069 | BD114: 4357 | BE114: -2569 | BF114: 0
A115: 35882409 | B115: 46900 | C115: 29320 | D115: 2 | E115: 29 | F115: 293 | G115: TRUE | H115: TRUE | I115: a3 | J115: o3 | K115: 2 | L115: 112 | M115: 4 | N115: 65.55 | O115: 31.14 | P115: 80.1 | Q115: 55.008 | R115: 90.036 | S115: 112.068 | T115: 24.88 | U115: 11.51 | V115: 6.59 | W115: 0.7707 | X115: 0.9816 | Y115: 0.9904 | Z115: 11.86 | AA115: 7.91 | AB115: 29.48 | AC115: 7.19 | AD115: 14.48 | AE115: 6.9904 | AF115: 16.576 | AG115: 32.17 | AH115: 0.526 | AI115: 34901980 | AJ115: 53243460 | AK115: 4566404 | AL115: 52734332 | AM115: 11736213 | AN115: 8059659 | AO115: 13190866 | AP115: 16420743 | AQ115: 13252225 | AR115: 6073432 | AS115: 3512466 | AT115: 21649755 | AU115: 16685629 | AV115: 21252033 | AW115: 6258256 | AX115: 4173548 | AY115: 15550435 | AZ115: 3793146 | BA115: 18341480 | BB115: 2657313 | BC115: 4992774 | BD115: 225505 | BE115: 3737971 | BF115: 17129394
A116: 46998951 | B116: 29320 | C116: 29320 | D116: 2 | E116: 29 | F116: 293 | G116: FALSE | H116: FALSE | I116: a3 | J116: o3 | K116: 2 | L116: 112 | M116: 7 | N116: 129.82 | O116: 28.116 | P116: 39.996 | Q116: 160.92 | R116: 44.748 | S116: 167.472 | T116: 0 | U116: -6.96 | V116: -28.52 | W116: 0.2481 | X116: 0.3971 | Y116: 2.4744 | Z116: -6.88 | AA116: -13.27 | AB116: 14.8 | AC116: -11.31 | AD116: -999999999 | AE116: 999999999 | AF116: -180.2546 | AG116: 0 | AH116: -0.2297 | AI116: 9284727 | AJ116: 7151903 | AK116: 1383724 | AL116: 17697059 | AM116: 1967765 | AN116: 7910952 | AO116: 2199960 | AP116: 8233476 | AQ116: 0 | AR116: -1231803 | AS116: -2040384 | AT116: 9284727 | AU116: 2303703 | AV116: 3687427 | AW116: -1218838 | AX116: -2348704 | AY116: 2620221 | AZ116: -2002804 | BA116: -2132824 | BB116: -2040384 | BC116: -1243060 | BD116: 11257 | BE116: -2029127 | BF116: 0
A117: 48288331 | B117: 27120 | C117: 29320 | D117: 2 | E117: 29 | F117: 293 | G117: TRUE | H117: TRUE | I117: a3 | J117: o3 | K117: 2 | L117: 112 | M117: 5 | N117: 61.6 | O117: 8.892 | P117: 57.672 | Q117: 64.8 | R117: 58.14 | S117: 70.668 | T117: 0.04 | U117: 13.97 | V117: 28.26 | W117: 0.9576 | X117: 1.0534 | Y117: 2.3805 | Z117: 13.79 | AA117: 11.81 | AB117: 18.29 | AC117: 11.94 | AD117: 57.59 | AE117: 2.2852 | AF117: 183.3804 | AG117: 14.74 | AH117: 0.6234 | AI117: 16710796 | AJ117: 27125352 | AK117: 1600429 | AL117: 64574003 | AM117: 10347938 | AN117: 11629195 | AO117: 10430993 | AP117: 12675877 | AQ117: 12587 | AR117: 9024299 | AS117: 7668188 | AT117: 16698209 | AU117: 15990650 | AV117: 17591079 | AW117: 8909997 | AX117: 7632572 | AY117: 11814853 | AZ117: 7711839 | BA117: 10414556 | BB117: 5998237 | BC117: 7312303 | BD117: 42045 | BE117: 7710233 | BF117: 4000000
A118: 47589086 | B118: 53200 | C118: 29320 | D118: 2 | E118: 29 | F118: 293 | G118: TRUE | H118: FALSE | I118: a1 | J118: o1 | K118: 1 | L118: 112 | M118: 8 | N118: 134.98 | O118: 35.784 | P118: 0 | Q118: 9.504 | R118: 1.224 | S118: 95.004 | T118: 1.89 | U118: -41 | V118: -173.37 | W118: 0.011 | X118: 0.2891 | Y118: 3.7233 | Z118: -40.26 | AA118: -44.13 | AB118: -14.63 | AC118: -44.83 | AD118: -999999999 | AE118: 999999999 | AF118: -45.9717 | AG118: 36.71 | AH118: -0.2591 | AI118: 107409 | AJ118: 79572 | AK118: 29455 | AL118: 296277 | AM118: 0 | AN118: 7839 | AO118: 1014 | AP118: 78194 | AQ118: 1505 | AR118: -121482 | AS118: -137956 | AT118: 105904 | AU118: 1170 | AV118: 30625 | AW118: -119284 | AX118: -130768 | AY118: -43355 | AZ118: -132821 | BA118: -27837 | BB118: -137956 | BC118: -124419 | BD118: 2937 | BE118: -135019 | BF118: 29215
A119: 44167865 | B119: 29320 | C119: 29320 | D119: 2 | E119: 29 | F119: 293 | G119: FALSE | H119: FALSE | I119: a1 | J119: o1 | K119: 1 | L119: 112 | M119: 3 | N119: 51.69 | O119: 0 | P119: 41.112 | Q119: 9.288 | R119: 41.112 | S119: 120.6 | T119: 1.34 | U119: 11.04 | V119: -0.41 | W119: 0.5653 | X119: 0.5653 | Y119: 1.4881 | Z119: 12.61 | AA119: 1.08 | AB119: 55.92 | AC119: 1.28 | AD119: -2.48 | AE119: 3.3019 | AF119: -999999999 | AG119: 0 | AH119: 0.9342 | AI119: 25461 | AJ119: 49249 | AK119: 0 | AL119: 73292 | AM119: 8376 | AN119: 1894 | AO119: 8376 | AP119: 24554 | AQ119: 660 | AR119: 8096 | AS119: -206 | AT119: 24801 | AU119: 14021 | AV119: 14021 | AW119: 9247 | AX119: 798 | AY119: 40986 | AZ119: 945 | BA119: 23788 | BB119: -591 | BC119: 7711 | BD119: 0 | BE119: -206 | BF119: 0
A120: 36498441 | B120: 46900 | C120: 29320 | D120: 2 | E120: 29 | F120: 293 | G120: TRUE | H120: TRUE | I120: a3 | J120: o2 | K120: 2 | L120: 112 | M120: 7 | N120: 51.39 | O120: 39.024 | P120: 69.408 | Q120: 36.072 | R120: 105.12 | S120: 145.656 | T120: 36.05 | U120: 12.72 | V120: 9.32 | W120: 2.3249 | X120: 3.1884 | Y120: 1.221 | Z120: 12.63 | AA120: 7.87 | AB120: 35.72 | AC120: 7.98 | AD120: 14.23 | AE120: 4.0425 | AF120: 23.1643 | AG120: 0.04 | AH120: 0.9455 | AI120: 3254959 | AJ120: 6332631 | AK120: 838935 | AL120: 7732385 | AM120: 1491177 | AN120: 774873 | AO120: 2258273 | AP120: 3129175 | AQ120: 2283416 | AR120: 984096 | AS120: 590258 | AT120: 971543 | AU120: 2258794 | AV120: 3097729 | AW120: 977329 | AX120: 608695 | AY120: 2762664 | AZ120: 617350 | BA120: 3077672 | BB120: 437961 | BC120: 805168 | BD120: 26631 | BE120: 616889 | BF120: 2773
A121: 36235164 | B121: 45320 | C121: 29320 | D121: 2 | E121: 29 | F121: 293 | G121: FALSE | H121: TRUE | I121: a3 | J121: o3 | K121: 2 | L121: 121 | M121: 2 | N121: 52.4 | O121: 55.944 | P121: 69.228 | Q121: 49.86 | R121: 73.836 | S121: 114.876 | T121: 4.36 | U121: 10.85 | V121: 5.29 | W121: 0.5763 | X121: 0.9977 | Y121: 1.302 | Z121: 10.89 | AA121: -7.85 | AB121: 17.44 | AC121: 4.12 | AD121: 8.88 | AE121: 4.0301 | AF121: 75.8251 | AG121: 0 | AH121: 0.9609 | AI121: 54487131 | AJ121: 103971140 | AK121: 21048487 | AL121: 135379633 | AM121: 26044406 | AN121: 18762694 | AO121: 27766590 | AP121: 43202430 | AQ121: 4534867 | AR121: 14700509 | AS121: 5506082 | AT121: 49952264 | AU121: 28789309 | AV121: 49837796 | AW121: 14754270 | AX121: -10628392 | AY121: 23621304 | AZ121: 5590977 | BA121: 49484009 | BB121: 4398968 | BC121: 13519809 | BD121: 73586 | BE121: 5579668 | BF121: 0
A122: 35799218 | B122: 46180 | C122: 29320 | D122: 2 | E122: 29 | F122: 293 | G122: FALSE | H122: TRUE | I122: a3 | J122: o3 | K122: 2 | L122: 112 | M122: 1 | N122: 90.49 | O122: 6.336 | P122: 26.064 | Q122: 29.484 | R122: 27.288 | S122: 41.004 | T122: 1.29 | U122: 1.76 | V122: 10.04 | W122: 0.7342 | X122: 0.8786 | Y122: 7.3052 | Z122: 1.75 | AA122: 1.21 | AB122: 3.46 | AC122: 1.39 | AD122: 81.13 | AE122: 8.6877 | AF122: 87.4744 | AG122: 0 | AH122: 0.1072 | AI122: 112716119 | AJ122: 124549603 | AK122: 16044293 | AL122: 909870425 | AM122: 65926939 | AN122: 74541650 | AO122: 68989905 | AP122: 103634562 | AQ122: 1617144 | AR122: 16025875 | AS122: 12507926 | AT122: 111098975 | AU122: 81573360 | AV122: 97617653 | AW122: 15929554 | AX122: 11043323 | AY122: 31561866 | AZ122: 12724742 | BA122: 11833484 | BB122: 9600839 | BC122: 12974145 | BD122: 144643 | BE122: 12652569 | BF122: 0
A123: 48058408 | B123: 29100 | C123: 29320 | D123: 2 | E123: 29 | F123: 293 | G123: TRUE | H123: TRUE | I123: a3 | J123: o2 | K123: 2 | L123: 112 | M123: 1 | N123: 92.52 | O123: 29.484 | P123: 31.392 | Q123: 30.6 | R123: 47.52 | S123: 39.24 | T123: 0.17 | U123: 11.07 | V123: 6.02 | W123: 0.2162 | X123: 0.324 | Y123: 1.2154 | Z123: 11.15 | AA123: 6 | AB123: 37.86 | AC123: 5.8 | AD123: 60.51 | AE123: 8.3875 | AF123: 7.4488 | AG123: 77.02 | AH123: 0.0808 | AI123: 4503713 | AJ123: 4867798 | AK123: 484837 | AL123: 5916766 | AM123: 515993 | AN123: 503438 | AO123: 781029 | AP123: 645304 | AQ123: 8619 | AR123: 655328 | AS123: 293237 | AT123: 4495094 | AU123: 971968 | AV123: 1456805 | AW123: 660049 | AX123: 355224 | AY123: 2240113 | AZ123: 343429 | BA123: 364085 | BB123: 220334 | BC123: 536954 | BD123: 45471 | BE123: 338708 | BF123: 3749480
A124: 34101021 | B124: 47520 | C124: 29320 | D124: 2 | E124: 29 | F124: 293 | G124: TRUE | H124: TRUE | I124: a1 | J124: o1 | K124: 1 | L124: 112 | M124: 4 | N124: 26.56 | O124: 24.84 | P124: 35.316 | Q124: 12.852 | R124: 72.252 | S124: 27.792 | T124: 3.38 | U124: 9.02 | V124: 7.43 | W124: 1.8259 | X124: 2.2487 | Y124: 1.4193 | Z124: 9.09 | AA124: 4.44 | AB124: 53.43 | AC124: 5.66 | AD124: 7.69 | AE124: 2.4889 | AF124: 22.2815 | AG124: 5.44 | AH124: 4.0809 | AI124: 84207 | AJ124: 317039 | AK124: 31062 | AL124: 449989 | AM124: 44165 | AN124: 16089 | AO124: 90351 | AP124: 34764 | AQ124: 10743 | AR124: 40599 | AS124: 23580 | AT124: 73464 | AU124: 134138 | AV124: 165200 | AW124: 40917 | AX124: 19993 | AY124: 240452 | AZ124: 25510 | BA124: 232832 | BB124: 17921 | BC124: 33832 | BD124: 1108 | BE124: 24688 | BF124: 17254
A125: 35919868 | B125: 45320 | C125: 29320 | D125: 2 | E125: 29 | F125: 293 | G125: TRUE | H125: TRUE | I125: a3 | J125: o3 | K125: 2 | L125: 112 | M125: 5 | N125: 73.19 | O125: 125.604 | P125: 13.464 | Q125: 84.384 | R125: 13.536 | S125: 85.284 | T125: 30.23 | U125: 2.73 | V125: 4.02 | W125: 0.1558 | X125: 1.5936 | Y125: 1.7702 | Z125: 2.33 | AA125: 1.93 | AB125: 3.62 | AC125: 1.97 | AD125: 11.67 | AE125: 19.7694 | AF125: 16.8993 | AG125: 31.05 | AH125: 0.3662 | AI125: 65378980 | AJ125: 89322246 | AK125: 55173481 | AL125: 158124306 | AM125: 5917664 | AN125: 37075169 | AO125: 5959241 | AP125: 37471493 | AQ125: 27004504 | AR125: 4328672 | AS125: 3590921 | AT125: 38374476 | AU125: 5982234 | AV125: 61155715 | AW125: 3692013 | AX125: 3055477 | AY125: 5736739 | AZ125: 3127365 | BA125: 23943266 | BB125: 2795173 | BC125: 3307070 | BD125: 225854 | BE125: 3816775 | BF125: 27738600
A126: 31572995 | B126: 29320 | C126: 29320 | D126: 2 | E126: 29 | F126: 293 | G126: FALSE | H126: TRUE | I126: a3 | J126: o3 | K126: 2 | L126: 112 | M126: 6 | N126: 13.42 | O126: 40.068 | P126: 36.9 | Q126: 15.624 | R126: 37.404 | S126: 23.508 | T126: 0.56 | U126: 9.1 | V126: 15.23 | W126: 3.5736 | X126: 5.2315 | Y126: 1.9155 | Z126: 8.66 | AA126: 7.63 | AB126: 31.05 | AC126: 7.97 | AD126: 13.93 | AE126: 0.9413 | AF126: 999999999 | AG126: 0 | AH126: 6.4556 | AI126: 3873481 | AJ126: 28859053 | AK126: 6154164 | AL126: 55280548 | AM126: 5669373 | AN126: 2403475 | AO126: 5748027 | AP126: 3613507 | AQ126: 161642 | AR126: 5031074 | AS126: 4397206 | AT126: 3711839 | AU126: 13264656 | AV126: 19418820 | AW126: 4787832 | AX126: 4219710 | AY126: 17164952 | AZ126: 4408363 | BA126: 24985572 | BB126: 3480948 | BC126: 4114816 | BD126: 0 | BE126: 4397206 | BF126: 0
A127: 36441392 | B127: 23110 | C127: 29320 | D127: 2 | E127: 29 | F127: 293 | G127: TRUE | H127: TRUE | I127: a3 | J127: o3 | K127: 2 | L127: 112 | M127: 5 | N127: 77.83 | O127: 1.404 | P127: 26.64 | Q127: 12.024 | R127: 26.64 | S127: 18.684 | T127: 59.25 | U127: 5.72 | V127: 0.31 | W127: 0.9974 | X127: 1.0433 | Y127: 2.1584 | Z127: 5.99 | AA127: 0.83 | AB127: 12.68 | AC127: 0.79 | AD127: 1.38 | AE127: 6.7491 | AF127: 1.3846 | AG127: 66.18 | AH127: 0.2847 | AI127: 76445633 | AJ127: 98212941 | AK127: 837249 | AL127: 211985218 | AM127: 15696845 | AN127: 7081975 | AO127: 15701955 | AP127: 11021711 | AQ127: 58196380 | AR127: 12134211 | AS127: 308313 | AT127: 18249253 | AU127: 18203445 | AV127: 19040694 | AW127: 12699064 | AX127: 1760675 | AY127: 26881447 | AZ127: 1686118 | BA127: 21767308 | BB127: 302332 | BC127: 11326657 | BD127: 801573 | BE127: 1109886 | BF127: 65000000
A128: 31601413 | B128: 14130 | C128: 29320 | D128: 2 | E128: 29 | F128: 293 | G128: TRUE | H128: TRUE | I128: a3 | J128: o3 | K128: 2 | L128: 112 | M128: 3 | N128: 59.25 | O128: 38.916 | P128: 25.56 | Q128: 67.248 | R128: 60.12 | S128: 99 | T128: 12.27 | U128: 10.13 | V128: 8.71 | W128: 0.7262 | X128: 1.0864 | Y128: 1.5653 | Z128: 9.67 | AA128: 6.94 | AB128: 26.51 | AC128: 6.46 | AD128: 16.45 | AE128: 4.6966 | AF128: 8.016 | AG128: 14.21 | AH128: 0.6888 | AI128: 3657439 | AJ128: 6172032 | AK128: 1044508 | AL128: 9661245 | AM128: 686806 | AN128: 1805590 | AO128: 1613910 | AP128: 2657422 | AQ128: 757371 | AR128: 979592 | AS128: 537880 | AT128: 2900068 | AU128: 2106193 | AV128: 3150701 | AW128: 934437 | AX128: 670711 | AY128: 2561387 | AZ128: 624593 | BA128: 2514593 | BB128: 413680 | BC128: 778728 | BD128: 76664 | BE128: 614544 | BF128: 877352
A129: 36347884 | B129: 22290 | C129: 29320 | D129: 2 | E129: 29 | F129: 293 | G129: TRUE | H129: TRUE | I129: a3 | J129: o3 | K129: 2 | L129: 112 | M129: 3 | N129: 48.69 | O129: 36.036 | P129: 33.192 | Q129: 74.196 | R129: 35.172 | S129: 78.516 | T129: 15.56 | U129: 4.85 | V129: 3.78 | W129: 0.9507 | X129: 1.3665 | Y129: 1.3762 | Z129: 1.98 | AA129: -0.72 | AB129: 7.27 | AC129: 0.84 | AD129: 5.87 | AE129: 8.3558 | AF129: 47.2856 | AG129: 17.94 | AH129: 1.0534 | AI129: 54328469 | AJ129: 111562804 | AK129: 15371697 | AL129: 153536178 | AM129: 14162945 | AN129: 31652018 | AO129: 15015771 | AP129: 33490121 | AQ129: 17363997 | AR129: 7453300 | AS129: 4223614 | AT129: 36964472 | AU129: 35142838 | AV129: 50514535 | AW129: 3054988 | AX129: -1114718 | AY129: 11170856 | AZ129: 1296084 | BA129: 57234335 | BB129: 3363404 | BC129: 6501839 | BD129: 91251 | BE129: 4314865 | BF129: 20019936
A130: 36347884 | B130: 22290 | C130: 29320 | D130: 2 | E130: 29 | F130: 293 | G130: TRUE | H130: TRUE | I130: a3 | J130: o3 | K130: 2 | L130: 112 | M130: 3 | N130: 48.69 | O130: 36.036 | P130: 33.192 | Q130: 74.196 | R130: 35.172 | S130: 78.516 | T130: 15.56 | U130: 4.85 | V130: 3.78 | W130: 0.9507 | X130: 1.3665 | Y130: 1.3762 | Z130: 1.98 | AA130: -0.72 | AB130: 7.27 | AC130: 0.84 | AD130: 5.87 | AE130: 8.3558 | AF130: 47.2856 | AG130: 17.94 | AH130: 1.0534 | AI130: 54328469 | AJ130: 111562804 | AK130: 15371697 | AL130: 153536178 | AM130: 14162945 | AN130: 31652018 | AO130: 15015771 | AP130: 33490121 | AQ130: 17363997 | AR130: 7453300 | AS130: 4223614 | AT130: 36964472 | AU130: 35142838 | AV130: 50514535 | AW130: 3054988 | AX130: -1114718 | AY130: 11170856 | AZ130: 1296084 | BA130: 57234335 | BB130: 3363404 | BC130: 6501839 | BD130: 91251 | BE130: 4314865 | BF130: 20019936
A131: 46635548 | B131: 46180 | C131: 29320 | D131: 2 | E131: 29 | F131: 293 | G131: FALSE | H131: TRUE | I131: a1 | J131: o1 | K131: 0 | L131: 112 | M131: 6 | N131: 61.38 | O131: 29.484 | P131: 36.936 | Q131: 66.564 | R131: 38.844 | S131: 158.544 | T131: 21.84 | U131: 21.04 | V131: 6.92 | W131: 0.8038 | X131: 1.0908 | Y131: 1.3846 | Z131: 21.51 | AA131: 9.2 | AB131: 32.91 | AC131: 6.46 | AD131: 15.38 | AE131: 2.2925 | AF131: 5.994 | AG131: 0 | AH131: 0.6289 | AI131: 59974 | AJ131: 97694 | AK131: 11088 | AL131: 135269 | AM131: 13887 | AN131: 25021 | AO131: 14599 | AP131: 59578 | AQ131: 21337 | AR131: 28474 | AS131: 6762 | AT131: 38637 | AU131: 31058 | AV131: 42146 | AW131: 29100 | AX131: 12450 | AY131: 44525 | AZ131: 8742 | BA131: 37720 | BB131: 5802 | BC131: 26160 | BD131: 1354 | BE131: 8116 | BF131: 0
A132: 43875611 | B132: 22290 | C132: 29320 | D132: 2 | E132: 29 | F132: 293 | G132: TRUE | H132: TRUE | I132: a1 | J132: o1 | K132: 0 | L132: 112 | M132: 3 | N132: 30.05 | O132: 63.54 | P132: 21.78 | Q132: 11.988 | R132: 22.032 | S132: 55.476 | T132: 2.17 | U132: 23.8 | V132: 41.99 | W132: 2.3629 | X132: 3.5084 | Y132: 1.8092 | Z132: 23.02 | AA132: 23.13 | AB132: 23.44 | AC132: 23.52 | AD132: 47.28 | AE132: 0.8931 | AF132: 85.4738 | AG132: 2.17 | AH132: 2.327 | AI132: 103865 | AJ132: 345569 | AK132: 110384 | AL132: 625204 | AM132: 37880 | AN132: 20879 | AO132: 38278 | AP132: 96365 | AQ132: 7500 | AR132: 148841 | AS132: 145126 | AT132: 96365 | AU132: 227703 | AV132: 338087 | AW132: 143932 | AX132: 144613 | AY132: 146610 | AZ132: 147108 | BA132: 241704 | BB132: 114290 | BC132: 116287 | BD132: 1718 | BE132: 146844 | BF132: 7500
A133: 44435983 | B133: 49410 | C133: 29320 | D133: 2 | E133: 29 | F133: 293 | G133: FALSE | H133: TRUE | I133: a1 | J133: o1 | K133: 0 | L133: 112 | M133: 6 | N133: 57.21 | O133: 85.716 | P133: 40.752 | Q133: 7.92 | R133: 52.416 | S133: 129.672 | T133: 0.75 | U133: 4.82 | V133: 7.13 | W133: 1.1011 | X133: 1.7711 | Y133: 1.5882 | Z133: -3.79 | AA133: -3.49 | AB133: 60 | AC133: -3.79 | AD133: 16.68 | AE133: 8.0162 | AF133: 14.7008 | AG133: 0 | AH133: 0.7478 | AI133: 12850 | AJ133: 22460 | AK133: 8496 | AL133: 35671 | AM133: 4038 | AN133: 785 | AO133: 5194 | AP133: 12850 | AQ133: 169 | AR133: 1720 | AS133: 1603 | AT133: 12681 | AU133: 13964 | AV133: 22460 | AW133: -1353 | AX133: -1248 | AY133: 21403 | AZ133: -1353 | BA133: 9610 | BB133: 1603 | BC133: 1603 | BD133: 117 | BE133: 1720 | BF133: 0
A134: 43810721 | B134: 46900 | C134: 29320 | D134: 2 | E134: 29 | F134: 293 | G134: FALSE | H134: TRUE | I134: a1 | J134: o1 | K134: 0 | L134: 112 | M134: 1 | N134: 277.02 | O134: 0 | P134: 0 | Q134: 227.52 | R134: 0 | S134: 558.468 | T134: 0 | U134: 55.46 | V134: 99.04 | W134: 0.3609 | X134: 0.3609 | Y134: 1.7857 | Z134: 68.4 | AA134: 68.4 | AB134: 68.4 | AC134: 68.4 | AD134: 999999999 | AE134: 3.8085 | AF134: 999999999 | AG134: 0 | AH134: -0.639 | AI134: 2327 | AJ134: 840 | AK134: 0 | AL134: 1500 | AM134: 0 | AN134: 948 | AO134: 0 | AP134: 2327 | AQ134: 0 | AR134: 832 | AS134: 832 | AT134: 2327 | AU134: 840 | AV134: 840 | AW134: 1026 | AX134: 1026 | AY134: 1026 | AZ134: 1026 | BA134: -1487 | BB134: 611 | BC134: 611 | BD134: 0 | BE134: 832 | BF134: 0
A135: 36868736 | B135: 70220 | C135: 29320 | D135: 2 | E135: 29 | F135: 293 | G135: FALSE | H135: FALSE | I135: a1 | J135: o1 | K135: 0 | L135: 112 | M135: 2 | N135: 0 | O135: 0 | P135: 0 | Q135: 0 | R135: 0 | S135: 0 | T135: 0 | U135: -1959.3 | V135: -30.02 | W135: 999999999 | X135: 999999999 | Y135: 0.0153 | Z135: -1884.88 | AA135: -1884.88 | AB135: -1884.88 | AC135: -1884.88 | AD135: -30.02 | AE135: NULL | AF135: -999999999 | AG135: 0 | AH135: 999999999 | AI135: 0 | AJ135: 11225 | AK135: 0 | AL135: 172 | AM135: 0 | AN135: 0 | AO135: 0 | AP135: 0 | AQ135: 0 | AR135: -3370 | AS135: -3370 | AT135: 0 | AU135: 11225 | AV135: 11225 | AW135: -3242 | AX135: -3242 | AY135: -3242 | AZ135: -3242 | BA135: 11225 | BB135: -3370 | BC135: -3370 | BD135: 0 | BE135: -3370 | BF135: 0
A136: 36347981 | B136: 69200 | C136: 29320 | D136: 2 | E136: 29 | F136: 293 | G136: FALSE | H136: TRUE | I136: a1 | J136: o1 | K136: 0 | L136: 112 | M136: 3 | N136: 19.62 | O136: 64.188 | P136: 0.612 | Q136: 7.344 | R136: 0.612 | S136: 68.94 | T136: 0.12 | U136: 26.26 | V136: 25.69 | W136: 4.2336 | X136: 5.1285 | Y136: 0.9783 | Z136: 26.92 | AA136: 27.3 | AB136: 46.6 | AC136: 26.92 | AD136: 26.13 | AE136: 0.9342 | AF136: 999999999 | AG136: 0 | AH136: 4.0951 | AI136: 7673 | AJ136: 39095 | AK136: 6822 | AL136: 38247 | AM136: 66 | AN136: 781 | AO136: 66 | AP136: 7328 | AQ136: 50 | AR136: 10047 | AS136: 10047 | AT136: 7623 | AU136: 32273 | AV136: 39095 | AW136: 10299 | AX136: 10444 | AY136: 17825 | AZ136: 10299 | BA136: 31422 | BB136: 8213 | BC136: 8213 | BD136: 0 | BE136: 10047 | BF136: 0
A137: 35713747 | B137: 45200 | C137: 29320 | D137: 2 | E137: 29 | F137: 293 | G137: FALSE | H137: FALSE | I137: a1 | J137: o1 | K137: 0 | L137: 112 | M137: 1 | N137: 602.64 | O137: 15.516 | P137: 4.968 | Q137: 31.86 | R137: 4.968 | S137: 321.768 | T137: 8.91 | U137: -6.63 | V137: -84.29 | W137: 0.0417 | X137: 0.0907 | Y137: 6.7418 | Z137: -6.48 | AA137: -10.73 | AB137: 13.83 | AC137: -12.35 | AD137: -999999999 | AE137: 999999999 | AF137: -999999999 | AG137: 0 | AH137: -0.834 | AI137: 62392 | AJ137: 10353 | AK137: 3014 | AL137: 69798 | AM137: 966 | AN137: 6181 | AO137: 966 | AP137: 62392 | AQ137: 923 | AR137: -4634 | AS137: -8727 | AT137: 61469 | AU137: 2565 | AV137: 5579 | AW137: -4529 | AX137: -7496 | AY137: 9654 | AZ137: -8622 | BA137: -52039 | BB137: -8727 | BC137: -4634 | BD137: 0 | BE137: -8727 | BF137: 0
A138: 50058151 | B138: 32400 | C138: 29320 | D138: 2 | E138: 29 | F138: 293 | G138: FALSE | H138: TRUE | I138: a1 | J138: o1 | K138: 0 | L138: 112 | M138: 1 | N138: 4.44 | O138: 0 | P138: 3.708 | Q138: 0.18 | R138: 47.592 | S138: 24.336 | T138: 1.53 | U138: 35.76 | V138: 20.28 | W138: 33.0089 | X138: 33.0089 | Y138: 0.6575 | Z138: 36.3 | AA138: 33.41 | AB138: 63.9 | AC138: 31.35 | AD138: 16.71 | AE138: 0.2343 | AF138: 83.7983 | AG138: 0 | AH138: 21.4948 | AI138: 10888 | AJ138: 244924 | AK138: 0 | AL138: 161050 | AM138: 1670 | AN138: 82 | AO138: 21298 | AP138: 10888 | AQ138: 3768 | AR138: 57604 | AS138: 49679 | AT138: 7120 | AU138: 235024 | AV138: 235024 | AW138: 58467 | AX138: 53818 | AY138: 102924 | AZ138: 50499 | BA138: 234036 | BB138: 39129 | BC138: 46454 | BD138: 600 | BE138: 50279 | BF138: 0
A139: 36308447 | B139: 68200 | C139: 29320 | D139: 2 | E139: 29 | F139: 293 | G139: FALSE | H139: TRUE | I139: a1 | J139: o1 | K139: 0 | L139: 112 | M139: 3 | N139: 61.33 | O139: 13.32 | P139: 55.548 | Q139: 33.984 | R139: 55.764 | S139: 78.516 | T139: 10.53 | U139: 8.21 | V139: 11.63 | W139: 1.6026 | X139: 1.7654 | Y139: 2.2313 | Z139: 8.21 | AA139: 5.71 | AB139: 46.19 | AC139: 5.32 | AD139: 24.51 | AE139: 3.8485 | AF139: 48.1708 | AG139: 0 | AH139: 0.6304 | AI139: 98966 | AJ139: 161357 | AK139: 13346 | AL139: 360047 | AM139: 55558 | AN139: 34014 | AO139: 55791 | AP139: 78540 | AQ139: 16999 | AR139: 29592 | AS139: 18774 | AT139: 81967 | AU139: 131365 | AV139: 144711 | AW139: 29594 | AX139: 20563 | AY139: 166335 | AZ139: 19174 | BA139: 62391 | BB139: 15295 | BC139: 25715 | BD139: 398 | BE139: 19172 | BF139: 0
A140: 36040606 | B140: 10890 | C140: 29310 | D140: 2 | E140: 29 | F140: 293 | G140: TRUE | H140: TRUE | I140: a2 | J140: o1 | K140: 0 | L140: 112 | M140: 6 | N140: 91.32 | O140: 7.812 | P140: 73.8 | Q140: 66.456 | R140: 99.54 | S140: 216.468 | T140: 54.64 | U140: 13.53 | V140: 2.17 | W140: 1.1599 | X140: 1.1979 | Y140: 0.6407 | Z140: 14.28 | AA140: 1.82 | AB140: 35.75 | AC140: 5.45 | AD140: 19.82 | AE140: 12.3753 | AF140: 3.6032 | AG140: 52.8 | AH140: 0.0949 | AI140: 906010 | AJ140: 992024 | AK140: 13856 | AL140: 635623 | AM140: 130358 | AN140: 117378 | AO140: 175751 | AP140: 382206 | AQ140: 542112 | AR140: 86033 | AS140: 21581 | AT140: 363898 | AU140: 422090 | AV140: 435946 | AW140: 90823 | AX140: 11570 | AY140: 227281 | AZ140: 34661 | BA140: 86014 | BB140: 17049 | BC140: 73211 | BD140: 8290 | BE140: 29871 | BF140: 523804
A141: 46916709 | B141: 25990 | C141: 29320 | D141: 2 | E141: 29 | F141: 293 | G141: FALSE | H141: TRUE | I141: a1 | J141: o1 | K141: 0 | L141: 112 | M141: 7 | N141: 50.73 | O141: 0 | P141: 45.684 | Q141: 6.156 | R141: 46.26 | S141: 62.748 | T141: 0 | U141: 9.81 | V141: 28.55 | W141: 1.9711 | X141: 1.9711 | Y141: 2.9095 | Z141: 11.3 | AA141: 11.3 | AB141: 11.3 | AC141: 11.3 | AD141: 54.23 | AE141: 1.8986 | AF141: 999999999 | AG141: 0 | AH141: 0.9711 | AI141: 1386 | AJ141: 2732 | AK141: 0 | AL141: 7949 | AM141: 1009 | AN141: 136 | AO141: 1022 | AP141: 1386 | AQ141: 0 | AR141: 780 | AS141: 780 | AT141: 1386 | AU141: 2732 | AV141: 2732 | AW141: 899 | AX141: 899 | AY141: 899 | AZ141: 899 | BA141: 1346 | BB141: 730 | BC141: 730 | BD141: 0 | BE141: 780 | BF141: 0
A142: 44528442 | B142: 46900 | C142: 29320 | D142: 2 | E142: 29 | F142: 293 | G142: TRUE | H142: FALSE | I142: a1 | J142: o1 | K142: 0 | L142: 112 | M142: 7 | N142: 29.33 | O142: 15.912 | P142: 17.928 | Q142: 5.22 | R142: 23.04 | S142: 21.06 | T142: 15.38 | U142: 14.5 | V142: -7 | W142: 1.1405 | X142: 1.8352 | Y142: 2.1882 | Z142: 14.63 | AA142: 2.83 | AB142: 55.68 | AC142: -2.09 | AD142: -9.91 | AE142: 0.9914 | AF142: -2.2561 | AG142: 14.53 | AH142: 2.4092 | AI142: 14420 | AJ142: 49161 | AK142: 4764 | AL142: 107578 | AM142: 5362 | AN142: 1569 | AO142: 6895 | AP142: 6300 | AQ142: 7562 | AR142: 15603 | AS142: -3445 | AT142: 6858 | AU142: 7822 | AV142: 12586 | AW142: 15739 | AX142: 3052 | AY142: 59906 | AZ142: -2251 | BA142: 34741 | BB142: -3445 | BC142: 14545 | BD142: 1058 | BE142: -2387 | BF142: 7147
A143: 36056413 | B143: 47190 | C143: 29320 | D143: 2 | E143: 29 | F143: 293 | G143: TRUE | H143: TRUE | I143: a1 | J143: o1 | K143: 0 | L143: 112 | M143: 6 | N143: 68.66 | O143: 25.884 | P143: 11.916 | Q143: 17.676 | R143: 13.212 | S143: 121.356 | T143: 34.92 | U143: 4.92 | V143: 5.11 | W143: 0.5156 | X143: 0.8422 | Y143: 1.5324 | Z143: 4.59 | AA143: 4.95 | AB143: 47.07 | AC143: 4.38 | AD143: 16.31 | AE143: 11.1359 | AF143: 4.6935 | AG143: 16.99 | AH143: 0.4563 | AI143: 148743 | AJ143: 216624 | AK143: 23874 | AL143: 331962 | AM143: 10992 | AN143: 16319 | AO143: 12203 | AP143: 111920 | AQ143: 75648 | AR143: 16356 | AS143: 11077 | AT143: 73095 | AU143: 37691 | AV143: 61565 | AW143: 15256 | AX143: 16454 | AY143: 156284 | AZ143: 14559 | BA143: 67881 | BB143: 11077 | BC143: 13357 | BD143: 2999 | BE143: 14076 | BF143: 36823
A144: 46920633 | B144: 49410 | C144: 29320 | D144: 2 | E144: 29 | F144: 293 | G144: TRUE | H144: TRUE | I144: a1 | J144: o1 | K144: 0 | L144: 112 | M144: 1 | N144: 84.13 | O144: 4.68 | P144: 37.44 | Q144: 23.328 | R144: 37.836 | S144: 74.34 | T144: 3.76 | U144: 1.43 | V144: 0.49 | W144: 1.0999 | X144: 1.1618 | Y144: 3.8015 | Z144: 1.83 | AA144: 1.31 | AB144: 15.81 | AC144: 0.36 | AD144: -0.89 | AE144: 20.2116 | AF144: 1.7492 | AG144: 4.08 | AH144: 0.1885 | AI144: 125090 | AJ144: 148675 | AK144: 7398 | AL144: 565195 | AM144: 58827 | AN144: 36654 | AO144: 59413 | AP144: 116738 | AQ144: 5599 | AR144: 8130 | AS144: 741 | AT144: 119491 | AU144: 131431 | AV144: 138829 | AW144: 10387 | AX144: 7445 | AY144: 89372 | AZ144: 2055 | BA144: 23585 | BB144: -211 | BC144: 6189 | BD144: 989 | BE144: 1730 | BF144: 6075
A145: 45506361 | B145: 46190 | C145: 29320 | D145: 2 | E145: 29 | F145: 293 | G145: FALSE | H145: FALSE | I145: a1 | J145: o1 | K145: 0 | L145: 112 | M145: 6 | N145: 297.87 | O145: 325.692 | P145: 39.744 | Q145: 699.3 | R145: 43.452 | S145: 1152.972 | T145: 0.67 | U145: -56.71 | V145: -56.82 | W145: 0.0385 | X145: 0.3194 | Y145: 0.9226 | Z145: -52.43 | AA145: -57.08 | AB145: 23.17 | AC145: -61.18 | AD145: -999999999 | AE145: 999999999 | AF145: -999999999 | AG145: 0 | AH145: -0.6642 | AI145: 338752 | AJ145: 113722 | AK145: 94932 | AL145: 104928 | AM145: 11586 | AN145: 203831 | AO145: 12672 | AP145: 336059 | AQ145: 762 | AR145: -59508 | AS145: -64620 | AT145: 337990 | AU145: 13032 | AV145: 107964 | AW145: -55024 | AX145: -59894 | AY145: 24314 | AZ145: -64203 | BA145: -225030 | BB145: -64620 | BC145: -59508 | BD145: 0 | BE145: -64620 | BF145: 0
A146: 45702012 | B146: 29100 | C146: 29320 | D146: 2 | E146: 29 | F146: 293 | G146: FALSE | H146: FALSE | I146: a1 | J146: o1 | K146: 0 | L146: 112 | M146: 3 | N146: 351.22 | O146: 50.76 | P146: 19.188 | Q146: 564.624 | R146: 19.188 | S146: 575.244 | T146: 0 | U146: -24.32 | V146: -27.08 | W146: 0.0355 | X146: 0.0697 | Y146: 0.8529 | Z146: -28.64 | AA146: -28.21 | AB146: -20.78 | AC146: -31.13 | AD146: -999999999 | AE146: 999999999 | AF146: -999999999 | AG146: 0 | AH146: -0.7152 | AI146: 67615 | AJ146: 19251 | AK146: 2316 | AL146: 16421 | AM146: 876 | AN146: 25755 | AO146: 876 | AP146: 26240 | AQ146: 0 | AR146: -3995 | AS146: -5215 | AT146: 67615 | AU146: 2401 | AV146: 4717 | AW146: -4703 | AX146: -4633 | AY146: -3413 | AZ146: -5113 | BA146: -48364 | BB146: -5215 | BC146: -3995 | BD146: 0 | BE146: -5215 | BF146: 0
A147: 47791110 | B147: 46900 | C147: 29320 | D147: 2 | E147: 29 | F147: 293 | G147: FALSE | H147: TRUE | I147: a1 | J147: o1 | K147: 0 | L147: 112 | M147: 5 | N147: 47.15 | O147: 0 | P147: 7.848 | Q147: 0.612 | R147: 9.828 | S147: 79.812 | T147: 0 | U147: 2.52 | V147: 4.95 | W147: 1.716 | X147: 1.716 | Y147: 2.1259 | Z147: 2.72 | AA147: 5.86 | AB147: 6.05 | AC147: 2.53 | AD147: 4.62 | AE147: 16.5203 | AF147: 999999999 | AG147: 0 | AH147: 1.1207 | AI147: 10160 | AJ147: 21547 | AK147: 0 | AL147: 45808 | AM147: 1000 | AN147: 82 | AO147: 1253 | AP147: 10160 | AQ147: 0 | AR147: 1156 | AS147: 1068 | AT147: 10160 | AU147: 17435 | AV147: 17435 | AW147: 1249 | AX147: 2687 | AY147: 2775 | AZ147: 1161 | BA147: 11387 | BB147: 527 | BC147: 615 | BD147: 0 | BE147: 1068 | BF147: 0
A148: 36422983 | B148: 46180 | C148: 29320 | D148: 2 | E148: 29 | F148: 293 | G148: FALSE | H148: TRUE | I148: a2 | J148: o1 | K148: 0 | L148: 112 | M148: 5 | N148: 19.88 | O148: 0 | P148: 28.224 | Q148: 3.024 | R148: 29.088 | S148: 68.112 | T148: 0.4 | U148: 19.48 | V148: 10.07 | W148: 3.1445 | X148: 3.1447 | Y148: 0.9319 | Z148: 20.08 | AA148: 11.83 | AB148: 47.21 | AC148: 11.41 | AD148: 9.9 | AE148: 1.2418 | AF148: 999999999 | AG148: 0 | AH148: 4.0278 | AI148: 98144 | AJ148: 493451 | AK148: 22 | AL148: 459875 | AM148: 36062 | AN148: 3896 | AO148: 37178 | AP148: 87028 | AQ148: 2000 | AR148: 89590 | AS148: 49700 | AT148: 96144 | AU148: 302331 | AV148: 302353 | AW148: 92379 | AX148: 54437 | AY148: 217137 | AZ148: 52489 | BA148: 395307 | BB148: 39139 | BC148: 79029 | BD148: 0 | BE148: 49700 | BF148: 0
A149: 36476226 | B149: 68310 | C149: 29320 | D149: 2 | E149: 29 | F149: 293 | G149: TRUE | H149: TRUE | I149: a1 | J149: o1 | K149: 0 | L149: 112 | M149: 7 | N149: 71.72 | O149: 0 | P149: 95.472 | Q149: 3.564 | R149: 98.604 | S149: 72.468 | T149: 0 | U149: 2.27 | V149: 4.1 | W149: 1.2944 | X149: 1.2944 | Y149: 2.5231 | Z149: 2.3 | AA149: 1.15 | AB149: 83.34 | AC149: 1.96 | AD149: 11.38 | AE149: 16.9072 | AF149: 7.7291 | AG149: 16.59 | AH149: 0.3941 | AI149: 128089 | AJ149: 178579 | AK149: 0 | AL149: 450588 | AM149: 119525 | AN149: 4488 | AO149: 123443 | AP149: 90731 | AQ149: 0 | AR149: 10243 | AS149: 7328 | AT149: 128089 | AU149: 165799 | AV149: 165799 | AW149: 10393 | AX149: 5216 | AY149: 375551 | AZ149: 8867 | BA149: 50490 | BB149: 5750 | BC149: 7576 | BD149: 1089 | BE149: 8417 | BF149: 29633

Sheet ciselnikNACE
A1: NACE | B1: Popis
A2: A | B2: A - Poľnohospodárstvo, lesníctvo a rybolov
A3: 01000 | B3: Pestovanie plodín a chov zvierat, poľovníctvo a služby s tým súvisiace
A4: 01100 | B4: Pestovanie netrvácnych plodín
A5: 01110 | B5: Pestovanie obilnín (okrem ryže), strukovín a olejnatých semien
A6: 01120 | B6: Pestovanie ryže
A7: 01130 | B7: Pestovanie zeleniny a melónov, koreňovej a hľuzovej zeleniny
A8: 01140 | B8: Pestovanie cukrovej trstiny
A9: 01150 | B9: Pestovanie tabaku
A10: 01160 | B10: Pestovanie plodín na vlákno
A11: 01190 | B11: Pestovanie ostatných netrvácnych plodín
A12: 01200 | B12: Pestovanie trvácnych plodín
A13: 01210 | B13: Pestovanie hrozna
A14: 01220 | B14: Pestovanie tropického a subtropického ovocia
A15: 01230 | B15: Pestovanie citrusových plodov
A16: 01240 | B16: Pestovanie jadrového a kôstkového ovocia
A17: 01250 | B17: Pestovanie ostatného stromového a kríkového ovocia a orechov
A18: 01260 | B18: Pestovanie olejnatého ovocia
A19: 01270 | B19: Pestovanie nápojových plodín
A20: 01280 | B20: Pestovanie korenín, aromatických, liečivých a farmaceutických plodín
A21: 01290 | B21: Pestovanie ostatných trvácnych plodín
A22: 01300 | B22: Rozmnožovanie rastlín
A23: 01300 | B23: Rozmnožovanie rastlín
A24: 01400 | B24: Chov zvierat
A25: 01410 | B25: Chov dojníc
A26: 01420 | B26: Chov ostatného dobytka a byvolov
A27: 01430 | B27: Chov koní a ostatných koňovitých zvierat
A28: 01440 | B28: Chov tiav a ťavovitých zvierat
A29: 01450 | B29: Chov oviec a kôz
A30: 01460 | B30: Chov ošípaných
A31: 01470 | B31: Chov hydiny
A32: 01490 | B32: Chov iných zvierat
A33: 01491 | B33: Chov hospodárskych zvierat
A34: 01492 | B34: Chov kožušinových zvierat
A35: 01493 | B35: Chov domácich neúžitkových zvierat
A36: 01494 | B36: Chov zveriny
A37: 01495 | B37: Chov laboratórnych zvierat
A38: 01499 | B38: Chov iných drobných hospodárskych zvierat
A39: 01500 | B39: Zmiešané hospodárstvo
A40: 01500 | B40: Zmiešané hospodárstvo
A41: 01600 | B41: Služby poskytované v poľnohospodárstve a služby súvisiace so zberom úrody
A42: 01610 | B42: Služby súvisiace s pestovaním plodín
A43: 01620 | B43: Služby súvisiace s chovom zvierat
A44: 01630 | B44: Služby súvisiace so zberom úrody
A45: 01640 | B45: Spracovanie semien na sadenie
A46: 01700 | B46: Lov, odchyt a súvisiace služby
A47: 01700 | B47: Lov, odchyt a súvisiace služby
A48: 02000 | B48: Lesníctvo a ťažba dreva
A49: 02100 | B49: Lesné hospodárstvo a ostatné služby v lesníctve
A50: 02100 | B50: Lesné hospodárstvo a ostatné služby v lesníctve
A51: 02200 | B51: Ťažba dreva
A52: 02200 | B52: Ťažba dreva
A53: 02300 | B53: Zber divorastúceho materiálu (okrem dreva)
A54: 02300 | B54: Zber divorastúceho materiálu (okrem dreva)
A55: 02400 | B55: Služby poskytované v lesníctve
A56: 02400 | B56: Služby poskytované v lesníctve
A57: 02401 | B57: Služby súvisiace s lesníctvom
A58: 02402 | B58: Služby súvisiace s ťažbou dreva
A59: 02409 | B59: Ostatné služby poskytované v lesníctve
A60: 03000 | B60: Rybolov a akvakultura
A61: 03100 | B61: Rybolov
A62: 03110 | B62: Morský rybolov
A63: 03120 | B63: Riečny rybolov
A64: 03200 | B64: Akvakultura
A65: 03210 | B65: Morská akvakultúra
A66: 03220 | B66: Riečna akvakultúra
A67: B | B67: B - Ťažba a dobývanie
A68: 05000 | B68: Ťažba uhlia a lignitu
A69: 05100 | B69: Ťažba čierneho uhlia
A70: 05100 | B70: Ťažba čierneho uhlia
A71: 05200 | B71: Ťažba lignitu
A72: 05200 | B72: Ťažba lignitu
A73: 06000 | B73: Ťažba ropy a zemného plynu
A74: 06100 | B74: Ťažba ropy
A75: 06100 | B75: Ťažba ropy
A76: 06200 | B76: Ťažba zemného plynu
A77: 06200 | B77: Ťažba zemného plynu
A78: 07000 | B78: Dobývanie kovových rúd
A79: 07100 | B79: Dobývanie železných rúd
A80: 07100 | B80: Dobývanie železných rúd
A81: 07200 | B81: Dobývanie neželezných rúd
A82: 07210 | B82: Dobývanie uránových a tóriových rúd
A83: 07290 | B83: Dobývanie ostatných neželezných kovových rúd
A84: 08000 | B84: Iná ťažba a dobývanie
A85: 08100 | B85: Dobývanie kameňa, piesku a ílu
A86: 08110 | B86: Dobývanie dekoračného a stavebného kameňa, vápenca, sadrovca, kriedy a bridlice
A87: 08120 | B87: Prevádzka štrkovísk a pieskovísk; ťažba ílu a kaolínu
A88: 08900 | B88: Ťažba a dobývanie i. n.
A89: 08910 | B89: Ťažba chemických a hnojivových minerálov
A90: 08920 | B90: Ťažba rašeliny
A91: 08930 | B91: Ťažba soli
A92: 08990 | B92: Iná ťažba a dobývanie i. n.
A93: 09000 | B93: Pomocné činnosti pri ťažbe
A94: 09100 | B94: Pomocné činnosti pri ťažbe ropy a zemného plynu
A95: 09100 | B95: Pomocné činnosti pri ťažbe ropy a zemného plynu
A96: 09900 | B96: Pomocné činnosti pri iných ťažbách a dobývaní
A97: 09900 | B97: Pomocné činnosti pri iných ťažbách a dobývaní
A98: C | B98: C - Priemyselná výroba
A99: 10000 | B99: Výroba potravín
A100: 10100 | B100: Spracovanie a konzervovanie mäsa a mäsových produktov
A101: 10110 | B101: Spracovanie a konzervovanie mäsa
A102: 10120 | B102: Spracovanie a konzervovanie hydinového mäsa
A103: 10130 | B103: Spracovanie mäsových a hydinových mäsových výrobkov
A104: 10200 | B104: Spracovanie a konzervovanie rýb, kôrovcov a mäkkýšov
A105: 10200 | B105: Spracovanie a konzervovanie rýb, kôrovcov a mäkkýšov
A106: 10300 | B106: Spracovanie a konzervovanie ovocia a zeleniny
A107: 10310 | B107: Spracovanie a konzervovanie zemiakov
A108: 10320 | B108: Výroba ovocnej a zeleninovej šťavy
A109: 10390 | B109: Iné spracovanie a konzervovanie ovocia a zeleniny
A110: 10400 | B110: Výroba rastlinných a živočíšnych olejov a tukov
A111: 10410 | B111: Výroba olejov a tukov
A112: 10420 | B112: Výroba margarínu a podobných jedlých tukov
A113: 10500 | B113: Výroba mliečnych výrobkov
A114: 10510 | B114: Prevádzka mliekarní a výroba syrov
A115: 10520 | B115: Výroba zmrzliny
A116: 10600 | B116: Výroba mlynských výrobkov, škrobu a škrobových výrobkov
A117: 10610 | B117: Výroba mlynských výrobkov
A118: 10620 | B118: Výroba škrobu a škrobových výrobkov
A119: 10700 | B119: Výroba pečiva a múčnych výrobkov
A120: 10710 | B120: Výroba chleba; výroba čerstvého pečiva a koláčov
A121: 10720 | B121: Výroba suchárov a keksov; výroba trvanlivého pečiva a koláčov
A122: 10730 | B122: Výroba rezancov, cestovín, kuskusu a podobných múčnych výrobkov
A123: 10800 | B123: Výroba ostatných potravinárskych výrobkov
A124: 10810 | B124: Výroba cukru
A125: 10820 | B125: Výroba kakaa, čokolády a cukroviniek
A126: 10830 | B126: Spracovanie čaju a kávy
A127: 10840 | B127: Výroba korenín a chuťových prísad
A128: 10850 | B128: Výroba pripravených pokrmov a jedla
A129: 10860 | B129: Výroba a príprava homogenizovaných a diétnych potravín
A130: 10890 | B130: Výroba ostatných potravinárskych výrobkov i. n.
A131: 10900 | B131: Výroba a príprava krmív pre zvieratá
A132: 10910 | B132: Výroba a príprava krmív pre hospodárske zvieratá
A133: 10920 | B133: Výroba a príprava krmív pre domáce zvieratá
A134: 11000 | B134: Výroba nápojov
A135: 11000 | B135: Výroba nápojov
A136: 11010 | B136: Destilovanie, úprava a miešanie alkoholu
A137: 11020 | B137: Výroba hroznového vína
A138: 11030 | B138: Výroba jablčného vína a iného ovocného vína
A139: 11040 | B139: Výroba iných nedestilovaných kvasených nápojov
A140: 11050 | B140: Výroba piva
A141: 11060 | B141: Výroba sladu
A142: 11070 | B142: Výroba nealkoholických nápojov; produkcia minerálnych vôd a iných fľaškových vôd
A143: 12000 | B143: Výroba tabakových výrobkov
A144: 12000 | B144: Výroba tabakových výrobkov
A145: 12000 | B145: Výroba tabakových výrobkov
A146: 13000 | B146: Výroba textilu
A147: 13100 | B147: Príprava a spriadanie textilných vlákien
A148: 13100 | B148: Príprava a spriadanie textilných vlákien
A149: 13200 | B149: Tkanie textilu
A150: 13200 | B150: Tkanie textilu
A151: 13300 | B151: Konečná úprava textilu
A152: 13300 | B152: Konečná úprava textilu
A153: 13900 | B153: Výroba ostatného textilu
A154: 13910 | B154: Výroba pleteného a háčkovaného textilu
A155: 13920 | B155: Výroba textilných výrobkov okrem odevov
A156: 13921 | B156: Výroba posteľnej bielizne a textilných výrobkov pre domácnosť
A157: 13922 | B157: Výroba bytových doplnkov okrem kobercov
A158: 13929 | B158: Výroba ostatných textilných výrobkov okrem odevov
A159: 13930 | B159: Výroba kobercov a rohoží
A160: 13940 | B160: Výroba povrazov, šnúr, motúzov a sieťovín
A161: 13950 | B161: Výroba netkaného textilu a výrobkov z neho okrem odevov
A162: 13960 | B162: Výroba ostatného technického a pracovného textilu
A163: 13990 | B163: Výroba ostatného textilu i. n.
A164: 14000 | B164: Výroba odevov
A165: 14100 | B165: Výroba odevov okrem kožušinových odevov
A166: 14110 | B166: Výroba kožených odevov
A167: 14120 | B167: Výroba pracovných odevov
A168: 14130 | B168: Výroba ostatného vrchného ošatenia
A169: 14140 | B169: Výroba spodnej bielizne
A170: 14190 | B170: Výroba ostatných odevov a doplnkov
A171: 14200 | B171: Výroba kožušinových výrobkov
A172: 14200 | B172: Výroba kožušinových výrobkov
A173: 14300 | B173: Výroba pletených a háčkovaných odevov
A174: 14310 | B174: Výroba pletených a háčkovaných pančúch
A175: 14390 | B175: Výroba ostatných pletených a háčkovaných odevov
A176: 15000 | B176: Výroba kože a kožených výrobkov
A177: 15100 | B177: Činenie a apretovanie kože; výroba kufrov, kabeliek, sediel a popruhov; úprava a farbenie kože
A178: 15110 | B178: Činenie a apretovanie kože; úprava a farbenie kožušín
A179: 15120 | B179: Výroba kufrov, kabeliek a podobných výrobkov, sediel a popruhov
A180: 15200 | B180: Výroba obuvi
A181: 15200 | B181: Výroba obuvi
A182: 16000 | B182: Spracovanie dreva a výroba výrobkov z dreva a korku okrem nábytku; výroba predmetov zo slamy a prúteného materiálu
A183: 16100 | B183: Pilovanie a hobľovanie dreva
A184: 16100 | B184: Pilovanie a hobľovanie dreva
A185: 16200 | B185: Výroba výrobkov z dreva, korku, slamy a prúteného materiálu
A186: 16210 | B186: Výroba dosiek a drevených panelov
A187: 16220 | B187: Výroba podlahových parkiet
A188: 16230 | B188: Výroba ostatná stavebnostolárska a tesárska
A189: 16231 | B189: Výroba stavebnostolárska a tesárska
A190: 16232 | B190: Výroba prvkov na montované stavby
A191: 16239 | B191: Výroba ostatná stavebnostolárska a tesárska i. n.
A192: 16240 | B192: Výroba drevených kontajnerov
A193: 16290 | B193: Výroba ostatných výrobkov z dreva; výroba výrobkov z korku, slamy a prúteného materiálu
A194: 17000 | B194: Výroba papiera a papierových výrobkov
A195: 17100 | B195: Výroba celulózy, papiera a lepenky
A196: 17110 | B196: Výroba celulózy
A197: 17120 | B197: Výroba papiera a lepenky
A198: 17200 | B198: Výroba výrobkov z papiera a lepenky
A199: 17210 | B199: Výroba vlnitého papiera a lepenky a škatúľ z papiera a lepenky
A200: 17220 | B200: Výroba výrobkov pre domácnosť, hygienické a toaletné výrobky
... 845 more rows

Sheet ciselniky
A1: majetok | B1: katA
A2: do 350 tis. eur vrátane | B2: a1
A3: nad 350 tis. eur do 4 mil. eur vrátane | B3: a2
A4: nad 4 mil. eur | B4: a3
A6: obrat | B6: katO
A7: do 700 tis. eur vrátane | B7: o1
A8: nad 700 tis. eur do 8 mil. eur vrátane | B8: o2
A9: nad 8 mil. eur | B9: o3
A11: UZ | B11: AccountingUnitSize
A12: UC MUJ | B12: 0
A13: UC POD - malý | B13: 1
A14: UC POD - velký | B14: 2
A16: Kraj | B16: Kraj
A17: Bratislavský | B17: 1
A18: Trnavský | B18: 2
A19: Trenčiansky | B19: 3
A20: Nitriansky | B20: 4
A21: Žilinský | B21: 5
A22: Banskobystrický | B22: 6
A23: Prešovský | B23: 7
A24: Košický | B24: 8
A26: Právna forma | B26: LegalformCodeResSK
A27: Verejná obchodná spoločnosť | B27: 111
A28: Spoločnosť s ručením obmedzeným | B28: 112
A29: Komanditná spoločnosť | B29: 113
A30: Akciová spoločnosť | B30: 121
A31: Európske zoskupenie hospodárskych záujmov | B31: 122
A32: Európska spoločnosť | B32: 123
A33: Európske družstvo | B33: 124
A34: Družstvo | B34: 205
A35: Štátny podnik | B35: 301
A36: Zahraničná právnická osoba | B36: 421

Sheet popis ukazovatelov

Sheet vsetky (hidden)
A1: ico | B1: naceres | C1: naceru | D1: naceruz1 | E1: naceru2 | F1: naceru3 | G1: buvery | H1: ziskplus | I1: katA | J1: katO | K1: AccountingUnitSize | L1: LegalformCodeResSK | M1: Kraj | N1: CZA | O1: DOZ_1 | P1: DSKPzOS | Q1: DSKZzOS | R1: DSP1 | S1: DSZ1 | T1: DZA | U1: EBITDA_T | V1: HROA | W1: L2 | X1: L3 | Y1: OA | Z1: P0_EBITDA_T | AA1: PNVHvT | AB1: PPHvT | AC1: PRT | AD1: ROE | AE1: TZ | AF1: UK | AG1: UZA | AH1: VI_Z | AI1: Zavazky | AJ1: Aktiva | AK1: Zasoby | AL1: Obrat | AM1: KPzOS | AN1: KZzOS | AO1: Pohladavky | AP1: Zavazky | AQ1: DlhodobeZavazky | AR1: EBITDA | AS1: HrubyZisk | AT1: KratkodobeCudzieZdroje | AU1: KratkodobyMajetokBezZasob | AV1: KratkodobyMajetok | AW1: P0_EBITDA | AX1: NovoVytvorenaHodnota | AY1: PridanaHodnota | AZ1: PrevadzkovyHV | BA1: VlastneImanie | BB1: CistyZisk | BC1: BilancnyCashFlow | BD1: NakladoveUroky | BE1: HrubyZiskANakladoveUroky | BF1: BankoveUvery
A2: 47470097 | B2: 41209 | C2: 10850 | D2: =LEFT(C2,1) -> 1 | E2: =LEFT(C2,2) -> 10 | F2: =LEFT(C2,3) -> 108 | G2: =BF2<>0 -> FALSE | H2: =AS2>0 -> FALSE | I2: a1 | J2: o1 | K2: 0 | L2: 112 | M2: 3 | N2: 110.19 | O2: 0 | P2: 427.716 | Q2: 56.88 | R2: 449.316 | S2: 540 | T2: 0 | U2: -63.75 | V2: -46.83 | W2: 0.9074 | X2: 0.9074 | Y2: 0.7346 | Z2: -63.75 | AA2: -63.75 | AB2: -60.38 | AC2: -63.75 | AD2: -999999999 | AE2: 999999999 | AF2: -999999999 | AG2: 0 | AH2: -0.0925 | AI2: 30003 | AJ2: 27226 | AK2: 0 | AL2: 20001 | AM2: 23765 | AN2: 3161 | AO2: 24965 | AP2: 30003 | AQ2: 0 | AR2: -12751 | AS2: -12751 | AT2: 30003 | AU2: 27226 | AV2: 27226 | AW2: -12751 | AX2: -12751 | AY2: -12078 | AZ2: -12751 | BA2: -2777 | BB2: -12751 | BC2: -12751 | BD2: 0 | BE2: -12751 | BF2: 0
A3: 17309956 | B3: 77390 | C3: 28290 | D3: =LEFT(C3,1) -> 2 | E3: =LEFT(C3,2) -> 28 | F3: =LEFT(C3,3) -> 282 | G3: =BF3<>0 -> FALSE | H3: =AS3>0 -> FALSE | I3: a1 | J3: o1 | K3: 0 | L3: 112 | M3: 1 | N3: 3.08 | O3: 79.452 | P3: 4.14 | Q3: 5.868 | R3: 32.58 | S3: 39.78 | T3: 0.12 | U3: -34.59 | V3: -9.65 | W3: 15.4093 | X3: 17.4925 | Y3: 0.279 | Z3: -55.05 | AA3: -46.37 | AB3: 60.25 | AC3: -29.76 | AD3: -9.96 | AE3: 999999999 | AF3: -999999999 | AG3: 0 | AH3: 31.4188 | AI3: 2583 | AJ3: 83738 | AK3: 5160 | AL3: 23370 | AM3: 270 | AN3: 381 | AO3: 2115 | AP3: 2583 | AQ3: 106 | AR3: -8085 | AS3: -8085 | AT3: 2477 | AU3: 38169 | AV3: 43329 | AW3: -12866 | AX3: -10837 | AY3: 14082 | AZ3: -6957 | BA3: 81155 | BB3: -8085 | BC3: -8085 | BD3: 0 | BE3: -8085 | BF3: 0
A4: 44649487 | B4: 52100 | C4: 52240 | D4: 5 | E4: 52 | F4: 522 | G4: FALSE | H4: TRUE | I4: a1 | J4: o1 | K4: 0 | L4: 112 | M4: 4 | N4: 157 | O4: 19.044 | P4: 66.384 | Q4: 0.972 | R4: 66.384 | S4: 178.596 | T4: 4.67 | U4: 8.07 | V4: 25.42 | W4: 0.5469 | X4: 0.6564 | Y4: 3.149 | Z4: 8.6 | AA4: 11.38 | AB4: 66.59 | AC4: 8.6 | AD4: 999999999 | AE4: 6.6801 | AF4: 999999999 | AG4: 0 | AH4: -0.363 | AI4: 48137 | AJ4: 30659 | AK4: 5115 | AL4: 96546 | AM4: 17805 | AN4: 262 | AO4: 17805 | AP4: 47902 | AQ4: 1432 | AR4: 7796 | AS4: 7796 | AT4: 46705 | AU4: 25544 | AV4: 30659 | AW4: 8308 | AX4: 10994 | AY4: 64297 | AZ4: 8308 | BA4: -17478 | BB4: 7206 | BC4: 7206 | BD4: 0 | BE4: 7796 | BF4: 0
A5: 46248111 | B5: 43390 | C5: 43120 | D5: 4 | E5: 43 | F5: 431 | G5: FALSE | H5: TRUE | I5: a1 | J5: o1 | K5: 0 | L5: 112 | M5: 4 | N5: 72.2 | O5: 0 | P5: 346.32 | Q5: 8.028 | R5: 346.32 | S5: 638.388 | T5: 23.96 | U5: 86.18 | V5: 12.74 | W5: 0.8764 | X5: 0.8764 | Y5: 0.4071 | Z5: 86.45 | AA5: 41.16 | AB5: 94.01 | AC5: 33.59 | AD5: 35.53 | AE5: 2.2996 | AF5: 16.5055 | AG5: 0 | AH5: 0.3849 | AI5: 62892 | AJ5: 87105 | AK5: 0 | AL5: 35465 | AM5: 34119 | AN5: 791 | AO5: 34119 | AP5: 62892 | AQ5: 20874 | AR5: 30564 | AS5: 11102 | AT5: 42018 | AU5: 36825 | AV5: 36825 | AW5: 30660 | AX5: 14598 | AY5: 33344 | AZ5: 11914 | BA5: 24213 | BB5: 8603 | BC5: 27349 | BD5: 716 | BE5: 11818 | BF5: 0
A6: 47533854 | B6: 73110 | C6: 70220 | D6: 7 | E6: 70 | F6: 702 | G6: FALSE | H6: TRUE | I6: a1 | J6: o1 | K6: 0 | L6: 112 | M6: 1 | N6: 48.45 | O6: 0 | P6: 292.644 | Q6: 45.576 | R6: 350.028 | S6: 318.24 | T6: 18.57 | U6: 47.61 | V6: 13.62 | W6: 1.6673 | X6: 1.6673 | Y6: 0.4996 | Z6: 48.62 | AA6: 23.74 | AB6: 58.39 | AC6: 29.81 | AD6: 19.76 | AE6: 2.4733 | AF6: 18.8589 | AG6: 0 | AH6: 1.0638 | AI6: 95910 | AJ6: 197946 | AK6: 0 | AL6: 98895 | AM6: 80393 | AN6: 12522 | AO6: 96160 | AP6: 87430 | AQ6: 36759 | AR6: 47085 | AS6: 26967 | AT6: 59151 | AU6: 98626 | AV6: 98626 | AW6: 48089 | AX6: 23479 | AY6: 57745 | AZ6: 29481 | BA6: 102036 | BB6: 20170 | BC6: 38778 | BD6: 1510 | BE6: 28477 | BF6: 0
A7: 47706139 | B7: 93290 | C7: 47910 | D7: 4 | E7: 47 | F7: 479 | G7: TRUE | H7: FALSE | I7: a1 | J7: o1 | K7: 0 | L7: 112 | M7: 8 | N7: 122.62 | O7: 7.02 | P7: 59.616 | Q7: 28.188 | R7: 61.596 | S7: 142.848 | T7: 19.95 | U7: -7.58 | V7: -35.29 | W7: 0.4599 | X7: 0.5091 | Y7: 2.5863 | Z7: -7.11 | AA7: -12.68 | AB7: -2.36 | AC7: -13.18 | AD7: -999999999 | AE7: 999999999 | AF7: -999999999 | AG7: 19.98 | AH7: -0.1844 | AI7: 55535 | AJ7: 45290 | AK7: 2290 | AL7: 117136 | AM7: 19407 | AN7: 9182 | AO7: 20047 | AP7: 46484 | AQ7: 9038 | AR7: -8880 | AS7: -15986 | AT7: 46497 | AU7: 21384 | AV7: 23674 | AW7: -8338 | AX7: -14864 | AY7: -2767 | AZ7: -15444 | BA7: -10245 | BB7: -15986 | BC7: -8880 | BD7: 0 | BE7: -15986 | BF7: 9051
A8: 48051551 | B8: 46190 | C8: 64190 | D8: 6 | E8: 64 | F8: 641 | G8: FALSE | H8: FALSE | I8: a1 | J8: o1 | K8: 0 | L8: 112 | M8: 8 | N8: 4.96 | O8: 0 | P8: 44.136 | Q8: 27.324 | R8: 619.452 | S8: 46.44 | T8: 0 | U8: -14.54 | V8: -5.59 | W8: 20.1547 | X8: 20.1547 | Y8: 0.3844 | Z8: 18.45 | AA8: 27.08 | AB8: 27.08 | AC8: -11.66 | AD8: -8.01 | AE8: 999999999 | AF8: -999999999 | AG8: 0 | AH8: 19.1547 | AI8: 323 | AJ8: 6510 | AK8: 0 | AL8: 2503 | AM8: 307 | AN8: 190 | AO8: 4307 | AP8: 323 | AQ8: 0 | AR8: -364 | AS8: -364 | AT8: 323 | AU8: 6510 | AV8: 6510 | AW8: 462 | AX8: 678 | AY8: 678 | AZ8: -292 | BA8: 6187 | BB8: -496 | BC8: -496 | BD8: 0 | BE8: -364 | BF8: 0
A9: 46334971 | B9: 85590 | C9: 46190 | D9: 4 | E9: 46 | F9: 461 | G9: TRUE | H9: TRUE | I9: a1 | J9: o1 | K9: 0 | L9: 112 | M9: 1 | N9: 42.59 | O9: 29.232 | P9: 63.144 | Q9: 17.568 | R9: 63.144 | S9: 24.408 | T9: 0 | U9: 6.18 | V9: 11.46 | W9: 1.3744 | X9: 1.7964 | Y9: 2.2129 | Z9: 5.61 | AA9: 6.54 | AB9: 8.58 | AC9: 5.77 | AD9: 15.77 | AE9: 3.9787 | AF9: 20.8775 | AG9: 27.58 | AH9: 1.3479 | AI9: 35586 | AJ9: 83554 | AK9: 15020 | AL9: 184899 | AM9: 32444 | AN9: 9034 | AO9: 32444 | AP9: 12539 | AQ9: 0 | AR9: 11438 | AS9: 9581 | AT9: 35586 | AU9: 48910 | AV9: 63930 | AW9: 10383 | AX9: 12104 | AY9: 15879 | AZ9: 10675 | BA9: 47968 | BB9: 7569 | BC9: 8944 | BD9: 482 | BE9: 10063 | BF9: 23047
A10: 36755605 | B10: 62090 | C10: 69200 | D10: 6 | E10: 69 | F10: 692 | G10: FALSE | H10: TRUE | I10: a1 | J10: o1 | K10: 0 | L10: 112 | M10: 5 | N10: 18.25 | O10: 0 | P10: 132.516 | Q10: 9.648 | R10: 255.312 | S10: 117.18 | T10: 0 | U10: 22.5 | V10: 12.61 | W10: 5.4785 | X10: 5.4785 | Y10: 0.5606 | Z10: 23.08 | AA10: 23.5 | AB10: 85.46 | AC10: 22.7 | AD10: 12.01 | AE10: 1.8577 | AF10: 999999999 | AG10: 0 | AH10: 4.4785 | AI10: 14050 | AJ10: 76974 | AK10: 0 | AL10: 43153 | AM10: 15886 | AN10: 1160 | AO10: 30606 | AP10: 14050 | AQ10: 0 | AR10: 9712 | AS10: 9712 | AT10: 14050 | AU10: 76974 | AV10: 76974 | AW10: 9961 | AX10: 10144 | AY10: 36881 | AZ10: 9796 | BA10: 62924 | BB10: 7563 | BC10: 7563 | BD10: 0 | BE10: 9712 | BF10: 0
A11: 36328014 | B11: 73200 | C11: 46460 | D11: 4 | E11: 46 | F11: 464 | G11: FALSE | H11: TRUE | I11: a2 | J11: o2 | K11: 0 | L11: 112 | M11: 3 | N11: 92.69 | O11: 41.94 | P11: 31.428 | Q11: 84.06 | R11: 32.256 | S11: 108.9 | T11: 10.88 | U11: 2.61 | V11: 3.29 | W11: 0.6419 | X11: 1.0707 | Y11: 3.0094 | Z11: 3.02 | AA11: 1.64 | AB11: 19.37 | AC11: 1.23 | AD11: 28.54 | AE11: 14.3731 | AF11: 16.5524 | AG11: 0 | AH11: 0.0788 | AI11: 454451 | AJ11: 490290 | AK11: 172017 | AL11: 1475487 | AM11: 128916 | AN11: 344635 | AO11: 132251 | AP11: 446394 | AQ11: 53373 | AR11: 38585 | AS11: 16159 | AT11: 401078 | AU11: 257457 | AV11: 429474 | AW11: 44595 | AX11: 24316 | AY11: 285874 | AZ11: 18260 | BA11: 35839 | BB11: 10231 | BC11: 31618 | BD11: 1039 | BE11: 17198 | BF11: 0
A12: 44653387 | B12: 82990 | C12: 81210 | D12: 8 | E12: 81 | F12: 812 | G12: FALSE | H12: TRUE | I12: a1 | J12: o1 | K12: 0 | L12: 112 | M12: 7 | N12: 35.89 | O12: 0 | P12: 69.804 | Q12: 14.832 | R12: 184.392 | S12: 131.436 | T12: 0.22 | U12: 1.5 | V12: 1.48 | W12: 2.8029 | X12: 2.8029 | Y12: 0.983 | Z12: 2.34 | AA12: 5.16 | AB12: 21.21 | AC12: 2.34 | AD12: 0.46 | AE12: 121.169 | AF12: 999999999 | AG12: 0 | AH12: 1.7856 | AI12: 8603 | AJ12: 23965 | AK12: 0 | AL12: 23559 | AM12: 4569 | AN12: 971 | AO12: 12068 | AP12: 8603 | AQ12: 53 | AR12: 355 | AS12: 355 | AT12: 8550 | AU12: 23965 | AV12: 23965 | AW12: 553 | AX12: 1217 | AY12: 4997 | AZ12: 553 | BA12: 15362 | BB12: 71 | BC12: 71 | BD12: 0 | BE12: 355 | BF12: 0
A13: 47616733 | B13: 46190 | C13: 33110 | D13: 3 | E13: 33 | F13: 331 | G13: TRUE | H13: TRUE | I13: a1 | J13: o1 | K13: 0 | L13: 112 | M13: 6 | N13: 50.94 | O13: 1.08 | P13: 30.204 | Q13: 5.256 | R13: 52.236 | S13: 15.012 | T13: 0 | U13: 14.06 | V13: 38.9 | W13: 1.1485 | X13: 1.1708 | Y13: 3.7781 | Z13: 14.06 | AA13: 10.92 | AB13: 16.13 | AC13: 10.85 | AD13: 62.55 | AE13: 1.1894 | AF13: 19.5554 | AG13: 35.18 | AH13: 0.9627 | AI13: 45318 | AJ13: 88948 | AK13: 1011 | AL13: 336057 | AM13: 28212 | AN13: 4912 | AO13: 48790 | AP13: 14021 | AQ13: 0 | AR13: 47278 | AS13: 34606 | AT13: 45318 | AU13: 52051 | AV13: 53062 | AW13: 47278 | AX13: 36715 | AY13: 54220 | AZ13: 36471 | BA13: 43630 | BB13: 27292 | BC13: 38099 | BD13: 1865 | BE13: 36471 | BF13: 31297
A14: 35868333 | B14: 56101 | C14: 70220 | D14: 7 | E14: 70 | F14: 702 | G14: TRUE | H14: TRUE | I14: a1 | J14: o1 | K14: 0 | L14: 112 | M14: 1 | N14: 131.42 | O14: 5.58 | P14: 153.972 | Q14: 351.288 | R14: 841.536 | S14: 2063.772 | T14: 67.63 | U14: 195.25 | V14: 27.86 | W14: 0.5583 | X14: 0.562 | Y14: 0.1523 | Z14: 199.25 | AA14: 64.56 | AB14: 76.94 | AC14: 183.16 | AD14: 999999999 | AE14: 4.5116 | AF14: 999999999 | AG14: 0 | AH14: -0.2391 | AI14: 366786 | AJ14: 279077 | AK14: 662 | AL14: 42524 | AM14: 18188 | AN14: 41499 | AO14: 99405 | AP14: 243780 | AQ14: 188748 | AR14: 83031 | AS14: 77768 | AT14: 178038 | AU14: 99409 | AV14: 100071 | AW14: 84730 | AX14: 27457 | AY14: 32720 | AZ14: 77890 | BA14: -87709 | BB14: 76035 | BC14: 81298 | BD14: 0 | BE14: 77768 | BF14: 4
A15: 47582430 | B15: 14130 | C15: 43990 | D15: 4 | E15: 43 | F15: 439 | G15: FALSE | H15: FALSE | I15: a1 | J15: o1 | K15: 0 | L15: 112 | M15: 5 | N15: 249.93 | O15: 31.32 | P15: 51.192 | Q15: 16.2 | R15: 51.192 | S15: 191.268 | T15: 7.06 | U15: -30.4 | V15: -131.6 | W15: 0.2566 | X15: 0.4117 | Y15: 4.3279 | Z15: -30.19 | AA15: -29.76 | AB15: 81.71 | AC15: -30.19 | AD15: -999999999 | AE15: 999999999 | AF15: -43523 | AG15: 0 | AH15: -0.5999 | AI15: 165314 | AJ15: 66142 | AK15: 24913 | AL15: 286256 | AM15: 40710 | AN15: 12906 | AO15: 40710 | AP15: 152107 | AQ15: 4673 | AR15: -87046 | AS15: -87048 | AT15: 160641 | AU15: 41229 | AV15: 66142 | AW15: -86434 | AX15: -85204 | AY15: 233927 | AZ15: -86434 | BA15: -99172 | BB15: -87048 | BC15: -87048 | BD15: 2 | BE15: -87046 | BF15: 0
A16: 44310846 | B16: 53200 | C16: 68310 | D16: 6 | E16: 68 | F16: 683 | G16: FALSE | H16: FALSE | I16: a1 | J16: o1 | K16: 0 | L16: 112 | M16: 1 | N16: 93.64 | O16: 0 | P16: 166.608 | Q16: 334.764 | R16: 174.276 | S16: 643.068 | T16: 43.14 | U16: 46.69 | V16: -0.2 | W16: 0.9352 | X16: 0.9352 | Y16: 0.5242 | Z16: 47.62 | AA16: 21.04 | AB16: 60 | AC16: 8.66 | AD16: -3.98 | AE16: 4.6426 | AF16: 0.9513 | AG16: 0 | AH16: 0.0678 | AI16: 41078 | AJ16: 43864 | AK16: 0 | AL16: 22995 | AM16: 10644 | AN16: 21385 | AO16: 11134 | AP16: 41078 | AQ16: 18924 | AR16: 10737 | AS16: -91 | AT16: 22154 | AU16: 20719 | AV16: 20719 | AW16: 10952 | AX16: 4840 | AY16: 13799 | AZ16: 1993 | BA16: 2786 | BB16: -111 | BC16: 8848 | BD16: 1869 | BE16: 1778 | BF16: 0
A17: 48008648 | B17: 46190 | C17: 46900 | D17: 4 | E17: 46 | F17: 469 | G17: FALSE | H17: FALSE | I17: a1 | J17: o1 | K17: 0 | L17: 112 | M17: 1 | N17: 73.8 | O17: 0 | P17: 0 | Q17: 0 | R17: 21.6 | S17: 2753.28 | T17: 0 | U17: -178.4 | V17: -17.21 | W17: 1.3548 | X17: 1.3548 | Y17: 0.0965 | Z17: -178.4 | AA17: 13.6 | AB17: 13.6 | AC17: -178.4 | AD17: -65.73 | AE17: 999999999 | AF17: -999999999 | AG17: 0 | AH17: 0.3548 | AI17: 3824 | AJ17: 5181 | AK17: 0 | AL17: 500 | AM17: 0 | AN17: 0 | AO17: 30 | AP17: 3824 | AQ17: 0 | AR17: -892 | AS17: -892 | AT17: 3824 | AU17: 5181 | AV17: 5181 | AW17: -892 | AX17: 68 | AY17: 68 | AZ17: -892 | BA17: 1357 | BB17: -892 | BC17: -892 | BD17: 0 | BE17: -892 | BF17: 0
A18: 36645028 | B18: 49410 | C18: 73110 | D18: 7 | E18: 73 | F18: 731 | G18: FALSE | H18: TRUE | I18: a1 | J18: o1 | K18: 0 | L18: 112 | M18: 6 | N18: 42.01 | O18: 24.336 | P18: 33.732 | Q18: 8.604 | R18: 37.224 | S18: 55.656 | T18: 19.56 | U18: 11.68 | V18: 16.65 | W18: 1.9951 | X18: 2.8043 | Y18: 2.6855 | Z18: 11 | AA18: 6.92 | AB18: 21.49 | AC18: 6.58 | AD18: 21.97 | AE18: 1.5791 | AF18: 20.2838 | AG18: 0 | AH18: 1.3801 | AI18: 76438 | AJ18: 181932 | AK18: 33044 | AL18: 488596 | AM18: 45801 | AN18: 11706 | AO18: 50545 | AP18: 75584 | AQ18: 35603 | AR18: 57090 | AS18: 30295 | AT18: 40835 | AU18: 81470 | AV18: 114514 | AW18: 53779 | AX18: 33853 | AY18: 105045 | AZ18: 32195 | BA18: 105494 | BB18: 23181 | BC18: 48405 | BD18: 1571 | BE18: 31866 | BF18: 0
A19: 50235435 | B19: 10850 | C19: 56300 | D19: 5 | E19: 56 | F19: 563 | G19: FALSE | H19: FALSE | I19: a1 | J19: o1 | K19: 0 | L19: 112 | M19: 3 | N19: 276.54 | O19: 0 | P19: 71.1 | Q19: 0 | R19: 74.196 | S19: 59.544 | T19: 0 | U19: -140.02 | V19: -335.76 | W19: 0.3615 | X19: 0.3615 | Y19: 2.3979 | Z19: -138.49 | AA19: -136.2 | AB19: -126.4 | AC19: -138.49 | AD19: -999999999 | AE19: 999999999 | AF19: -999999999 | AG19: 0 | AH19: -0.6384 | AI19: 7005 | AJ19: 2533 | AK19: 0 | AL19: 6074 | AM19: 1200 | AN19: 0 | AO19: 1252 | AP19: 1005 | AQ19: 0 | AR19: -8505 | AS19: -8505 | AT19: 7005 | AU19: 2533 | AV19: 2533 | AW19: -8412 | AX19: -8273 | AY19: -7678 | AZ19: -8412 | BA19: -4472 | BB19: -8985 | BC19: -8985 | BD19: 0 | BE19: -8505 | BF19: 0
A20: 48083879 | B20: 66220 | C20: 70220 | D20: 7 | E20: 70 | F20: 702 | G20: FALSE | H20: TRUE | I20: a1 | J20: o1 | K20: 0 | L20: 112 | M20: 2 | N20: 6.87 | O20: 0 | P20: 44.748 | Q20: 1.188 | R20: 73.188 | S20: 8.496 | T20: 0 | U20: 10.47 | V20: 12.05 | W20: 14.5377 | X20: 14.5377 | Y20: 1.151 | Z20: 11.57 | AA20: 12.26 | AB20: 12.26 | AC20: 11.57 | AD20: 11.28 | AE20: 0.6547 | AF20: 999999999 | AG20: 0 | AH20: 13.5377 | AI20: 662 | AJ20: 9624 | AK20: 0 | AL20: 11078 | AM20: 1377 | AN20: 37 | AO20: 2253 | AP20: 262 | AQ20: 0 | AR20: 1160 | AS20: 1160 | AT20: 662 | AU20: 9624 | AV20: 9624 | AW20: 1282 | AX20: 1359 | AY20: 1359 | AZ20: 1282 | BA20: 8962 | BB20: 1011 | BC20: 1011 | BD20: 0 | BE20: 1160 | BF20: 0
A21: 45335842 | B21: 80200 | C21: 80200 | D21: 8 | E21: 80 | F21: 802 | G21: TRUE | H21: FALSE | I21: a1 | J21: o1 | K21: 0 | L21: 112 | M21: 6 | N21: 96.66 | O21: 0.144 | P21: 28.26 | Q21: 41.472 | R21: 45.504 | S21: 153.108 | T21: 41.53 | U21: 12.26 | V21: -0.24 | W21: 0.4002 | X21: 0.4019 | Y21: 1.9545 | Z21: 6.81 | AA21: -1.41 | AB21: 8.97 | AC21: 2.78 | AD21: -26.17 | AE21: 5.2777 | AF21: 0.9509 | AG21: 13.38 | AH21: 0.0344 | AI21: 60647 | AJ21: 62737 | AK21: 60 | AL21: 122625 | AM21: 9637 | AN21: 14133 | AO21: 15508 | AP21: 52158 | AQ21: 26055 | AR21: 15043 | AS21: -155 | AT21: 34592 | AU21: 13845 | AV21: 13905 | AW21: 8359 | AX21: -1741 | AY21: 11009 | AZ21: 3412 | BA21: 2090 | BB21: -547 | BC21: 11491 | BD21: 3160 | BE21: 3005 | BF21: 8396
A22: 48132250 | B22: 70220 | C22: 82990 | D22: 8 | E22: 82 | F22: 829 | G22: TRUE | H22: FALSE | I22: a1 | J22: o1 | K22: 0 | L22: 112 | M22: 5 | N22: 90.33 | O22: 0 | P22: 0 | Q22: 81.108 | R22: 0 | S22: 110.124 | T22: 0 | U22: -1.33 | V22: -1.4 | W22: 1.107 | X22: 1.107 | Y22: 1.053 | Z22: -0.7 | AA22: -0.66 | AB22: 19.31 | AC22: -0.7 | AD22: -14.5 | AE22: 999999999 | AF22: -999999999 | AG22: 0.03 | AH22: 0.107 | AI22: 30220 | AJ22: 33454 | AK22: 0 | AL22: 35230 | AM22: 0 | AN22: 7940 | AO22: 0 | AP22: 10779 | AQ22: 0 | AR22: -469 | AS22: -469 | AT22: 30220 | AU22: 33454 | AV22: 33454 | AW22: -250 | AX22: -234 | AY22: 6803 | AZ22: -250 | BA22: 3234 | BB22: -469 | BC22: -469 | BD22: 0 | BE22: -469 | BF22: 11
A23: 47242060 | B23: 80100 | C23: 80100 | D23: 8 | E23: 80 | F23: 801 | G23: TRUE | H23: FALSE | I23: a1 | J23: o1 | K23: 0 | L23: 112 | M23: 4 | N23: 69.42 | O23: 0 | P23: 33.948 | Q23: 3.564 | R23: 34.164 | S23: 52.164 | T23: 55.8 | U23: -1.94 | V23: -25.15 | W23: 3.277 | X23: 3.277 | Y23: 1.0048 | Z23: -1.02 | AA23: -21.87 | AB23: 81.92 | AC23: -23.56 | AD23: -82.27 | AE23: 999999999 | AF23: -45.228 | AG23: 54.86 | AH23: 0.4403 | AI23: 21820 | AJ23: 31428 | AK23: 0 | AL23: 31581 | AM23: 2980 | AN23: 313 | AO23: 3000 | AP23: 4578 | AQ23: 17539 | AR23: -615 | AS23: -7905 | AT23: 4281 | AU23: 14029 | AV23: 14029 | AW23: -324 | AX23: -6908 | AY23: 25874 | AZ23: -7443 | BA23: 9608 | BB23: -7905 | BC23: -786 | BD23: 171 | BE23: -7734 | BF23: 17242
A24: 44616112 | B24: 56109 | C24: 81220 | D24: 8 | E24: 81 | F24: 812 | G24: FALSE | H24: TRUE | I24: a1 | J24: o1 | K24: 0 | L24: 112 | M24: 5 | N24: 94.09 | O24: 0 | P24: 71.316 | Q24: 281.916 | R24: 96.048 | S24: 283.932 | T24: 0.05 | U24: 0.53 | V24: 0.64 | W24: 1.0633 | X24: 1.0633 | Y24: 1.193 | Z24: 0.64 | AA24: -1.01 | AB24: 0.23 | AC24: 0.64 | AD24: 8.6 | AE24: 185.2797 | AF24: 999999999 | AG24: 0 | AH24: 0.0627 | AI24: 102645 | AJ24: 109086 | AK24: 0 | AL24: 130144 | AM24: 25792 | AN24: 101926 | AO24: 34733 | AP24: 102645 | AQ24: 58 | AR24: 702 | AS24: 702 | AT24: 102587 | AU24: 109086 | AV24: 109086 | AW24: 842 | AX24: -1327 | AY24: 303 | AZ24: 842 | BA24: 6441 | BB24: 554 | BC24: 554 | BD24: 0 | BE24: 702 | BF24: 0
A25: 44688130 | B25: 70220 | C25: 43390 | D25: 4 | E25: 43 | F25: 433 | G25: FALSE | H25: TRUE | I25: a1 | J25: o1 | K25: 0 | L25: 112 | M25: 1 | N25: 12.9 | O25: 0 | P25: 29.448 | Q25: 7.956 | R25: 256.14 | S25: 34.884 | T25: 3.06 | U25: 7.85 | V25: 5.97 | W25: 9.8287 | X25: 9.8297 | Y25: 1.2616 | Z25: 7.82 | AA25: 5.48 | AB25: 31 | AC25: 5.01 | AD25: 4.51 | AE25: 1.7277 | AF25: 16.2357 | AG25: 0 | AH25: 6.7473 | AI25: 27099 | AJ25: 209945 | AK25: 19 | AL25: 264877 | AM25: 21674 | AN25: 5871 | AO25: 188471 | AP25: 25687 | AQ25: 6434 | AR25: 20800 | AS25: 12539 | AT25: 20665 | AU25: 203112 | AV25: 203131 | AW25: 20731 | AX25: 14531 | AY25: 82122 | AZ25: 13293 | BA25: 182846 | BB25: 8247 | BC25: 15685 | BD25: 823 | BE25: 13362 | BF25: 0
A26: 50599569 | B26: 82990 | C26: 49410 | D26: 4 | E26: 49 | F26: 494 | G26: TRUE | H26: TRUE | I26: a1 | J26: o1 | K26: 0 | L26: 112 | M26: 1 | N26: 97.32 | O26: 0 | P26: 3283.956 | Q26: 2977.848 | R26: 3283.956 | S26: 4526.028 | T26: 30.78 | U26: 89.12 | V26: 0.89 | W26: 1.0195 | X26: 1.0195 | Y26: 0.072 | Z26: 90.34 | AA26: 30.24 | AB26: 99.94 | AC26: 20.64 | AD26: 26.35 | AE26: 16.9966 | AF26: 2.7582 | AG26: 6.75 | AH26: 0.0274 | AI26: 336381 | AJ26: 345623 | AK26: 0 | AL26: 24900 | AM26: 227141 | AN26: 205968 | AO26: 227141 | AP26: 313051 | AQ26: 106399 | AR26: 22193 | AS26: 3084 | AT26: 229982 | AU26: 234479 | AV26: 234479 | AW26: 22495 | AX26: 7531 | AY26: 24886 | AZ26: 5140 | BA26: 9242 | BB26: 2436 | BC26: 19791 | BD26: 1754 | BE26: 4838 | BF26: 23330
A27: 48136433 | B27: 46190 | C27: 69200 | D27: 6 | E27: 69 | F27: 692 | G27: FALSE | H27: TRUE | I27: a1 | J27: o1 | K27: 0 | L27: 112 | M27: 1 | N27: 12.19 | O27: 0 | P27: 40.86 | Q27: 8.82 | R27: 40.86 | S27: 22.86 | T27: 0.05 | U27: 9.49 | V27: 18.21 | W27: 6.4076 | X27: 6.4076 | Y27: 1.9191 | Z27: 11.87 | AA27: 11.94 | AB27: 19.09 | AC27: 11.87 | AD27: 16.38 | AE27: 0.8472 | AF27: 999999999 | AG27: 0 | AH27: 7.2013 | AI27: 2741 | AJ27: 22480 | AK27: 0 | AL27: 43142 | AM27: 4899 | AN27: 1057 | AO27: 4899 | AP27: 2741 | AQ27: 13 | AR27: 4095 | AS27: 4095 | AT27: 2728 | AU27: 17480 | AV27: 17480 | AW27: 5123 | AX27: 5152 | AY27: 8240 | AZ27: 5123 | BA27: 19739 | BB27: 3235 | BC27: 3235 | BD27: 0 | BE27: 4095 | BF27: 0
A28: 48250627 | B28: 41209 | C28: 43390 | D28: 4 | E28: 43 | F28: 433 | G28: FALSE | H28: TRUE | I28: a1 | J28: o1 | K28: 0 | L28: 112 | M28: 1 | N28: 92.89 | O28: 0 | P28: 8.64 | Q28: 126.72 | R28: 8.64 | S28: 134.64 | T28: 5.28 | U28: 0.09 | V28: 0.24 | W28: 1.09 | X28: 1.09 | Y28: 2.4833 | Z28: 0.17 | AA28: 0.17 | AB28: 0.86 | AC28: 0.17 | AD28: 2.68 | AE28: 486.8324 | AF28: 999999999 | AG28: 0 | AH28: 0.0764 | AI28: 87143 | AJ28: 93805 | AK28: 0 | AL28: 232953 | AM28: 5596 | AN28: 82006 | AO28: 5596 | AP28: 87143 | AQ28: 4954 | AR28: 227 | AS28: 227 | AT28: 82189 | AU28: 89589 | AV28: 89589 | AW28: 399 | AX28: 399 | AY28: 2021 | AZ28: 399 | BA28: 6662 | BB28: 179 | BC28: 179 | BD28: 0 | BE28: 227 | BF28: 0
A29: 48283801 | B29: 70220 | C29: 70220 | D29: 7 | E29: 70 | F29: 702 | G29: FALSE | H29: TRUE | I29: a1 | J29: o1 | K29: 0 | L29: 112 | M29: 1 | N29: 3.66 | O29: 7.236 | P29: 9.432 | Q29: 0 | R29: 9.432 | S29: 9.072 | T29: 0 | U29: 1.04 | V29: 1.51 | W29: 26.4666 | X29: 27.2666 | Y29: 1.4533 | Z29: 1.04 | AA29: -2.05 | AB29: 75.55 | AC29: 1.04 | AD29: 1.24 | AE29: 3.0612 | AF29: 999999999 | AG29: 0 | AH29: 26.2666 | AI29: 150 | AJ29: 4090 | AK29: 120 | AL29: 5944 | AM29: 156 | AN29: 0 | AO29: 156 | AP29: 150 | AQ29: 0 | AR29: 62 | AS29: 62 | AT29: 150 | AU29: 3970 | AV29: 4090 | AW29: 62 | AX29: -122 | AY29: 4491 | AZ29: 62 | BA29: 3940 | BB29: 49 | BC29: 49 | BD29: 0 | BE29: 62 | BF29: 0
A30: 48176681 | B30: 82920 | C30: 47810 | D30: 4 | E30: 47 | F30: 478 | G30: FALSE | H30: TRUE | I30: a1 | J30: o1 | K30: 0 | L30: 112 | M30: 4 | N30: 10.9 | O30: 0 | P30: 77.364 | Q30: 57.636 | R30: 77.364 | S30: 76.752 | T30: 0 | U30: 25.25 | V30: 12.91 | W30: 9.1692 | X30: 9.1692 | Y30: 0.5114 | Z30: 25.72 | AA30: 25.89 | AB30: 25.89 | AC30: 25.72 | AD30: 11.45 | AE30: 1.0687 | AF30: 999999999 | AG30: 0 | AH30: 8.1692 | AI30: 3994 | AJ30: 36622 | AK30: 0 | AL30: 18730 | AM30: 4026 | AN30: 3000 | AO30: 4026 | AP30: 3994 | AQ30: 0 | AR30: 4730 | AS30: 4730 | AT30: 3994 | AU30: 36622 | AV30: 36622 | AW30: 4818 | AX30: 4851 | AY30: 4851 | AZ30: 4818 | BA30: 32628 | BB30: 3737 | BC30: 3737 | BD30: 0 | BE30: 4730 | BF30: 0
A31: 48246140 | B31: 45200 | C31: 71200 | D31: 7 | E31: 71 | F31: 712 | G31: FALSE | H31: TRUE | I31: a2 | J31: o1 | K31: 0 | L31: 112 | M31: 5 | N31: 11.74 | O31: 4.176 | P31: 11.736 | Q31: 9.144 | R31: 11.988 | S31: 56.628 | T31: 0.13 | U31: 20.27 | V31: 3.82 | W31: 0.3306 | X31: 0.4057 | Y31: 0.7462 | Z31: 20.45 | AA31: 4.47 | AB31: 28.37 | AC31: 5.3 | AD31: 3.35 | AE31: 0.8228 | AF31: 999999999 | AG31: 0 | AH31: 7.5178 | AI31: 43478 | AJ31: 370337 | AK31: 3225 | AL31: 276369 | AM31: 9036 | AN31: 7032 | AO31: 9220 | AP31: 43478 | AQ31: 516 | AR31: 56041 | AS31: 14174 | AT31: 42962 | AU31: 14207 | AV31: 17432 | AW31: 56520 | AX31: 12373 | AY31: 78411 | AZ31: 14653 | BA31: 326859 | BB31: 10973 | BC31: 52840 | BD31: 0 | BE31: 14174 | BF31: 0
A32: 36274763 | B32: 46180 | C32: 68200 | D32: 6 | E32: 68 | F32: 682 | G32: FALSE | H32: TRUE | I32: a1 | J32: o1 | K32: 0 | L32: 112 | M32: 4 | N32: 86.64 | O32: 0 | P32: 0 | Q32: 351.468 | R32: 0 | S32: 356.94 | T32: 0 | U32: 2.36 | V32: 2.06 | W32: 1.1541 | X32: 1.1541 | Y32: 0.8737 | Z32: 2.36 | AA32: 2.36 | AB32: 2.36 | AC32: 2.36 | AD32: 12.21 | AE32: 53.0916 | AF32: 999999999 | AG32: 0 | AH32: 0.1541 | AI32: 46349 | AJ32: 53494 | AK32: 0 | AL32: 46742 | AM32: 0 | AN32: 45637 | AO32: 0 | AP32: 46349 | AQ32: 0 | AR32: 1105 | AS32: 1105 | AT32: 46349 | AU32: 53494 | AV32: 53494 | AW32: 1105 | AX32: 1105 | AY32: 1105 | AZ32: 1105 | BA32: 7145 | BB32: 873 | BC32: 873 | BD32: 0 | BE32: 1105 | BF32: 0
A33: 44408773 | B33: 47990 | C33: 68200 | D33: 6 | E33: 68 | F33: 682 | G33: FALSE | H33: TRUE | I33: a1 | J33: o1 | K33: 0 | L33: 112 | M33: 6 | N33: 96.83 | O33: 110.088 | P33: 146.124 | Q33: 116.496 | R33: 147.06 | S33: 758.484 | T33: 0.09 | U33: 2.32 | V33: 0.59 | W33: 0.3001 | X33: 0.4451 | Y33: 0.4587 | Z33: 2.91 | AA33: 3.95 | AB33: 13.89 | AC33: 1.53 | AD33: 5.23 | AE33: 152.7101 | AF33: 999999999 | AG33: 0 | AH33: 0.0326 | AI33: 196538 | AJ33: 202961 | AK33: 28476 | AL33: 93118 | AM33: 37798 | AN33: 30135 | AO33: 38042 | AP33: 196198 | AQ33: 184 | AR33: 2164 | AS33: 1213 | AT33: 196354 | AU33: 58929 | AV33: 87405 | AW33: 2716 | AX33: 3681 | AY33: 12940 | AZ33: 1429 | BA33: 6423 | BB33: 336 | BC33: 1287 | BD33: 0 | BE33: 1213 | BF33: 0
A34: 44970943 | B34: 70220 | C34: 69200 | D34: 6 | E34: 69 | F34: 692 | G34: FALSE | H34: TRUE | I34: a1 | J34: o1 | K34: 0 | L34: 112 | M34: 1 | N34: 2.44 | O34: 0 | P34: 37.584 | Q34: 0.504 | R34: 336.456 | S34: 27.792 | T34: 0 | U34: 32.77 | V34: 10.38 | W34: 30.2819 | X34: 30.2819 | Y34: 0.3168 | Z34: 35.21 | AA34: 38.22 | AB34: 38.22 | AC34: 35.21 | AD34: 8.2 | AE34: 0.3057 | AF34: 999999999 | AG34: 0 | AH34: 39.8796 | AI34: 266 | AJ34: 10874 | AK34: 0 | AL34: 3445 | AM34: 360 | AN34: 5 | AO34: 3220 | AP34: 266 | AQ34: 0 | AR34: 1129 | AS34: 1129 | AT34: 266 | AU34: 8055 | AV34: 8055 | AW34: 1213 | AX34: 1317 | AY34: 1317 | AZ34: 1213 | BA34: 10608 | BB34: 870 | BC34: 870 | BD34: 0 | BE34: 1129 | BF34: 0
A35: 36431532 | B35: 70220 | C35: 69200 | D35: 6 | E35: 69 | F35: 692 | G35: FALSE | H35: FALSE | I35: a1 | J35: o1 | K35: 0 | L35: 112 | M35: 5 | N35: 92.89 | O35: 0 | P35: 89.568 | Q35: 190.548 | R35: 1192.284 | S35: 20790 | T35: 0 | U35: -1352.98 | V35: -27.63 | W35: 0.0743 | X35: 0.0743 | Y35: 0.016 | Z35: -1348.17 | AA35: -1673.39 | AB35: -1308.62 | AC35: -1712.94 | AD35: -388.64 | AE35: 999999999 | AF35: -999999999 | AG35: 0 | AH35: 0.0765 | AI35: 104412 | AJ35: 112403 | AK35: 0 | AL35: 1808 | AM35: 450 | AN35: 957 | AO35: 5988 | AP35: 104412 | AQ35: 0 | AR35: -24462 | AS35: -31057 | AT35: 104412 | AU35: 7764 | AV35: 7764 | AW35: -24375 | AX35: -30255 | AY35: -23660 | AZ35: -30970 | BA35: 7991 | BB35: -31057 | BC35: -24462 | BD35: 0 | BE35: -31057 | BF35: 0
A36: 48085596 | B36: 47990 | C36: 46900 | D36: 4 | E36: 46 | F36: 469 | G36: FALSE | H36: FALSE | I36: a1 | J36: o1 | K36: 0 | L36: 112 | M36: 4 | N36: 92.97 | O36: 73.944 | P36: 65.304 | Q36: 72.144 | R36: 78.192 | S36: 195.624 | T36: 0 | U36: -0.41 | V36: -0.94 | W36: 0.5849 | X36: 0.963 | Y36: 1.7108 | Z36: 0.22 | AA36: 0.13 | AB36: 3.35 | AC36: 0.09 | AD36: -13.41 | AE36: 999999999 | AF36: -999999999 | AG36: 0 | AH36: 0.0756 | AI36: 159465 | AJ36: 171522 | AK36: 60281 | AL36: 293450 | AM36: 53259 | AN36: 58813 | AO36: 63764 | AP36: 159465 | AQ36: 0 | AR36: -1232 | AS36: -1618 | AT36: 159465 | AU36: 93287 | AV36: 153568 | AW36: 662 | AX36: 382 | AY36: 9853 | AZ36: 276 | BA36: 12057 | BB36: -1618 | BC36: -1232 | BD36: 0 | BE36: -1618 | BF36: 0
A37: 50056743 | B37: 47990 | C37: 47990 | D37: 4 | E37: 47 | F37: 479 | G37: TRUE | H37: TRUE | I37: a1 | J37: o1 | K37: 0 | L37: 112 | M37: 8 | N37: 63.13 | O37: 0 | P37: 30.528 | Q37: 32.58 | R37: 225.648 | S37: 65.016 | T37: 21.84 | U37: 8.65 | V37: 4.28 | W37: 2.4215 | X37: 2.4215 | Y37: 1.3934 | Z37: 10.35 | AA37: 10.39 | AB37: 59.98 | AC37: 10.35 | AD37: 9.19 | AE37: 18.6369 | AF37: 1.5515 | AG37: 35.68 | AH37: 0.5838 | AI37: 19867 | AJ37: 31466 | AK37: 0 | AL37: 43845 | AM37: 3720 | AN37: 3970 | AO37: 27486 | AP37: 7921 | AQ37: 6873 | AR37: 3795 | AS37: 1349 | AT37: 12994 | AU37: 31466 | AV37: 31466 | AW37: 4542 | AX37: 4557 | AY37: 26301 | AZ37: 4542 | BA37: 11599 | BB37: 1066 | BC37: 1066 | BD37: 2446 | BE37: 3795 | BF37: 11229
A38: 36698482 | B38: 64920 | C38: 68200 | D38: 6 | E38: 68 | F38: 682 | G38: FALSE | H38: TRUE | I38: a3 | J38: o1 | K38: 0 | L38: 112 | M38: 3 | N38: 83.6 | O38: 0 | P38: 671.904 | Q38: 11.484 | R38: 8996.868 | S38: 20384.928 | T38: 83.1 | U38: 49.23 | V38: 0.04 | W38: 5.6284 | X38: 5.6284 | Y38: 0.0147 | Z38: 50.49 | AA38: 4.77 | AB38: 51.26 | AC38: 4 | AD38: 0.24 | AE38: 115.0012 | AF38: 999999999 | AG38: 0 | AH38: 0.196 | AI38: 4517018 | AJ38: 5402635 | AK38: 0 | AL38: 79771 | AM38: 148892 | AN38: 2548 | AO38: 1993588 | AP38: 4517018 | AQ38: 4489889 | AR38: 39278 | AS38: 2197 | AT38: 27129 | AU38: 152693 | AV38: 152693 | AW38: 40279 | AX38: 3811 | AY38: 40892 | AZ38: 3198 | BA38: 885617 | BB38: 2197 | BC38: 39278 | BD38: 0 | BE38: 2197 | BF38: 0
A39: 47846470 | B39: 49410 | C39: 82990 | D39: 8 | E39: 82 | F39: 829 | G39: FALSE | H39: TRUE | I39: a2 | J39: o2 | K39: 0 | L39: 112 | M39: 7 | N39: 38.81 | O39: 4.536 | P39: 59.112 | Q39: 10.908 | R39: 62.604 | S39: 42.012 | T39: 0.03 | U39: 18.69 | V39: 57.59 | W39: 2.1222 | X39: 2.2293 | Y39: 3.2707 | Z39: 18.75 | AA39: 17.8 | AB39: 21.23 | AC39: 17.73 | AD39: 74.27 | AE39: 0.7958 | AF39: 262.1933 | AG39: 0 | AH39: 1.5763 | AI39: 169341 | AJ39: 436286 | AK39: 18120 | AL39: 1426984 | AM39: 234398 | AN39: 43251 | AO39: 248230 | AP39: 166573 | AQ39: 150 | AR39: 266761 | AS39: 251268 | AT39: 169191 | AU39: 359065 | AV39: 377185 | AW39: 267633 | AX39: 254050 | AY39: 303087 | AZ39: 253102 | BA39: 266945 | BB39: 198262 | BC39: 212793 | BD39: 962 | BE39: 252230 | BF39: 0
A40: 48277215 | B40: 90020 | C40: 96090 | D40: 9 | E40: 96 | F40: 960 | G40: FALSE | H40: TRUE | I40: a1 | J40: o1 | K40: 0 | L40: 112 | M40: 6 | N40: 153.96 | O40: 0 | P40: 33.336 | Q40: 3.276 | R40: 33.336 | S40: 51.912 | T40: 0.01 | U40: 0.16 | V40: 1.8 | W40: 0.6495 | X40: 0.6495 | Y40: 10.6755 | Z40: 0.19 | AA40: 0.2 | AB40: 0.2 | AC40: 0.19 | AD40: 999999999 | AE40: 108.0385 | AF40: 999999999 | AG40: 0 | AH40: -0.3504 | AI40: 44836 | AJ40: 29121 | AK40: 0 | AL40: 310884 | AM40: 28799 | AN40: 2843 | AO40: 28799 | AP40: 44836 | AQ40: 3 | AR40: 525 | AS40: 525 | AT40: 44833 | AU40: 29121 | AV40: 29121 | AW40: 598 | AX40: 628 | AY40: 628 | AZ40: 598 | BA40: -15715 | BB40: 415 | BC40: 415 | BD40: 0 | BE40: 525 | BF40: 0
A41: 35968389 | B41: 46190 | C41: 33120 | D41: 3 | E41: 33 | F41: 331 | G41: FALSE | H41: TRUE | I41: a1 | J41: o1 | K41: 0 | L41: 112 | M41: 1 | N41: 79.62 | O41: 536.436 | P41: 479.556 | Q41: 809.136 | R41: 493.92 | S41: 922.428 | T41: 0 | U41: 41.7 | V41: 12.28 | W41: 0.6743 | X41: 1.2559 | Y41: 0.3107 | Z41: 47.58 | AA41: 49.19 | AB41: 86.73 | AC41: 47.58 | AD41: 60.29 | AE41: 6.4832 | AF41: 19.1377 | AG41: 0 | AH41: 0.2558 | AI41: 23048 | AJ41: 28944 | AK41: 13404 | AL41: 8995 | AM41: 11983 | AN41: 20218 | AO41: 12342 | AP41: 23048 | AQ41: 2 | AR41: 3751 | AS41: 3555 | AT41: 23046 | AU41: 15540 | AV41: 28944 | AW41: 4280 | AX41: 4425 | AY41: 7802 | AZ41: 4280 | BA41: 5896 | BB41: 3555 | BC41: 3555 | BD41: 196 | BE41: 3751 | BF41: 0
A42: 36204030 | B42: 46730 | C42: 16100 | D42: 1 | E42: 16 | F42: 161 | G42: FALSE | H42: TRUE | I42: a1 | J42: o1 | K42: 0 | L42: 112 | M42: 8 | N42: 106.46 | O42: 0 | P42: 25.776 | Q42: 32.4 | R42: 25.776 | S42: 43.488 | T42: 0 | U42: 1.46 | V42: 12.93 | W42: 0.9392 | X42: 0.9392 | Y42: 8.8086 | Z42: 1.83 | AA42: 1.84 | AB42: 1.84 | AC42: 1.83 | AD42: 999999999 | AE42: 10.4779 | AF42: 999999999 | AG42: 0 | AH42: -0.0607 | AI42: 4034 | AJ42: 3789 | AK42: 0 | AL42: 33376 | AM42: 2393 | AN42: 3005 | AO42: 2393 | AP42: 4034 | AQ42: 0 | AR42: 490 | AS42: 490 | AT42: 4034 | AU42: 3789 | AV42: 3789 | AW42: 612 | AX42: 616 | AY42: 616 | AZ42: 612 | BA42: -245 | BB42: 385 | BC42: 385 | BD42: 0 | BE42: 490 | BF42: 0
A43: 48197131 | B43: 46190 | C43: 61200 | D43: 6 | E43: 61 | F43: 612 | G43: FALSE | H43: TRUE | I43: a1 | J43: o1 | K43: 0 | L43: 112 | M43: 2 | N43: 12.38 | O43: 0 | P43: 14.148 | Q43: 36.468 | R43: 208.152 | S43: 41.832 | T43: 0 | U43: 33.56 | V43: 35.77 | W43: 8.0741 | X43: 8.0741 | Y43: 1.0658 | Z43: 33.56 | AA43: 34.42 | AB43: 34.42 | AC43: 33.56 | AD43: 32.14 | AE43: 0.4397 | AF43: 999999999 | AG43: 0 | AH43: 7.0741 | AI43: 5270 | AJ43: 42551 | AK43: 0 | AL43: 45352 | AM43: 1786 | AN43: 4598 | AO43: 26224 | AP43: 5270 | AQ43: 0 | AR43: 15221 | AS43: 15221 | AT43: 5270 | AU43: 42551 | AV43: 42551 | AW43: 15221 | AX43: 15611 | AY43: 15611 | AZ43: 15221 | BA43: 37281 | BB43: 11983 | BC43: 11983 | BD43: 0 | BE43: 15221 | BF43: 0
A44: 45304386 | B44: 46190 | C44: 35110 | D44: 3 | E44: 35 | F44: 351 | G44: TRUE | H44: TRUE | I44: a2 | J44: o1 | K44: 0 | L44: 112 | M44: 1 | N44: 77.04 | O44: 0 | P44: 45.216 | Q44: 2.412 | R44: 45.504 | S44: 229.608 | T44: 76.79 | U44: 92.26 | V44: 12.68 | W44: 51.1467 | X44: 51.1467 | Y44: 0.241 | Z44: 92.36 | AA44: 62.47 | AB44: 91.88 | AC44: 62.94 | AD44: 55.02 | AE44: 3.9058 | AF44: 6.1456 | AG44: 61.66 | AH44: 0.298 | AI44: 1490794 | AJ44: 1935064 | AK44: 0 | AL44: 466481 | AM44: 58627 | AN44: 3130 | AO44: 59000 | AP44: 297550 | AQ44: 1486045 | AR44: 430391 | AS44: 245467 | AT44: 4749 | AU44: 242896 | AV44: 242896 | AW44: 430847 | AX44: 291426 | AY44: 428646 | AZ44: 293627 | BA44: 444270 | BB44: 244465 | BC44: 381685 | BD44: 47704 | BE44: 293171 | BF44: 1193244
A45: 36365220 | B45: 46190 | C45: 85590 | D45: 8 | E45: 85 | F45: 855 | G45: FALSE | H45: TRUE | I45: a1 | J45: o1 | K45: 0 | L45: 112 | M45: 1 | N45: 3.65 | O45: 0 | P45: 360 | Q45: 1.656 | R45: 360 | S45: 23.508 | T45: 0.12 | U45: 91.68 | V45: 51.3 | W45: 28.2876 | X45: 28.2876 | Y45: 0.5596 | Z45: 92.81 | AA45: 92.81 | AB45: 92.81 | AC45: 92.81 | AD45: 49.85 | AE45: 0.0761 | AF45: 999999999 | AG45: 0 | AH45: 26.3376 | AI45: 536 | AJ45: 14653 | AK45: 0 | AL45: 8200 | AM45: 8200 | AN45: 38 | AO45: 8200 | AP45: 536 | AQ45: 18 | AR45: 7518 | AS45: 7518 | AT45: 518 | AU45: 14653 | AV45: 14653 | AW45: 7611 | AX45: 7611 | AY45: 7611 | AZ45: 7611 | BA45: 14117 | BB45: 7038 | BC45: 7038 | BD45: 0 | BE45: 7518 | BF45: 0
A46: 44452853 | B46: 96040 | C46: 47220 | D46: 4 | E46: 47 | F46: 472 | G46: FALSE | H46: FALSE | I46: a1 | J46: o1 | K46: 0 | L46: 112 | M46: 3 | N46: 22.07 | O46: 0 | P46: 0 | Q46: 10.296 | R46: 0 | S46: 33.264 | T46: 0 | U46: -0.47 | V46: -1.12 | W46: 4.5308 | X46: 4.5308 | Y46: 2.3885 | Z46: 1.56 | AA46: 1.56 | AB46: 44.02 | AC46: 1.56 | AD46: -1.44 | AE46: 999999999 | AF46: -999999999 | AG46: 0 | AH46: 3.5308 | AI46: 2624 | AJ46: 11889 | AK46: 0 | AL46: 28398 | AM46: 0 | AN46: 814 | AO46: 0 | AP46: 2624 | AQ46: 0 | AR46: -134 | AS46: -134 | AT46: 2624 | AU46: 11889 | AV46: 11889 | AW46: 444 | AX46: 444 | AY46: 12502 | AZ46: 444 | BA46: 9265 | BB46: -134 | BC46: -134 | BD46: 0 | BE46: -134 | BF46: 0
A47: 46754580 | B47: 82990 | C47: 62090 | D47: 6 | E47: 62 | F47: 620 | G47: TRUE | H47: TRUE | I47: a1 | J47: o1 | K47: 0 | L47: 112 | M47: 1 | N47: 53.21 | O47: 0 | P47: 164.088 | Q47: 23.4 | R47: 244.908 | S47: 26.136 | T47: 43.02 | U47: 15.89 | V47: 18.06 | W47: 9.6949 | X47: 9.6949 | Y47: 1.4056 | Z47: 16.24 | AA47: 15.88 | AB47: 17.28 | AC47: 15.9 | AD47: 30.4 | AE47: 3.6175 | AF47: 5.7719 | AG47: 43 | AH47: 0.879 | AI47: 70637 | AJ47: 132727 | AK47: 0 | AL47: 186566 | AM47: 85046 | AN47: 12143 | AO47: 126938 | AP47: 13557 | AQ47: 57103 | AR47: 29654 | AS47: 23979 | AT47: 13534 | AU47: 131211 | AV47: 131211 | AW47: 30316 | AX47: 29639 | AY47: 32243 | AZ47: 29666 | BA47: 62090 | BB47: 18876 | BC47: 19526 | BD47: 5025 | BE47: 29004 | BF47: 57080
A48: 46691103 | B48: 82990 | C48: 70220 | D48: 7 | E48: 70 | F48: 702 | G48: FALSE | H48: FALSE | I48: a1 | J48: o1 | K48: 0 | L48: 112 | M48: 1 | N48: 2.78 | O48: 0 | P48: 360 | Q48: 308.556 | R48: 360 | S48: 320.904 | T48: 0 | U48: -70.14 | V48: -2.19 | W48: 35.875 | X48: 35.875 | Y48: 0.0312 | Z48: -53.85 | AA48: -53.85 | AB48: -53.85 | AC48: -53.85 | AD48: -2.36 | AE48: 999999999 | AF48: -999999999 | AG48: 0 | AH48: 34.875 | AI48: 624 | AJ48: 22386 | AK48: 0 | AL48: 700 | AM48: 700 | AN48: 600 | AO48: 700 | AP48: 624 | AQ48: 0 | AR48: -491 | AS48: -491 | AT48: 624 | AU48: 22386 | AV48: 22386 | AW48: -377 | AX48: -377 | AY48: -377 | AZ48: -377 | BA48: 21762 | BB48: -515 | BC48: -515 | BD48: 0 | BE48: -491 | BF48: 0
A49: 43971075 | B49: 70220 | C49: 70220 | D49: 7 | E49: 70 | F49: 702 | G49: FALSE | H49: TRUE | I49: a1 | J49: o1 | K49: 0 | L49: 112 | M49: 1 | N49: 7.34 | O49: 0 | P49: 198.216 | Q49: 43.092 | R49: 209.124 | S49: 179.568 | T49: 0 | U49: 0.44 | V49: 0.06 | W49: 13.5911 | X49: 13.5911 | Y49: 0.1472 | Z49: 8.86 | AA49: 12.86 | AB49: 12.86 | AC49: 8.86 | AD49: -0.1 | AE49: 999999999 | AF49: 999999999 | AG49: 0 | AH49: 12.6148 | AI49: 675 | AJ49: 9190 | AK49: 0 | AL49: 1353 | AM49: 745 | AN49: 162 | AO49: 786 | AP49: 675 | AQ49: 0 | AR49: 6 | AS49: 6 | AT49: 675 | AU49: 9174 | AV49: 9174 | AW49: 120 | AX49: 174 | AY49: 174 | AZ49: 120 | BA49: 8515 | BB49: -9 | BC49: -9 | BD49: 0 | BE49: 6 | BF49: 0
A50: 48127329 | B50: 70220 | C50: 96090 | D50: 9 | E50: 96 | F50: 960 | G50: TRUE | H50: TRUE | I50: a1 | J50: o1 | K50: 0 | L50: 112 | M50: 6 | N50: 73.28 | O50: 0 | P50: 40.392 | Q50: 0 | R50: 40.392 | S50: 33.192 | T50: 0 | U50: 0.83 | V50: 6.57 | W50: 1.3645 | X50: 1.3645 | Y50: 7.8928 | Z50: 1.12 | AA50: 1.12 | AB50: 1.12 | AC50: 1.12 | AD50: 19.25 | AE50: 14.25 | AF50: 999999999 | AG50: 0.5 | AH50: 0.3645 | AI50: 1026 | AJ50: 1400 | AK50: 0 | AL50: 11050 | AM50: 1240 | AN50: 0 | AO50: 1240 | AP50: 1019 | AQ50: 0 | AR50: 92 | AS50: 92 | AT50: 1026 | AU50: 1400 | AV50: 1400 | AW50: 124 | AX50: 124 | AY50: 124 | AZ50: 124 | BA50: 374 | BB50: 72 | BC50: 72 | BD50: 0 | BE50: 92 | BF50: 7
A51: 45402604 | B51: 10710 | C51: 47240 | D51: 4 | E51: 47 | F51: 472 | G51: FALSE | H51: TRUE | I51: a1 | J51: o1 | K51: 0 | L51: 112 | M51: 2 | N51: 131.69 | O51: 59.796 | P51: 1008.108 | Q51: 1309.572 | R51: 1008.108 | S51: 1424.592 | T51: 0 | U51: 41.9 | V51: 8.67 | W51: 0.7332 | X51: 0.7593 | Y51: 0.2069 | Z51: 36.64 | AA51: 31.44 | AB51: 31.44 | AC51: 43.01 | AD51: 999999999 | AE51: 20.4428 | AF51: 999999999 | AG51: 0 | AH51: -0.2406 | AI51: 54889 | AJ51: 41678 | AK51: 1433 | AL51: 8624 | AM51: 24150 | AN51: 31372 | AO51: 24150 | AP51: 34127 | AQ51: 0 | AR51: 3614 | AS51: 3614 | AT51: 54889 | AU51: 40245 | AV51: 41678 | AW51: 3160 | AX51: 2712 | AY51: 2712 | AZ51: 3710 | BA51: -13211 | BB51: 2685 | BC51: 2685 | BD51: 0 | BE51: 3614 | BF51: 0
A52: 44570465 | B52: 46190 | C52: 46900 | D52: 4 | E52: 46 | F52: 469 | G52: TRUE | H52: TRUE | I52: a1 | J52: o1 | K52: 0 | L52: 112 | M52: 3 | N52: 95.68 | O52: 285.48 | P52: 23.184 | Q52: 60.264 | R52: 23.184 | S52: 329.184 | T52: 69.82 | U52: 3.18 | V52: 0.45 | W52: 0.5352 | X52: 3.6519 | Y52: 1.0161 | Z52: 3.42 | AA52: -6.57 | AB52: -3.36 | AC52: 0.98 | AD52: 6.9 | AE52: 34.4086 | AF52: 2.5222 | AG52: 2.32 | AH52: 0.0451 | AI52: 321446 | AJ52: 335947 | AK52: 270713 | AL52: 341370 | AM52: 21992 | AN52: 57147 | AO52: 21992 | AP52: 312152 | AQ52: 234589 | AR52: 10885 | AS52: 1536 | AT52: 86857 | AU52: 46488 | AV52: 317201 | AW52: 11697 | AX52: -22450 | AY52: -11503 | AZ52: 3357 | BA52: 14501 | BB52: 1002 | BC52: 9342 | BD52: 1009 | BE52: 2545 | BF52: 7823
A53: 45000417 | B53: 25990 | C53: 46900 | D53: 4 | E53: 46 | F53: 469 | G53: FALSE | H53: TRUE | I53: a1 | J53: o1 | K53: 0 | L53: 112 | M53: 2 | N53: 108.58 | O53: 76.14 | P53: 2.808 | Q53: 202.932 | R53: 108.576 | S53: 267.912 | T53: 22.98 | U53: 1.82 | V53: 2.66 | W53: 0.5786 | X53: 0.9392 | Y53: 1.459 | Z53: -0.03 | AA53: 1.96 | AB53: 14.18 | AC53: -0.03 | AD53: 999999999 | AE53: 43.3225 | AF53: 999999999 | AG53: 0 | AH53: -0.079 | AI53: 125722 | AJ53: 115786 | AK53: 35741 | AL53: 168935 | AM53: 1322 | AN53: 95245 | AO53: 50966 | AP53: 125722 | AQ53: 26614 | AR53: 3081 | AS53: 3081 | AT53: 99108 | AU53: 57344 | AV53: 93085 | AW53: -59 | AX53: 3327 | AY53: 23955 | AZ53: -59 | BA53: -9936 | BB53: 2902 | BC53: 2902 | BD53: 0 | BE53: 3081 | BF53: 0
A54: 46819487 | B54: 17290 | C54: 16290 | D54: 1 | E54: 16 | F54: 162 | G54: FALSE | H54: TRUE | I54: a1 | J54: o1 | K54: 0 | L54: 112 | M54: 6 | N54: 30.2 | O54: 0 | P54: 87.336 | Q54: 28.584 | R54: 104.94 | S54: 166.176 | T54: 0 | U54: 52.08 | V54: 34.07 | W54: 3.3105 | X54: 3.3105 | Y54: 0.6543 | Z54: 52.63 | AA54: 52.63 | AB54: 52.63 | AC54: 52.63 | AD54: 40.32 | AE54: 1.0733 | AF54: 999999999 | AG54: 0 | AH54: 2.3105 | AI54: 7552 | AJ54: 25001 | AK54: 0 | AL54: 16359 | AM54: 3970 | AN54: 1300 | AO54: 4770 | AP54: 7552 | AQ54: 0 | AR54: 8520 | AS54: 8520 | AT54: 7552 | AU54: 25001 | AV54: 25001 | AW54: 8610 | AX54: 8610 | AY54: 8610 | AZ54: 8610 | BA54: 17449 | BB54: 7036 | BC54: 7036 | BD54: 0 | BE54: 8520 | BF54: 0
A55: 47145480 | B55: 25620 | C55: 25610 | D55: 2 | E55: 25 | F55: 256 | G55: FALSE | H55: TRUE | I55: a1 | J55: o1 | K55: 0 | L55: 112 | M55: 2 | N55: 66.12 | O55: 0 | P55: 59.472 | Q55: 6.696 | R55: 59.616 | S55: 21.852 | T55: 0.41 | U55: 13.04 | V55: 11.57 | W55: 1.5166 | X55: 1.5166 | Y55: 0.9927 | Z55: 13.21 | AA55: 12.76 | AB55: 37.93 | AC55: 11.82 | AD55: 29.96 | AE55: 5.7359 | AF55: 999999999 | AG55: 0 | AH55: 0.5121 | AI55: 22330 | AJ55: 33767 | AK55: 0 | AL55: 33522 | AM55: 5538 | AN55: 624 | AO55: 5554 | AP55: 2038 | AQ55: 141 | AR55: 4373 | AS55: 3907 | AT55: 22189 | AU55: 33652 | AV55: 33652 | AW55: 4430 | AX55: 4279 | AY55: 12716 | AZ55: 3964 | BA55: 11437 | BB55: 3427 | BC55: 3893 | BD55: 0 | BE55: 3907 | BF55: 0
A56: 47177624 | B56: 43220 | C56: 43220 | D56: 4 | E56: 43 | F56: 432 | G56: FALSE | H56: TRUE | I56: a1 | J56: o1 | K56: 0 | L56: 112 | M56: 2 | N56: 0.8 | O56: 0 | P56: 0 | Q56: 0 | R56: 0 | S56: 4.608 | T56: 0.13 | U56: 5.08 | V56: 3.17 | W56: 149.96 | X56: 149.96 | Y56: 0.6241 | Z56: 5.08 | AA56: 5.08 | AB56: 5.08 | AC56: 5.08 | AD56: 2.52 | AE56: 0.3191 | AF56: 999999999 | AG56: 0 | AH56: 123.9666 | AI56: 30 | AJ56: 3749 | AK56: 0 | AL56: 2340 | AM56: 0 | AN56: 0 | AO56: 0 | AP56: 30 | AQ56: 5 | AR56: 119 | AS56: 119 | AT56: 25 | AU56: 3749 | AV56: 3749 | AW56: 119 | AX56: 119 | AY56: 119 | AZ56: 119 | BA56: 3719 | BB56: 94 | BC56: 94 | BD56: 0 | BE56: 119 | BF56: 0
A57: 48276308 | B57: 70220 | C57: 70220 | D57: 7 | E57: 70 | F57: 702 | G57: FALSE | H57: TRUE | I57: a1 | J57: o1 | K57: 0 | L57: 112 | M57: 7 | N57: 37.91 | O57: 0 | P57: 59.976 | Q57: 0.648 | R57: 59.976 | S57: 139.248 | T57: 0.15 | U57: 25.68 | V57: 24.57 | W57: 2.648 | X57: 2.648 | Y57: 0.9567 | Z57: 25.86 | AA57: 26.84 | AB57: 39.07 | AC57: 25.86 | AD57: 31.05 | AE57: 1.9669 | AF57: 999999999 | AG57: 0 | AH57: 1.6373 | AI57: 25608 | AJ57: 67536 | AK57: 0 | AL57: 64616 | AM57: 10769 | AN57: 120 | AO57: 10769 | AP57: 24995 | AQ57: 104 | AR57: 16599 | AS57: 16599 | AT57: 25504 | AU57: 67536 | AV57: 67536 | AW57: 16711 | AX57: 17345 | AY57: 25250 | AZ57: 16711 | BA57: 41928 | BB57: 13019 | BC57: 13019 | BD57: 0 | BE57: 16599 | BF57: 0
A58: 45409391 | B58: 70220 | C58: 86210 | D58: 8 | E58: 86 | F58: 862 | G58: FALSE | H58: TRUE | I58: a1 | J58: o1 | K58: 0 | L58: 112 | M58: 4 | N58: 44.54 | O58: 0 | P58: 27.576 | Q58: 0.288 | R58: 28.62 | S58: 60.228 | T58: 2.09 | U58: 14.5 | V58: 26.78 | W58: 2.0329 | X58: 2.0329 | Y58: 2.6619 | Z58: 14.64 | AA58: 10.74 | AB58: 88.55 | AC58: 10.23 | AD58: 40.4 | AE58: 1.3036 | AF58: 503.4615 | AG58: 0 | AH58: 1.245 | AI58: 10862 | AJ58: 24386 | AK58: 0 | AL58: 64914 | AM58: 4976 | AN58: 58 | AO58: 5161 | AP58: 10862 | AQ58: 512 | AR58: 9413 | AS58: 6532 | AT58: 10350 | AU58: 21041 | AV58: 21041 | AW58: 9509 | AX58: 6973 | AY58: 57487 | AZ58: 6641 | BA58: 13524 | BB58: 5464 | BC58: 8332 | BD58: 13 | BE58: 6545 | BF58: 0
A59: 36632007 | B59: 46900 | C59: 71129 | D59: 7 | E59: 71 | F59: 711 | G59: TRUE | H59: TRUE | I59: a1 | J59: o1 | K59: 0 | L59: 112 | M59: 6 | N59: 102.31 | O59: 13.68 | P59: 235.044 | Q59: 253.548 | R59: 289.728 | S59: 473.868 | T59: 0 | U59: 4.82 | V59: 3.44 | W59: 0.9384 | X59: 0.9674 | Y59: 0.7771 | Z59: 1.52 | AA59: 1.57 | AB59: 1.97 | AC59: 4.55 | AD59: 999999999 | AE59: 32.0828 | AF59: 999999999 | AG59: 0.01 | AH59: -0.0226 | AI59: 174274 | AJ59: 170326 | AK59: 5042 | AL59: 132374 | AM59: 86429 | AN59: 93237 | AO59: 106544 | AP59: 174245 | AQ59: 0 | AR59: 6392 | AS59: 5872 | AT59: 174274 | AU59: 163551 | AV59: 168593 | AW59: 2025 | AX59: 2088 | AY59: 2608 | AZ59: 6036 | BA59: -3948 | BB59: 4912 | BC59: 5432 | BD59: 0 | BE59: 5872 | BF59: 29
A60: 36836869 | B60: 43320 | C60: 43290 | D60: 4 | E60: 43 | F60: 432 | G60: FALSE | H60: FALSE | I60: a1 | J60: o1 | K60: 0 | L60: 112 | M60: 7 | N60: 2116.26 | O60: 0 | P60: 0 | Q60: 0 | R60: 15.084 | S60: 9305.352 | T60: 23.09 | U60: -20.74 | V60: -16.98 | W60: 0.0477 | X60: 0.0477 | Y60: 0.8187 | Z60: -22.9 | AA60: -41.6 | AB60: 42.35 | AC60: -22.9 | AD60: -999999999 | AE60: 999999999 | AF60: -999999999 | AG60: 0 | AH60: -0.9527 | AI60: 241423 | AJ60: 11408 | AK60: 0 | AL60: 9340 | AM60: 0 | AN60: 0 | AO60: 392 | AP60: 241423 | AQ60: 2635 | AR60: -1938 | AS60: -1938 | AT60: 238788 | AU60: 11408 | AV60: 11408 | AW60: -2139 | AX60: -3886 | AY60: 3956 | AZ60: -2139 | BA60: -230015 | BB60: -1938 | BC60: -1938 | BD60: 0 | BE60: -1938 | BF60: 0
A61: 45667772 | B61: 73110 | C61: 47790 | D61: 4 | E61: 47 | F61: 477 | G61: FALSE | H61: TRUE | I61: a1 | J61: o1 | K61: 0 | L61: 112 | M61: 5 | N61: 57.93 | O61: 23.112 | P61: 49.104 | Q61: 0.216 | R61: 51.048 | S61: 186.876 | T61: 0 | U61: 10.35 | V61: 0.08 | W61: 1.1332 | X61: 1.2571 | Y61: 1.116 | Z61: 10.76 | AA61: 1.67 | AB61: 56.98 | AC61: 2.17 | AD61: -2.19 | AE61: 6.686 | AF61: 1.0434 | AG61: 0 | AH61: 0.726 | AI61: 14803 | AJ61: 25550 | AK61: 1833 | AL61: 28516 | AM61: 3892 | AN61: 18 | AO61: 4046 | AP61: 14803 | AQ61: 0 | AR61: 2954 | AS61: 21 | AT61: 14803 | AU61: 16776 | AV61: 18609 | AW61: 3069 | AX61: 478 | AY61: 16251 | AZ61: 619 | BA61: 10747 | BB61: -236 | BC61: 2214 | BD61: 483 | BE61: 504 | BF61: 0
A62: 50045661 | B62: 62020 | C62: 77330 | D62: 7 | E62: 77 | F62: 773 | G62: TRUE | H62: TRUE | I62: a1 | J62: o1 | K62: 0 | L62: 112 | M62: 4 | N62: 47.68 | O62: 0 | P62: 0 | Q62: 55.98 | R62: 0 | S62: 68.724 | T62: 0 | U62: 20.56 | V62: 31.74 | W62: 1.5304 | X62: 1.5304 | Y62: 2.4501 | Z62: 21.41 | AA62: 13.63 | AB62: 30.35 | AC62: 13.81 | AD62: 47.98 | AE62: 1.0899 | AF62: 999999999 | AG62: 0.05 | AH62: 1.0972 | AI62: 17514 | AJ62: 36732 | AK62: 0 | AL62: 90000 | AM62: 0 | AN62: 14000 | AO62: 0 | AP62: 17182 | AQ62: 0 | AR62: 18506 | AS62: 11660 | AT62: 17514 | AU62: 26805 | AV62: 26805 | AW62: 19275 | AX62: 12267 | AY62: 27317 | AZ62: 12429 | BA62: 19218 | BB62: 9222 | BC62: 16068 | BD62: 0 | BE62: 11660 | BF62: 19
A63: 46313672 | B63: 43120 | C63: 47710 | D63: 4 | E63: 47 | F63: 477 | G63: FALSE | H63: FALSE | I63: a1 | J63: o1 | K63: 0 | L63: 112 | M63: 6 | N63: 83.62 | O63: 95.796 | P63: 0 | Q63: 26.568 | R63: 25.092 | S63: 198.828 | T63: 0 | U63: -6.57 | V63: -10.01 | W63: 0.2201 | X63: 0.7019 | Y63: 1.5138 | Z63: -5.39 | AA63: -3.83 | AB63: 0.94 | AC63: -5.39 | AD63: -61.11 | AE63: 999999999 | AF63: -172.1428 | AG63: 0 | AH63: 0.1958 | AI63: 10124 | AJ63: 12107 | AK63: 4878 | AL63: 18328 | AM63: 0 | AN63: 1354 | AO63: 1279 | AP63: 10124 | AQ63: 0 | AR63: -1205 | AS63: -1212 | AT63: 10124 | AU63: 2229 | AV63: 7107 | AW63: -988 | AX63: -702 | AY63: 173 | AZ63: -988 | BA63: 1983 | BB63: -1212 | BC63: -1212 | BD63: 7 | BE63: -1205 | BF63: 0
A64: 44834411 | B64: 73110 | C64: 69200 | D64: 6 | E64: 69 | F64: 692 | G64: FALSE | H64: TRUE | I64: a1 | J64: o1 | K64: 0 | L64: 112 | M64: 5 | N64: 19.19 | O64: 0 | P64: 11.988 | Q64: 0 | R64: 44.424 | S64: 25.308 | T64: 0 | U64: 16.68 | V64: 45.52 | W64: 5.2109 | X64: 5.2109 | Y64: 2.7285 | Z64: 16.95 | AA64: 25.69 | AB64: 57.53 | AC64: 16.95 | AD64: 41 | AE64: 0.5791 | AF64: 999999999 | AG64: 0 | AH64: 4.2109 | AI64: 2185 | AJ64: 11386 | AK64: 0 | AL64: 31067 | AM64: 1036 | AN64: 0 | AO64: 3836 | AP64: 2185 | AQ64: 0 | AR64: 5184 | AS64: 5184 | AT64: 2185 | AU64: 11386 | AV64: 11386 | AW64: 5267 | AX64: 7984 | AY64: 17873 | AZ64: 5267 | BA64: 9201 | BB64: 3773 | BC64: 3773 | BD64: 0 | BE64: 5184 | BF64: 0
A65: 46474706 | B65: 70220 | C65: 46190 | D65: 4 | E65: 46 | F65: 461 | G65: FALSE | H65: TRUE | I65: a1 | J65: o1 | K65: 0 | L65: 112 | M65: 8 | N65: 2425.85 | O65: 16.02 | P65: 0 | Q65: 0 | R65: 0 | S65: 458.748 | T65: 0 | U65: 4.95 | V65: 94.41 | W65: 0.0062 | X65: 0.0412 | Y65: 19.0355 | Z65: 5.29 | AA65: 4.87 | AB65: 39.37 | AC65: 5.29 | AD65: 999999999 | AE65: 25.6936 | AF65: 999999999 | AG65: 0 | AH65: -0.9587 | AI65: 58633 | AJ65: 2417 | AK65: 2051 | AL65: 46009 | AM65: 0 | AN65: 0 | AO65: 0 | AP65: 58633 | AQ65: 0 | AR65: 2282 | AS65: 2282 | AT65: 58633 | AU65: 366 | AV65: 2417 | AW65: 2437 | AX65: 2241 | AY65: 18116 | AZ65: 2437 | BA65: -56216 | BB65: 2282 | BC65: 2282 | BD65: 0 | BE65: 2282 | BF65: 0
A66: 36825905 | B66: 85590 | C66: 86210 | D66: 8 | E66: 86 | F66: 862 | G66: FALSE | H66: TRUE | I66: a1 | J66: o1 | K66: 0 | L66: 112 | M66: 8 | N66: 13.06 | O66: 0 | P66: 35.604 | Q66: 33.948 | R66: 229.104 | S66: 90.288 | T66: 5.95 | U66: 51.92 | V66: 24.68 | W66: 12.7427 | X66: 12.7427 | Y66: 0.5206 | Z66: 51.86 | AA66: 49.38 | AB66: 70.25 | AC66: 49.22 | AD66: 21.51 | AE66: 0.6254 | AF66: 154.8986 | AG66: 0 | AH66: 6.6548 | AI66: 24104 | AJ66: 184513 | AK66: 0 | AL66: 96072 | AM66: 9510 | AN66: 9068 | AO66: 61144 | AP66: 24104 | AQ66: 10995 | AR66: 49882 | AS66: 45554 | AT66: 13109 | AU66: 167045 | AV66: 167045 | AW66: 49828 | AX66: 47442 | AY66: 67497 | AZ66: 47296 | BA66: 160409 | BB66: 34505 | BC66: 38537 | BD66: 296 | BE66: 45850 | BF66: 0
A67: 36537021 | B67: 68100 | C67: 59120 | D67: =LEFT(C67,1) -> 5 | E67: =LEFT(C67,2) -> 59 | F67: =LEFT(C67,3) -> 591 | G67: =BF67<>0 -> TRUE | H67: =AS67>0 -> TRUE | I67: a1 | J67: o1 | K67: 0 | L67: 112 | M67: 2 | N67: 12.23 | O67: 0 | P67: 74.016 | Q67: 0 | R67: 74.016 | S67: 141.12 | T67: 0 | U67: 81.87 | V67: 0.67 | W67: 2.1235 | X67: 2.1235 | Y67: 0.3096 | Z67: 85.98 | AA67: 6.28 | AB67: 85.98 | AC67: 6.28 | AD67: 0.76 | AE67: 0.4825 | AF67: 999999999 | AG67: 0.09 | AH67: 7.1721 | AI67: 761 | AJ67: 6219 | AK67: 0 | AL67: 1926 | AM67: 396 | AN67: 0 | AO67: 396 | AP67: 755 | AQ67: 0 | AR67: 1577 | AS67: 42 | AT67: 761 | AU67: 1616 | AV67: 1616 | AW67: 1656 | AX67: 121 | AY67: 1656 | AZ67: 121 | BA67: 5458 | BB67: 42 | BC67: 1577 | BD67: 0 | BE67: 42 | BF67: 6
A68: 36483796 | B68: 46900 | C68: 74200 | D68: 7 | E68: 74 | F68: 742 | G68: TRUE | H68: TRUE | I68: a1 | J68: o1 | K68: 0 | L68: 112 | M68: 7 | N68: 123 | O68: 65.232 | P68: 0.036 | Q68: 21.888 | R68: 0.36 | S68: 138.492 | T68: 0.76 | U68: 11.06 | V68: 15.45 | W68: 0.2176 | X68: 0.5872 | Y68: 2.4926 | Z68: 11.67 | AA68: 8.15 | AB68: 51.25 | AC68: 7.68 | AD68: 999999999 | AE68: 5.559 | AF68: 8.1459 | AG68: 19.63 | AH68: -0.187 | AI68: 28835 | AJ68: 23442 | AK68: 10592 | AL68: 58433 | AM68: 10 | AN68: 3554 | AO68: 59 | AP68: 22485 | AQ68: 179 | AR68: 6463 | AS68: 3623 | AT68: 28656 | AU68: 6236 | AV68: 16828 | AW68: 6822 | AX68: 4764 | AY68: 29949 | AZ68: 4489 | BA68: -5393 | BB68: 2854 | BC68: 5187 | BD68: 507 | BE68: 4130 | BF68: 4602
A69: 43832857 | B69: 82990 | C69: 47220 | D69: 4 | E69: 47 | F69: 472 | G69: FALSE | H69: FALSE | I69: a1 | J69: o1 | K69: 0 | L69: 112 | M69: 3 | N69: 65.44 | O69: 207.972 | P69: 12.132 | Q69: 104.58 | R69: 14.904 | S69: 170.64 | T69: 0.04 | U69: 0.92 | V69: -14.03 | W69: 0.1482 | X69: 1.3678 | Y69: 1.3806 | Z69: 2.27 | AA69: -44.1 | AB69: -28.84 | AC69: -8.81 | AD69: -42.77 | AE69: 124.0595 | AF69: -999999999 | AG69: 0 | AH69: 0.528 | AI69: 10421 | AJ69: 15924 | AK69: 12701 | AL69: 21985 | AM69: 741 | AN69: 6387 | AO69: 911 | AP69: 10421 | AQ69: 7 | AR69: 203 | AS69: -2235 | AT69: 10414 | AU69: 1544 | AV69: 14245 | AW69: 501 | AX69: -9696 | AY69: -6341 | AZ69: -1937 | BA69: 5503 | BB69: -2354 | BC69: 84 | BD69: 0 | BE69: -2235 | BF69: 0
A70: 44668643 | B70: 23190 | C70: 47590 | D70: 4 | E70: 47 | F70: 475 | G70: FALSE | H70: TRUE | I70: a1 | J70: o1 | K70: 0 | L70: 112 | M70: 5 | N70: 85.51 | O70: 45.468 | P70: 0.036 | Q70: 38.376 | R70: 24.336 | S70: 113.58 | T70: 8.63 | U70: 8.62 | V70: 0.1 | W70: 0.2888 | X70: 0.6962 | Y70: 2.4781 | Z70: 9.01 | AA70: -2.69 | AB70: 24.73 | AC70: 0.61 | AD70: 0.28 | AE70: 4.0983 | AF70: 1.2237 | AG70: 0 | AH70: 0.1694 | AI70: 157856 | AJ70: 184602 | AK70: 57815 | AL70: 457473 | AM70: 46 | AN70: 48777 | AO70: 30946 | AP70: 144356 | AQ70: 15948 | AR70: 39454 | AS70: 185 | AT70: 141908 | AU70: 40989 | AV70: 98804 | AW70: 41259 | AX70: -12332 | AY70: 113146 | AZ70: 2817 | BA70: 26746 | BB70: 75 | BC70: 38517 | BD70: 827 | BE70: 1012 | BF70: 0
A71: 47603488 | B71: 56101 | C71: 68200 | D71: 6 | E71: 68 | F71: 682 | G71: FALSE | H71: FALSE | I71: a1 | J71: o1 | K71: 0 | L71: 112 | M71: 1 | N71: 75.37 | O71: 0 | P71: 1344.456 | Q71: 3247.128 | R71: 3326.292 | S71: 3263.94 | T71: 0.08 | U71: -277.29 | V71: -49.02 | W71: 1.0154 | X71: 1.0154 | Y71: 0.0827 | Z71: -221.5 | AA71: -449.7 | AB71: -75.8 | AC71: -590.8 | AD71: -199.07 | AE71: 999999999 | AF71: -999999999 | AG71: 0 | AH71: 0.3266 | AI71: 38052 | AJ71: 50483 | AK71: 0 | AL71: 4175 | AM71: 15592 | AN71: 37658 | AO71: 38576 | AP71: 37853 | AQ71: 45 | AR71: -11577 | AS71: -24747 | AT71: 38007 | AU71: 38594 | AV71: 38594 | AW71: -9248 | AX71: -18775 | AY71: -3165 | AZ71: -24666 | BA71: 12431 | BB71: -24747 | BC71: -11577 | BD71: 0 | BE71: -24747 | BF71: 0
A72: 36665835 | B72: 70220 | C72: 69200 | D72: 6 | E72: 69 | F72: 692 | G72: FALSE | H72: TRUE | I72: a1 | J72: o1 | K72: 0 | L72: 112 | M72: 2 | N72: 34.02 | O72: 0.324 | P72: 113.04 | Q72: 6.66 | R72: 122.868 | S72: 118.152 | T72: 21.75 | U72: 27.83 | V72: 16.91 | W72: 5.63 | X72: 5.6375 | Y72: 1.0105 | Z72: 26.11 | AA72: 21.15 | AB72: 54.41 | AC72: 16.87 | AD72: 17.05 | AE72: 1.5145 | AF72: 999999999 | AG72: 0 | AH72: 1.939 | AI72: 21497 | AJ72: 63180 | AK72: 58 | AL72: 63845 | AM72: 20052 | AN72: 1187 | AO72: 21794 | AP72: 20955 | AQ72: 13745 | AR72: 17774 | AS72: 10690 | AT72: 7752 | AU72: 43644 | AV72: 43702 | AW72: 16671 | AX72: 13505 | AY72: 34744 | AZ72: 10777 | BA72: 41683 | BB72: 7110 | BC72: 14194 | BD72: 0 | BE72: 10690 | BF72: 0
A73: 47956046 | B73: 64920 | C73: 66220 | D73: 6 | E73: 66 | F73: 662 | G73: FALSE | H73: TRUE | I73: a1 | J73: o1 | K73: 0 | L73: 112 | M73: 1 | N73: 62.81 | O73: 0 | P73: 42.984 | Q73: 1.908 | R73: 371.88 | S73: 756.108 | T73: 33.76 | U73: 26.03 | V73: 6.54 | W73: 1.5453 | X73: 1.5453 | Y73: 0.2964 | Z73: 29.6 | AA73: 29.31 | AB73: 33.27 | AC73: 25.65 | AD73: 13.51 | AE73: 10.134 | AF73: 999999999 | AG73: 0 | AH73: 0.5919 | AI73: 28426 | AJ73: 45252 | AK73: 0 | AL73: 13415 | AM73: 1602 | AN73: 72 | AO73: 13858 | AP73: 28176 | AQ73: 15281 | AR73: 3493 | AS73: 2962 | AT73: 13145 | AU73: 20314 | AV73: 20314 | AW73: 3972 | AX73: 3933 | AY73: 4464 | AZ73: 3441 | BA73: 16826 | BB73: 2274 | BC73: 2805 | BD73: 0 | BE73: 2962 | BF73: 0
A74: 48093441 | B74: 46190 | C74: 68310 | D74: 6 | E74: 68 | F74: 683 | G74: FALSE | H74: TRUE | I74: a1 | J74: o1 | K74: 0 | L74: 112 | M74: 2 | N74: 50.91 | O74: 0.108 | P74: 20.664 | Q74: 4.896 | R74: 29.34 | S74: 141.12 | T74: 39.98 | U74: 31.91 | V74: 22.32 | W74: 2.8281 | X74: 2.8327 | Y74: 1.2986 | Z74: 32.23 | AA74: 24.39 | AB74: 43.35 | AC74: 19.37 | AD74: 35.34 | AE74: 1.4955 | AF74: 10.2585 | AG74: 0 | AH74: 0.9639 | AI74: 14124 | AJ74: 27739 | AK74: 14 | AL74: 36022 | AM74: 2070 | AN74: 491 | AO74: 2938 | AP74: 14124 | AQ74: 11092 | AR74: 11495 | AS74: 6194 | AT74: 3032 | AU74: 8575 | AV74: 8589 | AW74: 11613 | AX74: 8787 | AY74: 15616 | AZ74: 6981 | BA74: 13615 | BB74: 4812 | BC74: 9444 | BD74: 669 | BE74: 6863 | BF74: 0
A75: 44832877 | B75: 68310 | C75: 43990 | D75: 4 | E75: 43 | F75: 439 | G75: FALSE | H75: FALSE | I75: a2 | J75: o1 | K75: 0 | L75: 112 | M75: 3 | N75: 61.59 | O75: 10346.58 | P75: 25.56 | Q75: 266.652 | R75: 80.748 | S75: 7661.556 | T75: 0 | U75: -247.38 | V75: -10.9 | W75: 0.4937 | X75: 1.548 | Y75: 0.0225 | Z75: -246.39 | AA75: -452.37 | AB75: -214.98 | AC75: -479.99 | AD75: -28.38 | AE75: 999999999 | AF75: -312.3076 | AG75: 0 | AH75: 0.6235 | AI75: 230103 | AJ75: 373591 | AK75: 242599 | AL75: 8441 | AM75: 600 | AN75: 6253 | AO75: 1894 | AP75: 179643 | AQ75: 0 | AR75: -20882 | AS75: -40730 | AT75: 230103 | AU75: 113605 | AV75: 356204 | AW75: -20798 | AX75: -38185 | AY75: -18147 | AZ75: -40516 | BA75: 143488 | BB75: -40730 | BC75: -21012 | BD75: 130 | BE75: -40600 | BF75: 0
A76: 50043285 | B76: 11070 | C76: 85510 | D76: 8 | E76: 85 | F76: 855 | G76: FALSE | H76: TRUE | I76: a1 | J76: o1 | K76: 0 | L76: 112 | M76: 1 | N76: 16.47 | O76: 0 | P76: 44.46 | Q76: 0.936 | R76: 44.46 | S76: 26.244 | T76: 0.34 | U76: 3.4 | V76: 5.4 | W76: 6.1981 | X76: 6.1981 | Y76: 1.5888 | Z76: 4.06 | AA76: 4.06 | AB76: 41.2 | AC76: 4.06 | AD76: 5.11 | AE76: 3.8568 | AF76: 999999999 | AG76: 0 | AH76: 5.0682 | AI76: 1670 | AJ76: 10134 | AK76: 0 | AL76: 16101 | AM76: 1990 | AN76: 43 | AO76: 1990 | AP76: 1174 | AQ76: 35 | AR76: 548 | AS76: 548 | AT76: 1635 | AU76: 10134 | AV76: 10134 | AW76: 655 | AX76: 655 | AY76: 6634 | AZ76: 655 | BA76: 8464 | BB76: 433 | BC76: 433 | BD76: 0 | BE76: 548 | BF76: 0
A77: 43904301 | B77: 82110 | C77: 62020 | D77: 6 | E77: 62 | F77: 620 | G77: TRUE | H77: FALSE | I77: a1 | J77: o1 | K77: 0 | L77: 112 | M77: 4 | N77: 143.58 | O77: 0 | P77: 83.016 | Q77: 2.7 | R77: 87.012 | S77: 236.124 | T77: 29.95 | U77: -5.13 | V77: -55.96 | W77: 0.8169 | X77: 0.8169 | Y77: 1.732 | Z77: -13.87 | AA77: -24.22 | AB77: 13.63 | AC77: -30.23 | AD77: -999999999 | AE77: 999999999 | AF77: -19.3264 | AG77: 29.95 | AH77: -0.3035 | AI77: 55437 | AJ77: 38610 | AK77: 0 | AL77: 66876 | AM77: 15424 | AN77: 503 | AO77: 16164 | AP77: 43870 | AQ77: 11567 | AR77: -3437 | AS77: -21607 | AT77: 43870 | AU77: 35839 | AV77: 35839 | AW77: -9276 | AX77: -16201 | AY77: 9119 | AZ77: -20223 | BA77: -16827 | BB77: -21607 | BC77: -4500 | BD77: 1063 | BE77: -20544 | BF77: 11567
A78: 43954081 | B78: 62020 | C78: 70220 | D78: 7 | E78: 70 | F78: 702 | G78: FALSE | H78: FALSE | I78: a1 | J78: o1 | K78: 0 | L78: 112 | M78: 8 | N78: 2708.19 | O78: 1384.74 | P78: 0 | Q78: 0 | R78: 0 | S78: 40237.092 | T78: 19.87 | U78: -290.16 | V78: -70.3 | W78: 0.0025 | X78: 0.0371 | Y78: 0.2423 | Z78: -290.16 | AA78: -290.16 | AB78: 100 | AC78: -290.16 | AD78: -999999999 | AE78: 999999999 | AF78: -999999999 | AG78: 0 | AH78: -0.963 | AI78: 46608 | AJ78: 1721 | AK78: 1604 | AL78: 417 | AM78: 0 | AN78: 0 | AO78: 0 | AP78: 46608 | AQ78: 342 | AR78: -1210 | AS78: -1210 | AT78: 46266 | AU78: 117 | AV78: 1721 | AW78: -1210 | AX78: -1210 | AY78: 417 | AZ78: -1210 | BA78: -44887 | BB78: -1210 | BC78: -1210 | BD78: 0 | BE78: -1210 | BF78: 0
A79: 46150587 | B79: 82990 | C79: 96090 | D79: 9 | E79: 96 | F79: 960 | G79: FALSE | H79: FALSE | I79: a1 | J79: o1 | K79: 0 | L79: 112 | M79: 8 | N79: 59.8 | O79: 0 | P79: 0 | Q79: 1.62 | R79: 0 | S79: 27.432 | T79: 2.06 | U79: -0.97 | V79: -2.25 | W79: 1.7318 | X79: 1.7318 | Y79: 2.3228 | Z79: -0.21 | AA79: -0.36 | AB79: 30.57 | AC79: -0.21 | AD79: -5.61 | AE79: 999999999 | AF79: -999999999 | AG79: 0 | AH79: 0.6721 | AI79: 7103 | AJ79: 11877 | AK79: 0 | AL79: 27588 | AM79: 0 | AN79: 126 | AO79: 0 | AP79: 2103 | AQ79: 245 | AR79: -268 | AS79: -268 | AT79: 6858 | AU79: 11877 | AV79: 11877 | AW79: -58 | AX79: -101 | AY79: 8435 | AZ79: -58 | BA79: 4774 | BB79: -268 | BC79: -268 | BD79: 0 | BE79: -268 | BF79: 0
A80: 46957812 | B80: 85590 | C80: 62010 | D80: 6 | E80: 62 | F80: 620 | G80: FALSE | H80: FALSE | I80: a1 | J80: o1 | K80: 0 | L80: 112 | M80: 1 | N80: 81.13 | O80: 0 | P80: 31.932 | Q80: 11.16 | R80: 31.932 | S80: 29.196 | T80: 0 | U80: -5.63 | V80: -56.42 | W80: 1.2325 | X80: 1.2325 | Y80: 10.001 | Z80: -5.63 | AA80: -4.14 | AB80: -4.14 | AC80: -5.63 | AD80: -299.03 | AE80: 999999999 | AF80: -1397 | AG80: 0 | AH80: 0.2325 | AI80: 4020 | AJ80: 4955 | AK80: 0 | AL80: 49555 | AM80: 4400 | AN80: 1540 | AO80: 4400 | AP80: 4020 | AQ80: 0 | AR80: -2794 | AS80: -2796 | AT80: 4020 | AU80: 4955 | AV80: 4955 | AW80: -2794 | AX80: -2053 | AY80: -2053 | AZ80: -2794 | BA80: 935 | BB80: -2796 | BC80: -2796 | BD80: 2 | BE80: -2794 | BF80: 0
A81: 47949091 | B81: 82990 | C81: 46760 | D81: 4 | E81: 46 | F81: 467 | G81: FALSE | H81: TRUE | I81: a1 | J81: o1 | K81: 0 | L81: 112 | M81: 4 | N81: 80.01 | O81: 0 | P81: 291.024 | Q81: 335.376 | R81: 443.7 | S81: 385.38 | T81: 0 | U81: 15.73 | V81: 9.82 | W81: 1.2437 | X81: 1.2437 | Y81: 0.7474 | Z81: 16.15 | AA81: 18.83 | AB81: 21.42 | AC81: 13.56 | AD81: 49.18 | AE81: 6.8015 | AF81: 999999999 | AG81: 0 | AH81: 0.2497 | AI81: 26322 | AJ81: 32895 | AK81: 0 | AL81: 24588 | AM81: 19877 | AN81: 22907 | AO81: 30307 | AP81: 26322 | AQ81: 0 | AR81: 3870 | AS81: 3233 | AT81: 26322 | AU81: 32738 | AV81: 32738 | AW81: 3973 | AX81: 4631 | AY81: 5268 | AZ81: 3336 | BA81: 6573 | BB81: 3233 | BC81: 3870 | BD81: 0 | BE81: 3233 | BF81: 0
A82: 45841161 | B82: 43390 | C82: 68200 | D82: 6 | E82: 68 | F82: 682 | G82: FALSE | H82: FALSE | I82: a1 | J82: o1 | K82: 0 | L82: 112 | M82: 7 | N82: 98.85 | O82: 16.02 | P82: 48.924 | Q82: 4.356 | R82: 72.108 | S82: 1513.476 | T82: 0.2 | U82: -174.68 | V82: -41.07 | W82: 0.2364 | X82: 0.2471 | Y82: 0.2351 | Z82: -174.32 | AA82: -170.03 | AB82: -141.59 | AC82: -174.32 | AD82: -3582.34 | AE82: 999999999 | AF82: -999999999 | AG82: 0 | AH82: 0.0115 | AI82: 92769 | AJ82: 93845 | AK82: 984 | AL82: 22066 | AM82: 3000 | AN82: 268 | AO82: 4420 | AP82: 92769 | AQ82: 192 | AR82: -38546 | AS82: -38546 | AT82: 92577 | AU82: 21892 | AV82: 22876 | AW82: -38467 | AX82: -37520 | AY82: -31245 | AZ82: -38467 | BA82: 1076 | BB82: -38546 | BC82: -38546 | BD82: 0 | BE82: -38546 | BF82: 0
A83: 36503355 | B83: 49390 | C83: 56300 | D83: 5 | E83: 56 | F83: 563 | G83: TRUE | H83: TRUE | I83: a1 | J83: o2 | K83: 0 | L83: 112 | M83: 7 | N83: 51.15 | O83: 3.708 | P83: 10.116 | Q83: 5.832 | R83: 10.26 | S83: 27.18 | T83: 0 | U83: 14.29 | V83: 49.16 | W83: 1.2649 | X83: 1.3425 | Y83: 3.8322 | Z83: 15.24 | AA83: 14.12 | AB83: 36.37 | AC83: 13.92 | AD83: 79.42 | AE83: 1.1665 | AF83: 90.0357 | AG83: 20.6 | AH83: 0.9548 | AI83: 98482 | AJ83: 192518 | AK83: 7643 | AL83: 737774 | AM83: 20767 | AN83: 11993 | AO83: 21071 | AP83: 55747 | AQ83: 0 | AR83: 105439 | AS83: 94645 | AT83: 98482 | AU83: 124572 | AV83: 132215 | AW83: 112487 | AX83: 104175 | AY83: 268346 | AZ83: 102756 | BA83: 94036 | BB83: 74690 | BC83: 84421 | BD83: 1063 | BE83: 95708 | BF83: 39673
A84: 46565388 | B84: 58190 | C84: 93290 | D84: 9 | E84: 93 | F84: 932 | G84: FALSE | H84: TRUE | I84: a1 | J84: o1 | K84: 0 | L84: 112 | M84: 1 | N84: 0 | O84: 0 | P84: 0 | Q84: 0 | R84: 101.628 | S84: 0 | T84: 0 | U84: 22.41 | V84: 4.2 | W84: 999999999 | X84: 999999999 | Y84: 3.4343 | Z84: 22.41 | AA84: 1.97 | AB84: 23.16 | AC84: 1.22 | AD84: 4.2 | AE84: 0 | AF84: 999999999 | AG84: 0 | AH84: 999999999 | AI84: 0 | AJ84: 2475 | AK84: 0 | AL84: 8500 | AM84: 0 | AN84: 0 | AO84: 2400 | AP84: 0 | AQ84: 0 | AR84: 1905 | AS84: 104 | AT84: 0 | AU84: 2475 | AV84: 2475 | AW84: 1905 | AX84: 168 | AY84: 1969 | AZ84: 104 | BA84: 2475 | BB84: 104 | BC84: 1905 | BD84: 0 | BE84: 104 | BF84: 0
A85: 46601546 | B85: 82110 | C85: 62010 | D85: 6 | E85: 62 | F85: 620 | G85: FALSE | H85: TRUE | I85: a3 | J85: o1 | K85: 0 | L85: 112 | M85: 1 | N85: 79.76 | O85: 0 | P85: 213221.52 | Q85: 209901.6 | R85: 213962.328 | S85: 405876.708 | T85: 0 | U85: 21681.54 | V85: 15.33 | W85: 1.2535 | X85: 1.2535 | Y85: 0.0007 | Z85: -89.33 | AA85: -94.57 | AB85: -89.33 | AC85: -94.57 | AD85: 75.36 | AE85: 5.2282 | AF85: 999999999 | AG85: 0 | AH85: 0.2537 | AI85: 7062255 | AJ85: 8854096 | AK85: 0 | AL85: 6264 | AM85: 3710055 | AN85: 3652288 | AO85: 3722945 | AP85: 7062255 | AQ85: 0 | AR85: 1358132 | AS85: 1357804 | AT85: 7062255 | AU85: 8852977 | AV85: 8852977 | AW85: -5596 | AX85: -5924 | AY85: -5596 | AZ85: -5924 | BA85: 1791841 | BB85: 1350469 | BC85: 1350797 | BD85: 0 | BE85: 1357804 | BF85: 0
A86: 47707348 | B86: 73110 | C86: 68200 | D86: 6 | E86: 68 | F86: 682 | G86: FALSE | H86: TRUE | I86: a1 | J86: o1 | K86: 0 | L86: 112 | M86: 7 | N86: 99.47 | O86: 0 | P86: 85.5 | Q86: 27.9 | R86: 137.484 | S86: 166.176 | T86: 22.96 | U86: 15.9 | V86: 33.41 | W86: 1.3069 | X86: 1.3069 | Y86: 2.1212 | Z86: 16.53 | AA86: 6.92 | AB86: 37.41 | AC86: 16.53 | AD86: 6394.73 | AE86: 2.9773 | AF86: 102.25 | AG86: 0 | AH86: 0.0052 | AI86: 7235 | AJ86: 7273 | AK86: 0 | AL86: 15428 | AM86: 3665 | AN86: 1197 | AO86: 5893 | AP86: 7122 | AQ86: 1670 | AR86: 2454 | AS86: 2430 | AT86: 5565 | AU86: 7273 | AV86: 7273 | AW86: 2551 | AX86: 1068 | AY86: 5773 | AZ86: 2551 | BA86: 38 | BB86: 2430 | BC86: 2430 | BD86: 24 | BE86: 2454 | BF86: 0
A87: 36823881 | B87: 73110 | C87: 43990 | D87: 4 | E87: 43 | F87: 439 | G87: FALSE | H87: TRUE | I87: a1 | J87: o1 | K87: 0 | L87: 112 | M87: 6 | N87: 326.13 | O87: 0 | P87: 53.676 | Q87: 118.656 | R87: 54 | S87: 4129.344 | T87: 3.8 | U87: 59.34 | V87: 16.86 | W87: 0.2599 | X87: 0.2599 | Y87: 0.2843 | Z87: 61.22 | AA87: 62.36 | AB87: 62.59 | AC87: 61.22 | AD87: 999999999 | AE87: 24.4715 | AF87: 2808 | AG87: 0 | AH87: -0.6933 | AI87: 54278 | AJ87: 16643 | AK87: 0 | AL87: 4732 | AM87: 706 | AN87: 1560 | AO87: 710 | AP87: 54278 | AQ87: 633 | AR87: 2808 | AS87: 2807 | AT87: 53645 | AU87: 13943 | AV87: 13943 | AW87: 2897 | AX87: 2951 | AY87: 2962 | AZ87: 2897 | BA87: -37635 | BB87: 2218 | BC87: 2218 | BD87: 1 | BE87: 2808 | BF87: 0
A88: 44025980 | B88: 73200 | C88: 73110 | D88: 7 | E88: 73 | F88: 731 | G88: FALSE | H88: TRUE | I88: a1 | J88: o1 | K88: 0 | L88: 112 | M88: 8 | N88: 22.32 | O88: 0 | P88: 1.26 | Q88: 76.104 | R88: 2.628 | S88: 183.78 | T88: 0 | U88: 14.66 | V88: 6.41 | W88: 4.4796 | X88: 4.4796 | Y88: 0.4372 | Z88: 17.41 | AA88: 13.21 | AB88: 21.61 | AC88: 17.41 | AD88: 6.03 | AE88: 4.7596 | AF88: 999999999 | AG88: 0 | AH88: 3.4796 | AI88: 4693 | AJ88: 21023 | AK88: 0 | AL88: 9192 | AM88: 33 | AN88: 1944 | AO88: 68 | AP88: 4693 | AQ88: 0 | AR88: 1348 | AS88: 1348 | AT88: 4693 | AU88: 21023 | AV88: 21023 | AW88: 1601 | AX88: 1215 | AY88: 1987 | AZ88: 1601 | BA88: 16330 | BB88: 986 | BC88: 986 | BD88: 0 | BE88: 1348 | BF88: 0
A89: 35854545 | B89: 77390 | C89: 41201 | D89: 4 | E89: 41 | F89: 412 | G89: FALSE | H89: FALSE | I89: a1 | J89: o1 | K89: 0 | L89: 112 | M89: 1 | N89: 158.63 | O89: 989.172 | P89: 42.156 | Q89: 5.472 | R89: 78.804 | S89: 2010.42 | T89: 52.85 | U89: 7.12 | V89: -6.89 | W89: 0.0918 | X89: 0.8297 | Y89: 0.284 | Z89: 7.39 | AA89: -29.1 | AB89: 40.6 | AC89: -24 | AD89: -999999999 | AE89: 78.3532 | AF89: -999999999 | AG89: 0 | AH89: -0.3696 | AI89: 426320 | AJ89: 268748 | AK89: 209760 | AL89: 76339 | AM89: 8941 | AN89: 1165 | AO89: 16717 | AP89: 426320 | AQ89: 142050 | AR89: 5441 | AS89: -18531 | AT89: 284270 | AU89: 26104 | AV89: 235864 | AW89: 5649 | AX89: -22221 | AY89: 30999 | AZ89: -18323 | BA89: -157572 | BB89: -18531 | BC89: 5441 | BD89: 0 | BE89: -18531 | BF89: 0
A90: 48195383 | B90: 37000 | C90: 41209 | D90: 4 | E90: 41 | F90: 412 | G90: TRUE | H90: TRUE | I90: a1 | J90: o1 | K90: 0 | L90: 112 | M90: 5 | N90: 63.55 | O90: 0 | P90: 0 | Q90: 0 | R90: 0 | S90: 143.784 | T90: 31.19 | U90: 18.66 | V90: 2.09 | W90: 0.9765 | X90: 0.9765 | Y90: 1.5351 | Z90: 19.11 | AA90: 4.78 | AB90: 22.08 | AC90: 1.81 | AD90: -1.21 | AE90: 2.4333 | AF90: 999999999 | AG90: 0.01 | AH90: 0.5734 | AI90: 19574 | AJ90: 30799 | AK90: 0 | AL90: 47282 | AM90: 0 | AN90: 0 | AO90: 0 | AP90: 18885 | AQ90: 9608 | AR90: 8824 | AS90: 644 | AT90: 9966 | AU90: 9732 | AV90: 9732 | AW90: 9039 | AX90: 2262 | AY90: 10442 | AZ90: 859 | BA90: 11225 | BB90: -136 | BC90: 8044 | BD90: 0 | BE90: 644 | BF90: 4
A91: 35831855 | B91: 46190 | C91: 69200 | D91: 6 | E91: 69 | F91: 692 | G91: FALSE | H91: TRUE | I91: a1 | J91: o1 | K91: 0 | L91: 112 | M91: 1 | N91: 3 | O91: 0 | P91: 48.492 | Q91: 2.448 | R91: 412.956 | S91: 19.908 | T91: 0 | U91: 39.31 | V91: 19.5 | W91: 33.2266 | X91: 33.2266 | Y91: 0.5429 | Z91: 39.37 | AA91: 37.7 | AB91: 41.09 | AC91: 35.98 | AD91: 15.23 | AE91: 0.1808 | AF91: 999999999 | AG91: 0 | AH91: 32.2718 | AI91: 4359 | AJ91: 145032 | AK91: 0 | AL91: 78746 | AM91: 10612 | AN91: 541 | AO91: 90332 | AP91: 4359 | AQ91: 0 | AR91: 30959 | AS91: 28291 | AT91: 4359 | AU91: 144835 | AV91: 144835 | AW91: 31004 | AX91: 29692 | AY91: 32360 | AZ91: 28336 | BA91: 140673 | BB91: 21431 | BC91: 24099 | BD91: 0 | BE91: 28291 | BF91: 0
A92: 48216071 | B92: 46190 | C92: 46180 | D92: 4 | E92: 46 | F92: 461 | G92: FALSE | H92: FALSE | I92: a1 | J92: o1 | K92: 0 | L92: 112 | M92: 3 | N92: 149.69 | O92: 0 | P92: 22.752 | Q92: 88.524 | R92: 114.3 | S92: 193.68 | T92: 0 | U92: -18.97 | V92: -52.79 | W92: 0.668 | X92: 0.668 | Y92: 2.782 | Z92: -18.5 | AA92: -18.27 | AB92: 1.79 | AC92: -18.5 | AD92: -999999999 | AE92: 999999999 | AF92: -999999999 | AG92: 0 | AH92: -0.3319 | AI92: 316809 | AJ92: 211630 | AK92: 0 | AL92: 588774 | AM92: 37246 | AN92: 144835 | AO92: 186963 | AP92: 316809 | AQ92: 0 | AR92: -111726 | AS92: -111726 | AT92: 316809 | AU92: 211630 | AV92: 211630 | AW92: -108962 | AX92: -107579 | AY92: 10553 | AZ92: -108962 | BA92: -105179 | BB92: -111726 | BC92: -111726 | BD92: 0 | BE92: -111726 | BF92: 0
A93: 45245517 | B93: 46190 | C93: 71129 | D93: 7 | E93: 71 | F93: 711 | G93: FALSE | H93: TRUE | I93: a1 | J93: o1 | K93: 0 | L93: 112 | M93: 1 | N93: 6.43 | O93: 0 | P93: 122.58 | Q93: 0.252 | R93: 126.432 | S93: 35.244 | T93: 0.04 | U93: 35.6 | V93: 22.03 | W93: 14.4633 | X93: 14.4633 | Y93: 0.6509 | Z93: 35.72 | AA93: 36.5 | AB93: 44.83 | AC93: 33.97 | AD93: 18.51 | AE93: 0.3484 | AF93: 999999999 | AG93: 0 | AH93: 14.5396 | AI93: 10786 | AJ93: 167611 | AK93: 0 | AL93: 109106 | AM93: 37161 | AN93: 83 | AO93: 38328 | AP93: 10686 | AQ93: 73 | AR93: 38845 | AS93: 36933 | AT93: 10713 | AU93: 154946 | AV93: 154946 | AW93: 38979 | AX93: 39832 | AY93: 48922 | AZ93: 37067 | BA93: 156825 | BB93: 29041 | BC93: 30953 | BD93: 0 | BE93: 36933 | BF93: 0
A94: 45363226 | B94: 73110 | C94: 43210 | D94: 4 | E94: 43 | F94: 432 | G94: FALSE | H94: TRUE | I94: a1 | J94: o1 | K94: 0 | L94: 112 | M94: 1 | N94: 11.31 | O94: 0 | P94: 22.824 | Q94: 10.44 | R94: 22.824 | S94: 27.684 | T94: 0 | U94: 2.85 | V94: 4.19 | W94: 8.8384 | X94: 8.8384 | Y94: 1.4703 | Z94: 3.32 | AA94: 4.27 | AB94: 4.27 | AC94: 3.32 | AD94: 3.5 | AE94: 3.6375 | AF94: 999999999 | AG94: 0 | AH94: 7.8384 | AI94: 1164 | AJ94: 10288 | AK94: 0 | AL94: 15127 | AM94: 960 | AN94: 440 | AO94: 960 | AP94: 1164 | AQ94: 0 | AR94: 432 | AS94: 432 | AT94: 1164 | AU94: 10288 | AV94: 10288 | AW94: 503 | AX94: 647 | AY94: 647 | AZ94: 503 | BA94: 9124 | BB94: 320 | BC94: 320 | BD94: 0 | BE94: 432 | BF94: 0
A95: 36675041 | B95: 82990 | C95: 70100 | D95: 7 | E95: 70 | F95: 701 | G95: FALSE | H95: TRUE | I95: a1 | J95: o1 | K95: 0 | L95: 112 | M95: 1 | N95: 14.05 | O95: 0 | P95: 7.92 | Q95: 0 | R95: 7.92 | S95: 19.44 | T95: 0 | U95: 20.78 | V95: 54.06 | W95: 7.1153 | X95: 7.1153 | Y95: 2.6013 | Z95: 21.02 | AA95: 21.52 | AB95: 21.52 | AC95: 21.02 | AD95: 49.69 | AE95: 0.329 | AF95: 999999999 | AG95: 0 | AH95: 6.1153 | AI95: 2158 | AJ95: 15355 | AK95: 0 | AL95: 39943 | AM95: 879 | AN95: 0 | AO95: 879 | AP95: 2158 | AQ95: 0 | AR95: 8302 | AS95: 8302 | AT95: 2158 | AU95: 15355 | AV95: 15355 | AW95: 8398 | AX95: 8598 | AY95: 8598 | AZ95: 8398 | BA95: 13197 | BB95: 6558 | BC95: 6558 | BD95: 0 | BE95: 8302 | BF95: 0
A96: 50007637 | B96: 47190 | C96: 47789 | D96: 4 | E96: 47 | F96: 477 | G96: FALSE | H96: FALSE | I96: a1 | J96: o1 | K96: 0 | L96: 112 | M96: 1 | N96: 100.75 | O96: 216.468 | P96: 9.72 | Q96: 36.144 | R96: 17.496 | S96: 338.94 | T96: 89.74 | U96: -24.75 | V96: -32.28 | W96: 1.9671 | X96: 7.8127 | Y96: 1.07 | Z96: -23.27 | AA96: -29.18 | AB96: -23.77 | AC96: -28.68 | AD96: -999999999 | AE96: 999999999 | AF96: -999999999 | AG96: 0 | AH96: -0.0074 | AI96: 42622 | AJ96: 42303 | AK96: 27223 | AL96: 45267 | AM96: 1226 | AN96: 4546 | AO96: 2202 | AP96: 42622 | AQ96: 37965 | AR96: -11206 | AS96: -13656 | AT96: 4657 | AU96: 9161 | AV96: 36384 | AW96: -10536 | AX96: -13210 | AY96: -10760 | AZ96: -12986 | BA96: -319 | BB96: -13656 | BC96: -11206 | BD96: 0 | BE96: -13656 | BF96: 0
A97: 44682018 | B97: 16290 | C97: 16210 | D97: 1 | E97: 16 | F97: 162 | G97: FALSE | H97: TRUE | I97: a1 | J97: o1 | K97: 0 | L97: 112 | M97: 5 | N97: 63.94 | O97: 0 | P97: 0 | Q97: 6.84 | R97: 0.576 | S97: 366.732 | T97: 0 | U97: 13.31 | V97: 5.98 | W97: 0.2496 | X97: 0.2496 | Y97: 0.6277 | Z97: 13.59 | AA97: 10.19 | AB97: 13.65 | AC97: 10.13 | AD97: 16.59 | AE97: 7.8388 | AF97: 30.6305 | AG97: 0 | AH97: 0.5637 | AI97: 49714 | AJ97: 77740 | AK97: 0 | AL97: 48800 | AM97: 0 | AN97: 931 | AO97: 81 | AP97: 49714 | AQ97: 0 | AR97: 6499 | AS97: 4652 | AT97: 49714 | AU97: 12411 | AV97: 12411 | AW97: 6634 | AX97: 4973 | AY97: 6663 | AZ97: 4944 | BA97: 28026 | BB97: 4652 | BC97: 6342 | BD97: 157 | BE97: 4809 | BF97: 0
A98: 50145282 | B98: 41209 | C98: 41201 | D98: 4 | E98: 41 | F98: 412 | G98: FALSE | H98: FALSE | I98: a1 | J98: o1 | K98: 0 | L98: 112 | M98: 2 | N98: 97.33 | O98: 143.28 | P98: 11.376 | Q98: 3.24 | R98: 11.376 | S98: 459.468 | T98: 0.06 | U98: -10.63 | V98: -9.68 | W98: 0.427 | X98: 0.7357 | Y98: 0.7544 | Z98: -27.72 | AA98: -29.47 | AB98: -2.29 | AC98: -12.52 | AD98: -364.1 | AE98: 999999999 | AF98: -999999999 | AG98: 0 | AH98: 0.0273 | AI98: 77946 | AJ98: 80077 | AK98: 24047 | AL98: 60411 | AM98: 1915 | AN98: 545 | AO98: 1915 | AP98: 77108 | AQ98: 56 | AR98: -6426 | AS98: -7759 | AT98: 77890 | AU98: 33261 | AV98: 57308 | AW98: -16748 | AX98: -17808 | AY98: -1388 | AZ98: -7569 | BA98: 2131 | BB98: -7759 | BC98: -6426 | BD98: 0 | BE98: -7759 | BF98: 0
A99: 45675597 | B99: 82110 | C99: 47250 | D99: 4 | E99: 47 | F99: 472 | G99: TRUE | H99: FALSE | I99: a1 | J99: o1 | K99: 0 | L99: 112 | M99: 2 | N99: 778.43 | O99: 100.8 | P99: 33.408 | Q99: 192.204 | R99: 73.008 | S99: 2596.86 | T99: 2.42 | U99: 4.09 | V99: -4.98 | W99: 0.0648 | X99: 0.1029 | Y99: 1.056 | Z99: 6.92 | AA99: 3.58 | AB99: 24.35 | AC99: 0.87 | AD99: -999999999 | AE99: 557.5595 | AF99: -0.7018 | AG99: 15.45 | AH99: -0.8715 | AI99: 201279 | AJ99: 25857 | AK99: 7646 | AL99: 27307 | AM99: 2536 | AN99: 14580 | AO99: 5539 | AP99: 196981 | AQ99: 627 | AR99: 1119 | AS99: -1290 | AT99: 200652 | AU99: 13011 | AV99: 20657 | AW99: 1891 | AX99: 980 | AY99: 6650 | AZ99: 240 | BA99: -175422 | BB99: -1290 | BC99: 361 | BD99: 758 | BE99: -532 | BF99: 3995
A100: 46747605 | B100: 46900 | C100: 46340 | D100: 4 | E100: 46 | F100: 463 | G100: FALSE | H100: FALSE | I100: a2 | J100: o1 | K100: 0 | L100: 112 | M100: 4 | N100: 96.6 | O100: 0 | P100: 10286.82 | Q100: 4420.836 | R100: 10292.688 | S100: 4578.84 | T100: 0.01 | U100: -241.61 | V100: -8.74 | W100: 0.946 | X100: 0.946 | Y100: 0.0317 | Z100: 165.92 | AA100: -130.46 | AB100: -95.84 | AC100: -270.35 | AD100: -257.17 | AE100: 999999999 | AF100: -999999999 | AG100: 0 | AH100: 0.0351 | AI100: 645242 | AJ100: 667945 | AK100: 0 | AL100: 21218 | AM100: 606295 | AN100: 260561 | AO100: 606640 | AP100: 269872 | AQ100: 86 | AR100: -51266 | AS100: -58386 | AT100: 645156 | AU100: 610374 | AV100: 610374 | AW100: 35205 | AX100: -27683 | AY100: -20336 | AZ100: -57364 | BA100: 22703 | BB100: -58386 | BC100: -51266 | BD100: 0 | BE100: -58386 | BF100: 0
A101: 50024132 | B101: 41209 | C101: 41209 | D101: 4 | E101: 41 | F101: 412 | G101: FALSE | H101: FALSE | I101: a1 | J101: o1 | K101: 0 | L101: 112 | M101: 1 | N101: 53.59 | O101: 8649.648 | P101: 83.304 | Q101: 337.752 | R101: 25171.992 | S101: 1262.664 | T101: 0.6 | U101: -323.94 | V101: -7.46 | W101: 1.4101 | X101: 1.8871 | Y101: 0.0105 | Z101: -594.37 | AA101: -588.48 | AB101: -588.48 | AC101: -594.37 | AD101: -16.08 | AE101: 999999999 | AF101: -0.8398 | AG101: 0 | AH101: 0.8659 | AI101: 178291 | AJ101: 332690 | AK101: 84094 | AL101: 3500 | AM101: 810 | AN101: 3284 | AO101: 244728 | AP101: 12276 | AQ101: 2000 | AR101: -11338 | AS101: -24838 | AT101: 176291 | AU101: 248596 | AV101: 332690 | AW101: -20803 | AX101: -20597 | AY101: -20597 | AZ101: -20803 | BA101: 154399 | BB101: -24838 | BC101: -24838 | BD101: 13500 | BE101: -11338 | BF101: 0
A102: 48038865 | B102: 56101 | C102: 93190 | D102: 9 | E102: 93 | F102: 931 | G102: TRUE | H102: FALSE | I102: a1 | J102: o1 | K102: 0 | L102: 112 | M102: 8 | N102: 99.47 | O102: 0 | P102: 0 | Q102: 112.392 | R102: 0 | S102: 119.34 | T102: 0 | U102: -20.81 | V102: -36.03 | W102: 1.0052 | X102: 1.0052 | Y102: 1.589 | Z102: -19.64 | AA102: -17.66 | AB102: -7.5 | AC102: -19.64 | AD102: -6864.58 | AE102: 999999999 | AF102: -11.2037 | AG102: 46.78 | AH102: 0.0052 | AI102: 9096 | AJ102: 9144 | AK102: 0 | AL102: 14530 | AM102: 0 | AN102: 4537 | AO102: 0 | AP102: 4818 | AQ102: 0 | AR102: -3025 | AS102: -3295 | AT102: 9096 | AU102: 9144 | AV102: 9144 | AW102: -2855 | AX102: -2566 | AY102: -1090 | AZ102: -2855 | BA102: 48 | BB102: -3295 | BC102: -3295 | BD102: 270 | BE102: -3025 | BF102: 4278
A103: 45852936 | B103: 46900 | C103: 46190 | D103: 4 | E103: 46 | F103: 461 | G103: FALSE | H103: FALSE | I103: a1 | J103: o1 | K103: 0 | L103: 112 | M103: 8 | N103: 0.14 | O103: 0 | P103: 0 | Q103: 63.144 | R103: 23612.184 | S103: 63.144 | T103: 0 | U103: -229.82 | V103: -1.96 | W103: 668.06 | X103: 668.06 | Y103: 0.0085 | Z103: -194.38 | AA103: -194.38 | AB103: -194.38 | AC103: -194.38 | AD103: -1.96 | AE103: 999999999 | AF103: -999999999 | AG103: 0 | AH103: 667.04 | AI103: 50 | AJ103: 33403 | AK103: 0 | AL103: 285 | AM103: 0 | AN103: 50 | AO103: 18693 | AP103: 50 | AQ103: 0 | AR103: -655 | AS103: -655 | AT103: 50 | AU103: 33403 | AV103: 33403 | AW103: -554 | AX103: -554 | AY103: -554 | AZ103: -554 | BA103: 33352 | BB103: -655 | BC103: -655 | BD103: 0 | BE103: -655 | BF103: 0
A104: 46567526 | B104: 16100 | C104: 16100 | D104: 1 | E104: 16 | F104: 161 | G104: FALSE | H104: FALSE | I104: a1 | J104: o1 | K104: 0 | L104: 112 | M104: 6 | N104: 87.97 | O104: 0 | P104: 14.904 | Q104: 58.356 | R104: 14.904 | S104: 596.484 | T104: 47.73 | U104: 49.63 | V104: -0.2 | W104: 0.5921 | X104: 0.5921 | Y104: 0.5283 | Z104: 49.74 | AA104: 8.97 | AB104: 78.03 | AC104: 0.73 | AD104: -5.19 | AE104: 3.4813 | AF104: 0.6202 | AG104: 0 | AH104: 0.1367 | AI104: 200626 | AJ104: 228060 | AK104: 0 | AL104: 120500 | AM104: 5000 | AN104: 19536 | AO104: 5000 | AP104: 199660 | AQ104: 108857 | AR104: 59815 | AS104: -466 | AT104: 91769 | AU104: 54340 | AV104: 54340 | AW104: 59938 | AX104: 10814 | AY104: 94038 | AZ104: 884 | BA104: 27434 | BB104: -1426 | BC104: 57628 | BD104: 1227 | BE104: 761 | BF104: 0
A105: 48305383 | B105: 69200 | C105: 56300 | D105: 5 | E105: 56 | F105: 563 | G105: FALSE | H105: FALSE | I105: a1 | J105: o1 | K105: 0 | L105: 112 | M105: 6 | N105: 1336.24 | O105: 0 | P105: 0 | Q105: 0.072 | R105: 16.92 | S105: 771.624 | T105: 0 | U105: -76.38 | V105: -553.36 | W105: 0.0363 | X105: 0.0363 | Y105: 6.2339 | Z105: -76.37 | AA105: -88.64 | AB105: -53.8 | AC105: -88.76 | AD105: -999999999 | AE105: 999999999 | AF105: -999999999 | AG105: 0 | AH105: -0.9251 | AI105: 95194 | AJ105: 7124 | AK105: 0 | AL105: 44411 | AM105: 0 | AN105: 10 | AO105: 2089 | AP105: 95194 | AQ105: 0 | AR105: -33922 | AS105: -39422 | AT105: 95194 | AU105: 3458 | AV105: 3458 | AW105: -33920 | AX105: -39368 | AY105: -23895 | AZ105: -39420 | BA105: -88070 | BB105: -39422 | BC105: -33922 | BD105: 0 | BE105: -39422 | BF105: 0
A106: 36792721 | B106: 73110 | C106: 85530 | D106: 8 | E106: 85 | F106: 855 | G106: FALSE | H106: TRUE | I106: a1 | J106: o1 | K106: 0 | L106: 112 | M106: 8 | N106: 34.84 | O106: 0 | P106: 0 | Q106: 19.98 | R106: 0.756 | S106: 23.292 | T106: 0 | U106: 0.03 | V106: 0.16 | W106: 2.8702 | X106: 2.8702 | Y106: 5.3814 | Z106: 0.28 | AA106: 9.61 | AB106: 9.61 | AC106: 0.28 | AD106: 0.25 | AE106: 213.6111 | AF106: 999999999 | AG106: 0 | AH106: 1.8702 | AI106: 3845 | AJ106: 11036 | AK106: 0 | AL106: 59390 | AM106: 0 | AN106: 3302 | AO106: 126 | AP106: 3845 | AQ106: 0 | AR106: 18 | AS106: 18 | AT106: 3845 | AU106: 11036 | AV106: 11036 | AW106: 168 | AX106: 5710 | AY106: 5710 | AZ106: 168 | BA106: 7191 | BB106: 18 | BC106: 18 | BD106: 0 | BE106: 18 | BF106: 0
A107: 47249650 | B107: 69100 | C107: 69100 | D107: 6 | E107: 69 | F107: 691 | G107: TRUE | H107: TRUE | I107: a1 | J107: o1 | K107: 0 | L107: 112 | M107: 4 | N107: 58 | O107: 0.18 | P107: 43.956 | Q107: 40.716 | R107: 94.536 | S107: 166.32 | T107: 32.73 | U107: 34.22 | V107: 16.43 | W107: 1.3036 | X107: 1.3051 | Y107: 0.6842 | Z107: 34.02 | AA107: 30.15 | AB107: 57.45 | AC107: 26.02 | AD107: 28.35 | AE107: 3.2446 | AF107: 17.2226 | AG107: 25.6 | AH107: 0.7241 | AI107: 171513 | AJ107: 295708 | AK107: 106 | AL107: 202335 | AM107: 24710 | AN107: 22890 | AO107: 53144 | AP107: 93497 | AQ107: 96793 | AR107: 69241 | AS107: 48603 | AT107: 74720 | AU107: 97412 | AV107: 97518 | AW107: 68838 | AX107: 61015 | AY107: 116251 | AZ107: 52664 | BA107: 124195 | BB107: 35218 | BC107: 52860 | BD107: 2996 | BE107: 51599 | BF107: 75725
A108: 50078747 | B108: 38210 | C108: 38320 | D108: 3 | E108: 38 | F108: 383 | G108: TRUE | H108: TRUE | I108: a1 | J108: o1 | K108: 0 | L108: 112 | M108: 1 | N108: 40.73 | O108: 6.12 | P108: 14.148 | Q108: 1.656 | R108: 14.868 | S108: 3.312 | T108: 0 | U108: 3.68 | V108: 28.07 | W108: 1.8933 | X108: 2.2706 | Y108: 8.9918 | Z108: 3.83 | AA108: 3.56 | AB108: 8.11 | AC108: 3.48 | AD108: 36.42 | AE108: 1.6497 | AF108: 15.2105 | AG108: 32.22 | AH108: 1.4548 | AI108: 26247 | AJ108: 64432 | AK108: 9904 | AL108: 579366 | AM108: 22786 | AN108: 2716 | AO108: 23965 | AP108: 5340 | AQ108: 0 | AR108: 21363 | AS108: 18090 | AT108: 26247 | AU108: 49694 | AV108: 59598 | AW108: 22211 | AX108: 20635 | AY108: 47014 | AZ108: 20211 | BA108: 38185 | BB108: 13910 | BC108: 15910 | BD108: 1273 | BE108: 19363 | BF108: 20761
A109: 36581305 | B109: 47190 | C109: 41209 | D109: 4 | E109: 41 | F109: 412 | G109: TRUE | H109: FALSE | I109: a1 | J109: o1 | K109: 0 | L109: 112 | M109: 8 | N109: 132.18 | O109: 27.504 | P109: 51.48 | Q109: 120.672 | R109: 80.64 | S109: 124.992 | T109: 0 | U109: -1.13 | V109: -6.82 | W109: 0.5905 | X109: 0.7524 | Y109: 2.7987 | Z109: -0.69 | AA109: -0.72 | AB109: 11.93 | AC109: -0.97 | AD109: -999999999 | AE109: 999999999 | AF109: -1.3599 | AG109: 33.58 | AH109: -0.2435 | AI109: 260872 | AJ109: 197347 | AK109: 42226 | AL109: 552331 | AM109: 79003 | AN109: 185152 | AO109: 123749 | AP109: 191786 | AQ109: 0 | AR109: -6242 | AS109: -13461 | AT109: 260872 | AU109: 154067 | AV109: 196293 | AW109: -3853 | AX109: -4006 | AY109: 65934 | AZ109: -5368 | BA109: -63525 | BB109: -13461 | BC109: -11946 | BD109: 5704 | BE109: -7757 | BF109: 66275
A110: 36586293 | B110: 43330 | C110: 64990 | D110: 6 | E110: 64 | F110: 649 | G110: FALSE | H110: FALSE | I110: a1 | J110: o1 | K110: 0 | L110: 112 | M110: 8 | N110: 63.39 | O110: 0 | P110: 162.828 | Q110: 0.216 | R110: 204.912 | S110: 83.844 | T110: 21.35 | U110: 0.25 | V110: -7.02 | W110: 2.3787 | X110: 2.3787 | Y110: 1.756 | Z110: 0.31 | AA110: 0.34 | AB110: 0.34 | AC110: 0.31 | AD110: -19.18 | AE110: 999999999 | AF110: 0.0591 | AG110: 0 | AH110: 0.5773 | AI110: 17240 | AJ110: 27194 | AK110: 0 | AL110: 47755 | AM110: 21600 | AN110: 30 | AO110: 27183 | AP110: 11125 | AQ110: 5808 | AR110: 120 | AS110: -1910 | AT110: 11432 | AU110: 27194 | AV110: 27194 | AW110: 151 | AX110: 164 | AY110: 164 | AZ110: 151 | BA110: 9954 | BB110: -1910 | BC110: -1910 | BD110: 2030 | BE110: 120 | BF110: 0
A111: 36596159 | B111: 62090 | C111: 25610 | D111: 2 | E111: 25 | F111: 256 | G111: TRUE | H111: TRUE | I111: a2 | J111: o1 | K111: 0 | L111: 112 | M111: 8 | N111: 11.08 | O111: 0.684 | P111: 272.268 | Q111: 3.42 | R111: 278.496 | S111: 98.1 | T111: 6.96 | U111: 69.46 | V111: 13.77 | W111: 7.3247 | X111: 7.3437 | Y111: 0.3937 | Z111: 69.18 | AA111: 41.05 | AB111: 80.26 | AC111: 35.16 | AD111: 11.8 | AE111: 0.4604 | AF111: 999999999 | AG111: 0.35 | AH111: 8.0191 | AI111: 49262 | AJ111: 444299 | AK111: 349 | AL111: 174962 | AM111: 132341 | AN111: 1674 | AO111: 135354 | AP111: 47691 | AQ111: 30944 | AR111: 121538 | AS111: 61192 | AT111: 18318 | AU111: 134174 | AV111: 134523 | AW111: 121040 | AX111: 71829 | AY111: 140437 | AZ111: 61527 | BA111: 395037 | BB111: 46631 | BC111: 106977 | BD111: 0 | BE111: 61192 | BF111: 1571
A112: 36622150 | B112: 46900 | C112: 43210 | D112: 4 | E112: 43 | F112: 432 | G112: FALSE | H112: FALSE | I112: a1 | J112: o1 | K112: 0 | L112: 112 | M112: 6 | N112: 10.9 | O112: 127.872 | P112: 27.108 | Q112: 6.48 | R112: 123.732 | S112: 56.232 | T112: 0 | U112: -4.35 | V112: -8.36 | W112: 5.9855 | X112: 8.2593 | Y112: 0.6975 | Z112: -44.5 | AA112: -51.7 | AB112: 2.42 | AC112: -11.98 | AD112: -9.76 | AE112: 999999999 | AF112: -999999999 | AG112: 0 | AH112: 8.1739 | AI112: 14025 | AJ112: 128665 | AK112: 31889 | AL112: 89754 | AM112: 6762 | AN112: 1620 | AO112: 30857 | AP112: 14025 | AQ112: 0 | AR112: -3906 | AS112: -10764 | AT112: 14025 | AU112: 83948 | AV112: 115837 | AW112: -39947 | AX112: -46409 | AY112: 2173 | AZ112: -10754 | BA112: 114640 | BB112: -11195 | BC112: -4337 | BD112: 0 | BE112: -10764 | BF112: 0
A113: 36257222 | B113: 43120 | C113: 47520 | D113: 4 | E113: 47 | F113: 475 | G113: FALSE | H113: FALSE | I113: a1 | J113: o1 | K113: 0 | L113: 112 | M113: 2 | N113: 217.69 | O113: 242.28 | P113: 9.9 | Q113: 184.752 | R113: 12.384 | S113: 558.072 | T113: 0 | U113: -29.78 | V113: -41.81 | W113: 0.0252 | X113: 0.4593 | Y113: 1.4042 | Z113: -29.43 | AA113: -30.29 | AB113: -30.29 | AC113: -29.43 | AD113: -999999999 | AE113: 999999999 | AF113: -999999999 | AG113: 0 | AH113: -0.5406 | AI113: 56372 | AJ113: 25895 | AK113: 24473 | AL113: 36363 | AM113: 1000 | AN113: 18665 | AO113: 1253 | AP113: 56372 | AQ113: 0 | AR113: -10829 | AS113: -10829 | AT113: 56372 | AU113: 1422 | AV113: 25895 | AW113: -10705 | AX113: -11016 | AY113: -11016 | AZ113: -10705 | BA113: -30477 | BB113: -10829 | BC113: -10829 | BD113: 0 | BE113: -10829 | BF113: 0
A114: 45231800 | B114: 90040 | C114: 56101 | D114: 5 | E114: 56 | F114: 561 | G114: FALSE | H114: TRUE | I114: a1 | J114: o1 | K114: 0 | L114: 112 | M114: 1 | N114: 12.65 | O114: 0.936 | P114: 22.572 | Q114: 30.24 | R114: 22.572 | S114: 65.916 | T114: 0.2 | U114: 31.54 | V114: 19.64 | W114: 8.0198 | X114: 8.033 | Y114: 0.6227 | Z114: 31.83 | AA114: 33.79 | AB114: 33.95 | AC114: 31.83 | AD114: 17 | AE114: 0.8521 | AF114: 999999999 | AG114: 0 | AH114: 6.9011 | AI114: 6391 | AJ114: 50496 | AK114: 83 | AL114: 31448 | AM114: 1973 | AN114: 2642 | AO114: 1973 | AP114: 5760 | AQ114: 105 | AR114: 9919 | AS114: 9919 | AT114: 6286 | AU114: 50413 | AV114: 50496 | AW114: 10011 | AX114: 10628 | AY114: 10677 | AZ114: 10011 | BA114: 44105 | BB114: 7500 | BC114: 7500 | BD114: 0 | BE114: 9919 | BF114: 0
A115: 44846207 | B115: 47190 | C115: 41209 | D115: 4 | E115: 41 | F115: 412 | G115: FALSE | H115: TRUE | I115: a1 | J115: o1 | K115: 0 | L115: 112 | M115: 8 | N115: 71.59 | O115: 0 | P115: 58.176 | Q115: 79.344 | R115: 70.02 | S115: 108.144 | T115: 0 | U115: 12.38 | V115: 19.8 | W115: 1.1302 | X115: 1.1302 | Y115: 2.3829 | Z115: 13.08 | AA115: 8.52 | AB115: 25.88 | AC115: 9.17 | AD115: 64.77 | AE115: 2.5847 | AF115: 50.6442 | AG115: 0 | AH115: 0.3967 | AI115: 82747 | AJ115: 115573 | AK115: 0 | AL115: 275410 | AM115: 44532 | AN115: 60701 | AO115: 53589 | AP115: 82747 | AQ115: 0 | AR115: 34099 | AS115: 22886 | AT115: 82747 | AU115: 93523 | AV115: 93523 | AW115: 36025 | AX115: 23476 | AY115: 71302 | AZ115: 25273 | BA115: 32826 | BB115: 21262 | BC115: 32014 | BD115: 461 | BE115: 23347 | BF115: 0
A116: 46423575 | B116: 46180 | C116: 86210 | D116: 8 | E116: 86 | F116: 862 | G116: TRUE | H116: FALSE | I116: a1 | J116: o1 | K116: 0 | L116: 112 | M116: 6 | N116: 98.89 | O116: 0 | P116: 50.508 | Q116: 1.872 | R116: 53.604 | S116: 201.564 | T116: 0 | U116: -2.69 | V116: -14.51 | W116: 0.8562 | X116: 0.8562 | Y116: 1.4741 | Z116: -2.22 | AA116: -4.81 | AB116: 71.63 | AC116: -8.85 | AD116: -1310.42 | AE116: 999999999 | AF116: -13.2756 | AG116: 14.88 | AH116: 0.0112 | AI116: 52216 | AJ116: 52801 | AK116: 0 | AL116: 77839 | AM116: 10925 | AN116: 406 | AO116: 11595 | AP116: 43589 | AQ116: 0 | AR116: -2097 | AS116: -7666 | AT116: 52216 | AU116: 44708 | AV116: 44708 | AW116: -1733 | AX116: -3749 | AY116: 55763 | AZ116: -6890 | BA116: 585 | BB116: -7666 | BC116: -2634 | BD116: 537 | BE116: -7129 | BF116: 7860
A117: 36656062 | B117: 46190 | C117: 49410 | D117: 4 | E117: 49 | F117: 494 | G117: FALSE | H117: FALSE | I117: a1 | J117: o1 | K117: 0 | L117: 112 | M117: 1 | N117: 599.72 | O117: 0 | P117: 0 | Q117: 11.376 | R117: 34.02 | S117: 2064.852 | T117: 369.26 | U117: 19.81 | V117: -25.89 | W117: 0.0515 | X117: 0.0515 | Y117: 0.9712 | Z117: 21 | AA117: -18.28 | AB117: 46.62 | AC117: -25.47 | AD117: -999999999 | AE117: 31.1659 | AF117: -999999999 | AG117: 0 | AH117: -0.8332 | AI117: 62737 | AJ117: 10461 | AK117: 0 | AL117: 10160 | AM117: 0 | AN117: 322 | AO117: 961 | AP117: 58275 | AQ117: 38629 | AR117: 2013 | AS117: -2709 | AT117: 24108 | AU117: 1242 | AV117: 1242 | AW117: 2134 | AX117: -1858 | AY117: 4737 | AZ117: -2588 | BA117: -52276 | BB117: -2709 | BC117: 2013 | BD117: 0 | BE117: -2709 | BF117: 0
A118: 36644455 | B118: 46900 | C118: 73110 | D118: 7 | E118: 73 | F118: 731 | G118: FALSE | H118: TRUE | I118: a1 | J118: o1 | K118: 0 | L118: 112 | M118: 5 | N118: 0.6 | O118: 0 | P118: 35.892 | Q118: 0 | R118: 321.12 | S118: 2.376 | T118: 0 | U118: 3.21 | V118: 2.91 | W118: 164.8658 | X118: 164.8658 | Y118: 0.9056 | Z118: 3.88 | AA118: 2.31 | AB118: 2.31 | AC118: 3.88 | AD118: 2.31 | AE118: 0.2636 | AF118: 999999999 | AG118: 0 | AH118: 163.8658 | AI118: 82 | AJ118: 13519 | AK118: 0 | AL118: 12244 | AM118: 1221 | AN118: 0 | AO118: 10922 | AP118: 82 | AQ118: 0 | AR118: 394 | AS118: 394 | AT118: 82 | AU118: 13519 | AV118: 13519 | AW118: 476 | AX118: 284 | AY118: 284 | AZ118: 476 | BA118: 13437 | BB118: 311 | BC118: 311 | BD118: 0 | BE118: 394 | BF118: 0
A119: 48221520 | B119: 82990 | C119: 70220 | D119: 7 | E119: 70 | F119: 702 | G119: FALSE | H119: FALSE | I119: a1 | J119: o1 | K119: 0 | L119: 112 | M119: 1 | N119: 135.87 | O119: 0 | P119: 0 | Q119: 0 | R119: 0 | S119: 17979.084 | T119: 7.46 | U119: -80.22 | V119: -41.18 | W119: 0.0066 | X119: 0.0066 | Y119: 0.0272 | Z119: 59.63 | AA119: -1331.48 | AB119: 69.77 | AC119: -1341.61 | AD119: -999999999 | AE119: 999999999 | AF119: -45.9588 | AG119: 0 | AH119: -0.264 | AI119: 139438 | AJ119: 102626 | AK119: 0 | AL119: 2792 | AM119: 0 | AN119: 0 | AO119: 0 | AP119: 139438 | AQ119: 7660 | AR119: -2240 | AS119: -42263 | AT119: 131778 | AU119: 875 | AV119: 875 | AW119: 1665 | AX119: -37175 | AY119: 1948 | AZ119: -37458 | BA119: -36812 | BB119: -42263 | BC119: -3140 | BD119: 900 | BE119: -41363 | BF119: 0
A120: 48278203 | B120: 58190 | C120: 70220 | D120: 7 | E120: 70 | F120: 702 | G120: FALSE | H120: FALSE | I120: a1 | J120: o1 | K120: 0 | L120: 112 | M120: 5 | N120: 41.05 | O120: 0 | P120: 57.492 | Q120: 0.72 | R120: 121.248 | S120: 103.644 | T120: 0 | U120: -77.9 | V120: -91.43 | W120: 2.4355 | X120: 2.4355 | Y120: 1.1736 | Z120: -77.24 | AA120: -74.43 | AB120: -74.43 | AC120: -77.24 | AD120: -155.12 | AE120: 999999999 | AF120: -999999999 | AG120: 0 | AH120: 1.4355 | AI120: 3460 | AJ120: 8427 | AK120: 0 | AL120: 9890 | AM120: 1580 | AN120: 20 | AO120: 3331 | AP120: 2848 | AQ120: 0 | AR120: -7705 | AS120: -7705 | AT120: 3460 | AU120: 8427 | AV120: 8427 | AW120: -7640 | AX120: -7362 | AY120: -7362 | AZ120: -7640 | BA120: 4967 | BB120: -7705 | BC120: -7705 | BD120: 0 | BE120: -7705 | BF120: 0
A121: 43774016 | B121: 73110 | C121: 71110 | D121: 7 | E121: 71 | F121: 711 | G121: TRUE | H121: TRUE | I121: a2 | J121: o1 | K121: 0 | L121: 112 | M121: 1 | N121: 89.98 | O121: 0 | P121: 62.604 | Q121: 222.264 | R121: 69.66 | S121: 237.06 | T121: 3.97 | U121: 2.71 | V121: 1.82 | W121: 1.1546 | X121: 1.1546 | Y121: 1.2288 | Z121: 2.81 | AA121: 3.13 | AB121: 6.43 | AC121: 2.52 | AD121: 7.25 | AE121: 78.4812 | AF121: 2.6701 | AG121: 8.78 | AH121: 0.1113 | AI121: 359915 | AJ121: 399985 | AK121: 0 | AL121: 491524 | AM121: 85497 | AN121: 303480 | AO121: 95121 | AP121: 323698 | AQ121: 15885 | AR121: 13327 | AS121: 7287 | AT121: 344030 | AU121: 397241 | AV121: 397241 | AW121: 13858 | AX121: 15418 | AY121: 31640 | AZ121: 12416 | BA121: 40070 | BB121: 2909 | BC121: 4586 | BD121: 4363 | BE121: 11650 | BF121: 35121
A122: 36424731 | B122: 46900 | C122: 41209 | D122: 4 | E122: 41 | F122: 412 | G122: FALSE | H122: FALSE | I122: a1 | J122: o1 | K122: 0 | L122: 112 | M122: 5 | N122: 59.02 | O122: 3.852 | P122: 47.34 | Q122: 2.52 | R122: 56.448 | S122: 99.54 | T122: 14.52 | U122: 1.28 | V122: -6.28 | W122: 2.0918 | X122: 2.1429 | Y122: 2.1195 | Z122: 2.48 | AA122: 3.44 | AB122: 13.23 | AC122: -1.34 | AD122: -17.32 | AE122: 58.2551 | AF122: -6.0139 | AG122: 0 | AH122: 0.6941 | AI122: 14156 | AJ122: 23982 | AK122: 546 | AL122: 50832 | AM122: 6687 | AN122: 359 | AO122: 7973 | AP122: 14056 | AQ122: 3484 | AR122: 652 | AS122: -1508 | AT122: 10672 | AU122: 22324 | AV122: 22870 | AW122: 1263 | AX122: 1753 | AY122: 6728 | AZ122: -682 | BA122: 9826 | BB122: -1702 | BC122: 243 | BD122: 215 | BE122: -1293 | BF122: 0
A123: 44652356 | B123: 43210 | C123: 43210 | D123: 4 | E123: 43 | F123: 432 | G123: TRUE | H123: TRUE | I123: a1 | J123: o1 | K123: 0 | L123: 112 | M123: 7 | N123: 48.27 | O123: 0 | P123: 0 | Q123: 106.632 | R123: 0 | S123: 132.48 | T123: 0 | U123: 34.94 | V123: 12.46 | W123: 2.0714 | X123: 2.0714 | Y123: 0.3649 | Z123: 37.09 | AA123: 37.54 | AB123: 37.54 | AC123: 37.09 | AD123: 19.03 | AE123: 4.9033 | AF123: 44.0991 | AG123: 34.84 | AH123: 1.0714 | AI123: 20202 | AJ123: 41847 | AK123: 0 | AL123: 15271 | AM123: 0 | AN123: 4524 | AO123: 0 | AP123: 5620 | AQ123: 0 | AR123: 5336 | AS123: 5215 | AT123: 20202 | AU123: 41847 | AV123: 41847 | AW123: 5665 | AX123: 5734 | AY123: 5734 | AZ123: 5665 | BA123: 21645 | BB123: 4120 | BC123: 4120 | BD123: 121 | BE123: 5336 | BF123: 14582
A124: 46114696 | B124: 73110 | C124: 68200 | D124: 6 | E124: 68 | F124: 682 | G124: TRUE | H124: TRUE | I124: a2 | J124: o1 | K124: 0 | L124: 112 | M124: 7 | N124: 53.19 | O124: 104.184 | P124: 65.232 | Q124: 173.808 | R124: 371.052 | S124: 413.028 | T124: 5.83 | U124: 51.61 | V124: 2.71 | W124: 0.4806 | X124: 0.6077 | Y124: 0.2079 | Z124: 41.34 | AA124: -33.36 | AB124: 25.79 | AC124: 22.5 | AD124: 2.66 | AE124: 7.2342 | AF124: 2.4169 | AG124: 29.1 | AH124: 0.8797 | AI124: 396576 | AJ124: 745447 | AK124: 44871 | AL124: 155041 | AM124: 28099 | AN124: 74865 | AO124: 159811 | AP124: 177880 | AQ124: 43491 | AR124: 80027 | AS124: 20223 | AT124: 353085 | AU124: 169723 | AV124: 214594 | AW124: 64097 | AX124: -51725 | AY124: 39995 | AZ124: 34898 | BA124: 348871 | BB124: 9287 | BC124: 54819 | BD124: 14272 | BE124: 34495 | BF124: 216965
A125: 46617221 | B125: 82990 | C125: 56109 | D125: 5 | E125: 56 | F125: 561 | G125: TRUE | H125: TRUE | I125: a1 | J125: o1 | K125: 0 | L125: 112 | M125: 8 | N125: 132.71 | O125: 11.7 | P125: 0.684 | Q125: 3.528 | R125: 1.62 | S125: 39.276 | T125: 0 | U125: 2.77 | V125: 15.74 | W125: 0.3775 | X125: 0.6295 | Y125: 10.2661 | Z125: 3.58 | AA125: 5.25 | AB125: 20.91 | AC125: 2.62 | AD125: 999999999 | AE125: 5.9471 | AF125: 6.4109 | AG125: 20.64 | AH125: -0.2464 | AI125: 72228 | AJ125: 54425 | AK125: 18199 | AL125: 558737 | AM125: 1098 | AN125: 5489 | AO125: 2560 | AP125: 60992 | AQ125: 0 | AR125: 15528 | AS125: 8571 | AT125: 72228 | AU125: 27272 | AV125: 45471 | AW125: 20044 | AX125: 29387 | AY125: 116849 | AZ125: 14671 | BA125: -17803 | BB125: 6772 | BC125: 12145 | BD125: 1584 | BE125: 10155 | BF125: 11236
A126: 45397961 | B126: 46900 | C126: 42990 | D126: 4 | E126: 42 | F126: 429 | G126: FALSE | H126: FALSE | I126: a1 | J126: o1 | K126: 0 | L126: 112 | M126: 1 | N126: 83.97 | O126: 0 | P126: 0 | Q126: 0 | R126: 0 | S126: 564.516 | T126: 83.37 | U126: 49.58 | V126: -12.23 | W126: 21.4414 | X126: 21.4414 | Y126: 0.5355 | Z126: 50.91 | AA126: -4.13 | AB126: 63.16 | AC126: -16.39 | AD126: -76.36 | AE126: 3.5275 | AF126: -3.4536 | AG126: 0 | AH126: 0.1908 | AI126: 15493 | AJ126: 18450 | AK126: 0 | AL126: 9880 | AM126: 0 | AN126: 0 | AO126: 0 | AP126: 15493 | AQ126: 15382 | AR126: 4899 | AS126: -2258 | AT126: 111 | AU126: 2380 | AV126: 2380 | AW126: 5030 | AX126: -409 | AY126: 6241 | AZ126: -1620 | BA126: 2957 | BB126: -2258 | BC126: 4392 | BD126: 507 | BE126: -1751 | BF126: 0
A127: 36284131 | B127: 77390 | C127: 61100 | D127: 6 | E127: 61 | F127: 611 | G127: FALSE | H127: TRUE | I127: a1 | J127: o1 | K127: 0 | L127: 112 | M127: 2 | N127: 18.58 | O127: 58.644 | P127: 707.796 | Q127: 82.476 | R127: 707.796 | S127: 233.748 | T127: 0.58 | U127: 5.07 | V127: 1.45 | W127: 5.2938 | X127: 5.5528 | Y127: 0.2862 | Z127: 5.44 | AA127: 5.44 | AB127: 5.44 | AC127: 5.44 | AD127: 1.34 | AE127: 16.9677 | AF127: 999999999 | AG127: 0 | AH127: 4.3794 | AI127: 3682 | AJ127: 19807 | AK127: 924 | AL127: 5670 | AM127: 11148 | AN127: 1299 | AO127: 11148 | AP127: 3682 | AQ127: 115 | AR127: 288 | AS127: 288 | AT127: 3567 | AU127: 18883 | AV127: 19807 | AW127: 309 | AX127: 309 | AY127: 309 | AZ127: 309 | BA127: 16125 | BB127: 217 | BC127: 217 | BD127: 0 | BE127: 288 | BF127: 0
A128: 36474797 | B128: 47190 | C128: 38110 | D128: 3 | E128: 38 | F128: 381 | G128: FALSE | H128: TRUE | I128: a1 | J128: o1 | K128: 0 | L128: 112 | M128: 7 | N128: 16.82 | O128: 0.036 | P128: 87.12 | Q128: 4.284 | R128: 87.12 | S128: 61.56 | T128: 0 | U128: 57.19 | V128: 54.6 | W128: 5.7583 | X128: 5.7594 | Y128: 0.9832 | Z128: 57.3 | AA128: 55.93 | AB128: 81.69 | AC128: 55.64 | AD128: 52.16 | AE128: 0.3736 | AF128: 999999999 | AG128: 0 | AH128: 4.9452 | AI128: 15033 | AJ128: 89375 | AK128: 16 | AL128: 87881 | AM128: 21272 | AN128: 1053 | AO128: 21272 | AP128: 15033 | AQ128: 0 | AR128: 50262 | AS128: 48803 | AT128: 15033 | AU128: 86566 | AV128: 86582 | AW128: 50360 | AX128: 49159 | AY128: 71798 | AZ128: 48901 | BA128: 74342 | BB128: 38777 | BC128: 40236 | BD128: 0 | BE128: 48803 | BF128: 0
A129: 47085924 | B129: 46900 | C129: 25990 | D129: 2 | E129: 25 | F129: 259 | G129: FALSE | H129: TRUE | I129: a1 | J129: o1 | K129: 0 | L129: 112 | M129: 4 | N129: 7.87 | O129: 0 | P129: 24.408 | Q129: 12.744 | R129: 24.408 | S129: 18.936 | T129: 0 | U129: 2.24 | V129: 3.36 | W129: 12.6954 | X129: 12.6954 | Y129: 1.496 | Z129: 2.89 | AA129: 3.58 | AB129: 6.99 | AC129: 2.89 | AD129: 2.35 | AE129: 3.6321 | AF129: 999999999 | AG129: 0 | AH129: 11.6954 | AI129: 1264 | AJ129: 16047 | AK129: 0 | AL129: 24007 | AM129: 1630 | AN129: 852 | AO129: 1630 | AP129: 1264 | AQ129: 0 | AR129: 540 | AS129: 540 | AT129: 1264 | AU129: 16047 | AV129: 16047 | AW129: 696 | AX129: 861 | AY129: 1679 | AZ129: 696 | BA129: 14783 | BB129: 348 | BC129: 348 | BD129: 0 | BE129: 540 | BF129: 0
A130: 36453137 | B130: 46180 | C130: 71200 | D130: 7 | E130: 71 | F130: 712 | G130: TRUE | H130: TRUE | I130: a2 | J130: o1 | K130: 0 | L130: 112 | M130: 7 | N130: 44.11 | O130: 0 | P130: 16.884 | Q130: 19.044 | R130: 16.884 | S130: 357.12 | T130: 32.91 | U130: 36.13 | V130: 12.45 | W130: 6.1902 | X130: 6.1902 | Y130: 0.4407 | Z130: 36.46 | AA130: 29.91 | AB130: 56.57 | AC130: 28.57 | AD130: 17.42 | AE130: 3.3379 | AF130: 999999999 | AG130: 0 | AH130: 1.2667 | AI130: 268639 | AJ130: 608928 | AK130: 0 | AL130: 268388 | AM130: 12595 | AN130: 14201 | AO130: 12595 | AP130: 266262 | AQ130: 200455 | AR130: 96994 | AS130: 75813 | AT130: 68184 | AU130: 422078 | AV130: 422078 | AW130: 97873 | AX130: 80300 | AY130: 151841 | AZ130: 76692 | BA130: 340289 | BB130: 59299 | BC130: 80480 | BD130: 0 | BE130: 75813 | BF130: 9
A131: 43996744 | B131: 74200 | C131: 47910 | D131: =LEFT(C131,1) -> 4 | E131: =LEFT(C131,2) -> 47 | F131: =LEFT(C131,3) -> 479 | G131: =BF131<>0 -> FALSE | H131: =AS131>0 -> TRUE | I131: a1 | J131: o1 | K131: 0 | L131: 112 | M131: 1 | N131: 26.39 | O131: 900.756 | P131: 0 | Q131: 2.628 | R131: 0 | S131: 307.98 | T131: 0 | U131: 29.95 | V131: 7.15 | W131: 1.5253 | X131: 3.7888 | Y131: 0.2387 | Z131: 34.3 | AA131: 34.97 | AB131: 34.97 | AC131: 34.3 | AD131: 7.51 | AE131: 4.7736 | AF131: 999999999 | AG131: 0 | AH131: 2.7888 | AI131: 3628 | AJ131: 13746 | AK131: 8212 | AL131: 3282 | AM131: 0 | AN131: 24 | AO131: 0 | AP131: 2808 | AQ131: 0 | AR131: 983 | AS131: 983 | AT131: 3628 | AU131: 5534 | AV131: 13746 | AW131: 1126 | AX131: 1148 | AY131: 1148 | AZ131: 1126 | BA131: 10118 | BB131: 760 | BC131: 760 | BD131: 0 | BE131: 983 | BF131: 0
A132: 44012501 | B132: 46190 | C132: 52210 | D132: 5 | E132: 52 | F132: 522 | G132: FALSE | H132: TRUE | I132: a2 | J132: o2 | K132: 0 | L132: 112 | M132: 8 | N132: 94.3 | O132: 0 | P132: 60.84 | Q132: 75.204 | R132: 61.596 | S132: 229.824 | T132: 0 | U132: 0.55 | V132: 0.58 | W132: 1.0518 | X132: 1.0518 | Y132: 1.4771 | Z132: 0.58 | AA132: -0.2 | AB132: 0 | AC132: 0.41 | AD132: 8.16 | AE132: 134.1159 | AF132: 999999999 | AG132: 0 | AH132: 0.0603 | AI132: 1522082 | AJ132: 1613920 | AK132: 0 | AL132: 2383927 | AM132: 402944 | AN132: 498047 | AO132: 407967 | AP132: 1522082 | AQ132: 0 | AR132: 13343 | AS132: 9495 | AT132: 1522082 | AU132: 1600979 | AV132: 1600979 | AW132: 13832 | AX132: -4781 | AY132: -182 | AZ132: 9984 | BA132: 91838 | BB132: 7501 | BC132: 11349 | BD132: 0 | BE132: 9495 | BF132: 0
A133: 36865605 | B133: 46190 | C133: 70220 | D133: 7 | E133: 70 | F133: 702 | G133: FALSE | H133: TRUE | I133: a1 | J133: o1 | K133: 0 | L133: 112 | M133: 1 | N133: 3.29 | O133: 0 | P133: 44.964 | Q133: 0.576 | R133: 233.964 | S133: 47.988 | T133: 0 | U133: 81.07 | V133: 20.04 | W133: 30.3359 | X133: 30.3359 | Y133: 0.2472 | Z133: 81.65 | AA133: 81.59 | AB133: 81.59 | AC133: 81.65 | AD133: 16.36 | AE133: 0.2082 | AF133: 999999999 | AG133: 0 | AH133: 29.3359 | AI133: 2390 | AJ133: 72503 | AK133: 0 | AL133: 17927 | AM133: 2240 | AN133: 30 | AO133: 11652 | AP133: 2390 | AQ133: 0 | AR133: 14534 | AS133: 14534 | AT133: 2390 | AU133: 72503 | AV133: 72503 | AW133: 14639 | AX133: 14627 | AY133: 14627 | AZ133: 14639 | BA133: 70113 | BB133: 11476 | BC133: 11476 | BD133: 0 | BE133: 14534 | BF133: 0
A134: 44652381 | B134: 82990 | C134: 46610 | D134: 4 | E134: 46 | F134: 466 | G134: FALSE | H134: TRUE | I134: a1 | J134: o1 | K134: 0 | L134: 112 | M134: 8 | N134: 0 | O134: 0 | P134: 0 | Q134: 0 | R134: 0 | S134: 0 | T134: 0 | U134: 7.2 | V134: 9.4 | W134: 999999999 | X134: 999999999 | Y134: 1.305 | Z134: 8.22 | AA134: 93.61 | AB134: 93.61 | AC134: 8.22 | AD134: 7.44 | AE134: 0 | AF134: 999999999 | AG134: 0 | AH134: 999999999 | AI134: 0 | AJ134: 5402 | AK134: 0 | AL134: 7050 | AM134: 0 | AN134: 0 | AO134: 0 | AP134: 0 | AQ134: 0 | AR134: 508 | AS134: 508 | AT134: 0 | AU134: 5402 | AV134: 5402 | AW134: 580 | AX134: 6600 | AY134: 6600 | AZ134: 580 | BA134: 5402 | BB134: 402 | BC134: 402 | BD134: 0 | BE134: 508 | BF134: 0
A135: 45644527 | B135: 47190 | C135: 47910 | D135: 4 | E135: 47 | F135: 479 | G135: FALSE | H135: TRUE | I135: a1 | J135: o1 | K135: 0 | L135: 112 | M135: 3 | N135: 69.68 | O135: 511.416 | P135: 0.972 | Q135: 0.648 | R135: 4.464 | S135: 474.768 | T135: 0 | U135: 10.17 | V135: 5.37 | W135: 0.3578 | X135: 1.435 | Y135: 0.5283 | Z135: 13.42 | AA135: 15.37 | AB135: 15.37 | AC135: 13.42 | AD135: 16.34 | AE135: 14.0658 | AF135: 999999999 | AG135: 0 | AH135: 0.435 | AI135: 12814 | AJ135: 18389 | AK135: 13803 | AL135: 9716 | AM135: 27 | AN135: 18 | AO135: 121 | AP135: 12814 | AQ135: 0 | AR135: 989 | AS135: 989 | AT135: 12814 | AU135: 4586 | AV135: 18389 | AW135: 1304 | AX135: 1494 | AY135: 1494 | AZ135: 1304 | BA135: 5575 | BB135: 911 | BC135: 911 | BD135: 0 | BE135: 989 | BF135: 0
A136: 48112526 | B136: 70220 | C136: 93190 | D136: 9 | E136: 93 | F136: 931 | G136: FALSE | H136: TRUE | I136: a1 | J136: o1 | K136: 0 | L136: 112 | M136: 1 | N136: 59.57 | O136: 0 | P136: 0 | Q136: 131.508 | R136: 220.788 | S136: 138.096 | T136: 0 | U136: 4.77 | V136: 7.41 | W136: 1.6785 | X136: 1.6785 | Y136: 1.5527 | Z136: 2.06 | AA136: 2.06 | AB136: 2.06 | AC136: 2.06 | AD136: 14.48 | AE136: 10.1721 | AF136: 999999999 | AG136: 0 | AH136: 0.6785 | AI136: 12878 | AJ136: 21616 | AK136: 0 | AL136: 33564 | AM136: 0 | AN136: 12261 | AO136: 20587 | AP136: 12878 | AQ136: 0 | AR136: 1603 | AS136: 1603 | AT136: 12878 | AU136: 21616 | AV136: 21616 | AW136: 693 | AX136: 692 | AY136: 692 | AZ136: 693 | BA136: 8738 | BB136: 1266 | BC136: 1266 | BD136: 0 | BE136: 1603 | BF136: 0
A137: 36237183 | B137: 47190 | C137: 46900 | D137: 4 | E137: 46 | F137: 469 | G137: FALSE | H137: TRUE | I137: a1 | J137: o1 | K137: 0 | L137: 112 | M137: 2 | N137: 0 | O137: 50.58 | P137: 59.076 | Q137: 0 | R137: 59.076 | S137: 0 | T137: 0 | U137: 34.3 | V137: 59.26 | W137: 999999999 | X137: 999999999 | Y137: 1.7275 | Z137: 34.3 | AA137: 34.3 | AB137: 37.18 | AC137: 34.3 | AD137: 59.26 | AE137: 0 | AF137: 999999999 | AG137: 0 | AH137: 999999999 | AI137: 0 | AJ137: 16297 | AK137: 3958 | AL137: 28154 | AM137: 4621 | AN137: 0 | AO137: 4621 | AP137: 0 | AQ137: 0 | AR137: 9658 | AS137: 9658 | AT137: 0 | AU137: 7239 | AV137: 11197 | AW137: 9658 | AX137: 9658 | AY137: 10470 | AZ137: 9658 | BA137: 16297 | BB137: 9658 | BC137: 9658 | BD137: 0 | BE137: 9658 | BF137: 0
A138: 46781218 | B138: 47990 | C138: 62090 | D138: 6 | E138: 62 | F138: 620 | G138: FALSE | H138: TRUE | I138: a1 | J138: o1 | K138: 0 | L138: 112 | M138: 6 | N138: 8.76 | O138: 0.72 | P138: 33.984 | Q138: 5.724 | R138: 39.024 | S138: 46.908 | T138: 0 | U138: 43.62 | V138: 29.31 | W138: 11.3421 | X138: 11.3577 | Y138: 0.6721 | Z138: 43.89 | AA138: 50.54 | AB138: 54.87 | AC138: 43.89 | AD138: 24.23 | AE138: 0.3962 | AF138: 999999999 | AG138: 0 | AH138: 10.4112 | AI138: 3905 | AJ138: 44561 | AK138: 61 | AL138: 29950 | AM138: 2829 | AN138: 477 | AO138: 3248 | AP138: 3905 | AQ138: 0 | AR138: 13065 | AS138: 13065 | AT138: 3905 | AU138: 44291 | AV138: 44352 | AW138: 13146 | AX138: 15137 | AY138: 16435 | AZ138: 13146 | BA138: 40656 | BB138: 9854 | BC138: 9854 | BD138: 0 | BE138: 13065 | BF138: 0
A139: 48170216 | B139: 46190 | C139: 45110 | D139: 4 | E139: 45 | F139: 451 | G139: FALSE | H139: TRUE | I139: a1 | J139: o1 | K139: 0 | L139: 112 | M139: 1 | N139: 92.23 | O139: 0 | P139: 47.268 | Q139: 31.32 | R139: 58.248 | S139: 176.796 | T139: 60.15 | U139: 4.9 | V139: 1.95 | W139: 1.3743 | X139: 1.3743 | Y139: 1.878 | Z139: 5.16 | AA139: 2.1 | AB139: 5.92 | AC139: 1.33 | AD139: 25.17 | AE139: 10.0907 | AF139: 27.1818 | AG139: 0 | AH139: 0.0842 | AI139: 67921 | AJ139: 73641 | AK139: 0 | AL139: 138298 | AM139: 18166 | AN139: 12032 | AO139: 22387 | AP139: 67921 | AQ139: 44302 | AR139: 6786 | AS139: 1440 | AT139: 23619 | AU139: 32461 | AV139: 32461 | AW139: 7140 | AX139: 2906 | AY139: 8197 | AZ139: 1849 | BA139: 5720 | BB139: 1440 | BC139: 6731 | BD139: 55 | BE139: 1495 | BF139: 0
A140: 50063138 | B140: 33140 | C140: 43220 | D140: 4 | E140: 43 | F140: 432 | G140: FALSE | H140: TRUE | I140: a1 | J140: o1 | K140: 0 | L140: 112 | M140: 2 | N140: 34.64 | O140: 0 | P140: 267.156 | Q140: 14.112 | R140: 267.156 | S140: 99.792 | T140: 0.05 | U140: 1.63 | V140: 2.04 | W140: 2.8909 | X140: 2.8909 | Y140: 1.2496 | Z140: 1.69 | AA140: 1.81 | AB140: 1.81 | AC140: 1.69 | AD140: 2.47 | AE140: 21.4098 | AF140: 999999999 | AG140: 0 | AH140: 1.8866 | AI140: 33849 | AJ140: 97710 | AK140: 0 | AL140: 122099 | AM140: 90619 | AN140: 4793 | AO140: 90619 | AP140: 33849 | AQ140: 50 | AR140: 2001 | AS140: 2001 | AT140: 33799 | AU140: 97710 | AV140: 97710 | AW140: 2072 | AX140: 2220 | AY140: 2220 | AZ140: 2072 | BA140: 63861 | BB140: 1581 | BC140: 1581 | BD140: 0 | BE140: 2001 | BF140: 0
A141: 47429496 | B141: 02401 | C141: 43390 | D141: 4 | E141: 43 | F141: 433 | G141: FALSE | H141: TRUE | I141: a1 | J141: o1 | K141: 0 | L141: 112 | M141: 4 | N141: 8.47 | O141: 0 | P141: 0 | Q141: 2.34 | R141: 0 | S141: 21.096 | T141: 0 | U141: 1.01 | V141: 1.32 | W141: 8.8753 | X141: 8.8753 | Y141: 1.305 | Z141: 1.12 | AA141: 1.12 | AB141: 24.91 | AC141: 1.12 | AD141: 1.1 | AE141: 8.418 | AF141: 999999999 | AG141: 0 | AH141: 10.7964 | AI141: 1027 | AJ141: 12115 | AK141: 0 | AL141: 15811 | AM141: 0 | AN141: 104 | AO141: 0 | AP141: 927 | AQ141: 0 | AR141: 160 | AS141: 160 | AT141: 1027 | AU141: 9115 | AV141: 9115 | AW141: 178 | AX141: 178 | AY141: 3940 | AZ141: 178 | BA141: 11088 | BB141: 122 | BC141: 122 | BD141: 0 | BE141: 160 | BF141: 0
A142: 46484884 | B142: 56101 | C142: 47910 | D142: 4 | E142: 47 | F142: 479 | G142: FALSE | H142: FALSE | I142: a1 | J142: o1 | K142: 0 | L142: 112 | M142: 7 | N142: 269.02 | O142: 148.536 | P142: 9.612 | Q142: 32.616 | R142: 9.684 | S142: 569.052 | T142: 10.07 | U142: -13.41 | V142: -31.74 | W142: 0.0317 | X142: 0.3021 | Y142: 1.6966 | Z142: -11.28 | AA142: -10.74 | AB142: 11.84 | AC142: -16.28 | AD142: -999999999 | AE142: 999999999 | AF142: -37.7393 | AG142: 0 | AH142: -0.6282 | AI142: 192705 | AJ142: 71630 | AK142: 50154 | AL142: 121528 | AM142: 3247 | AN142: 11014 | AO142: 3274 | AP142: 192103 | AQ142: 7217 | AR142: -16298 | AS142: -22740 | AT142: 185488 | AU142: 5896 | AV142: 56050 | AW142: -13711 | AX142: -13063 | AY142: 14393 | AZ142: -19789 | BA142: -121075 | BB142: -22740 | BC142: -16885 | BD142: 587 | BE142: -22153 | BF142: 0
A143: 48233447 | B143: 14130 | C143: 14200 | D143: 1 | E143: 14 | F143: 142 | G143: FALSE | H143: FALSE | I143: a1 | J143: o1 | K143: 0 | L143: 112 | M143: 1 | N143: 101.96 | O143: 399.348 | P143: 0 | Q143: 0.324 | R143: 0 | S143: 595.548 | T143: 0 | U143: -6.14 | V143: -2.8 | W143: 0.485 | X143: 0.9807 | Y143: 0.4556 | Z143: -6.02 | AA143: -5.42 | AB143: -5.42 | AC143: -6.02 | AD143: -999999999 | AE143: 999999999 | AF143: -999999999 | AG143: 0 | AH143: -0.0192 | AI143: 11505 | AJ143: 11283 | AK143: 5703 | AL143: 5141 | AM143: 0 | AN143: 5 | AO143: 0 | AP143: 8505 | AQ143: 0 | AR143: -316 | AS143: -316 | AT143: 11505 | AU143: 5580 | AV143: 11283 | AW143: -310 | AX143: -279 | AY143: -279 | AZ143: -310 | BA143: -222 | BB143: -316 | BC143: -316 | BD143: 0 | BE143: -316 | BF143: 0
A144: 36847798 | B144: 82110 | C144: 96010 | D144: 9 | E144: 96 | F144: 960 | G144: FALSE | H144: TRUE | I144: a1 | J144: o1 | K144: 0 | L144: 112 | M144: 4 | N144: 51.69 | O144: 0.576 | P144: 0.864 | Q144: 3.384 | R144: 2.304 | S144: 164.088 | T144: 29.64 | U144: 33.8 | V144: 21.53 | W144: 3.0071 | X144: 3.0152 | Y144: 1.1176 | Z144: 34.12 | AA144: 26.56 | AB144: 66.37 | AC144: 22.93 | AD144: 34.44 | AE144: 1.7734 | AF144: 6.7554 | AG144: 0 | AH144: 0.9344 | AI144: 22988 | AJ144: 44470 | AK144: 80 | AL144: 49703 | AM144: 120 | AN144: 468 | AO144: 320 | AP144: 22655 | AQ144: 13184 | AR144: 16804 | AS144: 9577 | AT144: 9804 | AU144: 29482 | AV144: 29562 | AW144: 16961 | AX144: 13203 | AY144: 32988 | AZ144: 11398 | BA144: 21482 | BB144: 7399 | BC144: 12962 | BD144: 1664 | BE144: 11241 | BF144: 0
A145: 44528540 | B145: 64920 | C145: 43330 | D145: 4 | E145: 43 | F145: 433 | G145: FALSE | H145: TRUE | I145: a1 | J145: o1 | K145: 0 | L145: 112 | M145: 2 | N145: 30.35 | O145: 0 | P145: 0 | Q145: 0 | R145: 3.132 | S145: 83.52 | T145: 20.05 | U145: 25.19 | V145: 18.83 | W145: 6.2585 | X145: 6.2585 | Y145: 1.3078 | Z145: 25.45 | AA145: 18.59 | AB145: 27.66 | AC145: 16.38 | AD145: 19.83 | AE145: 1.1816 | AF145: 9.409 | AG145: 0 | AH145: 2.2948 | AI145: 4769 | AJ145: 15713 | AK145: 0 | AL145: 20551 | AM145: 0 | AN145: 0 | AO145: 180 | AP145: 4769 | AQ145: 3152 | AR145: 5177 | AS145: 2960 | AT145: 1617 | AU145: 10120 | AV145: 10120 | AW145: 5232 | AX145: 3821 | AY145: 5686 | AZ145: 3367 | BA145: 10944 | BB145: 2171 | BC145: 4036 | BD145: 352 | BE145: 3312 | BF145: 0
A146: 36483281 | B146: 46900 | C146: 46420 | D146: 4 | E146: 46 | F146: 464 | G146: FALSE | H146: FALSE | I146: a1 | J146: o1 | K146: 0 | L146: 112 | M146: 7 | N146: 0 | O146: 0 | P146: 0 | Q146: 0 | R146: 0 | S146: 0 | T146: 0 | U146: -125.3 | V146: -113.51 | W146: 999999999 | X146: 999999999 | Y146: 0.9059 | Z146: 97.69 | AA146: 100 | AB146: 100 | AC146: -120.53 | AD146: -113.51 | AE146: NULL | AF146: -999999999 | AG146: 0 | AH146: 999999999 | AI146: 0 | AJ146: 1435 | AK146: 0 | AL146: 1300 | AM146: 0 | AN146: 0 | AO146: 0 | AP146: 0 | AQ146: 0 | AR146: -1629 | AS146: -1629 | AT146: 0 | AU146: 1435 | AV146: 1435 | AW146: 1270 | AX146: 1300 | AY146: 1300 | AZ146: -1567 | BA146: 1435 | BB146: -1629 | BC146: -1629 | BD146: 0 | BE146: -1629 | BF146: 0
A147: 43866964 | B147: 73110 | C147: 68310 | D147: 6 | E147: 68 | F147: 683 | G147: FALSE | H147: TRUE | I147: a1 | J147: o1 | K147: 0 | L147: 112 | M147: 1 | N147: 45.41 | O147: 0 | P147: 32.148 | Q147: 44.892 | R147: 33.552 | S147: 177.372 | T147: 31.33 | U147: 35.36 | V147: 8.96 | W147: 4.4849 | X147: 4.4849 | Y147: 0.9215 | Z147: 35.88 | AA147: 8.32 | AB147: 33.8 | AC147: 11.01 | AD147: 12.97 | AE147: 1.5131 | AF147: 13.8186 | AG147: 0 | AH147: 1.2021 | AI147: 13243 | AJ147: 29163 | AK147: 0 | AL147: 26875 | AM147: 2400 | AN147: 3353 | AO147: 2505 | AP147: 13243 | AQ147: 9137 | AR147: 9505 | AS147: 2615 | AT147: 4106 | AU147: 18415 | AV147: 18415 | AW147: 9645 | AX147: 2237 | AY147: 9084 | AZ147: 2959 | BA147: 15920 | BB147: 2066 | BC147: 8752 | BD147: 204 | BE147: 2819 | BF147: 0
A148: 46064699 | B148: 62020 | C148: 61200 | D148: 6 | E148: 61 | F148: 612 | G148: TRUE | H148: TRUE | I148: a1 | J148: o1 | K148: 0 | L148: 112 | M148: 8 | N148: 32.1 | O148: 0 | P148: 2.664 | Q148: 8.028 | R148: 2.664 | S148: 13.896 | T148: 11.13 | U148: 10.09 | V148: 11.02 | W148: 3.8806 | X148: 3.8806 | Y148: 1.5539 | Z148: 10.78 | AA148: 9.97 | AB148: 11.19 | AC148: 9.69 | AD148: 12.83 | AE148: 3.0294 | AF148: 4.9667 | AG148: 26.1 | AH148: 2.1144 | AI148: 9367 | AJ148: 29173 | AK148: 0 | AL148: 45334 | AM148: 338 | AN148: 1011 | AO148: 338 | AP148: 1751 | AQ148: 3249 | AR148: 4578 | AS148: 3217 | AT148: 6118 | AU148: 23742 | AV148: 23742 | AW148: 4889 | AX148: 4524 | AY148: 5074 | AZ148: 4394 | BA148: 19806 | BB148: 2542 | BC148: 3092 | BD148: 811 | BE148: 4028 | BF148: 7616
A149: 36265713 | B149: 49410 | C149: 68200 | D149: 6 | E149: 68 | F149: 682 | G149: FALSE | H149: FALSE | I149: a2 | J149: o2 | K149: 0 | L149: 112 | M149: 2 | N149: 126.66 | O149: 86.148 | P149: 24.624 | Q149: 237.564 | R149: 90.72 | S149: 299.52 | T149: 0 | U149: -21 | V149: -33.15 | W149: 0.2794 | X149: 0.5424 | Y149: 1.3915 | Z149: -13.52 | AA149: -8.7 | AB149: 8.43 | AC149: -14.13 | AD149: -999999999 | AE149: 999999999 | AF149: -32.632 | AG149: 0 | AH149: -0.2104 | AI149: 1620562 | AJ149: 1279436 | AK149: 426182 | AL149: 1780441 | AM149: 121899 | AN149: 1174974 | AO149: 448715 | AP149: 1481381 | AQ149: 0 | AR149: -373924 | AS149: -424201 | AT149: 1620562 | AU149: 452885 | AV149: 879067 | AW149: -240824 | AX149: -155014 | AY149: 150144 | AZ149: -251650 | BA149: -341126 | BB149: -424201 | BC149: -386537 | BD149: 12613 | BE149: -411588 | BF149: 0
A150: 48027944 | B150: 41209 | C150: 71121 | D150: 7 | E150: 71 | F150: 711 | G150: FALSE | H150: TRUE | I150: a1 | J150: o1 | K150: 0 | L150: 112 | M150: 5 | N150: 62.18 | O150: 0 | P150: 56.016 | Q150: 7.416 | R150: 58.644 | S150: 101.592 | T150: 0.94 | U150: 3.19 | V150: 7.03 | W150: 1.6329 | X150: 1.6329 | Y150: 2.2027 | Z150: 6.06 | AA150: 8.37 | AB150: 33.12 | AC150: 4.53 | AD150: 12.52 | AE150: 13.127 | AF150: 999999999 | AG150: 0 | AH150: 0.6081 | AI150: 8060 | AJ150: 12962 | AK150: 0 | AL150: 28552 | AM150: 4444 | AN150: 589 | AO150: 4652 | AP150: 8060 | AQ150: 122 | AR150: 912 | AS150: 912 | AT150: 7938 | AU150: 12962 | AV150: 12962 | AW150: 1733 | AX150: 2392 | AY150: 9457 | AZ150: 1296 | BA150: 4902 | BB150: 614 | BC150: 614 | BD150: 0 | BE150: 912 | BF150: 0
A151: 36268283 | B151: 46190 | C151: 46900 | D151: 4 | E151: 46 | F151: 469 | G151: TRUE | H151: TRUE | I151: a1 | J151: o1 | K151: 0 | L151: 112 | M151: 2 | N151: 135.23 | O151: 11.772 | P151: 0 | Q151: 157.356 | R151: 5.832 | S151: 693.18 | T151: 0 | U151: 35.49 | V151: 24.83 | W151: 0.7224 | X151: 0.7394 | Y151: 0.6997 | Z151: 35.49 | AA151: 35.49 | AB151: 35.49 | AC151: 35.49 | AD151: 999999999 | AE151: 6.8994 | AF151: 999999999 | AG151: 0.48 | AH151: -0.2605 | AI151: 5009 | AJ151: 3704 | AK151: 85 | AL151: 2592 | AM151: 0 | AN151: 1133 | AO151: 42 | AP151: 4991 | AQ151: 0 | AR151: 920 | AS151: 920 | AT151: 5009 | AU151: 3619 | AV151: 3704 | AW151: 920 | AX151: 920 | AY151: 920 | AZ151: 920 | BA151: -1305 | BB151: 726 | BC151: 726 | BD151: 0 | BE151: 920 | BF151: 18
A152: 36340553 | B152: 77290 | C152: 47190 | D152: 4 | E152: 47 | F152: 471 | G152: TRUE | H152: FALSE | I152: a1 | J152: o1 | K152: 0 | L152: 112 | M152: 3 | N152: 223.5 | O152: 0 | P152: 17.676 | Q152: 17.964 | R152: 17.712 | S152: 80.064 | T152: 2.75 | U152: -2.18 | V152: -19.21 | W152: 0.4529 | X152: 0.4529 | Y152: 8.7877 | Z152: -2.18 | AA152: -1.11 | AB152: -1.11 | AC152: -2.18 | AD152: -999999999 | AE152: 999999999 | AF152: -999999999 | AG152: 0.68 | AH152: -0.5525 | AI152: 4222 | AJ152: 1889 | AK152: 0 | AL152: 16600 | AM152: 816 | AN152: 829 | AO152: 817 | AP152: 3693 | AQ152: 52 | AR152: -363 | AS152: -363 | AT152: 4170 | AU152: 1889 | AV152: 1889 | AW152: -363 | AX152: -185 | AY152: -185 | AZ152: -363 | BA152: -2333 | BB152: -363 | BC152: -363 | BD152: 0 | BE152: -363 | BF152: 13
A153: 36698733 | B153: 72200 | C153: 82990 | D153: 8 | E153: 82 | F153: 829 | G153: FALSE | H153: TRUE | I153: a1 | J153: o1 | K153: 0 | L153: 112 | M153: 4 | N153: 8.06 | O153: 0 | P153: 0 | Q153: 8.172 | R153: 19.872 | S153: 41.076 | T153: 0 | U153: 27.03 | V153: 19.08 | W153: 12.4068 | X153: 12.4068 | Y153: 0.7059 | Z153: 28.81 | AA153: 35.5 | AB153: 35.5 | AC153: 28.81 | AD153: 14.94 | AE153: 0.5867 | AF153: 999999999 | AG153: 0 | AH153: 11.4068 | AI153: 558 | AJ153: 6923 | AK153: 0 | AL153: 4887 | AM153: 0 | AN153: 111 | AO153: 270 | AP153: 558 | AQ153: 0 | AR153: 1321 | AS153: 1321 | AT153: 558 | AU153: 6923 | AV153: 6923 | AW153: 1408 | AX153: 1735 | AY153: 1735 | AZ153: 1408 | BA153: 6365 | BB153: 951 | BC153: 951 | BD153: 0 | BE153: 1321 | BF153: 0
A154: 46184309 | B154: 82990 | C154: 47740 | D154: 4 | E154: 47 | F154: 477 | G154: TRUE | H154: FALSE | I154: a1 | J154: o1 | K154: 0 | L154: 112 | M154: 5 | N154: 391.07 | O154: 0 | P154: 0.036 | Q154: 104.472 | R154: 0.036 | S154: 155.088 | T154: 0 | U154: -3.8 | V154: -25.91 | W154: 0.2557 | X154: 0.2557 | Y154: 6.8082 | Z154: -3.8 | AA154: -3.8 | AB154: 13.23 | AC154: -3.8 | AD154: -999999999 | AE154: 999999999 | AF154: -999999999 | AG154: 97.73 | AH154: -0.7442 | AI154: 50449 | AJ154: 12900 | AK154: 0 | AL154: 87827 | AM154: 14 | AN154: 25493 | AO154: 14 | AP154: 37841 | AQ154: 0 | AR154: -3343 | AS154: -3343 | AT154: 50449 | AU154: 12900 | AV154: 12900 | AW154: -3343 | AX154: -3343 | AY154: 11626 | AZ154: -3343 | BA154: -37549 | BB154: -3343 | BC154: -3343 | BD154: 0 | BE154: -3343 | BF154: 12608
A155: 44212143 | B155: 64920 | C155: 38320 | D155: 3 | E155: 38 | F155: 383 | G155: FALSE | H155: FALSE | I155: a2 | J155: o2 | K155: 0 | L155: 112 | M155: 1 | N155: 85.14 | O155: 0 | P155: 162.36 | Q155: 177.912 | R155: 182.412 | S155: 243.432 | T155: 17.22 | U155: 1.64 | V155: -11.92 | W155: 1.0505 | X155: 1.0505 | Y155: 1.259 | Z155: 2.05 | AA155: -6.36 | AB155: 6.69 | AC155: -8.93 | AD155: -80.29 | AE155: 59.0458 | AF155: -17.9683 | AG155: 0 | AH155: 0.1744 | AI155: 576996 | AJ155: 677652 | AK155: 0 | AL155: 853199 | AM155: 384819 | AN155: 421720 | AO155: 432349 | AP155: 576996 | AQ155: 116727 | AR155: 14033 | AS155: -80824 | AT155: 460269 | AU155: 483545 | AV155: 483545 | AW155: 17513 | AX155: -54315 | AY155: 57111 | AZ155: -76242 | BA155: 100656 | BB155: -80824 | BC155: 9772 | BD155: 4261 | BE155: -76563 | BF155: 0
A156: 44486855 | B156: 58190 | C156: 58190 | D156: 5 | E156: 58 | F156: 581 | G156: FALSE | H156: TRUE | I156: a1 | J156: o1 | K156: 0 | L156: 112 | M156: 1 | N156: 17.99 | O156: 0 | P156: 125.676 | Q156: 23.04 | R156: 126.144 | S156: 57.672 | T156: 0.03 | U156: 50.15 | V156: 56.1 | W156: 5.3917 | X156: 5.3917 | Y156: 1.1226 | Z156: 50.65 | AA156: 52.64 | AB156: 64.1 | AC156: 50.47 | AD156: 53.84 | AE156: 0.4056 | AF156: 999999999 | AG156: 0 | AH156: 4.5572 | AI156: 25681 | AJ156: 142717 | AK156: 0 | AL156: 160226 | AM156: 55935 | AN156: 10258 | AO156: 56158 | AP156: 25681 | AQ156: 56 | AR156: 80359 | AS156: 80071 | AT156: 25625 | AU156: 138164 | AV156: 138164 | AW156: 81167 | AX156: 84344 | AY156: 102719 | AZ156: 80879 | BA156: 117036 | BB156: 63015 | BC156: 63303 | BD156: 0 | BE156: 80071 | BF156: 0
A157: 44789670 | B157: 41209 | C157: 71110 | D157: 7 | E157: 71 | F157: 711 | G157: TRUE | H157: TRUE | I157: a1 | J157: o1 | K157: 0 | L157: 112 | M157: 1 | N157: 59.93 | O157: 0 | P157: 3.888 | Q157: 22.68 | R157: 445.572 | S157: 244.008 | T157: 0.09 | U157: 10.69 | V157: 7.6 | W157: 1.6438 | X157: 1.6438 | Y157: 0.7919 | Z157: 12.65 | AA157: 14.01 | AB157: 29.39 | AC157: 11.35 | AD157: 13.28 | AE157: 10.5516 | AF157: 16.0019 | AG157: 5.29 | AH157: 0.6683 | AI157: 61970 | AJ157: 103387 | AK157: 0 | AL157: 81873 | AM157: 885 | AN157: 5161 | AO157: 101339 | AP157: 55494 | AQ157: 102 | AR157: 8754 | AS157: 7861 | AT157: 61868 | AU157: 101700 | AV157: 101700 | AW157: 10365 | AX157: 11475 | AY157: 24070 | AZ157: 9296 | BA157: 41417 | BB157: 5504 | BC157: 5873 | BD157: 524 | BE157: 8385 | BF157: 5476
A158: 35685093 | B158: 46180 | C158: 74900 | D158: 7 | E158: 74 | F158: 749 | G158: FALSE | H158: TRUE | I158: a1 | J158: o1 | K158: 0 | L158: 121 | M158: 1 | N158: 80.15 | O158: 0 | P158: 0 | Q158: 78.912 | R158: 21024.396 | S158: 38343.996 | T158: 79.98 | U158: 1.76 | V158: 0.01 | W158: 16.2982 | X158: 16.2982 | Y158: 0.0075 | Z158: 5.88 | AA158: 7.65 | AB158: 7.65 | AC158: 5.88 | AD158: 0.06 | AE158: 6020.1956 | AF158: 999999999 | AG158: 0 | AH158: 0.2476 | AI158: 276929 | AJ158: 345510 | AK158: 0 | AL158: 2600 | AM158: 0 | AN158: 570 | AO158: 151843 | AP158: 276929 | AQ158: 276359 | AR158: 46 | AS158: 46 | AT158: 570 | AU158: 9290 | AV158: 9290 | AW158: 153 | AX158: 199 | AY158: 199 | AZ158: 153 | BA158: 68581 | BB158: 46 | BC158: 46 | BD158: 0 | BE158: 46 | BF158: 0
